Workbook

Sheet Country Impact Summary sheet
A1: Select your country from this drop-down list: | D1: Ethiopia | E1: Region | F1: Africa - East and Central | H1: =D1&" Total" -> Ethiopia Total | AC1: Country
A2: Where the rows under each indicator with project details do not show all your project examples, select the group of merged cells in that row where you want the data to appear, and press CTRL-SHIFT-H to autofit the row height | AC2: (Select from list)
AC3: Afghanistan
A4: =UPPER("CARE "&D1&" REPORT") -> CARE ETHIOPIA REPORT | AC4: Albania
A5: =UPPER("IMPACT TO DATE - Program Information & Impact Reporting System (PIIRS) - TO end of FY 2016") -> IMPACT TO DATE - PROGRAM INFORMATION & IMPACT REPORTING SYSTEM (PIIRS) - TO END OF FY 2016 | AC5: Algeria
AC6: Andorra
AC7: Angola
A8: =UPPER("Contribution to CARE International Program Strategy Outcomes and Impacts") -> CONTRIBUTION TO CARE INTERNATIONAL PROGRAM STRATEGY OUTCOMES AND IMPACTS | AC8: Antigua and Barbuda
A9: =_xlfn.IFNA(IF(VLOOKUP($H$1,'Summary - all indicators'!$B$2:$AP$308,41,FALSE)=0,"No data available to date","Overall, CARE "&$D$1&" and partners have contributed to positive impacts and outcomes for "&TEXT(ROUND(VLOOKUP($H$1,'Summary - all indicators'!$B$2:$AP$308,41,FALSE),0),"#,##0_);(#,##0)")&"people ("&ROUND(VLOOKUP($H$1,'Summary - all indicators'!$B$2:$AP$308,41,FALSE)/'Summary - all indicators'!AP302*100,2)&"% of CARE's global impacts)"),"No data available to date") -> Overall, CARE Ethiopia and partners have contributed to positive impacts and outcomes for 1,655,710 people (7.79% of CARE's global impacts) | AC9: Argentina
A10: =UPPER("Poverty and Social Injustice") -> POVERTY AND SOCIAL INJUSTICE | AC10: Armenia
A11: =_xlfn.IFNA(IF(VLOOKUP($H$1,'Summary - all indicators'!$B$2:$AP$308,8,FALSE)=0,"No data available to date","Overall, CARE "&$D$1&" and partners have contributed to "&TEXT(ROUND(VLOOKUP($H$1,'Summary - all indicators'!$B$2:$AP$308,8,FALSE),0),"#,##0_);(#,##0)")&"people escaping poverty or social justice ("&ROUND(VLOOKUP($H$1,'Summary - all indicators'!$B$2:$AP$308,8,FALSE)/'Summary - all indicators'!I302*100,2)&"% of CARE's global impacts)"),"No data available to date") -> No data available to date | AC11: Aruba
A12: ='1 - poverty ($1.90)'!A5 -> 1. Proportion of the population below the international poverty line (SDG indicator 1.1.1) | H12: ='2 - poverty (nat pov line)'!A5 -> 2. Proportion of the population living below the national poverty line (SDG indicator 1.2.1) | N12: ='3 - basic services'!A5 -> 3. Proportion of the population living in households with access to basic services (SDG indicator 1.4.1) | AC12: Australia
A13: =_xlfn.IFNA(IF(VLOOKUP($H$1,'Summary - all indicators'!$B$2:$AP$308,5,FALSE)=0,"-",TEXT(ROUND(VLOOKUP($H$1,'Summary - all indicators'!$B$2:$AP$308,5,FALSE),0),"#,##0_);(#,##0)")&"people escaping poverty"),"No data available to date") -> - | H13: =_xlfn.IFNA(IF(VLOOKUP($H$1,'Summary - all indicators'!$B$2:$AP$308,6,FALSE)=0,"-",TEXT(ROUND(VLOOKUP($H$1,'Summary - all indicators'!$B$2:$AP$308,6,FALSE),0),"#,##0_);(#,##0)")&"people escaping poverty"),"No data available to date") -> - | N13: =_xlfn.IFNA(IF(VLOOKUP($H$1,'Summary - all indicators'!$B$2:$AP$308,7,FALSE)=0,"-",TEXT(ROUND(VLOOKUP($H$1,'Summary - all indicators'!$B$2:$AP$308,7,FALSE),0),"#,##0_);(#,##0)")&"people escaping poverty"),"No data available to date") -> - | AC13: Austria
A14: =_xlfn.IFNA(IF(VLOOKUP($H$1,'Summary - all indicators'!$B$2:$CJ$308,44,FALSE)="","No data available to date",VLOOKUP($H$1,'Summary - all indicators'!$B$2:$CJ$308,44,FALSE)),"") -> No data available to date | H14: =_xlfn.IFNA(IF(VLOOKUP($H$1,'Summary - all indicators'!$B$2:$CJ$308,45,FALSE)="","No data available to date",VLOOKUP($H$1,'Summary - all indicators'!$B$2:$CJ$308,45,FALSE)),"") -> No data available to date | N14: =_xlfn.IFNA(IF(VLOOKUP($H$1,'Summary - all indicators'!$B$2:$CJ$308,46,FALSE)="","No data available to date",VLOOKUP($H$1,'Summary - all indicators'!$B$2:$CJ$308,46,FALSE)),"") -> No data available to date | AC14: Azerbaijan
A15: =UPPER("Humanitarian Assistance") -> HUMANITARIAN ASSISTANCE | AC15: Bahamas
A16: =_xlfn.IFNA(IF(VLOOKUP($H$1,'Summary - all indicators'!$B$2:$AP$308,18,FALSE)=0,"No data available to date","Overall, CARE "&$D$1&" and partners have provided "&TEXT(ROUND(VLOOKUP($H$1,'Summary - all indicators'!$B$2:$AP$308,18,FALSE),0),"#,##0_);(#,##0)")&"crisis/disaster-affected people with life-saving, quality humanitarian assistance ("&ROUND(VLOOKUP($H$1,'Summary - all indicators'!$B$2:$AP$308,18,FALSE)/'Summary - all indicators'!S302*100,2)&"% of CARE's global humanitarian outcomes)"),"No data available to date") -> Overall, CARE Ethiopia and partners have provided 1,308,048 crisis/disaster-affected people with life-saving, quality humanitarian assistance (22.14% of CARE's global humanitarian outcomes) | AC16: Bahrain
A17: ='4 - Shelter'!A3 -> 4. # and % of disaster/crisis-affected people supported through/by CARE who obtained adequate emergency shelter and/or recovered adequate housing | H17: ='4 - Safe Water'!A3 -> 4. # and % of disaster/crisis-affected people supported through/by CARE who had access to safe drinking water had access to safe drinking water | N17: ='4 - Adequate Sanitation'!A3 -> 4. # and % of disaster/crisis-affected people supported through/by CARE who had access to adequate sanitation facilities | AC17: Bangladesh
A18: =_xlfn.IFNA(IF(VLOOKUP($H$1,'Summary - all indicators'!$B$2:$AP$308,9,FALSE)=0,"-",TEXT(ROUND(VLOOKUP($H$1,'Summary - all indicators'!$B$2:$AP$308,9,FALSE),0),"#,##0_);(#,##0)")&"people with adequate shelter/housing"),"No data available to date") -> - | H18: =_xlfn.IFNA(IF(VLOOKUP($H$1,'Summary - all indicators'!$B$2:$AP$308,10,FALSE)=0,"-",TEXT(ROUND(VLOOKUP($H$1,'Summary - all indicators'!$B$2:$AP$308,10,FALSE),0),"#,##0_);(#,##0)")&"people with safe drinking water"),"No data available to date") -> 500,000 people with safe drinking water | N18: =_xlfn.IFNA(IF(VLOOKUP($H$1,'Summary - all indicators'!$B$2:$AP$308,11,FALSE)=0,"-",TEXT(ROUND(VLOOKUP($H$1,'Summary - all indicators'!$B$2:$AP$308,11,FALSE),0),"#,##0_);(#,##0)")&"people with adequate sanitation facilities"),"No data available to date") -> - | AC18: Belarus
A19: =_xlfn.IFNA(IF(VLOOKUP($H$1,'Summary - all indicators'!$B$2:$CJ$308,47,FALSE)="","No data available to date",VLOOKUP($H$1,'Summary - all indicators'!$B$2:$CJ$308,47,FALSE)),"") -> No data available to date | H19: =_xlfn.IFNA(IF(VLOOKUP($H$1,'Summary - all indicators'!$B$2:$CJ$308,48,FALSE)="","No data available to date",VLOOKUP($H$1,'Summary - all indicators'!$B$2:$CJ$308,48,FALSE)),"") -> Emergency WASH response to drought affected communities in Borena enabled access to safe drinking water for 500,000 people, 8.62% of those requiring assistance | N19: =_xlfn.IFNA(IF(VLOOKUP($H$1,'Summary - all indicators'!$B$2:$CJ$308,49,FALSE)="","No data available to date",VLOOKUP($H$1,'Summary - all indicators'!$B$2:$CJ$308,49,FALSE)),"") -> No data available to date | AC19: Belgium
A20: ='4 - Hygiene Practices'!A3:E3 -> 4. # and % of disaster/crisis-affected people supported through/by CARE who used adequate hygiene practices | H20: ='4 - Adequate food'!A1 -> 4. # and % of disaster/crisis-affected people supported through/by CARE who obtained adequate food quantities and quality | N20: ='4 - Nutritional practices'!A3 -> 4. # and % of disaster/crisis-affected people supported through/by CARE who adopted adequate nutritional practices | AC20: Belize
A21: =_xlfn.IFNA(IF(VLOOKUP($H$1,'Summary - all indicators'!$B$2:$AP$308,12,FALSE)=0,"-",TEXT(ROUND(VLOOKUP($H$1,'Summary - all indicators'!$B$2:$AP$308,12,FALSE),0),"#,##0_);(#,##0)")&"people with adequate hygiene practices"),"No data available to date") -> 10,945 people with adequate hygiene practices | H21: =_xlfn.IFNA(IF(VLOOKUP($H$1,'Summary - all indicators'!$B$2:$AP$308,13,FALSE)=0,"-",TEXT(ROUND(VLOOKUP($H$1,'Summary - all indicators'!$B$2:$AP$308,13,FALSE),0),"#,##0_);(#,##0)")&"people with adequate food"),"No data available to date") -> 549,728 people with adequate food | N21: =_xlfn.IFNA(IF(VLOOKUP($H$1,'Summary - all indicators'!$B$2:$AP$308,14,FALSE)=0,"-",TEXT(ROUND(VLOOKUP($H$1,'Summary - all indicators'!$B$2:$AP$308,14,FALSE),0),"#,##0_);(#,##0)")&"people with adequate nutritional practices"),"No data available to date") -> 159,715 people with adequate nutritional practices | AC21: Benin
A22: =_xlfn.IFNA(IF(VLOOKUP($H$1,'Summary - all indicators'!$B$2:$CJ$308,50,FALSE)="","No data available to date",VLOOKUP($H$1,'Summary - all indicators'!$B$2:$CJ$308,50,FALSE)),"") -> Resillience in drough prone areas of Borena enabled the use of adequate hygiene practices by 8,980 people, 100% of those requiring assistance WASH and livelihood support to drought affected communities in South Gondar enabled the use of adequate hygiene practices by 1,965 people, 6.1% of those requiring assistance | H22: =_xlfn.IFNA(IF(VLOOKUP($H$1,'Summary - all indicators'!$B$2:$CJ$308,51,FALSE)="","No data available to date",VLOOKUP($H$1,'Summary - all indicators'!$B$2:$CJ$308,51,FALSE)),"") -> Joint Emergency Operation Plan (JEOP) enabled the provision of adequate food for 549,728 people, 5.67% of those requiring assistance | N22: =_xlfn.IFNA(IF(VLOOKUP($H$1,'Summary - all indicators'!$B$2:$CJ$308,52,FALSE)="","No data available to date",VLOOKUP($H$1,'Summary - all indicators'!$B$2:$CJ$308,52,FALSE)),"") -> Dutch Relief Alliance - Ethiopia Joint Response: El Nino (ETJR) supported the adoption of adequate nutritional practices by 9,825 people, 37.93% of those requiring assistance East and West Hararge emergency nutrition support to malnourished children and pregnant and lactating women supported the adoption of adequate nutritional practices by 23,638 people, 85.39% of those requiring assistance East and West Hararghe Zone Emergency Nutrition response project supported the adoption of adequate nutritional practices by 64,446 people, 100% of those requiring assistance Emergency nutrition and WASH support for children and women affected by drought in East and West Hararghe, Ethiopia supported the adoption of adequate nutritional practices by 39,238 people, 39.81% of those requiring assistance Emergency nutrition response for children less than five years and pregnant and lactating women in South Gonder zone supported the adoption of adequate nutritional practices by 14,648 people, 100% of those requiring assistance South Gondar Emergency Nutrition Response Project supported the adoption of adequate nutritional practices by 7,920 people, 72.6% of those requiring assistance | AC22: Bhutan
A23: ='4 - Access SRH'!A1 -> 4. # and % of disaster/crisis-affected people supported through/by CARE who had access to at least one SRH service (specially women reproductive age and adolescents) | H23: ='4 - Livelihood recovery'!A1 -> 4. # and % of disaster/crisis-affected people supported through/by CARE who recovered household goods, assets, and/or income opportunities | N23: ='5 - Satisfaction'!A1 -> 5. % of disaster/crisis affected people in areas of CARE responses who report satisfaction with regards to relevance, timeliness and accountability of humanitarian interventions | AC23: Bolivia
A24: =_xlfn.IFNA(IF(VLOOKUP($H$1,'Summary - all indicators'!$B$2:$AP$308,15,FALSE)=0,"-",TEXT(ROUND(VLOOKUP($H$1,'Summary - all indicators'!$B$2:$AP$308,15,FALSE),0),"#,##0_);(#,##0)")&"people with access to at least one SRH service"),"No data available to date") -> - | H24: =_xlfn.IFNA(IF(VLOOKUP($H$1,'Summary - all indicators'!$B$2:$AP$308,16,FALSE)=0,"-",TEXT(ROUND(VLOOKUP($H$1,'Summary - all indicators'!$B$2:$AP$308,16,FALSE),0),"#,##0_);(#,##0)")&"people with recovered goods, assets and/or income opportunities"),"No data available to date") -> 96,117 people with recovered goods, assets and/or income opportunities | N24: =_xlfn.IFNA(IF(VLOOKUP($H$1,'Summary - all indicators'!$B$2:$AP$308,17,FALSE)=0,"-",TEXT(ROUND(VLOOKUP($H$1,'Summary - all indicators'!$B$2:$AP$308,17,FALSE),0),"#,##0_);(#,##0)")&"people satisfied with quality of humanitarian interventions"),"No data available to date") -> - | AC24: Bosnia and Herzegovina
A25: =_xlfn.IFNA(IF(VLOOKUP($H$1,'Summary - all indicators'!$B$2:$CJ$308,53,FALSE)="","No data available to date",VLOOKUP($H$1,'Summary - all indicators'!$B$2:$CJ$308,53,FALSE)),"") -> No data available to date | H25: =_xlfn.IFNA(IF(VLOOKUP($H$1,'Summary - all indicators'!$B$2:$CJ$308,54,FALSE)="","No data available to date",VLOOKUP($H$1,'Summary - all indicators'!$B$2:$CJ$308,54,FALSE)),"") -> Emergency seed support to drought affected people supported recovery of goods, assets or income opportunities for 87,660 people, 115.55% of those requiring assistance Resillience in drough prone areas of Borena supported recovery of goods, assets or income opportunities for 6,492 people, 100% of those requiring assistance WASH and livelihood support to drought affected communities in South Gondar supported recovery of goods, assets or income opportunities for 1,965 people, 6.1% of those requiring assistance | N25: =_xlfn.IFNA(IF(VLOOKUP($H$1,'Summary - all indicators'!$B$2:$CJ$308,55,FALSE)="","No data available to date",VLOOKUP($H$1,'Summary - all indicators'!$B$2:$CJ$308,55,FALSE)),"") -> No data available to date | AC25: Botswana
A26: =UPPER("Rights to Sexual, Reproductive & Maternal Health (SRMH)") -> RIGHTS TO SEXUAL, REPRODUCTIVE & MATERNAL HEALTH (SRMH) | AC26: Brazil
A27: =_xlfn.IFNA(IF(VLOOKUP($H$1,'Summary - all indicators'!$B$2:$AP$308,23,FALSE)=0,"No data available to date","Overall, CARE "&$D$1&" and partners have helped "&TEXT(ROUND(VLOOKUP($H$1,'Summary - all indicators'!$B$2:$AP$308,23,FALSE),0),"#,##0_);(#,##0)")&"women realize their rights to Sexual, Reproductive & Maternal Health ("&ROUND(VLOOKUP($H$1,'Summary - all indicators'!$B$2:$AP$308,23,FALSE)/'Summary - all indicators'!X302*100,2)&"% of CARE's global SRMH impact)"),"No data available to date") -> Overall, CARE Ethiopia and partners have helped 644 women realize their rights to Sexual, Reproductive & Maternal Health (0.01% of CARE's global SRMH impact) | AC27: Brunei
A28: ='6 - Met demand'!A1 -> 6. Demand satisfied for modern contraceptives among women aged 15-49 (SDG indicator 3.7.1) | H28: ='7 - SBA'!A1 -> 7. % of births attended by skilled health personnel (SDG indicator 3.1.2) | N28: ='8 - ABR'!A1 -> 8. Adolescents birth rate per 1,000 women aged 15 to 19 years (SDG indicator 3.7.2.) Proxy indicator: Age at first deliver | AC28: Bulgaria
A29: =_xlfn.IFNA(IF(VLOOKUP($H$1,'Summary - all indicators'!$B$2:$AP$308,19,FALSE)=0,"-",TEXT(ROUND(VLOOKUP($H$1,'Summary - all indicators'!$B$2:$AP$308,19,FALSE),0),"#,##0_);(#,##0)")&"women with met demand for modern contraceptives"),"No data available to date") -> 644 women with met demand for modern contraceptives | H29: =_xlfn.IFNA(IF(VLOOKUP($H$1,'Summary - all indicators'!$B$2:$AP$308,20,FALSE)=0,"-",TEXT(ROUND(VLOOKUP($H$1,'Summary - all indicators'!$B$2:$AP$308,20,FALSE),0),"#,##0_);(#,##0)")&"women with skilled birth attendance"),"No data available to date") -> - | N29: =_xlfn.IFNA(IF(VLOOKUP($H$1,'Summary - all indicators'!$B$2:$AP$308,21,FALSE)=0,"-",TEXT(ROUND(VLOOKUP($H$1,'Summary - all indicators'!$B$2:$AP$308,21,FALSE),0),"#,##0_);(#,##0)")&"fewer adolescents giving birth"),"No data available to date") -> - | AC29: Burkina Faso
A30: =_xlfn.IFNA(IF(VLOOKUP($H$1,'Summary - all indicators'!$B$2:$CJ$308,56,FALSE)="","No data available to date",VLOOKUP($H$1,'Summary - all indicators'!$B$2:$CJ$308,56,FALSE)),"") -> Towards Improved Economic and Sexual Reproductive Health Outcomes for Adolescent Girls (TESFA ) in Ethiopia contributed to increasing met demand for modern contraceptives by 0% (from 69% to 69%), enabling 0 women to increase access to contraceptives, and a total of 644 women to exercise their SRMH rights | H30: =_xlfn.IFNA(IF(VLOOKUP($H$1,'Summary - all indicators'!$B$2:$CJ$308,57,FALSE)="","No data available to date",VLOOKUP($H$1,'Summary - all indicators'!$B$2:$CJ$308,57,FALSE)),"") -> No data available to date | N30: =_xlfn.IFNA(IF(VLOOKUP($H$1,'Summary - all indicators'!$B$2:$CJ$308,58,FALSE)="","No data available to date",VLOOKUP($H$1,'Summary - all indicators'!$B$2:$CJ$308,58,FALSE)),"") -> No data available to date | AC30: Burma
A31: ='9 - SRH decisions'!A1 -> 9. Proportion of women aged 15-49 who make their own informed decisions regarding sexual relations, contraceptive use and reproductive health care (SDG indicator 5.6.1) | AC31: Burundi
A32: =_xlfn.IFNA(IF(VLOOKUP($H$1,'Summary - all indicators'!$B$2:$AP$308,22,FALSE)=0,"-",TEXT(ROUND(VLOOKUP($H$1,'Summary - all indicators'!$B$2:$AP$308,22,FALSE),0),"#,##0_);(#,##0)")&"women able to make informed decisions"),"No data available to date") -> - | AC32: Cambodia
A33: =_xlfn.IFNA(IF(VLOOKUP($H$1,'Summary - all indicators'!$B$2:$CJ$308,59,FALSE)="","No data available to date",VLOOKUP($H$1,'Summary - all indicators'!$B$2:$CJ$308,59,FALSE)),"") -> No data available to date | AC33: Cameroon
A34: =UPPER("Right to a life free from violence") -> RIGHT TO A LIFE FREE FROM VIOLENCE | AC34: Canada
A35: =_xlfn.IFNA(IF(VLOOKUP($H$1,'Summary - all indicators'!$B$2:$AP$308,27,FALSE)=0,"No data available to date","Overall, CARE "&$D$1&" and partners have helped "&TEXT(ROUND(VLOOKUP($H$1,'Summary - all indicators'!$B$2:$AP$308,27,FALSE),0),"#,##0_);(#,##0)")&"people realize their right to a life free from violence ("&ROUND(VLOOKUP($H$1,'Summary - all indicators'!$B$2:$AP$308,27,FALSE)/'Summary - all indicators'!AB$302*100,2)&"% of CARE's global GBV impact)"),"No data available to date") -> No data available to date | AC35: Cape Verde
A36: ='10 - Rejecting IPV'!A$1 -> 10. % of people who reject intimate partner violence | H36: ='11 - violence by partner'!A1 -> 11. % of ever-partnered women and girls aged 15 years and older subjected to physical, sexual or psychological violence by a current or former intimate partner, in the last 12 months (SDG indicator 5.2.1) | N36: ='12 - sexual violence'!A1 -> Indicator 12. % of women and girls aged 15 years and older subjected to sexual violence by persons other than an intimate partner, in the last 12 months (SDG indicator 5.2.2) | AC36: Central African Republic
A37: =_xlfn.IFNA(IF(VLOOKUP($H$1,'Summary - all indicators'!$B$2:$AP$308,24,FALSE)=0,"-",TEXT(ROUND(VLOOKUP($H$1,'Summary - all indicators'!$B$2:$AP$308,24,FALSE),0),"#,##0_);(#,##0)")&"people rejecting IPV"),"No data available to date") -> - | H37: =_xlfn.IFNA(IF(VLOOKUP($H$1,'Summary - all indicators'!$B$2:$AP$308,25,FALSE)=0,"-",TEXT(ROUND(VLOOKUP($H$1,'Summary - all indicators'!$B$2:$AP$308,25,FALSE),0),"#,##0_);(#,##0)")&"fewer women experiencing intimate partner violence"),"No data available to date") -> - | N37: =_xlfn.IFNA(IF(VLOOKUP($H$1,'Summary - all indicators'!$B$2:$AP$308,26,FALSE)=0,"-",TEXT(ROUND(VLOOKUP($H$1,'Summary - all indicators'!$B$2:$AP$308,26,FALSE),0),"#,##0_);(#,##0)")&"fewer women experiencing sexual violence"),"No data available to date") -> - | AC37: Chad
A38: =_xlfn.IFNA(IF(VLOOKUP($H$1,'Summary - all indicators'!$B$2:$CJ$308,60,FALSE)="","No data available to date",VLOOKUP($H$1,'Summary - all indicators'!$B$2:$CJ$308,60,FALSE)),"") -> No data available to date | H38: =_xlfn.IFNA(IF(VLOOKUP($H$1,'Summary - all indicators'!$B$2:$CJ$308,61,FALSE)="","No data available to date",VLOOKUP($H$1,'Summary - all indicators'!$B$2:$CJ$308,61,FALSE)),"") -> No data available to date | N38: =_xlfn.IFNA(IF(VLOOKUP($H$1,'Summary - all indicators'!$B$2:$CJ$308,62,FALSE)="","No data available to date",VLOOKUP($H$1,'Summary - all indicators'!$B$2:$CJ$308,62,FALSE)),"") -> No data available to date | AC38: Chile
A39: =UPPER("Food & Nutrition Security and Climate Change Resilience (FNS & CCR)") -> FOOD & NUTRITION SECURITY AND CLIMATE CHANGE RESILIENCE (FNS & CCR) | AC39: China
A40: =_xlfn.IFNA(IF(VLOOKUP($H$1,'Summary - all indicators'!$B$2:$AP$308,33,FALSE)=0,"No data available to date","Overall, CARE "&$D$1&" and partners have helped "&TEXT(ROUND(VLOOKUP($H$1,'Summary - all indicators'!$B$2:$AP$308,33,FALSE),0),"#,##0_);(#,##0)")&"people increase their Food & Nutrition Security and Climate Change Resilience ("&ROUND(VLOOKUP($H$1,'Summary - all indicators'!$B$2:$AP$308,33,FALSE)/'Summary - all indicators'!AH$302*100,2)&"% of CARE's global FNS/CCR impact)**"),"No data available to date") -> Overall, CARE Ethiopia and partners have helped 1,084,860 people increase their Food & Nutrition Security and Climate Change Resilience (13.1% of CARE's global FNS/CCR impact)** | AC40: Colombia
A41: 13. % of population with moderate or severe food insecurity, based on the Food Insecurity Experience Scale (FIES) | H41: ='14 - Stunting'!A$1 -> 14. Prevalence of stunting among girls and boys under the age of five (SDG indicator 2.2.1) | N41: ='15 - Resilience capacity'!A$1 -> 15. # of people better able to build resilience to the effects of climate change and variability | AC41: Comoros
A42: =_xlfn.IFNA(IF(VLOOKUP($H$1,'Summary - all indicators'!$B$2:$AP$308,29,FALSE)=0,"-",TEXT(ROUND(VLOOKUP($H$1,'Summary - all indicators'!$B$2:$AP$308,29,FALSE),0),"#,##0_);(#,##0)")&"people improving food security"),"No data available to date") -> 168,800 people improving food security | H42: =_xlfn.IFNA(IF(VLOOKUP($H$1,'Summary - all indicators'!$B$2:$AP$308,30,FALSE)=0,"-",TEXT(ROUND(VLOOKUP($H$1,'Summary - all indicators'!$B$2:$AP$308,30,FALSE),0),"#,##0_);(#,##0)")&"people in families with reduced stunting"),"No data available to date") -> - | N42: =_xlfn.IFNA(IF(VLOOKUP($H$1,'Summary - all indicators'!$B$2:$AP$308,31,FALSE)=0,"-",TEXT(ROUND(VLOOKUP($H$1,'Summary - all indicators'!$B$2:$AP$308,31,FALSE),0),"#,##0_);(#,##0)")&"more people with ability to build resilience to climate change"),"No data available to date") -> 266,500 more people with ability to build resilience to climate change | AC42: Congo, Republic of the
A43: =_xlfn.IFNA(IF(VLOOKUP($H$1,'Summary - all indicators'!$B$2:$CJ$308,63,FALSE)="","No data available to date",VLOOKUP($H$1,'Summary - all indicators'!$B$2:$CJ$308,63,FALSE)),"") -> Abdishe: Strengthening women`s Livelihoods through Markets contributed to reducing food insecurity by 40% (from 100% to 60%), increasing food security for 12,800 people Graduation with Resilience to Achieve Sustanable Development (GRAD) contributed to reducing food insecurity by 48% (from 94% to 46%), increasing food security for 156,000 people | H43: =_xlfn.IFNA(IF(VLOOKUP($H$1,'Summary - all indicators'!$B$2:$CJ$308,64,FALSE)="","No data available to date",VLOOKUP($H$1,'Summary - all indicators'!$B$2:$CJ$308,64,FALSE)),"") -> No data available to date | N43: =_xlfn.IFNA(IF(VLOOKUP($H$1,'Summary - all indicators'!$B$2:$CJ$308,65,FALSE)="","No data available to date",VLOOKUP($H$1,'Summary - all indicators'!$B$2:$CJ$308,65,FALSE)),"") -> Graduation with Resilience to Achieve Sustanable Development (GRAD) contributed to increasing ability to build resilience for 82 % of participants, increasing resilience for 266,500 people | AC43: Costa Rica
A44: ** Note: includes indicators 13-15, as well as 4 (food & nutrition) and 21 | AC44: Cote d'Ivoire
A45: =UPPER("Women's Economic Empowerment (WEE)") -> WOMEN'S ECONOMIC EMPOWERMENT (WEE) | AC45: Croatia
A46: =_xlfn.IFNA(IF(VLOOKUP($H$1,'Summary - all indicators'!$B$2:$AP$308,37,FALSE)=0,"No data available to date","Overall, CARE "&$D$1&" and partners have helped "&TEXT(ROUND(VLOOKUP($H$1,'Summary - all indicators'!$B$2:$AP$308,37,FALSE),0),"#,##0_);(#,##0)")&"women increase their access to and control over economic resources ("&ROUND(VLOOKUP($H$1,'Summary - all indicators'!$B$2:$AP$308,37,FALSE)/'Summary - all indicators'!AL$302*100,2)&"% of CARE's global WEE impact)"),"No data available to date") -> Overall, CARE Ethiopia and partners have helped 97,147 women increase their access to and control over economic resources (3.03% of CARE's global WEE impact) | AC46: Cuba
A47: 16. # and % of women who are active users of financial services (disaggregated by informal and formal services) (related to SDG indicator 8.10.2) | H47: ='17 - HH $ decisions'!A$1 -> 17. % of women who (report they) are able to equally participate in household financial decision-making | N47: ='18 - Labor rights'!A$1 -> 18. % women with union, women's group, or cooperative membership through which they can voice their labour rights | AC47: Curacao
A48: =_xlfn.IFNA(IF(VLOOKUP($H$1,'Summary - all indicators'!$B$2:$AP$308,34,FALSE)=0,"-",TEXT(ROUND(VLOOKUP($H$1,'Summary - all indicators'!$B$2:$AP$308,34,FALSE),0),"#,##0_);(#,##0)")&"women increasing financial inclusion"),"No data available to date") -> 89,538 women increasing financial inclusion | H48: =_xlfn.IFNA(IF(VLOOKUP($H$1,'Summary - all indicators'!$B$2:$AP$308,35,FALSE)=0,"-",TEXT(ROUND(VLOOKUP($H$1,'Summary - all indicators'!$B$2:$AP$308,35,FALSE),0),"#,##0_);(#,##0)")&"additional women with equal participation in decisions"),"No data available to date") -> 13,770 additional women with equal participation in decisions | N48: =_xlfn.IFNA(IF(VLOOKUP($H$1,'Summary - all indicators'!$B$2:$AP$308,36,FALSE)=0,"-",TEXT(ROUND(VLOOKUP($H$1,'Summary - all indicators'!$B$2:$AP$308,36,FALSE),0),"#,##0_);(#,##0)")&"more women able to claim their rights through a group"),"No data available to date") -> - | AC48: Cyprus
A49: =_xlfn.IFNA(IF(VLOOKUP($H$1,'Summary - all indicators'!$B$2:$CJ$308,66,FALSE)="","No data available to date",VLOOKUP($H$1,'Summary - all indicators'!$B$2:$CJ$308,66,FALSE)),"") -> Food Sufficiency for Farmers (FSF) enabled 40,174 women to access formal or informal financial services Graduation with Resilience to Achieve Sustanable Development (GRAD) enabled 25,719 women to access formal or informal financial services Towards Improved Economic and Sexual Reproductive Health Outcomes for Adolescent Girls (TESFA ) in Ethiopia enabled 1,367 women to access formal or informal financial services VSLAs (various other projects) in Ethiopia enabled 22,278 women to access formal or informal financial services | H49: =_xlfn.IFNA(IF(VLOOKUP($H$1,'Summary - all indicators'!$B$2:$CJ$308,67,FALSE)="","No data available to date",VLOOKUP($H$1,'Summary - all indicators'!$B$2:$CJ$308,67,FALSE)),"") -> Abdishe: Strengthening women`s Livelihoods through Markets contributed to increasing the proportion of women able to participate equally in HH financial decisions by 47.9% (from 18.8% to 66.7%), enabling an additional 3,066 women to have control over economic resources Berchi or `be strong` contributed to increasing the proportion of women able to participate equally in HH financial decisions by 59% (from 7% to 66%), enabling an additional 4,543 women to have control over economic resources Food Sufficiency for Farmers (FSF) contributed to increasing the proportion of women able to participate equally in HH financial decisions by 10% (from 51% to 61%), enabling an additional 858 women to have control over economic resources Graduation with Resilience to Achieve Sustanable Development (GRAD) contributed to increasing the proportion of women able to participate equally in HH financial decisions by 16% (from 75% to 91%), enabling an additional 5,304 women to have control over economic resources | N49: =_xlfn.IFNA(IF(VLOOKUP($H$1,'Summary - all indicators'!$B$2:$CJ$308,68,FALSE)="","No data available to date",VLOOKUP($H$1,'Summary - all indicators'!$B$2:$CJ$308,68,FALSE)),"") -> No data available to date | AC49: Czech Republic
A50: =UPPER("CARE's APPROACH (gender, governance & resilience)") -> CARE'S APPROACH (GENDER, GOVERNANCE & RESILIENCE) | AC50: Denmark
AC51: Djibouti
A52: 19. # and % of people of all genders who have meaningfully participated in formal (government-led) and informal (civil society-led, private sector-led) decision-making spaces | H52: 20. # of new or amended policies, legislation, public programs, and/or budgets responsive to the rights, needs and demands of people of all genders | N52: 21. # and % of people implementing practices/actions that reduce vulnerability and increase resilience, disaggregated by climate-related, economic, social or environmental events | AC52: Dominica
A53: =_xlfn.IFNA(IF(VLOOKUP($H$1,'Summary - all indicators'!$B$2:$AP$308,38,FALSE)=0,"-",TEXT(ROUND(VLOOKUP($H$1,'Summary - all indicators'!$B$2:$AP$308,38,FALSE),0),"#,##0_);(#,##0)")&"people meaningfully participating in decision-making spaces"),"No data available to date") -> - | H53: =_xlfn.IFNA(IF(VLOOKUP($H$1,'Summary - all indicators'!$B$2:$CJ$308,72,FALSE)=0,"-",TEXT(ROUND(VLOOKUP($H$1,'Summary - all indicators'!$B$2:$CJ$308,72,FALSE),0),"#,##0_);(#,##0)")&" project(s) influenced policies, laws, programs or budgets"),"No data available to date") -> - | N53: =_xlfn.IFNA(IF(VLOOKUP($H$1,'Summary - all indicators'!$B$2:$AP$308,40,FALSE)=0,"-",TEXT(ROUND(VLOOKUP($H$1,'Summary - all indicators'!$B$2:$AP$308,40,FALSE),0),"#,##0_);(#,##0)")&"more people with ability to build resilience to climate change"),"No data available to date") -> - | AC53: Dominican Republic
A54: =_xlfn.IFNA(IF(VLOOKUP($H$1,'Summary - all indicators'!$B$2:$CJ$308,69,FALSE)="","No data available to date",VLOOKUP($H$1,'Summary - all indicators'!$B$2:$CJ$308,69,FALSE)),"") -> No data available to date | H54: =_xlfn.IFNA(IF(VLOOKUP($H$1,'Summary - all indicators'!$B$2:$CJ$308,70,FALSE)="","No data available to date",VLOOKUP($H$1,'Summary - all indicators'!$B$2:$CJ$308,70,FALSE)),"") -> No data available to date | N54: =_xlfn.IFNA(IF(VLOOKUP($H$1,'Summary - all indicators'!$B$2:$CJ$308,71,FALSE)="","No data available to date",VLOOKUP($H$1,'Summary - all indicators'!$B$2:$CJ$308,71,FALSE)),"") -> No data available to date | AC54: DRC
AC55: Ecuador
AC56: Egypt
AC57: El Salvador
AC58: Equatorial Guinea
AC59: Eritrea
AC60: Estonia
AC61: Ethiopia
AC62: Fiji
AC63: Finland
AC64: France
AC65: Gabon
AC66: Gambia, The
AC67: Georgia
AC68: Germany
AC69: Ghana
AC70: Greece
AC71: Grenada
AC72: Guatemala
AC73: Guinea
AC74: Guinea-Bissau
AC75: Guyana
AC76: Haiti
AC77: Holy See
AC78: Honduras
AC79: Hong Kong
AC80: Hungary
AC81: Iceland
AC82: India
AC83: Indonesia
AC84: Iran
AC85: Iraq
AC86: Ireland
AC87: Israel
AC88: Italy
AC89: Jamaica
AC90: Japan
AC91: Jordan
AC92: Kazakhstan
AC93: Kenya
AC94: Kiribati
AC95: Korea, North
AC96: Korea, South
AC97: Kosovo
AC98: Kuwait
AC99: Kyrgyzstan
AC100: Laos
AC101: Latvia
AC102: Lebanon
AC103: Lesotho
AC104: Liberia
AC105: Libya
AC106: Liechtenstein
AC107: Lithuania
AC108: Luxembourg
AC109: Macau
AC110: Macedonia
AC111: Madagascar
AC112: Malawi
AC113: Malaysia
AC114: Maldives
AC115: Mali
AC116: Malta
AC117: Marshall Islands
AC118: Mauritania
AC119: Mauritius
AC120: Mexico
AC121: Micronesia
AC122: Moldova
AC123: Monaco
AC124: Mongolia
AC125: Montenegro
AC126: Morocco
AC127: Mozambique
AC128: Myanmar
AC129: Namibia
AC130: Nauru
AC131: Nepal
AC132: Netherlands
AC133: Netherlands Antilles
AC134: New Zealand
AC135: Nicaragua
AC136: Niger
AC137: Nigeria
AC138: Norway
AC139: Oman
AC140: Pakistan
AC141: Palau
AC142: Palestinian Territories
AC143: Panama
AC144: Papua New Guinea
AC145: Paraguay
AC146: Peru
AC147: Philippines
AC148: Poland
AC149: Portugal
AC150: Qatar
AC151: Romania
AC152: Russia
AC153: Rwanda
AC154: Saint Kitts and Nevis
AC155: Saint Lucia
AC156: Saint Vincent and the Grenadines
AC157: Samoa
AC158: San Marino
AC159: Sao Tome and Principe
AC160: Saudi Arabia
AC161: Senegal
AC162: Serbia
AC163: Seychelles
AC164: Sierra Leone
AC165: Singapore
AC166: Sint Maarten
AC167: Slovakia
AC168: Slovenia
AC169: Solomon Islands
AC170: Somalia
AC171: South Africa
AC172: South Sudan
AC173: Spain
AC174: Sri Lanka
AC175: Sudan
AC176: Suriname
AC177: Swaziland
AC178: Sweden
AC179: Switzerland
AC180: Syria
AC181: Taiwan
AC182: Tajikistan
AC183: Tanzania
AC184: Thailand
AC185: Timor-Leste
AC186: Togo
AC187: Tonga
AC188: Trinidad and Tobago
AC189: Tunisia
AC190: Turkey
AC191: Turkmenistan
AC192: Tuvalu
AC193: Uganda
AC194: Ukraine
AC195: United Arab Emirates
AC196: United Kingdom
AC197: United States of America
AC198: Uruguay
AC199: Uzbekistan
AC200: Vanuatu
... 6 more rows

Sheet Global Impact Summary
A1: =UPPER("CARE "&"International"&" REPORT") -> CARE INTERNATIONAL REPORT | AC1: Afghanistan
A2: =UPPER("IMPACT TO DATE - Program Information & Impact Reporting System (PIIRS) - TO end of FY 2016") -> IMPACT TO DATE - PROGRAM INFORMATION & IMPACT REPORTING SYSTEM (PIIRS) - TO END OF FY 2016 | AC2: Albania
AC3: Algeria
AC4: Andorra
A5: =UPPER("Contribution to CARE International Program Strategy Outcomes and Impacts") -> CONTRIBUTION TO CARE INTERNATIONAL PROGRAM STRATEGY OUTCOMES AND IMPACTS | AC5: Angola
A6: ="Overall, CARE and partners have "&'Summary statements'!A3:B3 -> Overall, CARE and partners have contributed to reduce poverty and social injustice for close to 21,260,000 women, men, girls and boys (242 projects, in 57 countries) | AC6: Argentina
A7: =UPPER("Poverty and Social Injustice") -> POVERTY AND SOCIAL INJUSTICE | AC7: Aruba
A8: ='Summary statements'!A5:B5 -> Overall, CARE and partners have contributed to 150,062 people escaping poverty or social justice (6 projects in 4 countries) | AC8: Australia
A9: ='1 - poverty ($1.90)'!A5 -> 1. Proportion of the population below the international poverty line (SDG indicator 1.1.1) | H9: ='2 - poverty (nat pov line)'!A5 -> 2. Proportion of the population living below the national poverty line (SDG indicator 1.2.1) | N9: ='3 - basic services'!A5 -> 3. Proportion of the population living in households with access to basic services (SDG indicator 1.4.1) | AC9: Austria
A10: ='Summary statements'!A6 -> Helped over 145,000 additional people to escape from poverty (145,728 ) - as measured by the international poverty line of US$1.90 a day - a reduction in poverty rates of 81.8 percentage points (3 projects, in 2 countries) | H10: ='Summary statements'!A7 -> Helped close to 4,500 additional people to escape from poverty (4,335 ) - as measured by the national poverty line - a reduction of 3.7 percentage points in poverty rates (3 projects, in 2 countries) | N10: ='Summary statements'!A8 -> Not reported this year, as SDG indicator still under definition at global level | AC10: Austria
A11: =VLOOKUP(1,'1 - poverty ($1.90)'!I7:J9,2,FALSE)&CHAR(10)&CHAR(10)&VLOOKUP(2,'1 - poverty ($1.90)'!I7:J9,2,FALSE)&CHAR(10)&CHAR(10)&VLOOKUP(3,'1 - poverty ($1.90)'!I7:J9,2,FALSE) -> Social and Economic Transformation of the Ultra-poor (SETU) Phase II contributed to reducing poverty by 95% (from 100% to 5%), enabling 142,096 people to escape poverty (Bangladesh) INTIATIVE FOR FOOD SECURITY AND NUTRITION IN SEGOU (IFONS) MALI contributed to reducing poverty by 19% (from 100% to 81%), enabling 2,004 people to escape poverty (Mali) Promoting Sustainable Consumption and Production of Jute Diversified Product contributed to reducing poverty by 9% (from 44% to 35%), enabling 1,627 people to escape poverty (Bangladesh) | H11: =VLOOKUP(1,'2 - poverty (nat pov line)'!I7:J9,2,FALSE)&CHAR(10)&CHAR(10)&VLOOKUP(2,'2 - poverty (nat pov line)'!I7:J9,2,FALSE)&CHAR(10)&CHAR(10)&VLOOKUP(3,'2 - poverty (nat pov line)'!I7:J9,2,FALSE) -> Kutch Livelihood and Education Advancement Project (KLEAP) contributed to reducing poverty by 8% (from 47% to 39%), enabling 3,713 people to escape poverty (India) ENPARD-Cooperation for Rural Prosperity in Georgia contributed to reducing poverty by 2.5% (from 40% to 37.5%), enabling 364 people to escape poverty (Georgia) Participatory Rural Development contributed to reducing poverty by 24.3% (from 40% to 15.7%), enabling 257 people to escape poverty (Georgia) | N11: - | AC11: Azerbaijan
A12: =UPPER("Humanitarian Assistance") -> HUMANITARIAN ASSISTANCE | AC12: Bahrain
A13: ='Summary statements'!A10:B10 -> Provided quality, life-saving humanitarian assistance for close to 5,910,000 disaster/crisis-affected people (87 projects, in 33 countries) | AC13: Bahrain
A14: ='4 - Shelter'!A3 -> 4. # and % of disaster/crisis-affected people supported through/by CARE who obtained adequate emergency shelter and/or recovered adequate housing | H14: ='4 - Safe Water'!A3 -> 4. # and % of disaster/crisis-affected people supported through/by CARE who had access to safe drinking water had access to safe drinking water | N14: ='4 - Adequate Sanitation'!A3 -> 4. # and % of disaster/crisis-affected people supported through/by CARE who had access to adequate sanitation facilities | AC14: Bangladesh
A15: ='Summary statements'!A11 -> Supported over 350,000 disaster/crisis-affected people to obtain adequate emergency shelter and/or recover adequate housing (354,456), 8.5% of those needing assistance (17 projects, in 13 countries) | H15: ='Summary statements'!A12 -> Supported over 1,190,000 disaster/crisis-affected people to have access to safe drinking water (1,193,298), 9.5% of those needing assistance (18 projects, in 16 countries) | N15: ='Summary statements'!A13 -> Supported over 360,000 disaster/crisis-affected people to have access to adequate sanitation facilities (362,383), 10.6% of those needing assistance (14 projects, in 12 countries) | AC15: Bangladesh
A16: =VLOOKUP(1,'4 - Shelter'!G5:H21,2,FALSE)&CHAR(10)&CHAR(10)&VLOOKUP(2,'4 - Shelter'!G5:H21,2,FALSE)&CHAR(10)&CHAR(10)&VLOOKUP(3,'4 - Shelter'!G5:H21,2,FALSE) -> EQ Response - Shelter provided adequate shelter/housing for 155,000 people, 5.54% of those requiring assistance (Nepal) Relief Support for flood and cyclone - affected populations in need in South-East Bangladesh (RESPONSE) provided adequate shelter/housing for 108,127 people, 57.5% of those requiring assistance (Bangladesh) Vanuatu Cyclone PAM - Shelter provided adequate shelter/housing for 20,000 people, 10.64% of those requiring assistance (Vanuatu) | H16: =VLOOKUP(1,'4 - Safe Water'!G5:H22,2,FALSE)&CHAR(10)&CHAR(10)&VLOOKUP(2,'4 - Safe Water'!G5:H22,2,FALSE)&CHAR(10)&CHAR(10)&VLOOKUP(3,'4 - Safe Water'!G5:H22,2,FALSE) -> Emergency WASH response to drought affected communities in Borena enabled access to safe drinking water for 500,000 people, 8.62% of those requiring assistance (Ethiopia) Emergency response Yemen enabled access to safe drinking water for 196,916 people, 17.9% of those requiring assistance (Yemen) Distribution of P&G Water Purifiers During National Emergencies and Natural Disasters Project enabled access to safe drinking water for 196,260 people, 29.91% of those requiring assistance (Bangladesh) | N16: =VLOOKUP(1,'4 - Adequate Sanitation'!G5:H21,2,FALSE)&CHAR(10)&CHAR(10)&VLOOKUP(2,'4 - Adequate Sanitation'!G5:H21,2,FALSE)&CHAR(10)&CHAR(10)&VLOOKUP(3,'4 - Adequate Sanitation'!G5:H21,2,FALSE) -> Emergency Assitance for Somali refugees hosted in Dadaab and surrounding host population. enabled access to adequate sanitation facilities for 171,311 people, 6.34% of those requiring assistance (Kenya) Protection et solutions mixtes pour les réfugiés Centrafricains vivant au sud du Tchad - 1 enabled access to adequate sanitation facilities for 89,114 people, 93.8% of those requiring assistance (Chad) Improved WASH and Shelter for vulnerable IDPs in northern Iraq enabled access to adequate sanitation facilities for 46,700 people (Iraq) | AC16: Belarus
A17: ='4 - Hygiene Practices'!A3:E3 -> 4. # and % of disaster/crisis-affected people supported through/by CARE who used adequate hygiene practices | H17: ='4 - Adequate food'!A1 -> 4. # and % of disaster/crisis-affected people supported through/by CARE who obtained adequate food quantities and quality | N17: ='4 - Nutritional practices'!A3 -> 4. # and % of disaster/crisis-affected people supported through/by CARE who adopted adequate nutritional practices | AC17: Belarus
A18: ='Summary statements'!A14 -> Supported close to 740,000 disaster/crisis-affected people to use adequate hygiene practices (737,170), 75% of those needing assistance (20 projects, in 13 countries) | H18: ='Summary statements'!A15 -> Supported over 3,420,000 disaster/crisis-affected people to obtain adequate food quantities and quality (3,422,671), 9.1% of those needing assistance (22 projects, in 13 countries) | N18: ='Summary statements'!A16 -> Supported over 405,000 disaster/crisis-affected people to adopt adequate nutritional practices (405,207), 64% of those needing assistance (9 projects, in 4 countries) | AC18: Belgium
A19: =VLOOKUP(1,'4 - Hygiene Practices'!G5:H24,2,FALSE)&CHAR(10)&CHAR(10)&VLOOKUP(2,'4 - Hygiene Practices'!G5:H24,2,FALSE)&CHAR(10)&CHAR(10)&VLOOKUP(3,'4 - Hygiene Practices'!G5:H24,2,FALSE) -> Sustained delivery of Basic Education;Water, Sanitation and Hygiene services in Dagahaley and Ifo refugee camps, Dadaab Kenya. enabled the use of adequate hygiene practices by 171,438 people, 100% of those requiring assistance (Kenya) Emergency Assitance for Somali refugees hosted in Dadaab and surrounding host population. enabled the use of adequate hygiene practices by 171,311 people, 100% of those requiring assistance (Kenya) Protection and assistance to Somali refugees in Dadaab. enabled the use of adequate hygiene practices by 171,242 people, 100% of those requiring assistance (Kenya) | H19: =VLOOKUP(1,'4 - Adequate food'!G5:H26,2,FALSE)&CHAR(10)&CHAR(10)&VLOOKUP(2,'4 - Adequate food'!G5:H26,2,FALSE)&CHAR(10)&CHAR(10)&VLOOKUP(3,'4 - Adequate food'!G5:H26,2,FALSE) -> Food Security and Resilience Building progarm enabled the provision of adequate food for 1,123,000 people, 6.24% of those requiring assistance (Yemen) Joint Emergency Operation Plan (JEOP) enabled the provision of adequate food for 549,728 people, 5.67% of those requiring assistance (Ethiopia) Emergency Cash First Response to Drought-affected commmunities in the Southern provinces of Zimbabwe enabled the provision of adequate food for 360,004 people, 34.28% of those requiring assistance (Zimbabwe) | N19: =VLOOKUP(1,'4 - Nutritional practices'!G5:H13,2,FALSE)&CHAR(10)&CHAR(10)&VLOOKUP(2,'4 - Nutritional practices'!G5:H13,2,FALSE)&CHAR(10)&CHAR(10)&VLOOKUP(3,'4 - Nutritional practices'!G5:H13,2,FALSE) -> Emergency Assitance for Somali refugees hosted in Dadaab and surrounding host population. supported the adoption of adequate nutritional practices by 221,938 people, 100% of those requiring assistance (Kenya) East and West Hararghe Zone Emergency Nutrition response project supported the adoption of adequate nutritional practices by 64,446 people, 100% of those requiring assistance (Ethiopia) Emergency nutrition and WASH support for children and women affected by drought in East and West Hararghe, Ethiopia supported the adoption of adequate nutritional practices by 39,238 people, 39.81% of those requiring assistance (Ethiopia) | AC19: Belgium
A20: ='4 - Access SRH'!A1 -> 4. # and % of disaster/crisis-affected people supported through/by CARE who had access to at least one SRH service (specially women reproductive age and adolescents) | H20: ='4 - Livelihood recovery'!A1 -> 4. # and % of disaster/crisis-affected people supported through/by CARE who recovered household goods, assets, and/or income opportunities | N20: ='5 - Satisfaction'!A1 -> 5. % of disaster/crisis affected people in areas of CARE responses who report satisfaction with regards to relevance, timeliness and accountability of humanitarian interventions | AC20: Belize
A21: ='Summary statements'!A17 -> Supported close to 20,000 disaster/crisis-affected people (19,101) and close to 15,000 women and girls (14,939) to access at least one SRH service, meeting the needs of 3.6% of those needing assistance (2.5% for women and girls) - 3 projects, in 3 countries) | H21: ='Summary statements'!A18 -> Supported close to 555,000 disaster/crisis-affected people to recover household goods, assets, and/or income opportunities (553,267), 69% of those needing assistance (16 projects, in 11 countries) | N21: ='Summary statements'!A19 -> Over 555,000 disaster/crisis-affected people surveyed reported satisfaction with the relevance, timeliness or accountability of CARE & partners' humanitarian interventions, 93% of those receiving support (26 projects, in 14 countries) | AC21: Belize
A22: =VLOOKUP(1,'4 - Access SRH'!J5:K7,2,FALSE)&CHAR(10)&CHAR(10)&VLOOKUP(2,'4 - Access SRH'!J5:K7,2,FALSE)&CHAR(10)&CHAR(10)&VLOOKUP(3,'4 - Access SRH'!J5:K7,2,FALSE) -> Minimal Initial Service Package on Reproductive Health to Women, girls and boys enabled access to at least one SRH service for 13,171 people (Nepal) Health and Nutrition project for Refugees and Host coomunities enabled access to at least one SRH service for 1,323 people, 1.88% of those requiring assistance (South Sudan) SAFPAC - Supporting Acces to Family Planning and Post abortion Care: Phase 3 enabled access to at least one SRH service for 445 people, 33.48% of those requiring assistance (Congo, Democratic Republic of the) | H22: =VLOOKUP(1,'4 - Livelihood recovery'!G5:H20,2,FALSE)&CHAR(10)&CHAR(10)&VLOOKUP(2,'4 - Livelihood recovery'!G5:H20,2,FALSE)&CHAR(10)&CHAR(10)&VLOOKUP(3,'4 - Livelihood recovery'!G5:H20,2,FALSE) -> General Food Distribution supported recovery of goods, assets or income opportunities for 217,753 people, 97.74% of those requiring assistance (Kenya) Relief Support for flood and cyclone - affected populations in need in South-East Bangladesh (RESPONSE) supported recovery of goods, assets or income opportunities for 108,127 people, 57.5% of those requiring assistance (Bangladesh) Emergency seed support to drought affected people supported recovery of goods, assets or income opportunities for 87,660 people, 115.55% of those requiring assistance (Ethiopia) | N22: =VLOOKUP(1,'5 - Satisfaction'!G5:H31,2,FALSE)&CHAR(10)&CHAR(10)&VLOOKUP(2,'5 - Satisfaction'!G5:H31,2,FALSE)&CHAR(10)&CHAR(10)&VLOOKUP(3,'5 - Satisfaction'!G5:H31,2,FALSE) -> Distribution of P&G Water Purifiers During National Emergencies and Natural Disasters Project: 196,260 people were satisified with the humanitarian assistance (100% of those receiving support) (Bangladesh) Relief Support for flood and cyclone - affected populations in need in South-East Bangladesh (RESPONSE): 108,127 people were satisified with the humanitarian assistance (100% of those receiving support) (Bangladesh) West Begal Flood Relief: 40,833 people were satisified with the humanitarian assistance (100% of those receiving support) (India) | AC22: Benin
A23: =UPPER("Rights to Sexual, Reproductive & Maternal Health (SRMH)") -> RIGHTS TO SEXUAL, REPRODUCTIVE & MATERNAL HEALTH (SRMH) | AC23: Bhutan
A24: ='Summary statements'!A21:B21 -> Contributed to close to 7,995,000 women aged 15-49 exercising their rights to sexual, reproductive and maternal health (16 projects, in 15 countries) | AC24: Bolivia
A25: ='6 - Met demand'!A1 -> 6. Demand satisfied for modern contraceptives among women aged 15-49 (SDG indicator 3.7.1) | H25: ='7 - SBA'!A1 -> 7. % of births attended by skilled health personnel (SDG indicator 3.1.2) | N25: ='8 - ABR'!A1 -> 8. Adolescents birth rate per 1,000 women aged 15 to 19 years (SDG indicator 3.7.2.) Proxy indicator: Age at first deliver | AC25: Bosnia and Herzegovina
A26: ='Summary statements'!A22 -> Contributed to close to 7,925,000 women (aged 15-49) satisfying their demand for modern contraceptives (7,922,555), with an increase in level of met demand of 3.6 percentage points (9 projects, in 9 countries) | H26: ='Summary statements'!A23 -> Contributed to close to 80,000 births attended by skilled health personnel (77,690), an increase in levels of 3.9 percentage points (8 projects, in 7 countries) | N26: ='Summary statements'!A24 -> No data to report this year | AC26: Botswana
A27: =VLOOKUP(1,'6 - Met demand'!I7:J15,2,FALSE)&CHAR(10)&CHAR(10)&VLOOKUP(2,'6 - Met demand'!I7:J15,2,FALSE)&CHAR(10)&CHAR(10)&VLOOKUP(3,'6 - Met demand'!I7:J15,2,FALSE) -> Technical Support to the Government of Bihar: Improving Health, Nutrition Coverage and Outcome (TSU) contributed to increasing met demand for modern contraceptives by 3.9% (from 33.9% to 37.8%), enabling 797,898 women to increase access to contraceptives, and a total of 7,733,469 women to exercise their SRMH rights (India) SAF-PAC (PROJET D’APPUI A LA PLANIFICATION FAMILIALE ET LES SOINS APRES AVORTEMENT) contributed to increasing met demand for modern contraceptives by 11.4% (from 1.6% to 13%), enabling 32,239 women to increase access to contraceptives, and a total of 36,764 women to exercise their SRMH rights (Chad) SAF-PAC III contributed to increasing met demand for modern contraceptives by 5.9% (from 23.1% to 29%), enabling 18,248 women to increase access to contraceptives, and a total of 89,694 women to exercise their SRMH rights (Pakistan) | H27: =VLOOKUP(1,'7 - SBA'!I7:J14,2,FALSE)&CHAR(10)&CHAR(10)&VLOOKUP(2,'7 - SBA'!I7:J14,2,FALSE)&CHAR(10)&CHAR(10)&VLOOKUP(3,'7 - SBA'!I7:J14,2,FALSE) -> CARE - GlaxoSmithKline Community Health Worker Initiaitve contributed to increasing the proportion of births attended by skilled health personnel by 18.7% (from 11.2% to 29.9%), enabling an additional 1,802 women to have their births attended by skilled personnel, and a total of 2,881 women to exercise their SRMH rights (Bangladesh) Partnering to Saving Lives (PSL) contributed to increasing the proportion of births attended by skilled health personnel by 15% (from 55.4% to 70.4%), enabling an additional 1,405 women to have their births attended by skilled personnel, and a total of 6,594 women to exercise their SRMH rights (Cambodia) Support for Service Delivery Integration (SSDI) Services contributed to increasing the proportion of births attended by skilled health personnel by 1% (from 93% to 94%), enabling an additional 647 women to have their births attended by skilled personnel, and a total of 60,818 women to exercise their SRMH rights (Malawi) | N27: - | AC27: Benin
A28: ='9 - SRH decisions'!A1 -> 9. Proportion of women aged 15-49 who make their own informed decisions regarding sexual relations, contraceptive use and reproductive health care (SDG indicator 5.6.1) | AC28: Cambodia
A29: ='Summary statements'!A25 -> Contributed to close to 10,000 women (aged 15-49) making their own informed decisions regarding sexual relations, contraceptive use and reproductive health care (9,827), with an increase in levels of SRH decision-making of 6.8 percentage points (3 projects, in 3 countries) | AC29: Cameroon
A30: =VLOOKUP(1,'9 - SRH decisions'!I7:J9,2,FALSE)&CHAR(10)&CHAR(10)&VLOOKUP(2,'9 - SRH decisions'!I7:J9,2,FALSE)&CHAR(10)&CHAR(10)&VLOOKUP(3,'9 - SRH decisions'!I7:J9,2,FALSE) -> Partnering to Saving Lives (PSL) contributed to increasing the proportion of women able to make their own informed SRH decisions by 7% (from 25.3% to 32.3%), enabling an additional 2,088 women to make informed decisions, and a total of 9,636 women to exercise their SRMH rights (Cambodia) Appui à la redynamisation des établissements sanitaires à base communautaire de la commune de San Pedro contributed to increasing the proportion of women able to make their own informed SRH decisions by 7% (from 10% to 17%), enabling an additional 63 women to make informed decisions, and a total of 154 women to exercise their SRMH rights (Cote d'Ivoire) GSK 20% Reinvestment-ACCESS (OMID) contributed to increasing the proportion of women able to make their own informed SRH decisions by 5.9% (from 24.2% to 30%), enabling an additional 7 women to make informed decisions, and a total of 38 women to exercise their SRMH rights (Afghanistan) | AC30: Canada
A31: =UPPER("Right to a life free from violence") -> RIGHT TO A LIFE FREE FROM VIOLENCE | AC31: Central African Republic
A32: ='Summary statements'!A26:B26 -> Contributed to close to 100,000 women exercising their rights to a life free from violence (7 projects, in 5 countries) | AC32: Chad
A33: ='10 - Rejecting IPV'!A$1 -> 10. % of people who reject intimate partner violence | H33: ='11 - violence by partner'!A1 -> 11. % of ever-partnered women and girls aged 15 years and older subjected to physical, sexual or psychological violence by a current or former intimate partner, in the last 12 months (SDG indicator 5.2.1) | N33: ='12 - sexual violence'!A1 -> Indicator 12. % of women and girls aged 15 years and older subjected to sexual violence by persons other than an intimate partner, in the last 12 months (SDG indicator 5.2.2) | AC33: Chile
A34: ='Summary statements'!A27 -> Contributed to close to 9,000 more people rejecting intimate partner violence (8,687), an increase of 17.4 percentage points (6 projects, in 4 countries). Overall, close to 48,000 people rejected intimate partner violence (47,935). | H34: ='Summary statements'!A28 -> Contributed to reducing by close to 2,460 (2,456) the number of ever-partnered women and girls subjected to physical, sexual or psychological violence by a current or former intimate partner in the last 12 months, a reduction in the incidence of GBV of 4.3 percentage points (2 projects, in 2 countries) | N34: ='Summary statements'!A29 -> No data to report this year | AC34: China
A35: =VLOOKUP(1,'10 - Rejecting IPV'!I7:J15,2,FALSE)&CHAR(10)&CHAR(10)&VLOOKUP(2,'10 - Rejecting IPV'!I7:J15,2,FALSE)&CHAR(10)&CHAR(10)&VLOOKUP(3,'10 - Rejecting IPV'!I7:J15,2,FALSE) -> Pathways to Secure Livelihoods: Empowering Women in Agriculture contributed to increasing the proportion of people who reject IPV by 45.2% (from 27.2% to 72.4%), enabling an additional 3,143 people to reject violence, and 5,032 people overall to exercise their right to a life free from violence (Tanzania) Women Empowerment: Improving Resilience, Income and Food Security (WE-RISE) contributed to increasing the proportion of people who reject IPV by 57.1% (from 28.6% to 85.7%), enabling an additional 2,846 people to reject violence, and 4,271 people overall to exercise their right to a life free from violence (Tanzania) Umugore Arumvwa project (“A Woman is Listened To”) contributed to increasing the proportion of people who reject IPV by 38.7% (from 53.6% to 92.3%), enabling an additional 1,416 people to reject violence, and 3,376 people overall to exercise their right to a life free from violence (Rwanda) | H35: =VLOOKUP(1,'11 - violence by partner'!I7:J8,2,FALSE)&CHAR(10)&CHAR(10)&VLOOKUP(2,'11 - violence by partner'!I7:J8,2,FALSE) -> Umugore Arumvwa project (“A Woman is Listened To”) contributed to reducing the proportion of women experiencing violence from an intimate partner by 40.8% points (from 47% to 6.2%), enabling 1,492 fewer women to experience violence, and contributing to a total of 3,431 women exercising their right to a life free from violence (Rwanda) Appui à la redynamisation des établissements sanitaires à base communautaire de la commune de San Pedro contributed to reducing the proportion of women experiencing violence from an intimate partner by 1.8% points (from 5% to 3.2%), enabling 963 fewer women to experience violence, and contributing to a total of 51,798 women exercising their right to a life free from violence (Cote d'Ivoire) | N35: - | AC35: Colombia
A36: =UPPER("Food & Nutrition Security and Climate Change Resilience (FNS & CCR)") -> FOOD & NUTRITION SECURITY AND CLIMATE CHANGE RESILIENCE (FNS & CCR) | AC36: Costa Rica
A37: ='Summary statements'!A31&'Summary statements'!A35 -> Contributed to over 4,040,000 people increasing their food & nutrition security or resilience to climate change (39 projects, in 18 countries) - including humanitarian food and nutrition and livelihood response, and work to enable people to take action to reduce their vulnerability to risk, CARE and partners contributed to close to 8,280,000 people increasing their food & nutrition security or resilience to climate change | AC37: Cote d'Ivoire
A38: 13. % of population with moderate or severe food insecurity, based on the Food Insecurity Experience Scale (FIES) | H38: ='14 - Stunting'!A$1 -> 14. Prevalence of stunting among girls and boys under the age of five (SDG indicator 2.2.1) | N38: ='15 - Resilience capacity'!A$1 -> 15. # of people better able to build resilience to the effects of climate change and variability | AC38: Croatia
A39: ='Summary statements'!A32 -> Reduced food insecurity for over 2,190,000 people (2,191,401 ), a reduction of 45.7 percentage points (18 projects, in 11 countries) | H39: ='Summary statements'!A33 -> Contributed to close to 325,000 children under 5 escaping stunting (324,478), a reduction of 9.9 percentage points (or 1.7 percentage points per year), increasing the food and nutrition security of over 1,345,000 people (7 projects, in 7 countries) | N39: ='Summary statements'!A34 -> Increased abilities to build resilience to the effects of climate change and vulnerability for close to 850,000 people (849,214 ), an increase of 21.7 percentage points (25 projects, in 13 countries) | AC39: Cuba
A40: =VLOOKUP(1,'13 - Food insecurity'!J6:K23,2,FALSE)&CHAR(10)&CHAR(10)&VLOOKUP(2,'13 - Food insecurity'!J6:K23,2,FALSE)&CHAR(10)&CHAR(10)&VLOOKUP(3,'13 - Food insecurity'!J6:K23,2,FALSE) -> SHOUHARDO II contributed to reducing food insecurity by 49% (from 91.4% to 42.4%), increasing food security for 1,499,425 people (Bangladesh) Graduation with Resilience to Achieve Sustanable Development (GRAD) contributed to reducing food insecurity by 48% (from 94% to 46%), increasing food security for 156,000 people (Ethiopia) Social and Economic Transformation of the Ultra-poor (SETU) Phase II contributed to reducing food insecurity by 95% (from 100% to 5%), increasing food security for 142,096 people (Bangladesh) | H40: =VLOOKUP(1,'14 - Stunting'!J5:K11,2,FALSE)&CHAR(10)&CHAR(10)&VLOOKUP(2,'14 - Stunting'!J5:K11,2,FALSE)&CHAR(10)&CHAR(10)&VLOOKUP(3,'14 - Stunting'!J5:K11,2,FALSE) -> The Child Malnutrition Initiative contributed to reducing stunting by 9.8% (from 23.2% to 13.5% - a reduction of 1.6 percentage points a year), enabling 294,767 children under 5 to escape stunting, and increasing food & nutrition security for 1,208,543 people (Peru) SHOUHARDO II contributed to reducing stunting by 12.9% (from 61.7% to 48.8% - a reduction of 2.6 percentage points a year), enabling 25,249 children under 5 to escape stunting, and increasing food & nutrition security for 113,621 people (Bangladesh) MAZIKO -(Nutrition Foundations for Mothers and Children) contributed to reducing stunting by 5% (from 42.5% to 37.5% - a reduction of 1.4 percentage points a year), enabling 2,586 children under 5 to escape stunting, and increasing food & nutrition security for 12,931 people (Malawi) | N40: =VLOOKUP(1,'15 - Resilience capacity'!J6:K30,2,FALSE)&CHAR(10)&CHAR(10)&VLOOKUP(2,'15 - Resilience capacity'!J6:K30,2,FALSE)&CHAR(10)&CHAR(10)&VLOOKUP(3,'15 - Resilience capacity'!J6:K30,2,FALSE) -> Adaptation Learning Programme for Africa (ALP) contributed to increasing ability to build resilience for 333,466 people (Ghana) Graduation with Resilience to Achieve Sustanable Development (GRAD) contributed to increasing ability to build resilience for 82 % of participants, increasing resilience for 266,500 people (Ethiopia) MASOALA MIKARY contributed to increasing ability to build resilience by 82.9% (from 7.7% to 90.6%), increasing resilience for 58,137 people (Madagascar) | AC40: Cyprus
A41: ** Note: includes indicators 13-15, as well as 4 (food & nutrition) and 21 | AC41: Czech Republic
A42: =UPPER("Women's Economic Empowerment (WEE)") -> WOMEN'S ECONOMIC EMPOWERMENT (WEE) | AC42: Denmark
A43: ='Summary statements'!A37:B37 -> Contributed to over 3,210,000 women increasing their access to or control over economic resources (99 projects, in 42 countries) | AC43: Djibouti
A44: 16. # and % of women who are active users of financial services (disaggregated by informal and formal services) (related to SDG indicator 8.10.2) | H44: ='17 - HH $ decisions'!A$1 -> 17. % of women who (report they) are able to equally participate in household financial decision-making | N44: ='18 - Labor rights'!A$1 -> 18. % women with union, women's group, or cooperative membership through which they can voice their labour rights | AC44: Dominica
A45: ='Summary statements'!A38 -> Helped over 3,030,000 women in 37 countries access informal financial services (3,030,255), and close to 125,000 access formal financial services (124,835) | H45: ='Summary statements'!A39 -> Contributed to an increase of close to 235,000 women reporting being able to participate equally in household financial decision-making (234,733), an increase of 20.8 percentage points (38 projects, in 17 countries) | N45: ='Summary statements'!A40 -> Contributed to an increase of over 70,000 women with union, women's group, or cooperative membership through which they can voice their labour rights (70,441), an increase of 6.5 percentage points (17 projects, in 11 countries) | AC45: Dominican Republic
A46: =VLOOKUP(1,'WEE summary'!H6:I102,2,FALSE)&CHAR(10)&CHAR(10)&VLOOKUP(2,'WEE summary'!H6:I102,2,FALSE)&CHAR(10)&CHAR(10)&VLOOKUP(3,'WEE summary'!H6:I102,2,FALSE) -> VSLAs (various other projects) in Uganda enabled 574,246 women to access formal or informal financial services (Uganda) VSLAs (various other projects) in Kenya enabled 442,698 women to access formal or informal financial services (Kenya) VSLAs (various other projects) in Burundi enabled 278,740 women to access formal or informal financial services (Burundi) | H46: =VLOOKUP(1,'17 - HH $ decisions'!H7:I44,2,FALSE)&CHAR(10)&CHAR(10)&VLOOKUP(2,'17 - HH $ decisions'!H7:I44,2,FALSE)&CHAR(10)&CHAR(10)&VLOOKUP(3,'17 - HH $ decisions'!H7:I44,2,FALSE) -> SHOUHARDO II contributed to increasing the proportion of women able to participate equally in HH financial decisions by 14.1% (from 5.7% to 19.8%), enabling an additional 86,293 women to have control over economic resources (Bangladesh) Hand in Hand and CARE jobs creation contributed to increasing the proportion of women able to participate equally in HH financial decisions by 57% (from 23% to 80%), enabling an additional 32,303 women to have control over economic resources (Rwanda) Banking on Change (BoC), Phase-II contributed to increasing the proportion of women able to participate equally in HH financial decisions by 63% (from 17% to 80%), enabling an additional 21,294 women to have control over economic resources (India) | N46: =VLOOKUP(1,'18 - Labor rights'!H5:I21,2,FALSE)&CHAR(10)&CHAR(10)&VLOOKUP(2,'18 - Labor rights'!H5:I21,2,FALSE)&CHAR(10)&CHAR(10)&VLOOKUP(3,'18 - Labor rights'!H5:I21,2,FALSE) -> Lighting up Kenya contributed to increasing the proportion of women who are members of groups by 79% (from 0% to 79%), enabling an additional 24,402 women to claim their rights (Kenya) Rural Sales Kenya - Rural Sales Program contributed to increasing the proportion of women who are members of groups by 79% (from 0% to 79%), enabling an additional 20,664 women to claim their rights (Kenya) Hand in Hand and CARE jobs creation contributed to increasing the proportion of women who are members of groups by 10% (from 71% to 81%), enabling an additional 13,889 women to claim their rights (Rwanda) | AC46: DRC
A47: =UPPER("CARE's APPROACH (gender, governance & resilience)") -> CARE'S APPROACH (GENDER, GOVERNANCE & RESILIENCE) | AC47: Ecuador
AC48: Egypt
A49: 19. # and % of people of all genders who have meaningfully participated in formal (government-led) and informal (civil society-led, private sector-led) decision-making spaces | H49: 20. # of new or amended policies, legislation, public programs, and/or budgets responsive to the rights, needs and demands of people of all genders | N49: 21. # and % of people implementing practices/actions that reduce vulnerability and increase resilience, disaggregated by climate-related, economic, social or environmental events | AC49: El Salvador
A50: ='Summary statements'!A43 -> Contributed to close to 185,000 people of all genders participating meaningfully in formal or informal decision-making spaces (185,353), with an increase in rates of participation of 27.9 percentage points (24 projects, in 12 countries) | H50: ='Summary statements'!A44 -> Influenced policies, laws, budgets and programs, from local to international levels, in 48 projects, in 27 countries) | N50: ='Summary statements'!A45 -> Helped close to 580,000 people actively engage in reducing their vulnerabilities to the drivers of shocks and stresses that affect them (577,930 ), an increase of 18.8 percentage points (20 projects, in 7 countries) | AC50: Equatorial Guinea
A51: =VLOOKUP(1,'19 - Participation'!I5:J31,2,FALSE)&CHAR(10)&CHAR(10)&VLOOKUP(2,'19 - Participation'!I5:J31,2,FALSE)&CHAR(10)&CHAR(10)&VLOOKUP(3,'19 - Participation'!I5:J31,2,FALSE) -> IMPROVING GIRLS ACCESS THROUGH TRANSFORMING EDUCATION (IGATE) contributed to increasing meaningful participation by 52.7%, enabling 52,700 people to participate in formal or informal decision-making spaces (Zimbabwe) INTIATIVE FOR FOOD SECURITY AND NUTRITION IN SEGOU (IFONS) MALI contributed to increasing meaningful participation by 66%, enabling 19,784 people to participate in formal or informal decision-making spaces (Mali) Action Intégrée en Nutrition et Alimentation (AINA) contributed to increasing meaningful participation by 23%, enabling 18,876 people to participate in formal or informal decision-making spaces (Madagascar) | H51: - | N51: =VLOOKUP(1,'21 - Resilience actions'!J5:K26,2,FALSE)&CHAR(10)&CHAR(10)&VLOOKUP(2,'21 - Resilience actions'!J5:K26,2,FALSE)&CHAR(10)&CHAR(10)&VLOOKUP(3,'21 - Resilience actions'!J5:K26,2,FALSE) -> APINGA contributed to increasing by 11.2% (from 24% to 35.2%) the proportion of people actively engaged in reducing their vulnerabilities, increasing resilience for 138,487 people (Madagascar) DIPECHO IV contributed to increasing by 63% (from 27% to 90%) the proportion of people actively engaged in reducing their vulnerabilities, increasing resilience for 86,266 people (Madagascar) Enhancing Community Resilience Programme (ECRP) contributed to increasing by 23% (from 76% to 99%) the proportion of people actively engaged in reducing their vulnerabilities, increasing resilience for 63,734 people (Malawi) | AC51: Eritrea
AC52: Estonia
AC53: Ethiopia
AC54: Fiji
AC55: Finland
AC56: France
AC57: Gabon
AC58: Gambia, The
AC59: Georgia
AC60: Germany
AC61: Ghana
AC62: Greece
AC63: Grenada
AC64: Guatemala
AC65: Guinea
AC66: Guinea-Bissau
AC67: Guyana
AC68: Haiti
AC69: Holy See
AC70: Honduras
AC71: Hong Kong
AC72: Hungary
AC73: Iceland
AC74: India
AC75: Indonesia
AC76: Iran
AC77: Iraq
AC78: Ireland
AC79: Israel
AC80: Italy
AC81: Jamaica
AC82: Japan
AC83: Jordan
AC84: Kazakhstan
AC85: Kenya
AC86: Kiribati
AC87: Korea, North
AC88: Korea, South
AC89: Kosovo
AC90: Kuwait
AC91: Kyrgyzstan
AC92: Laos
AC93: Latvia
AC94: Lebanon
AC95: Lesotho
AC96: Liberia
AC97: Libya
AC98: Liechtenstein
AC99: Lithuania
AC100: Luxembourg
AC101: Macau
AC102: Macedonia
AC103: Madagascar
AC104: Malawi
AC105: Malaysia
AC106: Maldives
AC107: Mali
AC108: Malta
AC109: Marshall Islands
AC110: Mauritania
AC111: Mauritius
AC112: Mexico
AC113: Micronesia
AC114: Moldova
AC115: Monaco
AC116: Mongolia
AC117: Montenegro
AC118: Morocco
AC119: Mozambique
AC120: Myanmar
AC121: Namibia
AC122: Nauru
AC123: Nepal
AC124: Netherlands
AC125: Netherlands Antilles
AC126: New Zealand
AC127: Nicaragua
AC128: Niger
AC129: Nigeria
AC130: Norway
AC131: Oman
AC132: Pakistan
AC133: Palau
AC134: Palestinian Territories
AC135: Panama
AC136: Papua New Guinea
AC137: Paraguay
AC138: Peru
AC139: Philippines
AC140: Poland
AC141: Portugal
AC142: Qatar
AC143: Romania
AC144: Russia
AC145: Rwanda
AC146: Saint Kitts and Nevis
AC147: Saint Lucia
AC148: Saint Vincent and the Grenadines
AC149: Samoa
AC150: San Marino
AC151: Sao Tome and Principe
AC152: Saudi Arabia
AC153: Senegal
AC154: Serbia
AC155: Seychelles
AC156: Sierra Leone
AC157: Singapore
AC158: Sint Maarten
AC159: Slovakia
AC160: Slovenia
AC161: Solomon Islands
AC162: Somalia
AC163: South Africa
AC164: South Sudan
AC165: Spain
AC166: Sri Lanka
AC167: Sudan
AC168: Suriname
AC169: Swaziland
AC170: Sweden
AC171: Switzerland
AC172: Syria
AC173: Taiwan
AC174: Tajikistan
AC175: Tanzania
AC176: Thailand
AC177: Timor-Leste
AC178: Togo
AC179: Tonga
AC180: Trinidad and Tobago
AC181: Tunisia
AC182: Turkey
AC183: Turkmenistan
AC184: Tuvalu
AC185: Uganda
AC186: Ukraine
AC187: United Arab Emirates
AC188: United Kingdom
AC189: United States of America
AC190: Uruguay
AC191: Uzbekistan
AC192: Vanuatu
AC193: Venezuela
AC194: Vietnam
AC195: West Bank and Gaza
AC196: Yemen
AC197: Zambia
AC198: Zimbabwe

Sheet Summary - all indicators
A1: #'s toward CARE's Global Outcome Area targets (end FY16) | F1: Poverty & Inequality | J1: Received quality, life-saving Humanitarian Assistance | T1: Exercised their rights to Sexual, Reproductive & Maternal Health | Y1: Exercised rights to a Life Free From Violence | AC1: SRMH/ LFFV | AD1: Increased their Food & Nutrition Security and their Resilience to Climate Change | AI1: Had greater access to and control over economic resources (WEE) | AM1: CARE's approach | AP1: CI PROGRAM STRATEGY OUTCOMES | AS1: Project details
A2: Project | B2: Country | C2: CMP | D2: Donor | E2: Dates | F2: 1. Intl Poverty line | G2: 2. Natl Poverty line | H2: 3. Basic services | I2: TOTAL | J2: 4. Shelter | K2: 4. Water | L2: 4. Sanitation | M2: 4. Hygiene | N2: 4. Food | O2: 4. Nutrition | P2: 4. SRH services | Q2: 4. Livelihoods | R2: 5. Satisfaction | S2: HUMANITARIAN IMPACT | T2: 6. Met demand | U2: 7. Skilled birth atndce | V2: 8. Adolscnt birth rate | W2: 9. SRH decisions | X2: TOTAL | Y2: 10. Rjctng IPV | Z2: 11. Violence by partner | AA2: 12. Sexual violence | AB2: TOTAL | AC2: SRMH & LFFV IMPACT | AD2: 13. Food insecurity | AE2: 14. Stunting | AF2: 15. Resilience capacities | AG2: TOTAL | AH2: FNS & CCR IMPACT | AI2: 16. Financial services | AJ2: 17. HH $ decisions | AK2: 18. Gp membership | AL2: WEE IMPACT | AM2: 19. Participation | AN2: 20. Policies, laws etc. | AO2: 21. Resilience actions | AP2: TOTAL IMPACT | AQ2: w/o approach | AS2: =F2 -> 1. Intl Poverty line | AT2: =G2 -> 2. Natl Poverty line | AU2: =H2 -> 3. Basic services | AV2: =J2 -> 4. Shelter | AW2: =K2 -> 4. Water | AX2: =L2 -> 4. Sanitation | AY2: =M2 -> 4. Hygiene | AZ2: =N2 -> 4. Food | BA2: 4. Nutrition | BB2: 4. SRH services | BC2: 4. Livelihoods | BD2: 5. Satisfaction | BE2: =T2 -> 6. Met demand | BF2: =U2 -> 7. Skilled birth atndce | BG2: =V2 -> 8. Adolscnt birth rate | BH2: =W2 -> 9. SRH decisions | BI2: =Y2 -> 10. Rjctng IPV | BJ2: 11. Violence by partner | BK2: 12. Sexual violence | BL2: =AD2 -> 13. Food insecurity | BM2: =AE2 -> 14. Stunting | BN2: =AF2 -> 15. Resilience capacities | BO2: =AI2 -> 16. Financial services | BP2: =AJ2 -> 17. HH $ decisions | BQ2: 18. Gp membership | BR2: =AM2 -> 19. Participation | BS2: =AN2 -> 20. Policies, laws etc. | BT2: =AO2 -> 21. Resilience actions | BU2: # pjcts with policies
A3: Afghanistan Addressing Immediate Household and Shelter Needs - Emergency NFI, Shelter, Hygiene and Livelihood Assistance in Vulnerable Communities in Afghanistan | B3: Afghanistan | C3: =_xlfn.IFNA(VLOOKUP(A3,'PIIRS FY16 Indicators data'!F:G,2,FALSE),"") -> CARE Canada | D3: =_xlfn.IFNA(VLOOKUP($A3,'PIIRS FY16 Indicators data'!$F$2:$S$1045,5,FALSE),"") -> Department of Foreign Affairs ,Trade and Development (DFATD) | E3: =_xlfn.IFNA(IF(VLOOKUP($A3,'PIIRS FY16 Indicators data'!$F$2:$S$1045,14,FALSE)="",TEXT(VLOOKUP($A3,'PIIRS FY16 Indicators data'!$F$2:$S$1045,12,FALSE),"mmm-yy")&" to "&TEXT(VLOOKUP($A3,'PIIRS FY16 Indicators data'!$F$2:$S$1045,13,FALSE),"mmm-yy"),TEXT(VLOOKUP($A3,'PIIRS FY16 Indicators data'!$F$2:$S$1045,12,FALSE),"mmm-yy")&" to "&TEXT(VLOOKUP($A3,'PIIRS FY16 Indicators data'!$F$2:$S$1045,14,FALSE),"mmm-yy")),"") -> Mar-15 to Mar-16 | F3: =_xlfn.IFNA(VLOOKUP(A3,'1 - poverty ($1.90)'!$A$7:$G$9,7,FALSE),"") ->  | G3: =_xlfn.IFNA(VLOOKUP(A3,'2 - poverty (nat pov line)'!$A$7:$G$10,7,FALSE),"") ->  | H3: =_xlfn.IFNA(VLOOKUP(B3,'3 - basic services'!$A$7:$G$10,7,FALSE),"") ->  | I3: =MAX(F3:G3) -> 0 | J3: =_xlfn.IFNA(VLOOKUP($A3,'4 - Shelter'!$A$5:$S$21,3,FALSE),"") -> 1347 | K3: =_xlfn.IFNA(VLOOKUP($A3,'4 - Safe Water'!$A$5:$S$22,3,FALSE),"") ->  | L3: =_xlfn.IFNA(VLOOKUP($A3,'4 - Adequate Sanitation'!$A$5:$S$18,3,FALSE),"") ->  | M3: =_xlfn.IFNA(VLOOKUP($A3,'4 - Hygiene Practices'!$A$5:$S$24,3,FALSE),"") ->  | N3: =_xlfn.IFNA(VLOOKUP($A3,'4 - Adequate food'!$A$5:$S$26,3,FALSE),"") ->  | O3: =_xlfn.IFNA(VLOOKUP($A3,'4 - Nutritional practices'!$A$5:$S$13,3,FALSE),"") ->  | P3: =_xlfn.IFNA(VLOOKUP($A3,'4 - Access SRH'!$A$5:$V$7,3,FALSE),"") ->  | Q3: =_xlfn.IFNA(VLOOKUP($A3,'4 - Livelihood recovery'!$A$5:$S$20,3,FALSE),"") -> 5165 | R3: =_xlfn.IFNA(VLOOKUP($A3,'5 - Satisfaction'!$A$6:$Y$31,5,FALSE),"") -> 7094 | S3: =MAX(J3:R3) -> 7094 | T3: =_xlfn.IFNA(VLOOKUP($A3,'6 - Met demand'!$A$7:$AD$15,7,FALSE),"") ->  | U3: =_xlfn.IFNA(VLOOKUP($A3,'7 - SBA'!$A$7:$AC$14,7,FALSE),"") ->  | W3: =_xlfn.IFNA(VLOOKUP($A3,'9 - SRH decisions'!$A$7:$AC$9,7,FALSE),"") ->  | X3: =MAX(T3:W3) -> 0 | Y3: =_xlfn.IFNA(VLOOKUP($A3,'10 - Rejecting IPV'!$A$7:$AG$12,7,FALSE),"") ->  | Z3: =_xlfn.IFNA(VLOOKUP($A3,'11 - violence by partner'!$A$7:$AC$8,7,FALSE),"") ->  | AB3: =MAX(Y3:AA3) -> 0 | AC3: =MAX(X3,AB3) -> 0 | AD3: =_xlfn.IFNA(VLOOKUP($A3,'13 - Food insecurity'!$A$6:$AF$23,7,FALSE),"") ->  | AE3: =_xlfn.IFNA(VLOOKUP($A3,'14 - Stunting'!$A$5:$AI$11,7,FALSE),"") ->  | AF3: =_xlfn.IFNA(VLOOKUP($A3,'15 - Resilience capacity'!$A$6:$AE$30,7,FALSE),"") ->  | AG3: =MAX(AD3:AF3) -> 0 | AH3: =MAX(AO3,AG3,O3,N3,Q3) -> 5165 | AI3: =_xlfn.IFNA(VLOOKUP($A3,'WEE summary'!$A$4:$E$102,3,FALSE),"") ->  | AJ3: =_xlfn.IFNA(VLOOKUP($A3,'WEE summary'!$A$4:$E$102,4,FALSE),"") ->  | AK3: =_xlfn.IFNA(VLOOKUP($A3,'WEE summary'!$A$4:$E$102,5,FALSE),"") ->  | AL3: =MAX(AI3:AK3) -> 0 | AM3: =_xlfn.IFNA(VLOOKUP($A3,'19 - Participation'!$A$5:$G$31,7,FALSE),"") ->  | AN3: =_xlfn.IFNA(VLOOKUP(A3,'20 - Policies'!A:C,3,FALSE),"") ->  | AO3: =_xlfn.IFNA(VLOOKUP(A3,'21 - Resilience actions'!$A$7:$G$26,7,FALSE),"") ->  | AP3: =MAX(AM3, AL3,AG3,AB3,X3,S3,I3,AO3) -> 7094 | AQ3: =MAX(AL3,AG3,AB3,X3,S3,I3) -> 7094 | AS3: =_xlfn.IFNA(VLOOKUP($A3,'1 - poverty ($1.90)'!$A$7:$H$9,8,FALSE),"") ->  | AT3: =_xlfn.IFNA(VLOOKUP($A3,'2 - poverty (nat pov line)'!$A$7:$H$9,8,FALSE),"") ->  | AU3: =_xlfn.IFNA(VLOOKUP($A3,'3 - basic services'!$A$7:$H$9,8,FALSE),"") ->  | AV3: =_xlfn.IFNA(VLOOKUP($A3,'4 - Shelter'!$A$5:$J$23,6,FALSE),"") -> Afghanistan Addressing Immediate Household and Shelter Needs - Emergency NFI, Shelter, Hygiene and Livelihood Assistance in Vulnerable Communities in Afghanistan provided adequate shelter/housing for 1,347 people, 100% of those requiring assistance | AW3: =_xlfn.IFNA(VLOOKUP($A3,'4 - Safe Water'!$A$5:$J$24,6,FALSE),"") ->  | AX3: =_xlfn.IFNA(VLOOKUP($A3,'4 - Adequate Sanitation'!$A$5:$J$20,6,FALSE),"") ->  | AY3: =_xlfn.IFNA(VLOOKUP($A3,'4 - Hygiene Practices'!$A$5:$J$26,6,FALSE),"") ->  | AZ3: =_xlfn.IFNA(VLOOKUP($A3,'4 - Adequate food'!$A$5:$J$28,6,FALSE),"") ->  | BA3: =_xlfn.IFNA(VLOOKUP($A3,'4 - Nutritional practices'!$A$5:$J$15,6,FALSE),"") ->  | BB3: =_xlfn.IFNA(VLOOKUP($A3,'4 - Access SRH'!$A$5:$I$9,9,FALSE),"") ->  | BC3: =_xlfn.IFNA(VLOOKUP($A3,'4 - Livelihood recovery'!$A$5:$J$22,6,FALSE),"") -> Afghanistan Addressing Immediate Household and Shelter Needs - Emergency NFI, Shelter, Hygiene and Livelihood Assistance in Vulnerable Communities in Afghanistan supported recovery of goods, assets or income opportunities for 5,165 people, 100% of those requiring assistance | BD3: =_xlfn.IFNA(VLOOKUP($A3,'5 - Satisfaction'!$A$5:$J$33,6,FALSE),"") -> Afghanistan Addressing Immediate Household and Shelter Needs - Emergency NFI, Shelter, Hygiene and Livelihood Assistance in Vulnerable Communities in Afghanistan: 7,094 people were satisified with the humanitarian assistance (100% of those receiving support) | BE3: =_xlfn.IFNA(VLOOKUP($A3,'6 - Met demand'!$A$7:$H$16,8,FALSE),"") ->  | BF3: =_xlfn.IFNA(VLOOKUP($A3,'7 - SBA'!$A$7:$H$16,8,FALSE),"") ->  | BG3: =_xlfn.IFNA(VLOOKUP($A3,'8 - ABR'!$A$7:$H$9,8,FALSE),"") ->  | BH3: =_xlfn.IFNA(VLOOKUP($A3,'9 - SRH decisions'!$A$7:$H$11,8,FALSE),"") ->  | BI3: =_xlfn.IFNA(VLOOKUP($A3,'10 - Rejecting IPV'!$A$7:$H$14,8,FALSE),"") ->  | BJ3: =_xlfn.IFNA(VLOOKUP($A3,'11 - violence by partner'!$A$7:$H$10,8,FALSE),"") ->  | BK3: =_xlfn.IFNA(VLOOKUP($A3,'12 - sexual violence'!$A$7:$H$9,8,FALSE),"") ->  | BL3: =_xlfn.IFNA(VLOOKUP($A3,'13 - Food insecurity'!$A$5:$L$25,9,FALSE),"") ->  | BM3: =_xlfn.IFNA(VLOOKUP($A3,'14 - Stunting'!$A$5:$L$13,9,FALSE),"") ->  | BN3: =_xlfn.IFNA(VLOOKUP($A3,'15 - Resilience capacity'!$A$5:$L$33,9,FALSE),"") ->  | BO3: =_xlfn.IFNA(VLOOKUP($A3,'WEE summary'!$A$4:$G$102,7,FALSE),"") ->  | BP3: =_xlfn.IFNA(VLOOKUP($A3,'17 - HH $ decisions'!$A$5:$L$46,7,FALSE),"") ->  | BQ3: =_xlfn.IFNA(VLOOKUP($A3,'18 - Labor rights'!$A$5:$L$23,7,FALSE),"") ->  | BR3: =_xlfn.IFNA(VLOOKUP($A3,'19 - Participation'!$A$5:$L$33,8,FALSE),"") ->  | BS3: =_xlfn.IFNA(A3&": "&VLOOKUP($A3,'20 - Policies'!$A$5:$J$62,5,FALSE),"") ->  | BT3: =_xlfn.IFNA(VLOOKUP($A3,'21 - Resilience actions'!$A$5:$L$28,9,FALSE),"") ->  | BU3: =IF(COUNTIF(BS3,"")=0,1,"") -> 
A4: Economic and Social Reintegration of Afghan Returnees,Internally Displaced Persons and Host Communities Phase 2 (ESRAR 2) | B4: Afghanistan | C4: =_xlfn.IFNA(VLOOKUP(A4,'PIIRS FY16 Indicators data'!F:G,2,FALSE),"") -> CARE Australia | D4: =_xlfn.IFNA(VLOOKUP($A4,'PIIRS FY16 Indicators data'!$F$2:$S$1045,5,FALSE),"") -> Department of Immigration and Border Protection (DIBP) | E4: =_xlfn.IFNA(IF(VLOOKUP($A4,'PIIRS FY16 Indicators data'!$F$2:$S$1045,14,FALSE)="",TEXT(VLOOKUP($A4,'PIIRS FY16 Indicators data'!$F$2:$S$1045,12,FALSE),"mmm-yy")&" to "&TEXT(VLOOKUP($A4,'PIIRS FY16 Indicators data'!$F$2:$S$1045,13,FALSE),"mmm-yy"),TEXT(VLOOKUP($A4,'PIIRS FY16 Indicators data'!$F$2:$S$1045,12,FALSE),"mmm-yy")&" to "&TEXT(VLOOKUP($A4,'PIIRS FY16 Indicators data'!$F$2:$S$1045,14,FALSE),"mmm-yy")),"") -> Jun-14 to Dec-15 | F4: =_xlfn.IFNA(VLOOKUP(A4,'1 - poverty ($1.90)'!$A$7:$G$9,7,FALSE),"") ->  | G4: =_xlfn.IFNA(VLOOKUP(A4,'2 - poverty (nat pov line)'!$A$7:$G$10,7,FALSE),"") ->  | H4: =_xlfn.IFNA(VLOOKUP(B4,'3 - basic services'!$A$7:$G$10,7,FALSE),"") ->  | I4: 0 | J4: =_xlfn.IFNA(VLOOKUP($A4,'4 - Shelter'!$A$5:$S$21,3,FALSE),"") ->  | K4: =_xlfn.IFNA(VLOOKUP($A4,'4 - Safe Water'!$A$5:$S$22,3,FALSE),"") ->  | L4: =_xlfn.IFNA(VLOOKUP($A4,'4 - Adequate Sanitation'!$A$5:$S$18,3,FALSE),"") -> 1493 | M4: =_xlfn.IFNA(VLOOKUP($A4,'4 - Hygiene Practices'!$A$5:$S$24,3,FALSE),"") -> 5717 | N4: =_xlfn.IFNA(VLOOKUP($A4,'4 - Adequate food'!$A$5:$S$26,3,FALSE),"") ->  | O4: =_xlfn.IFNA(VLOOKUP($A4,'4 - Nutritional practices'!$A$5:$S$13,3,FALSE),"") ->  | P4: =_xlfn.IFNA(VLOOKUP($A4,'4 - Access SRH'!$A$5:$V$7,3,FALSE),"") ->  | Q4: =_xlfn.IFNA(VLOOKUP($A4,'4 - Livelihood recovery'!$A$5:$S$20,3,FALSE),"") ->  | R4: =_xlfn.IFNA(VLOOKUP($A4,'5 - Satisfaction'!$A$6:$Y$31,5,FALSE),"") ->  | S4: 5717 | T4: =_xlfn.IFNA(VLOOKUP($A4,'6 - Met demand'!$A$7:$AD$15,7,FALSE),"") ->  | U4: =_xlfn.IFNA(VLOOKUP($A4,'7 - SBA'!$A$7:$AC$14,7,FALSE),"") ->  | W4: =_xlfn.IFNA(VLOOKUP($A4,'9 - SRH decisions'!$A$7:$AC$9,7,FALSE),"") ->  | X4: 0 | Y4: =_xlfn.IFNA(VLOOKUP($A4,'10 - Rejecting IPV'!$A$7:$AG$12,7,FALSE),"") ->  | Z4: =_xlfn.IFNA(VLOOKUP($A4,'11 - violence by partner'!$A$7:$AC$8,7,FALSE),"") ->  | AB4: 0 | AC4: =MAX(X4,AB4) -> 0 | AD4: =_xlfn.IFNA(VLOOKUP($A4,'13 - Food insecurity'!$A$6:$AF$23,7,FALSE),"") ->  | AE4: =_xlfn.IFNA(VLOOKUP($A4,'14 - Stunting'!$A$5:$AI$11,7,FALSE),"") ->  | AF4: =_xlfn.IFNA(VLOOKUP($A4,'15 - Resilience capacity'!$A$6:$AE$30,7,FALSE),"") ->  | AG4: 0 | AH4: 0 | AI4: =_xlfn.IFNA(VLOOKUP($A4,'WEE summary'!$A$4:$E$102,3,FALSE),"") ->  | AJ4: =_xlfn.IFNA(VLOOKUP($A4,'WEE summary'!$A$4:$E$102,4,FALSE),"") ->  | AK4: =_xlfn.IFNA(VLOOKUP($A4,'WEE summary'!$A$4:$E$102,5,FALSE),"") ->  | AL4: 0 | AM4: =_xlfn.IFNA(VLOOKUP($A4,'19 - Participation'!$A$5:$G$31,7,FALSE),"") ->  | AN4: =_xlfn.IFNA(VLOOKUP(A4,'20 - Policies'!A:C,3,FALSE),"") ->  | AO4: =_xlfn.IFNA(VLOOKUP(A4,'21 - Resilience actions'!$A$7:$G$26,7,FALSE),"") ->  | AP4: =MAX(AM4, AL4,AG4,AB4,X4,S4,I4,AO4) -> 5717 | AQ4: =MAX(AL4,AG4,AB4,X4,S4,I4) -> 5717 | AS4: =_xlfn.IFNA(VLOOKUP($A4,'1 - poverty ($1.90)'!$A$7:$H$9,8,FALSE),"") ->  | AT4: =_xlfn.IFNA(VLOOKUP($A4,'2 - poverty (nat pov line)'!$A$7:$H$9,8,FALSE),"") ->  | AU4: =_xlfn.IFNA(VLOOKUP($A4,'3 - basic services'!$A$7:$H$9,8,FALSE),"") ->  | AV4: =_xlfn.IFNA(VLOOKUP($A4,'4 - Shelter'!$A$5:$J$23,6,FALSE),"") ->  | AW4: =_xlfn.IFNA(VLOOKUP($A4,'4 - Safe Water'!$A$5:$J$24,6,FALSE),"") ->  | AX4: =_xlfn.IFNA(VLOOKUP($A4,'4 - Adequate Sanitation'!$A$5:$J$20,6,FALSE),"") -> Economic and Social Reintegration of Afghan Returnees,Internally Displaced Persons and Host Communities Phase 2 (ESRAR 2) enabled access to adequate sanitation facilities for 1,493 people, 100% of those requiring assistance | AY4: =_xlfn.IFNA(VLOOKUP($A4,'4 - Hygiene Practices'!$A$5:$J$26,6,FALSE),"") -> Economic and Social Reintegration of Afghan Returnees,Internally Displaced Persons and Host Communities Phase 2 (ESRAR 2) enabled the use of adequate hygiene practices by 5,717 people, 100% of those requiring assistance | AZ4: =_xlfn.IFNA(VLOOKUP($A4,'4 - Adequate food'!$A$5:$J$28,6,FALSE),"") ->  | BA4: =_xlfn.IFNA(VLOOKUP($A4,'4 - Nutritional practices'!$A$5:$J$15,6,FALSE),"") ->  | BB4: =_xlfn.IFNA(VLOOKUP($A4,'4 - Access SRH'!$A$5:$I$9,9,FALSE),"") ->  | BC4: =_xlfn.IFNA(VLOOKUP($A4,'4 - Livelihood recovery'!$A$5:$J$22,6,FALSE),"") ->  | BD4: =_xlfn.IFNA(VLOOKUP($A4,'5 - Satisfaction'!$A$5:$J$33,6,FALSE),"") ->  | BE4: =_xlfn.IFNA(VLOOKUP($A4,'6 - Met demand'!$A$7:$H$16,8,FALSE),"") ->  | BF4: =_xlfn.IFNA(VLOOKUP($A4,'7 - SBA'!$A$7:$H$16,8,FALSE),"") ->  | BG4: =_xlfn.IFNA(VLOOKUP($A4,'8 - ABR'!$A$7:$H$9,8,FALSE),"") ->  | BH4: =_xlfn.IFNA(VLOOKUP($A4,'9 - SRH decisions'!$A$7:$H$11,8,FALSE),"") ->  | BI4: =_xlfn.IFNA(VLOOKUP($A4,'10 - Rejecting IPV'!$A$7:$H$14,8,FALSE),"") ->  | BJ4: =_xlfn.IFNA(VLOOKUP($A4,'11 - violence by partner'!$A$7:$H$10,8,FALSE),"") ->  | BK4: =_xlfn.IFNA(VLOOKUP($A4,'12 - sexual violence'!$A$7:$H$9,8,FALSE),"") ->  | BL4: =_xlfn.IFNA(VLOOKUP($A4,'13 - Food insecurity'!$A$5:$L$25,9,FALSE),"") ->  | BM4: =_xlfn.IFNA(VLOOKUP($A4,'14 - Stunting'!$A$5:$L$13,9,FALSE),"") ->  | BN4: =_xlfn.IFNA(VLOOKUP($A4,'15 - Resilience capacity'!$A$5:$L$33,9,FALSE),"") ->  | BO4: =_xlfn.IFNA(VLOOKUP($A4,'WEE summary'!$A$4:$G$102,7,FALSE),"") ->  | BP4: =_xlfn.IFNA(VLOOKUP($A4,'17 - HH $ decisions'!$A$5:$L$46,7,FALSE),"") ->  | BQ4: =_xlfn.IFNA(VLOOKUP($A4,'18 - Labor rights'!$A$5:$L$23,7,FALSE),"") ->  | BR4: =_xlfn.IFNA(VLOOKUP($A4,'19 - Participation'!$A$5:$L$33,8,FALSE),"") ->  | BS4: =_xlfn.IFNA(A4&": "&VLOOKUP($A4,'20 - Policies'!$A$5:$J$62,5,FALSE),"") ->  | BT4: =_xlfn.IFNA(VLOOKUP($A4,'21 - Resilience actions'!$A$5:$L$28,9,FALSE),"") ->  | BU4: =IF(COUNTIF(BS4,"")=0,1,"") -> 
A5: GSK 20% Reinvestment-ACCESS (OMID) | B5: Afghanistan | C5: =_xlfn.IFNA(VLOOKUP(A5,'PIIRS FY16 Indicators data'!F:G,2,FALSE),"") -> CARE UK | D5: =_xlfn.IFNA(VLOOKUP($A5,'PIIRS FY16 Indicators data'!$F$2:$S$1045,5,FALSE),"") -> Glaxo Smith Kline (GSK) | E5: =_xlfn.IFNA(IF(VLOOKUP($A5,'PIIRS FY16 Indicators data'!$F$2:$S$1045,14,FALSE)="",TEXT(VLOOKUP($A5,'PIIRS FY16 Indicators data'!$F$2:$S$1045,12,FALSE),"mmm-yy")&" to "&TEXT(VLOOKUP($A5,'PIIRS FY16 Indicators data'!$F$2:$S$1045,13,FALSE),"mmm-yy"),TEXT(VLOOKUP($A5,'PIIRS FY16 Indicators data'!$F$2:$S$1045,12,FALSE),"mmm-yy")&" to "&TEXT(VLOOKUP($A5,'PIIRS FY16 Indicators data'!$F$2:$S$1045,14,FALSE),"mmm-yy")),"") -> Apr-15 to Mar-18 | F5: =_xlfn.IFNA(VLOOKUP(A5,'1 - poverty ($1.90)'!$A$7:$G$9,7,FALSE),"") ->  | G5: =_xlfn.IFNA(VLOOKUP(A5,'2 - poverty (nat pov line)'!$A$7:$G$10,7,FALSE),"") ->  | H5: =_xlfn.IFNA(VLOOKUP(B5,'3 - basic services'!$A$7:$G$10,7,FALSE),"") ->  | I5: 0 | J5: =_xlfn.IFNA(VLOOKUP($A5,'4 - Shelter'!$A$5:$S$21,3,FALSE),"") ->  | K5: =_xlfn.IFNA(VLOOKUP($A5,'4 - Safe Water'!$A$5:$S$22,3,FALSE),"") ->  | L5: =_xlfn.IFNA(VLOOKUP($A5,'4 - Adequate Sanitation'!$A$5:$S$18,3,FALSE),"") ->  | M5: =_xlfn.IFNA(VLOOKUP($A5,'4 - Hygiene Practices'!$A$5:$S$24,3,FALSE),"") ->  | N5: =_xlfn.IFNA(VLOOKUP($A5,'4 - Adequate food'!$A$5:$S$26,3,FALSE),"") ->  | O5: =_xlfn.IFNA(VLOOKUP($A5,'4 - Nutritional practices'!$A$5:$S$13,3,FALSE),"") ->  | P5: =_xlfn.IFNA(VLOOKUP($A5,'4 - Access SRH'!$A$5:$V$7,3,FALSE),"") ->  | Q5: =_xlfn.IFNA(VLOOKUP($A5,'4 - Livelihood recovery'!$A$5:$S$20,3,FALSE),"") ->  | R5: =_xlfn.IFNA(VLOOKUP($A5,'5 - Satisfaction'!$A$6:$Y$31,5,FALSE),"") ->  | S5: 0 | T5: =_xlfn.IFNA(VLOOKUP($A5,'6 - Met demand'!$A$7:$AD$15,7,FALSE),"") -> 43.4448 | U5: =_xlfn.IFNA(VLOOKUP($A5,'7 - SBA'!$A$7:$AC$14,7,FALSE),"") -> 119.196 | W5: =_xlfn.IFNA(VLOOKUP($A5,'9 - SRH decisions'!$A$7:$AC$9,7,FALSE),"") -> 37.8378 | X5: 119.196 | Y5: =_xlfn.IFNA(VLOOKUP($A5,'10 - Rejecting IPV'!$A$7:$AG$12,7,FALSE),"") ->  | Z5: =_xlfn.IFNA(VLOOKUP($A5,'11 - violence by partner'!$A$7:$AC$8,7,FALSE),"") ->  | AB5: 0 | AC5: 119.196 | AD5: =_xlfn.IFNA(VLOOKUP($A5,'13 - Food insecurity'!$A$6:$AF$23,7,FALSE),"") ->  | AE5: =_xlfn.IFNA(VLOOKUP($A5,'14 - Stunting'!$A$5:$AI$11,7,FALSE),"") ->  | AF5: =_xlfn.IFNA(VLOOKUP($A5,'15 - Resilience capacity'!$A$6:$AE$30,7,FALSE),"") ->  | AG5: 0 | AH5: 0 | AI5: =_xlfn.IFNA(VLOOKUP($A5,'WEE summary'!$A$4:$E$102,3,FALSE),"") ->  | AJ5: =_xlfn.IFNA(VLOOKUP($A5,'WEE summary'!$A$4:$E$102,4,FALSE),"") ->  | AK5: =_xlfn.IFNA(VLOOKUP($A5,'WEE summary'!$A$4:$E$102,5,FALSE),"") ->  | AL5: 0 | AM5: =_xlfn.IFNA(VLOOKUP($A5,'19 - Participation'!$A$5:$G$31,7,FALSE),"") ->  | AN5: =_xlfn.IFNA(VLOOKUP(A5,'20 - Policies'!A:C,3,FALSE),"") ->  | AO5: =_xlfn.IFNA(VLOOKUP(A5,'21 - Resilience actions'!$A$7:$G$26,7,FALSE),"") ->  | AP5: =MAX(AM5, AL5,AG5,AB5,X5,S5,I5,AO5) -> 119.196 | AQ5: =MAX(AL5,AG5,AB5,X5,S5,I5) -> 119.196 | AS5: =_xlfn.IFNA(VLOOKUP($A5,'1 - poverty ($1.90)'!$A$7:$H$9,8,FALSE),"") ->  | AT5: =_xlfn.IFNA(VLOOKUP($A5,'2 - poverty (nat pov line)'!$A$7:$H$9,8,FALSE),"") ->  | AU5: =_xlfn.IFNA(VLOOKUP($A5,'3 - basic services'!$A$7:$H$9,8,FALSE),"") ->  | AV5: =_xlfn.IFNA(VLOOKUP($A5,'4 - Shelter'!$A$5:$J$23,6,FALSE),"") ->  | AW5: =_xlfn.IFNA(VLOOKUP($A5,'4 - Safe Water'!$A$5:$J$24,6,FALSE),"") ->  | AX5: =_xlfn.IFNA(VLOOKUP($A5,'4 - Adequate Sanitation'!$A$5:$J$20,6,FALSE),"") ->  | AY5: =_xlfn.IFNA(VLOOKUP($A5,'4 - Hygiene Practices'!$A$5:$J$26,6,FALSE),"") ->  | AZ5: =_xlfn.IFNA(VLOOKUP($A5,'4 - Adequate food'!$A$5:$J$28,6,FALSE),"") ->  | BA5: =_xlfn.IFNA(VLOOKUP($A5,'4 - Nutritional practices'!$A$5:$J$15,6,FALSE),"") ->  | BB5: =_xlfn.IFNA(VLOOKUP($A5,'4 - Access SRH'!$A$5:$I$9,9,FALSE),"") ->  | BC5: =_xlfn.IFNA(VLOOKUP($A5,'4 - Livelihood recovery'!$A$5:$J$22,6,FALSE),"") ->  | BD5: =_xlfn.IFNA(VLOOKUP($A5,'5 - Satisfaction'!$A$5:$J$33,6,FALSE),"") ->  | BE5: =_xlfn.IFNA(VLOOKUP($A5,'6 - Met demand'!$A$7:$H$16,8,FALSE),"") -> GSK 20% Reinvestment-ACCESS (OMID) contributed to increasing met demand for modern contraceptives by 8.6% (from 74.1% to 82.7%), enabling 11 women to increase access to contraceptives, and a total of 43 women to exercise their SRMH rights | BF5: =_xlfn.IFNA(VLOOKUP($A5,'7 - SBA'!$A$7:$H$16,8,FALSE),"") -> GSK 20% Reinvestment-ACCESS (OMID) contributed to increasing the proportion of births attended by skilled health personnel by 8.1% (from 86.5% to 94.6%), enabling an additional 10 women to have their births attended by skilled personnel, and a total of 119 women to exercise their SRMH rights | BG5: =_xlfn.IFNA(VLOOKUP($A5,'8 - ABR'!$A$7:$H$9,8,FALSE),"") ->  | BH5: =_xlfn.IFNA(VLOOKUP($A5,'9 - SRH decisions'!$A$7:$H$11,8,FALSE),"") -> GSK 20% Reinvestment-ACCESS (OMID) contributed to increasing the proportion of women able to make their own informed SRH decisions by 5.9% (from 24.2% to 30%), enabling an additional 7 women to make informed decisions, and a total of 38 women to exercise their SRMH rights | BI5: =_xlfn.IFNA(VLOOKUP($A5,'10 - Rejecting IPV'!$A$7:$H$14,8,FALSE),"") ->  | BJ5: =_xlfn.IFNA(VLOOKUP($A5,'11 - violence by partner'!$A$7:$H$10,8,FALSE),"") ->  | BK5: =_xlfn.IFNA(VLOOKUP($A5,'12 - sexual violence'!$A$7:$H$9,8,FALSE),"") ->  | BL5: =_xlfn.IFNA(VLOOKUP($A5,'13 - Food insecurity'!$A$5:$L$25,9,FALSE),"") ->  | BM5: =_xlfn.IFNA(VLOOKUP($A5,'14 - Stunting'!$A$5:$L$13,9,FALSE),"") ->  | BN5: =_xlfn.IFNA(VLOOKUP($A5,'15 - Resilience capacity'!$A$5:$L$33,9,FALSE),"") ->  | BO5: =_xlfn.IFNA(VLOOKUP($A5,'WEE summary'!$A$4:$G$102,7,FALSE),"") ->  | BP5: =_xlfn.IFNA(VLOOKUP($A5,'17 - HH $ decisions'!$A$5:$L$46,7,FALSE),"") ->  | BQ5: =_xlfn.IFNA(VLOOKUP($A5,'18 - Labor rights'!$A$5:$L$23,7,FALSE),"") ->  | BR5: =_xlfn.IFNA(VLOOKUP($A5,'19 - Participation'!$A$5:$L$33,8,FALSE),"") ->  | BS5: =_xlfn.IFNA(A5&": "&VLOOKUP($A5,'20 - Policies'!$A$5:$J$62,5,FALSE),"") ->  | BT5: =_xlfn.IFNA(VLOOKUP($A5,'21 - Resilience actions'!$A$5:$L$28,9,FALSE),"") ->  | BU5: =IF(COUNTIF(BS5,"")=0,1,"") -> 
A6: Women’s Income Generation through Livelihood Development | B6: Afghanistan | C6: =_xlfn.IFNA(VLOOKUP(A6,'PIIRS FY16 Indicators data'!F:G,2,FALSE),"") -> CARE USA | D6: =_xlfn.IFNA(VLOOKUP($A6,'PIIRS FY16 Indicators data'!$F$2:$S$1045,5,FALSE),"") -> Beyond the 11th Foundation | E6: =_xlfn.IFNA(IF(VLOOKUP($A6,'PIIRS FY16 Indicators data'!$F$2:$S$1045,14,FALSE)="",TEXT(VLOOKUP($A6,'PIIRS FY16 Indicators data'!$F$2:$S$1045,12,FALSE),"mmm-yy")&" to "&TEXT(VLOOKUP($A6,'PIIRS FY16 Indicators data'!$F$2:$S$1045,13,FALSE),"mmm-yy"),TEXT(VLOOKUP($A6,'PIIRS FY16 Indicators data'!$F$2:$S$1045,12,FALSE),"mmm-yy")&" to "&TEXT(VLOOKUP($A6,'PIIRS FY16 Indicators data'!$F$2:$S$1045,14,FALSE),"mmm-yy")),"") -> Aug-13 to Sep-16 | F6: =_xlfn.IFNA(VLOOKUP(A6,'1 - poverty ($1.90)'!$A$7:$G$9,7,FALSE),"") ->  | G6: =_xlfn.IFNA(VLOOKUP(A6,'2 - poverty (nat pov line)'!$A$7:$G$10,7,FALSE),"") ->  | H6: =_xlfn.IFNA(VLOOKUP(B6,'3 - basic services'!$A$7:$G$10,7,FALSE),"") ->  | I6: 0 | J6: =_xlfn.IFNA(VLOOKUP($A6,'4 - Shelter'!$A$5:$S$21,3,FALSE),"") ->  | K6: =_xlfn.IFNA(VLOOKUP($A6,'4 - Safe Water'!$A$5:$S$22,3,FALSE),"") ->  | L6: =_xlfn.IFNA(VLOOKUP($A6,'4 - Adequate Sanitation'!$A$5:$S$18,3,FALSE),"") ->  | M6: =_xlfn.IFNA(VLOOKUP($A6,'4 - Hygiene Practices'!$A$5:$S$24,3,FALSE),"") ->  | N6: =_xlfn.IFNA(VLOOKUP($A6,'4 - Adequate food'!$A$5:$S$26,3,FALSE),"") ->  | O6: =_xlfn.IFNA(VLOOKUP($A6,'4 - Nutritional practices'!$A$5:$S$13,3,FALSE),"") ->  | P6: =_xlfn.IFNA(VLOOKUP($A6,'4 - Access SRH'!$A$5:$V$7,3,FALSE),"") ->  | Q6: =_xlfn.IFNA(VLOOKUP($A6,'4 - Livelihood recovery'!$A$5:$S$20,3,FALSE),"") ->  | R6: =_xlfn.IFNA(VLOOKUP($A6,'5 - Satisfaction'!$A$6:$Y$31,5,FALSE),"") ->  | S6: 0 | T6: =_xlfn.IFNA(VLOOKUP($A6,'6 - Met demand'!$A$7:$AD$15,7,FALSE),"") ->  | U6: =_xlfn.IFNA(VLOOKUP($A6,'7 - SBA'!$A$7:$AC$14,7,FALSE),"") ->  | W6: =_xlfn.IFNA(VLOOKUP($A6,'9 - SRH decisions'!$A$7:$AC$9,7,FALSE),"") ->  | X6: 0 | Y6: =_xlfn.IFNA(VLOOKUP($A6,'10 - Rejecting IPV'!$A$7:$AG$12,7,FALSE),"") ->  | Z6: =_xlfn.IFNA(VLOOKUP($A6,'11 - violence by partner'!$A$7:$AC$8,7,FALSE),"") ->  | AB6: 0 | AC6: 0 | AD6: =_xlfn.IFNA(VLOOKUP($A6,'13 - Food insecurity'!$A$6:$AF$23,7,FALSE),"") ->  | AE6: =_xlfn.IFNA(VLOOKUP($A6,'14 - Stunting'!$A$5:$AI$11,7,FALSE),"") ->  | AF6: =_xlfn.IFNA(VLOOKUP($A6,'15 - Resilience capacity'!$A$6:$AE$30,7,FALSE),"") ->  | AG6: 0 | AH6: 0 | AI6: =_xlfn.IFNA(VLOOKUP($A6,'WEE summary'!$A$4:$E$102,3,FALSE),"") ->  | AJ6: =_xlfn.IFNA(VLOOKUP($A6,'WEE summary'!$A$4:$E$102,4,FALSE),"") -> 35 | AK6: =_xlfn.IFNA(VLOOKUP($A6,'WEE summary'!$A$4:$E$102,5,FALSE),"") ->  | AL6: 35 | AM6: =_xlfn.IFNA(VLOOKUP($A6,'19 - Participation'!$A$5:$G$31,7,FALSE),"") ->  | AN6: =_xlfn.IFNA(VLOOKUP(A6,'20 - Policies'!A:C,3,FALSE),"") ->  | AO6: =_xlfn.IFNA(VLOOKUP(A6,'21 - Resilience actions'!$A$7:$G$26,7,FALSE),"") ->  | AP6: =MAX(AM6, AL6,AG6,AB6,X6,S6,I6,AO6) -> 35 | AQ6: =MAX(AL6,AG6,AB6,X6,S6,I6) -> 35 | AS6: =_xlfn.IFNA(VLOOKUP($A6,'1 - poverty ($1.90)'!$A$7:$H$9,8,FALSE),"") ->  | AT6: =_xlfn.IFNA(VLOOKUP($A6,'2 - poverty (nat pov line)'!$A$7:$H$9,8,FALSE),"") ->  | AU6: =_xlfn.IFNA(VLOOKUP($A6,'3 - basic services'!$A$7:$H$9,8,FALSE),"") ->  | AV6: =_xlfn.IFNA(VLOOKUP($A6,'4 - Shelter'!$A$5:$J$23,6,FALSE),"") ->  | AW6: =_xlfn.IFNA(VLOOKUP($A6,'4 - Safe Water'!$A$5:$J$24,6,FALSE),"") ->  | AX6: =_xlfn.IFNA(VLOOKUP($A6,'4 - Adequate Sanitation'!$A$5:$J$20,6,FALSE),"") ->  | AY6: =_xlfn.IFNA(VLOOKUP($A6,'4 - Hygiene Practices'!$A$5:$J$26,6,FALSE),"") ->  | AZ6: =_xlfn.IFNA(VLOOKUP($A6,'4 - Adequate food'!$A$5:$J$28,6,FALSE),"") ->  | BA6: =_xlfn.IFNA(VLOOKUP($A6,'4 - Nutritional practices'!$A$5:$J$15,6,FALSE),"") ->  | BB6: =_xlfn.IFNA(VLOOKUP($A6,'4 - Access SRH'!$A$5:$I$9,9,FALSE),"") ->  | BC6: =_xlfn.IFNA(VLOOKUP($A6,'4 - Livelihood recovery'!$A$5:$J$22,6,FALSE),"") ->  | BD6: =_xlfn.IFNA(VLOOKUP($A6,'5 - Satisfaction'!$A$5:$J$33,6,FALSE),"") ->  | BE6: =_xlfn.IFNA(VLOOKUP($A6,'6 - Met demand'!$A$7:$H$16,8,FALSE),"") ->  | BF6: =_xlfn.IFNA(VLOOKUP($A6,'7 - SBA'!$A$7:$H$16,8,FALSE),"") ->  | BG6: =_xlfn.IFNA(VLOOKUP($A6,'8 - ABR'!$A$7:$H$9,8,FALSE),"") ->  | BH6: =_xlfn.IFNA(VLOOKUP($A6,'9 - SRH decisions'!$A$7:$H$11,8,FALSE),"") ->  | BI6: =_xlfn.IFNA(VLOOKUP($A6,'10 - Rejecting IPV'!$A$7:$H$14,8,FALSE),"") ->  | BJ6: =_xlfn.IFNA(VLOOKUP($A6,'11 - violence by partner'!$A$7:$H$10,8,FALSE),"") ->  | BK6: =_xlfn.IFNA(VLOOKUP($A6,'12 - sexual violence'!$A$7:$H$9,8,FALSE),"") ->  | BL6: =_xlfn.IFNA(VLOOKUP($A6,'13 - Food insecurity'!$A$5:$L$25,9,FALSE),"") ->  | BM6: =_xlfn.IFNA(VLOOKUP($A6,'14 - Stunting'!$A$5:$L$13,9,FALSE),"") ->  | BN6: =_xlfn.IFNA(VLOOKUP($A6,'15 - Resilience capacity'!$A$5:$L$33,9,FALSE),"") ->  | BO6: =_xlfn.IFNA(VLOOKUP($A6,'WEE summary'!$A$4:$G$102,7,FALSE),"") ->  | BP6: =_xlfn.IFNA(VLOOKUP($A6,'17 - HH $ decisions'!$A$5:$L$46,7,FALSE),"") -> Women’s Income Generation through Livelihood Development contributed to increasing the proportion of women able to participate equally in HH financial decisions by 35% (from 15% to 50%), enabling an additional 35 women to have control over economic resources | BQ6: =_xlfn.IFNA(VLOOKUP($A6,'18 - Labor rights'!$A$5:$L$23,7,FALSE),"") ->  | BR6: =_xlfn.IFNA(VLOOKUP($A6,'19 - Participation'!$A$5:$L$33,8,FALSE),"") ->  | BS6: =_xlfn.IFNA(A6&": "&VLOOKUP($A6,'20 - Policies'!$A$5:$J$62,5,FALSE),"") ->  | BT6: =_xlfn.IFNA(VLOOKUP($A6,'21 - Resilience actions'!$A$5:$L$28,9,FALSE),"") ->  | BU6: =IF(COUNTIF(BS6,"")=0,1,"") -> 
B7: Afghanistan Total | F7: =SUBTOTAL(9,F3:F6) -> 0 | G7: 0 | H7: 0 | I7: 0 | J7: 1347 | K7: 0 | L7: 1493 | M7: 5717 | N7: 0 | O7: 0 | P7: 0 | Q7: 5165 | R7: 7094 | S7: 12811 | T7: 43.4448 | U7: 119.196 | V7: 0 | W7: 37.8378 | X7: 119.196 | Y7: 0 | Z7: 0 | AA7: 0 | AB7: 0 | AC7: 119.196 | AD7: 0 | AE7: 0 | AF7: 0 | AG7: 0 | AH7: 5165 | AI7: 0 | AJ7: 35 | AK7: 0 | AL7: 35 | AM7: 0 | AN7: 0 | AO7: 0 | AP7: 12965.196 | AQ7: 12965.196 | AS7: =_xlfn.TEXTJOIN(CHAR(10)&CHAR(10),TRUE,AS3:AS6) ->  | AV7: Afghanistan Addressing Immediate Household and Shelter Needs - Emergency NFI, Shelter, Hygiene and Livelihood Assistance in Vulnerable Communities in Afghanistan provided adequate shelter/housing for 1,347 people, 100% of those requiring assistance | AX7: Economic and Social Reintegration of Afghan Returnees,Internally Displaced Persons and Host Communities Phase 2 (ESRAR 2) enabled access to adequate sanitation facilities for 1,493 people, 100% of those requiring assistance | AY7: Economic and Social Reintegration of Afghan Returnees,Internally Displaced Persons and Host Communities Phase 2 (ESRAR 2) enabled the use of adequate hygiene practices by 5,717 people, 100% of those requiring assistance | AZ7: =_xlfn.TEXTJOIN(CHAR(10)&CHAR(10),TRUE,AZ3:AZ6) ->  | BC7: Afghanistan Addressing Immediate Household and Shelter Needs - Emergency NFI, Shelter, Hygiene and Livelihood Assistance in Vulnerable Communities in Afghanistan supported recovery of goods, assets or income opportunities for 5,165 people, 100% of those requiring assistance | BD7: Afghanistan Addressing Immediate Household and Shelter Needs - Emergency NFI, Shelter, Hygiene and Livelihood Assistance in Vulnerable Communities in Afghanistan: 7,094 people were satisified with the humanitarian assistance (100% of those receiving support) | BE7: =_xlfn.TEXTJOIN(CHAR(10)&CHAR(10),TRUE,BE3:BE6) -> GSK 20% Reinvestment-ACCESS (OMID) contributed to increasing met demand for modern contraceptives by 8.6% (from 74.1% to 82.7%), enabling 11 women to increase access to contraceptives, and a total of 43 women to exercise their SRMH rights | BF7: =_xlfn.TEXTJOIN(CHAR(10)&CHAR(10),TRUE,BF3:BF6) -> GSK 20% Reinvestment-ACCESS (OMID) contributed to increasing the proportion of births attended by skilled health personnel by 8.1% (from 86.5% to 94.6%), enabling an additional 10 women to have their births attended by skilled personnel, and a total of 119 women to exercise their SRMH rights | BH7: GSK 20% Reinvestment-ACCESS (OMID) contributed to increasing the proportion of women able to make their own informed SRH decisions by 5.9% (from 24.2% to 30%), enabling an additional 7 women to make informed decisions, and a total of 38 women to exercise their SRMH rights | BI7: =_xlfn.TEXTJOIN(CHAR(10)&CHAR(10),TRUE,BI3:BI6) ->  | BJ7: =_xlfn.TEXTJOIN(CHAR(10)&CHAR(10),TRUE,BJ3:BJ6) ->  | BK7: =_xlfn.TEXTJOIN(CHAR(10)&CHAR(10),TRUE,BK3:BK6) ->  | BL7: =_xlfn.TEXTJOIN(CHAR(10)&CHAR(10),TRUE,BL3:BL6) ->  | BN7: =_xlfn.TEXTJOIN(CHAR(10)&CHAR(10),TRUE,BN3:BN6) ->  | BP7: Women’s Income Generation through Livelihood Development contributed to increasing the proportion of women able to participate equally in HH financial decisions by 35% (from 15% to 50%), enabling an additional 35 women to have control over economic resources | BT7: =_xlfn.TEXTJOIN(CHAR(10)&CHAR(10),TRUE,BT3:BT6) ->  | BU7: =SUBTOTAL(9,BU3:BU6) -> 0
A8: VSLAs (various other projects) in Angola | B8: Angola | C8: various | D8: various | E8: various | F8: =_xlfn.IFNA(VLOOKUP(A8,'1 - poverty ($1.90)'!$A$7:$G$9,7,FALSE),"") ->  | G8: =_xlfn.IFNA(VLOOKUP(A8,'2 - poverty (nat pov line)'!$A$7:$G$10,7,FALSE),"") ->  | H8: =_xlfn.IFNA(VLOOKUP(B8,'3 - basic services'!$A$7:$G$10,7,FALSE),"") ->  | I8: 0 | J8: =_xlfn.IFNA(VLOOKUP($A8,'4 - Shelter'!$A$5:$S$21,3,FALSE),"") ->  | K8: =_xlfn.IFNA(VLOOKUP($A8,'4 - Safe Water'!$A$5:$S$22,3,FALSE),"") ->  | L8: =_xlfn.IFNA(VLOOKUP($A8,'4 - Adequate Sanitation'!$A$5:$S$18,3,FALSE),"") ->  | M8: =_xlfn.IFNA(VLOOKUP($A8,'4 - Hygiene Practices'!$A$5:$S$24,3,FALSE),"") ->  | N8: =_xlfn.IFNA(VLOOKUP($A8,'4 - Adequate food'!$A$5:$S$26,3,FALSE),"") ->  | O8: =_xlfn.IFNA(VLOOKUP($A8,'4 - Nutritional practices'!$A$5:$S$13,3,FALSE),"") ->  | P8: =_xlfn.IFNA(VLOOKUP($A8,'4 - Access SRH'!$A$5:$V$7,3,FALSE),"") ->  | Q8: =_xlfn.IFNA(VLOOKUP($A8,'4 - Livelihood recovery'!$A$5:$S$20,3,FALSE),"") ->  | R8: =_xlfn.IFNA(VLOOKUP($A8,'5 - Satisfaction'!$A$6:$Y$31,5,FALSE),"") ->  | S8: 0 | T8: =_xlfn.IFNA(VLOOKUP($A8,'6 - Met demand'!$A$7:$AD$15,7,FALSE),"") ->  | U8: =_xlfn.IFNA(VLOOKUP($A8,'7 - SBA'!$A$7:$AC$14,7,FALSE),"") ->  | W8: =_xlfn.IFNA(VLOOKUP($A8,'9 - SRH decisions'!$A$7:$AC$9,7,FALSE),"") ->  | X8: 0 | Y8: =_xlfn.IFNA(VLOOKUP($A8,'10 - Rejecting IPV'!$A$7:$AG$12,7,FALSE),"") ->  | Z8: =_xlfn.IFNA(VLOOKUP($A8,'11 - violence by partner'!$A$7:$AC$8,7,FALSE),"") ->  | AB8: 0 | AC8: 0 | AD8: =_xlfn.IFNA(VLOOKUP($A8,'13 - Food insecurity'!$A$6:$AF$23,7,FALSE),"") ->  | AE8: =_xlfn.IFNA(VLOOKUP($A8,'14 - Stunting'!$A$5:$AI$11,7,FALSE),"") ->  | AF8: =_xlfn.IFNA(VLOOKUP($A8,'15 - Resilience capacity'!$A$6:$AE$30,7,FALSE),"") ->  | AG8: 0 | AH8: 0 | AI8: =_xlfn.IFNA(VLOOKUP($A8,'WEE summary'!$A$4:$E$102,3,FALSE),"") -> 425.6456 | AJ8: =_xlfn.IFNA(VLOOKUP($A8,'WEE summary'!$A$4:$E$102,4,FALSE),"") ->  | AK8: =_xlfn.IFNA(VLOOKUP($A8,'WEE summary'!$A$4:$E$102,5,FALSE),"") ->  | AL8: 425.6456 | AM8: =_xlfn.IFNA(VLOOKUP($A8,'19 - Participation'!$A$5:$G$31,7,FALSE),"") ->  | AN8: =_xlfn.IFNA(VLOOKUP(A8,'20 - Policies'!A:C,3,FALSE),"") ->  | AO8: =_xlfn.IFNA(VLOOKUP(A8,'21 - Resilience actions'!$A$7:$G$26,7,FALSE),"") ->  | AP8: =MAX(AM8, AL8,AG8,AB8,X8,S8,I8,AO8) -> 425.6456 | AQ8: =MAX(AL8,AG8,AB8,X8,S8,I8) -> 425.6456 | AS8: =_xlfn.IFNA(VLOOKUP($A8,'1 - poverty ($1.90)'!$A$7:$H$9,8,FALSE),"") ->  | AT8: =_xlfn.IFNA(VLOOKUP($A8,'2 - poverty (nat pov line)'!$A$7:$H$9,8,FALSE),"") ->  | AU8: =_xlfn.IFNA(VLOOKUP($A8,'3 - basic services'!$A$7:$H$9,8,FALSE),"") ->  | AV8: =_xlfn.IFNA(VLOOKUP($A8,'4 - Shelter'!$A$5:$J$23,6,FALSE),"") ->  | AW8: =_xlfn.IFNA(VLOOKUP($A8,'4 - Safe Water'!$A$5:$J$24,6,FALSE),"") ->  | AX8: =_xlfn.IFNA(VLOOKUP($A8,'4 - Adequate Sanitation'!$A$5:$J$20,6,FALSE),"") ->  | AY8: =_xlfn.IFNA(VLOOKUP($A8,'4 - Hygiene Practices'!$A$5:$J$26,6,FALSE),"") ->  | AZ8: =_xlfn.IFNA(VLOOKUP($A8,'4 - Adequate food'!$A$5:$J$28,6,FALSE),"") ->  | BA8: =_xlfn.IFNA(VLOOKUP($A8,'4 - Nutritional practices'!$A$5:$J$15,6,FALSE),"") ->  | BB8: =_xlfn.IFNA(VLOOKUP($A8,'4 - Access SRH'!$A$5:$I$9,9,FALSE),"") ->  | BC8: =_xlfn.IFNA(VLOOKUP($A8,'4 - Livelihood recovery'!$A$5:$J$22,6,FALSE),"") ->  | BD8: =_xlfn.IFNA(VLOOKUP($A8,'5 - Satisfaction'!$A$5:$J$33,6,FALSE),"") ->  | BE8: =_xlfn.IFNA(VLOOKUP($A8,'6 - Met demand'!$A$7:$H$16,8,FALSE),"") ->  | BF8: =_xlfn.IFNA(VLOOKUP($A8,'7 - SBA'!$A$7:$H$16,8,FALSE),"") ->  | BG8: =_xlfn.IFNA(VLOOKUP($A8,'8 - ABR'!$A$7:$H$9,8,FALSE),"") ->  | BH8: =_xlfn.IFNA(VLOOKUP($A8,'9 - SRH decisions'!$A$7:$H$11,8,FALSE),"") ->  | BI8: =_xlfn.IFNA(VLOOKUP($A8,'10 - Rejecting IPV'!$A$7:$H$14,8,FALSE),"") ->  | BJ8: =_xlfn.IFNA(VLOOKUP($A8,'11 - violence by partner'!$A$7:$H$10,8,FALSE),"") ->  | BK8: =_xlfn.IFNA(VLOOKUP($A8,'12 - sexual violence'!$A$7:$H$9,8,FALSE),"") ->  | BL8: =_xlfn.IFNA(VLOOKUP($A8,'13 - Food insecurity'!$A$5:$L$25,9,FALSE),"") ->  | BM8: =_xlfn.IFNA(VLOOKUP($A8,'14 - Stunting'!$A$5:$L$13,9,FALSE),"") ->  | BN8: =_xlfn.IFNA(VLOOKUP($A8,'15 - Resilience capacity'!$A$5:$L$33,9,FALSE),"") ->  | BO8: =_xlfn.IFNA(VLOOKUP($A8,'WEE summary'!$A$4:$G$102,7,FALSE),"") -> VSLAs (various other projects) in Angola enabled 426 women to access formal or informal financial services | BP8: =_xlfn.IFNA(VLOOKUP($A8,'17 - HH $ decisions'!$A$5:$L$46,7,FALSE),"") ->  | BQ8: =_xlfn.IFNA(VLOOKUP($A8,'18 - Labor rights'!$A$5:$L$23,7,FALSE),"") ->  | BR8: =_xlfn.IFNA(VLOOKUP($A8,'19 - Participation'!$A$5:$L$33,8,FALSE),"") ->  | BS8: =_xlfn.IFNA(A8&": "&VLOOKUP($A8,'20 - Policies'!$A$5:$J$62,5,FALSE),"") ->  | BT8: =_xlfn.IFNA(VLOOKUP($A8,'21 - Resilience actions'!$A$5:$L$28,9,FALSE),"") ->  | BU8: =IF(COUNTIF(BS8,"")=0,1,"") -> 
B9: Angola Total | F9: =SUBTOTAL(9,F8:F8) -> 0 | G9: 0 | H9: 0 | I9: 0 | J9: 0 | K9: 0 | L9: 0 | M9: 0 | N9: 0 | O9: 0 | P9: 0 | Q9: 0 | R9: 0 | S9: 0 | T9: 0 | U9: 0 | V9: 0 | W9: 0 | X9: 0 | Y9: 0 | Z9: 0 | AA9: 0 | AB9: 0 | AC9: 0 | AD9: 0 | AE9: 0 | AF9: 0 | AG9: 0 | AH9: 0 | AI9: 425.6456 | AJ9: 0 | AK9: 0 | AL9: 425.6456 | AM9: 0 | AN9: 0 | AO9: 0 | AP9: 425.6456 | AQ9: 425.6456 | AS9: =_xlfn.TEXTJOIN(CHAR(10)&CHAR(10),TRUE,AS8:AS8) ->  | AZ9: =_xlfn.TEXTJOIN(CHAR(10)&CHAR(10),TRUE,AZ8:AZ8) ->  | BE9: =_xlfn.TEXTJOIN(CHAR(10)&CHAR(10),TRUE,BE8:BE8) ->  | BI9: =_xlfn.TEXTJOIN(CHAR(10)&CHAR(10),TRUE,BI8:BI8) ->  | BJ9: =_xlfn.TEXTJOIN(CHAR(10)&CHAR(10),TRUE,BJ8:BJ8) ->  | BK9: =_xlfn.TEXTJOIN(CHAR(10)&CHAR(10),TRUE,BK8:BK8) ->  | BL9: =_xlfn.TEXTJOIN(CHAR(10)&CHAR(10),TRUE,BL8:BL8) ->  | BN9: =_xlfn.TEXTJOIN(CHAR(10)&CHAR(10),TRUE,BN8:BN8) ->  | BO9: VSLAs (various other projects) in Angola enabled 426 women to access formal or informal financial services | BT9: =_xlfn.TEXTJOIN(CHAR(10)&CHAR(10),TRUE,BT8:BT8) ->  | BU9: =SUBTOTAL(9,BU8:BU8) -> 0
A10: Building Resilience of the Urban Poor (BRUP) project | B10: Bangladesh | C10: =_xlfn.IFNA(VLOOKUP(A10,'PIIRS FY16 Indicators data'!F:G,2,FALSE),"") -> CARE USA | D10: =_xlfn.IFNA(VLOOKUP($A10,'PIIRS FY16 Indicators data'!$F$2:$S$1045,5,FALSE),"") -> C&A Foundation | E10: =_xlfn.IFNA(IF(VLOOKUP($A10,'PIIRS FY16 Indicators data'!$F$2:$S$1045,14,FALSE)="",TEXT(VLOOKUP($A10,'PIIRS FY16 Indicators data'!$F$2:$S$1045,12,FALSE),"mmm-yy")&" to "&TEXT(VLOOKUP($A10,'PIIRS FY16 Indicators data'!$F$2:$S$1045,13,FALSE),"mmm-yy"),TEXT(VLOOKUP($A10,'PIIRS FY16 Indicators data'!$F$2:$S$1045,12,FALSE),"mmm-yy")&" to "&TEXT(VLOOKUP($A10,'PIIRS FY16 Indicators data'!$F$2:$S$1045,14,FALSE),"mmm-yy")),"") -> Jan-14 to Oct-17 | F10: =_xlfn.IFNA(VLOOKUP(A10,'1 - poverty ($1.90)'!$A$7:$G$9,7,FALSE),"") ->  | G10: =_xlfn.IFNA(VLOOKUP(A10,'2 - poverty (nat pov line)'!$A$7:$G$10,7,FALSE),"") ->  | H10: =_xlfn.IFNA(VLOOKUP(B10,'3 - basic services'!$A$7:$G$10,7,FALSE),"") ->  | I10: 0 | J10: =_xlfn.IFNA(VLOOKUP($A10,'4 - Shelter'!$A$5:$S$21,3,FALSE),"") ->  | K10: =_xlfn.IFNA(VLOOKUP($A10,'4 - Safe Water'!$A$5:$S$22,3,FALSE),"") ->  | L10: =_xlfn.IFNA(VLOOKUP($A10,'4 - Adequate Sanitation'!$A$5:$S$18,3,FALSE),"") ->  | M10: =_xlfn.IFNA(VLOOKUP($A10,'4 - Hygiene Practices'!$A$5:$S$24,3,FALSE),"") ->  | N10: =_xlfn.IFNA(VLOOKUP($A10,'4 - Adequate food'!$A$5:$S$26,3,FALSE),"") ->  | O10: =_xlfn.IFNA(VLOOKUP($A10,'4 - Nutritional practices'!$A$5:$S$13,3,FALSE),"") ->  | P10: =_xlfn.IFNA(VLOOKUP($A10,'4 - Access SRH'!$A$5:$V$7,3,FALSE),"") ->  | Q10: =_xlfn.IFNA(VLOOKUP($A10,'4 - Livelihood recovery'!$A$5:$S$20,3,FALSE),"") -> 131 | R10: =_xlfn.IFNA(VLOOKUP($A10,'5 - Satisfaction'!$A$6:$Y$31,5,FALSE),"") ->  | S10: 131 | T10: =_xlfn.IFNA(VLOOKUP($A10,'6 - Met demand'!$A$7:$AD$15,7,FALSE),"") ->  | U10: =_xlfn.IFNA(VLOOKUP($A10,'7 - SBA'!$A$7:$AC$14,7,FALSE),"") ->  | W10: =_xlfn.IFNA(VLOOKUP($A10,'9 - SRH decisions'!$A$7:$AC$9,7,FALSE),"") ->  | X10: 0 | Y10: =_xlfn.IFNA(VLOOKUP($A10,'10 - Rejecting IPV'!$A$7:$AG$12,7,FALSE),"") ->  | Z10: =_xlfn.IFNA(VLOOKUP($A10,'11 - violence by partner'!$A$7:$AC$8,7,FALSE),"") ->  | AB10: 0 | AC10: 0 | AD10: =_xlfn.IFNA(VLOOKUP($A10,'13 - Food insecurity'!$A$6:$AF$23,7,FALSE),"") ->  | AE10: =_xlfn.IFNA(VLOOKUP($A10,'14 - Stunting'!$A$5:$AI$11,7,FALSE),"") ->  | AF10: =_xlfn.IFNA(VLOOKUP($A10,'15 - Resilience capacity'!$A$6:$AE$30,7,FALSE),"") ->  | AG10: 0 | AH10: 131 | AI10: =_xlfn.IFNA(VLOOKUP($A10,'WEE summary'!$A$4:$E$102,3,FALSE),"") ->  | AJ10: =_xlfn.IFNA(VLOOKUP($A10,'WEE summary'!$A$4:$E$102,4,FALSE),"") ->  | AK10: =_xlfn.IFNA(VLOOKUP($A10,'WEE summary'!$A$4:$E$102,5,FALSE),"") ->  | AL10: 0 | AM10: =_xlfn.IFNA(VLOOKUP($A10,'19 - Participation'!$A$5:$G$31,7,FALSE),"") ->  | AN10: =_xlfn.IFNA(VLOOKUP(A10,'20 - Policies'!A:C,3,FALSE),"") ->  | AO10: =_xlfn.IFNA(VLOOKUP(A10,'21 - Resilience actions'!$A$7:$G$26,7,FALSE),"") ->  | AP10: =MAX(AM10, AL10,AG10,AB10,X10,S10,I10,AO10) -> 131 | AQ10: =MAX(AL10,AG10,AB10,X10,S10,I10) -> 131 | AS10: =_xlfn.IFNA(VLOOKUP($A10,'1 - poverty ($1.90)'!$A$7:$H$9,8,FALSE),"") ->  | AT10: =_xlfn.IFNA(VLOOKUP($A10,'2 - poverty (nat pov line)'!$A$7:$H$9,8,FALSE),"") ->  | AU10: =_xlfn.IFNA(VLOOKUP($A10,'3 - basic services'!$A$7:$H$9,8,FALSE),"") ->  | AV10: =_xlfn.IFNA(VLOOKUP($A10,'4 - Shelter'!$A$5:$J$23,6,FALSE),"") ->  | AW10: =_xlfn.IFNA(VLOOKUP($A10,'4 - Safe Water'!$A$5:$J$24,6,FALSE),"") ->  | AX10: =_xlfn.IFNA(VLOOKUP($A10,'4 - Adequate Sanitation'!$A$5:$J$20,6,FALSE),"") ->  | AY10: =_xlfn.IFNA(VLOOKUP($A10,'4 - Hygiene Practices'!$A$5:$J$26,6,FALSE),"") ->  | AZ10: =_xlfn.IFNA(VLOOKUP($A10,'4 - Adequate food'!$A$5:$J$28,6,FALSE),"") ->  | BA10: =_xlfn.IFNA(VLOOKUP($A10,'4 - Nutritional practices'!$A$5:$J$15,6,FALSE),"") ->  | BB10: =_xlfn.IFNA(VLOOKUP($A10,'4 - Access SRH'!$A$5:$I$9,9,FALSE),"") ->  | BC10: =_xlfn.IFNA(VLOOKUP($A10,'4 - Livelihood recovery'!$A$5:$J$22,6,FALSE),"") -> Building Resilience of the Urban Poor (BRUP) project supported recovery of goods, assets or income opportunities for 131 people, 100% of those requiring assistance | BD10: =_xlfn.IFNA(VLOOKUP($A10,'5 - Satisfaction'!$A$5:$J$33,6,FALSE),"") ->  | BE10: =_xlfn.IFNA(VLOOKUP($A10,'6 - Met demand'!$A$7:$H$16,8,FALSE),"") ->  | BF10: =_xlfn.IFNA(VLOOKUP($A10,'7 - SBA'!$A$7:$H$16,8,FALSE),"") ->  | BG10: =_xlfn.IFNA(VLOOKUP($A10,'8 - ABR'!$A$7:$H$9,8,FALSE),"") ->  | BH10: =_xlfn.IFNA(VLOOKUP($A10,'9 - SRH decisions'!$A$7:$H$11,8,FALSE),"") ->  | BI10: =_xlfn.IFNA(VLOOKUP($A10,'10 - Rejecting IPV'!$A$7:$H$14,8,FALSE),"") ->  | BJ10: =_xlfn.IFNA(VLOOKUP($A10,'11 - violence by partner'!$A$7:$H$10,8,FALSE),"") ->  | BK10: =_xlfn.IFNA(VLOOKUP($A10,'12 - sexual violence'!$A$7:$H$9,8,FALSE),"") ->  | BL10: =_xlfn.IFNA(VLOOKUP($A10,'13 - Food insecurity'!$A$5:$L$25,9,FALSE),"") ->  | BM10: =_xlfn.IFNA(VLOOKUP($A10,'14 - Stunting'!$A$5:$L$13,9,FALSE),"") ->  | BN10: =_xlfn.IFNA(VLOOKUP($A10,'15 - Resilience capacity'!$A$5:$L$33,9,FALSE),"") ->  | BO10: =_xlfn.IFNA(VLOOKUP($A10,'WEE summary'!$A$4:$G$102,7,FALSE),"") ->  | BP10: =_xlfn.IFNA(VLOOKUP($A10,'17 - HH $ decisions'!$A$5:$L$46,7,FALSE),"") ->  | BQ10: =_xlfn.IFNA(VLOOKUP($A10,'18 - Labor rights'!$A$5:$L$23,7,FALSE),"") ->  | BR10: =_xlfn.IFNA(VLOOKUP($A10,'19 - Participation'!$A$5:$L$33,8,FALSE),"") ->  | BS10: =_xlfn.IFNA(A10&": "&VLOOKUP($A10,'20 - Policies'!$A$5:$J$62,5,FALSE),"") ->  | BT10: =_xlfn.IFNA(VLOOKUP($A10,'21 - Resilience actions'!$A$5:$L$28,9,FALSE),"") ->  | BU10: =IF(COUNTIF(BS10,"")=0,1,"") -> 
A11: CARE - GlaxoSmithKline Community Health Worker Initiaitve | B11: Bangladesh | C11: =_xlfn.IFNA(VLOOKUP(A11,'PIIRS FY16 Indicators data'!F:G,2,FALSE),"") -> CARE UK | D11: =_xlfn.IFNA(VLOOKUP($A11,'PIIRS FY16 Indicators data'!$F$2:$S$1045,5,FALSE),"") -> GlaxoSmithKline | E11: =_xlfn.IFNA(IF(VLOOKUP($A11,'PIIRS FY16 Indicators data'!$F$2:$S$1045,14,FALSE)="",TEXT(VLOOKUP($A11,'PIIRS FY16 Indicators data'!$F$2:$S$1045,12,FALSE),"mmm-yy")&" to "&TEXT(VLOOKUP($A11,'PIIRS FY16 Indicators data'!$F$2:$S$1045,13,FALSE),"mmm-yy"),TEXT(VLOOKUP($A11,'PIIRS FY16 Indicators data'!$F$2:$S$1045,12,FALSE),"mmm-yy")&" to "&TEXT(VLOOKUP($A11,'PIIRS FY16 Indicators data'!$F$2:$S$1045,14,FALSE),"mmm-yy")),"") -> Dec-12 to Nov-18 | F11: =_xlfn.IFNA(VLOOKUP(A11,'1 - poverty ($1.90)'!$A$7:$G$9,7,FALSE),"") ->  | G11: =_xlfn.IFNA(VLOOKUP(A11,'2 - poverty (nat pov line)'!$A$7:$G$10,7,FALSE),"") ->  | H11: =_xlfn.IFNA(VLOOKUP(B11,'3 - basic services'!$A$7:$G$10,7,FALSE),"") ->  | I11: 0 | J11: =_xlfn.IFNA(VLOOKUP($A11,'4 - Shelter'!$A$5:$S$21,3,FALSE),"") ->  | K11: =_xlfn.IFNA(VLOOKUP($A11,'4 - Safe Water'!$A$5:$S$22,3,FALSE),"") ->  | L11: =_xlfn.IFNA(VLOOKUP($A11,'4 - Adequate Sanitation'!$A$5:$S$18,3,FALSE),"") ->  | M11: =_xlfn.IFNA(VLOOKUP($A11,'4 - Hygiene Practices'!$A$5:$S$24,3,FALSE),"") ->  | N11: =_xlfn.IFNA(VLOOKUP($A11,'4 - Adequate food'!$A$5:$S$26,3,FALSE),"") ->  | O11: =_xlfn.IFNA(VLOOKUP($A11,'4 - Nutritional practices'!$A$5:$S$13,3,FALSE),"") ->  | P11: =_xlfn.IFNA(VLOOKUP($A11,'4 - Access SRH'!$A$5:$V$7,3,FALSE),"") ->  | Q11: =_xlfn.IFNA(VLOOKUP($A11,'4 - Livelihood recovery'!$A$5:$S$20,3,FALSE),"") ->  | R11: =_xlfn.IFNA(VLOOKUP($A11,'5 - Satisfaction'!$A$6:$Y$31,5,FALSE),"") ->  | S11: 0 | T11: =_xlfn.IFNA(VLOOKUP($A11,'6 - Met demand'!$A$7:$AD$15,7,FALSE),"") ->  | U11: =_xlfn.IFNA(VLOOKUP($A11,'7 - SBA'!$A$7:$AC$14,7,FALSE),"") -> 2880.566 | W11: =_xlfn.IFNA(VLOOKUP($A11,'9 - SRH decisions'!$A$7:$AC$9,7,FALSE),"") ->  | X11: 2880.566 | Y11: =_xlfn.IFNA(VLOOKUP($A11,'10 - Rejecting IPV'!$A$7:$AG$12,7,FALSE),"") ->  | Z11: =_xlfn.IFNA(VLOOKUP($A11,'11 - violence by partner'!$A$7:$AC$8,7,FALSE),"") ->  | AB11: 0 | AC11: 2880.566 | AD11: =_xlfn.IFNA(VLOOKUP($A11,'13 - Food insecurity'!$A$6:$AF$23,7,FALSE),"") ->  | AE11: =_xlfn.IFNA(VLOOKUP($A11,'14 - Stunting'!$A$5:$AI$11,7,FALSE),"") ->  | AF11: =_xlfn.IFNA(VLOOKUP($A11,'15 - Resilience capacity'!$A$6:$AE$30,7,FALSE),"") ->  | AG11: 0 | AH11: 0 | AI11: =_xlfn.IFNA(VLOOKUP($A11,'WEE summary'!$A$4:$E$102,3,FALSE),"") ->  | AJ11: =_xlfn.IFNA(VLOOKUP($A11,'WEE summary'!$A$4:$E$102,4,FALSE),"") ->  | AK11: =_xlfn.IFNA(VLOOKUP($A11,'WEE summary'!$A$4:$E$102,5,FALSE),"") ->  | AL11: 0 | AM11: =_xlfn.IFNA(VLOOKUP($A11,'19 - Participation'!$A$5:$G$31,7,FALSE),"") ->  | AN11: =_xlfn.IFNA(VLOOKUP(A11,'20 - Policies'!A:C,3,FALSE),"") ->  | AO11: =_xlfn.IFNA(VLOOKUP(A11,'21 - Resilience actions'!$A$7:$G$26,7,FALSE),"") ->  | AP11: 2880.566 | AQ11: 2880.566 | AS11: =_xlfn.IFNA(VLOOKUP($A11,'1 - poverty ($1.90)'!$A$7:$H$9,8,FALSE),"") ->  | AT11: =_xlfn.IFNA(VLOOKUP($A11,'2 - poverty (nat pov line)'!$A$7:$H$9,8,FALSE),"") ->  | AU11: =_xlfn.IFNA(VLOOKUP($A11,'3 - basic services'!$A$7:$H$9,8,FALSE),"") ->  | AV11: =_xlfn.IFNA(VLOOKUP($A11,'4 - Shelter'!$A$5:$J$23,6,FALSE),"") ->  | AW11: =_xlfn.IFNA(VLOOKUP($A11,'4 - Safe Water'!$A$5:$J$24,6,FALSE),"") ->  | AX11: =_xlfn.IFNA(VLOOKUP($A11,'4 - Adequate Sanitation'!$A$5:$J$20,6,FALSE),"") ->  | AY11: =_xlfn.IFNA(VLOOKUP($A11,'4 - Hygiene Practices'!$A$5:$J$26,6,FALSE),"") ->  | AZ11: =_xlfn.IFNA(VLOOKUP($A11,'4 - Adequate food'!$A$5:$J$28,6,FALSE),"") ->  | BA11: =_xlfn.IFNA(VLOOKUP($A11,'4 - Nutritional practices'!$A$5:$J$15,6,FALSE),"") ->  | BB11: =_xlfn.IFNA(VLOOKUP($A11,'4 - Access SRH'!$A$5:$I$9,9,FALSE),"") ->  | BC11: =_xlfn.IFNA(VLOOKUP($A11,'4 - Livelihood recovery'!$A$5:$J$22,6,FALSE),"") ->  | BD11: =_xlfn.IFNA(VLOOKUP($A11,'5 - Satisfaction'!$A$5:$J$33,6,FALSE),"") ->  | BE11: =_xlfn.IFNA(VLOOKUP($A11,'6 - Met demand'!$A$7:$H$16,8,FALSE),"") ->  | BF11: =_xlfn.IFNA(VLOOKUP($A11,'7 - SBA'!$A$7:$H$16,8,FALSE),"") -> CARE - GlaxoSmithKline Community Health Worker Initiaitve contributed to increasing the proportion of births attended by skilled health personnel by 18.7% (from 11.2% to 29.9%), enabling an additional 1,802 women to have their births attended by skilled personnel, and a total of 2,881 women to exercise their SRMH rights | BG11: =_xlfn.IFNA(VLOOKUP($A11,'8 - ABR'!$A$7:$H$9,8,FALSE),"") ->  | BH11: =_xlfn.IFNA(VLOOKUP($A11,'9 - SRH decisions'!$A$7:$H$11,8,FALSE),"") ->  | BI11: =_xlfn.IFNA(VLOOKUP($A11,'10 - Rejecting IPV'!$A$7:$H$14,8,FALSE),"") ->  | BJ11: =_xlfn.IFNA(VLOOKUP($A11,'11 - violence by partner'!$A$7:$H$10,8,FALSE),"") ->  | BK11: =_xlfn.IFNA(VLOOKUP($A11,'12 - sexual violence'!$A$7:$H$9,8,FALSE),"") ->  | BL11: =_xlfn.IFNA(VLOOKUP($A11,'13 - Food insecurity'!$A$5:$L$25,9,FALSE),"") ->  | BM11: =_xlfn.IFNA(VLOOKUP($A11,'14 - Stunting'!$A$5:$L$13,9,FALSE),"") ->  | BN11: =_xlfn.IFNA(VLOOKUP($A11,'15 - Resilience capacity'!$A$5:$L$33,9,FALSE),"") ->  | BO11: =_xlfn.IFNA(VLOOKUP($A11,'WEE summary'!$A$4:$G$102,7,FALSE),"") ->  | BP11: =_xlfn.IFNA(VLOOKUP($A11,'17 - HH $ decisions'!$A$5:$L$46,7,FALSE),"") ->  | BQ11: =_xlfn.IFNA(VLOOKUP($A11,'18 - Labor rights'!$A$5:$L$23,7,FALSE),"") ->  | BR11: =_xlfn.IFNA(VLOOKUP($A11,'19 - Participation'!$A$5:$L$33,8,FALSE),"") ->  | BS11: =_xlfn.IFNA(A11&": "&VLOOKUP($A11,'20 - Policies'!$A$5:$J$62,5,FALSE),"") ->  | BT11: =_xlfn.IFNA(VLOOKUP($A11,'21 - Resilience actions'!$A$5:$L$28,9,FALSE),"") -> 
A12: Distribution of P&G Water Purifiers During National Emergencies and Natural Disasters Project | B12: Bangladesh | C12: =_xlfn.IFNA(VLOOKUP(A12,'PIIRS FY16 Indicators data'!F:G,2,FALSE),"") -> CARE USA | D12: =_xlfn.IFNA(VLOOKUP($A12,'PIIRS FY16 Indicators data'!$F$2:$S$1045,5,FALSE),"") -> Proctor & Gamble | E12: =_xlfn.IFNA(IF(VLOOKUP($A12,'PIIRS FY16 Indicators data'!$F$2:$S$1045,14,FALSE)="",TEXT(VLOOKUP($A12,'PIIRS FY16 Indicators data'!$F$2:$S$1045,12,FALSE),"mmm-yy")&" to "&TEXT(VLOOKUP($A12,'PIIRS FY16 Indicators data'!$F$2:$S$1045,13,FALSE),"mmm-yy"),TEXT(VLOOKUP($A12,'PIIRS FY16 Indicators data'!$F$2:$S$1045,12,FALSE),"mmm-yy")&" to "&TEXT(VLOOKUP($A12,'PIIRS FY16 Indicators data'!$F$2:$S$1045,14,FALSE),"mmm-yy")),"") -> Dec-12 to Oct-15 | F12: =_xlfn.IFNA(VLOOKUP(A12,'1 - poverty ($1.90)'!$A$7:$G$9,7,FALSE),"") ->  | G12: =_xlfn.IFNA(VLOOKUP(A12,'2 - poverty (nat pov line)'!$A$7:$G$10,7,FALSE),"") ->  | H12: =_xlfn.IFNA(VLOOKUP(B12,'3 - basic services'!$A$7:$G$10,7,FALSE),"") ->  | I12: 0 | J12: =_xlfn.IFNA(VLOOKUP($A12,'4 - Shelter'!$A$5:$S$21,3,FALSE),"") ->  | K12: =_xlfn.IFNA(VLOOKUP($A12,'4 - Safe Water'!$A$5:$S$22,3,FALSE),"") -> 196260 | L12: =_xlfn.IFNA(VLOOKUP($A12,'4 - Adequate Sanitation'!$A$5:$S$18,3,FALSE),"") ->  | M12: =_xlfn.IFNA(VLOOKUP($A12,'4 - Hygiene Practices'!$A$5:$S$24,3,FALSE),"") ->  | N12: =_xlfn.IFNA(VLOOKUP($A12,'4 - Adequate food'!$A$5:$S$26,3,FALSE),"") ->  | O12: =_xlfn.IFNA(VLOOKUP($A12,'4 - Nutritional practices'!$A$5:$S$13,3,FALSE),"") ->  | P12: =_xlfn.IFNA(VLOOKUP($A12,'4 - Access SRH'!$A$5:$V$7,3,FALSE),"") ->  | Q12: =_xlfn.IFNA(VLOOKUP($A12,'4 - Livelihood recovery'!$A$5:$S$20,3,FALSE),"") ->  | R12: =_xlfn.IFNA(VLOOKUP($A12,'5 - Satisfaction'!$A$6:$Y$31,5,FALSE),"") -> 196260 | S12: 196260 | T12: =_xlfn.IFNA(VLOOKUP($A12,'6 - Met demand'!$A$7:$AD$15,7,FALSE),"") ->  | U12: =_xlfn.IFNA(VLOOKUP($A12,'7 - SBA'!$A$7:$AC$14,7,FALSE),"") ->  | W12: =_xlfn.IFNA(VLOOKUP($A12,'9 - SRH decisions'!$A$7:$AC$9,7,FALSE),"") ->  | X12: 0 | Y12: =_xlfn.IFNA(VLOOKUP($A12,'10 - Rejecting IPV'!$A$7:$AG$12,7,FALSE),"") ->  | Z12: =_xlfn.IFNA(VLOOKUP($A12,'11 - violence by partner'!$A$7:$AC$8,7,FALSE),"") ->  | AB12: 0 | AC12: 0 | AD12: =_xlfn.IFNA(VLOOKUP($A12,'13 - Food insecurity'!$A$6:$AF$23,7,FALSE),"") ->  | AE12: =_xlfn.IFNA(VLOOKUP($A12,'14 - Stunting'!$A$5:$AI$11,7,FALSE),"") ->  | AF12: =_xlfn.IFNA(VLOOKUP($A12,'15 - Resilience capacity'!$A$6:$AE$30,7,FALSE),"") ->  | AG12: 0 | AH12: 0 | AI12: =_xlfn.IFNA(VLOOKUP($A12,'WEE summary'!$A$4:$E$102,3,FALSE),"") ->  | AJ12: =_xlfn.IFNA(VLOOKUP($A12,'WEE summary'!$A$4:$E$102,4,FALSE),"") ->  | AK12: =_xlfn.IFNA(VLOOKUP($A12,'WEE summary'!$A$4:$E$102,5,FALSE),"") ->  | AL12: 0 | AM12: =_xlfn.IFNA(VLOOKUP($A12,'19 - Participation'!$A$5:$G$31,7,FALSE),"") ->  | AN12: =_xlfn.IFNA(VLOOKUP(A12,'20 - Policies'!A:C,3,FALSE),"") ->  | AO12: =_xlfn.IFNA(VLOOKUP(A12,'21 - Resilience actions'!$A$7:$G$26,7,FALSE),"") ->  | AP12: 196260 | AQ12: 196260 | AS12: =_xlfn.IFNA(VLOOKUP($A12,'1 - poverty ($1.90)'!$A$7:$H$9,8,FALSE),"") ->  | AT12: =_xlfn.IFNA(VLOOKUP($A12,'2 - poverty (nat pov line)'!$A$7:$H$9,8,FALSE),"") ->  | AU12: =_xlfn.IFNA(VLOOKUP($A12,'3 - basic services'!$A$7:$H$9,8,FALSE),"") ->  | AV12: =_xlfn.IFNA(VLOOKUP($A12,'4 - Shelter'!$A$5:$J$23,6,FALSE),"") ->  | AW12: =_xlfn.IFNA(VLOOKUP($A12,'4 - Safe Water'!$A$5:$J$24,6,FALSE),"") -> Distribution of P&G Water Purifiers During National Emergencies and Natural Disasters Project enabled access to safe drinking water for 196,260 people, 29.91% of those requiring assistance | AX12: =_xlfn.IFNA(VLOOKUP($A12,'4 - Adequate Sanitation'!$A$5:$J$20,6,FALSE),"") ->  | AY12: =_xlfn.IFNA(VLOOKUP($A12,'4 - Hygiene Practices'!$A$5:$J$26,6,FALSE),"") ->  | AZ12: =_xlfn.IFNA(VLOOKUP($A12,'4 - Adequate food'!$A$5:$J$28,6,FALSE),"") ->  | BA12: =_xlfn.IFNA(VLOOKUP($A12,'4 - Nutritional practices'!$A$5:$J$15,6,FALSE),"") ->  | BB12: =_xlfn.IFNA(VLOOKUP($A12,'4 - Access SRH'!$A$5:$I$9,9,FALSE),"") ->  | BC12: =_xlfn.IFNA(VLOOKUP($A12,'4 - Livelihood recovery'!$A$5:$J$22,6,FALSE),"") ->  | BD12: =_xlfn.IFNA(VLOOKUP($A12,'5 - Satisfaction'!$A$5:$J$33,6,FALSE),"") -> Distribution of P&G Water Purifiers During National Emergencies and Natural Disasters Project: 196,260 people were satisified with the humanitarian assistance (100% of those receiving support) | BE12: =_xlfn.IFNA(VLOOKUP($A12,'6 - Met demand'!$A$7:$H$16,8,FALSE),"") ->  | BF12: =_xlfn.IFNA(VLOOKUP($A12,'7 - SBA'!$A$7:$H$16,8,FALSE),"") ->  | BG12: =_xlfn.IFNA(VLOOKUP($A12,'8 - ABR'!$A$7:$H$9,8,FALSE),"") ->  | BH12: =_xlfn.IFNA(VLOOKUP($A12,'9 - SRH decisions'!$A$7:$H$11,8,FALSE),"") ->  | BI12: =_xlfn.IFNA(VLOOKUP($A12,'10 - Rejecting IPV'!$A$7:$H$14,8,FALSE),"") ->  | BJ12: =_xlfn.IFNA(VLOOKUP($A12,'11 - violence by partner'!$A$7:$H$10,8,FALSE),"") ->  | BK12: =_xlfn.IFNA(VLOOKUP($A12,'12 - sexual violence'!$A$7:$H$9,8,FALSE),"") ->  | BL12: =_xlfn.IFNA(VLOOKUP($A12,'13 - Food insecurity'!$A$5:$L$25,9,FALSE),"") ->  | BM12: =_xlfn.IFNA(VLOOKUP($A12,'14 - Stunting'!$A$5:$L$13,9,FALSE),"") ->  | BN12: =_xlfn.IFNA(VLOOKUP($A12,'15 - Resilience capacity'!$A$5:$L$33,9,FALSE),"") ->  | BO12: =_xlfn.IFNA(VLOOKUP($A12,'WEE summary'!$A$4:$G$102,7,FALSE),"") ->  | BP12: =_xlfn.IFNA(VLOOKUP($A12,'17 - HH $ decisions'!$A$5:$L$46,7,FALSE),"") ->  | BQ12: =_xlfn.IFNA(VLOOKUP($A12,'18 - Labor rights'!$A$5:$L$23,7,FALSE),"") ->  | BR12: =_xlfn.IFNA(VLOOKUP($A12,'19 - Participation'!$A$5:$L$33,8,FALSE),"") ->  | BS12: =_xlfn.IFNA(A12&": "&VLOOKUP($A12,'20 - Policies'!$A$5:$J$62,5,FALSE),"") ->  | BT12: =_xlfn.IFNA(VLOOKUP($A12,'21 - Resilience actions'!$A$5:$L$28,9,FALSE),"") -> 
A13: Empowering Marginalized Women Garment Workers and Women Financial Services Agents in Bangladesh(VISA) | B13: Bangladesh | C13: =_xlfn.IFNA(VLOOKUP(A13,'PIIRS FY16 Indicators data'!F:G,2,FALSE),"") -> CARE USA | D13: =_xlfn.IFNA(VLOOKUP($A13,'PIIRS FY16 Indicators data'!$F$2:$S$1045,5,FALSE),"") -> VISA Worldwide Pte. Limited | E13: =_xlfn.IFNA(IF(VLOOKUP($A13,'PIIRS FY16 Indicators data'!$F$2:$S$1045,14,FALSE)="",TEXT(VLOOKUP($A13,'PIIRS FY16 Indicators data'!$F$2:$S$1045,12,FALSE),"mmm-yy")&" to "&TEXT(VLOOKUP($A13,'PIIRS FY16 Indicators data'!$F$2:$S$1045,13,FALSE),"mmm-yy"),TEXT(VLOOKUP($A13,'PIIRS FY16 Indicators data'!$F$2:$S$1045,12,FALSE),"mmm-yy")&" to "&TEXT(VLOOKUP($A13,'PIIRS FY16 Indicators data'!$F$2:$S$1045,14,FALSE),"mmm-yy")),"") -> Jan-15 to Dec-16 | F13: =_xlfn.IFNA(VLOOKUP(A13,'1 - poverty ($1.90)'!$A$7:$G$9,7,FALSE),"") ->  | G13: =_xlfn.IFNA(VLOOKUP(A13,'2 - poverty (nat pov line)'!$A$7:$G$10,7,FALSE),"") ->  | H13: =_xlfn.IFNA(VLOOKUP(B13,'3 - basic services'!$A$7:$G$10,7,FALSE),"") ->  | I13: 0 | J13: =_xlfn.IFNA(VLOOKUP($A13,'4 - Shelter'!$A$5:$S$21,3,FALSE),"") ->  | K13: =_xlfn.IFNA(VLOOKUP($A13,'4 - Safe Water'!$A$5:$S$22,3,FALSE),"") ->  | L13: =_xlfn.IFNA(VLOOKUP($A13,'4 - Adequate Sanitation'!$A$5:$S$18,3,FALSE),"") ->  | M13: =_xlfn.IFNA(VLOOKUP($A13,'4 - Hygiene Practices'!$A$5:$S$24,3,FALSE),"") ->  | N13: =_xlfn.IFNA(VLOOKUP($A13,'4 - Adequate food'!$A$5:$S$26,3,FALSE),"") ->  | O13: =_xlfn.IFNA(VLOOKUP($A13,'4 - Nutritional practices'!$A$5:$S$13,3,FALSE),"") ->  | P13: =_xlfn.IFNA(VLOOKUP($A13,'4 - Access SRH'!$A$5:$V$7,3,FALSE),"") ->  | Q13: =_xlfn.IFNA(VLOOKUP($A13,'4 - Livelihood recovery'!$A$5:$S$20,3,FALSE),"") ->  | R13: =_xlfn.IFNA(VLOOKUP($A13,'5 - Satisfaction'!$A$6:$Y$31,5,FALSE),"") ->  | S13: 0 | T13: =_xlfn.IFNA(VLOOKUP($A13,'6 - Met demand'!$A$7:$AD$15,7,FALSE),"") ->  | U13: =_xlfn.IFNA(VLOOKUP($A13,'7 - SBA'!$A$7:$AC$14,7,FALSE),"") ->  | W13: =_xlfn.IFNA(VLOOKUP($A13,'9 - SRH decisions'!$A$7:$AC$9,7,FALSE),"") ->  | X13: 0 | Y13: =_xlfn.IFNA(VLOOKUP($A13,'10 - Rejecting IPV'!$A$7:$AG$12,7,FALSE),"") ->  | Z13: =_xlfn.IFNA(VLOOKUP($A13,'11 - violence by partner'!$A$7:$AC$8,7,FALSE),"") ->  | AB13: 0 | AC13: 0 | AD13: =_xlfn.IFNA(VLOOKUP($A13,'13 - Food insecurity'!$A$6:$AF$23,7,FALSE),"") ->  | AE13: =_xlfn.IFNA(VLOOKUP($A13,'14 - Stunting'!$A$5:$AI$11,7,FALSE),"") ->  | AF13: =_xlfn.IFNA(VLOOKUP($A13,'15 - Resilience capacity'!$A$6:$AE$30,7,FALSE),"") ->  | AG13: 0 | AH13: 0 | AI13: =_xlfn.IFNA(VLOOKUP($A13,'WEE summary'!$A$4:$E$102,3,FALSE),"") ->  | AJ13: =_xlfn.IFNA(VLOOKUP($A13,'WEE summary'!$A$4:$E$102,4,FALSE),"") -> 210 | AK13: =_xlfn.IFNA(VLOOKUP($A13,'WEE summary'!$A$4:$E$102,5,FALSE),"") ->  | AL13: 210 | AM13: =_xlfn.IFNA(VLOOKUP($A13,'19 - Participation'!$A$5:$G$31,7,FALSE),"") ->  | AN13: =_xlfn.IFNA(VLOOKUP(A13,'20 - Policies'!A:C,3,FALSE),"") ->  | AO13: =_xlfn.IFNA(VLOOKUP(A13,'21 - Resilience actions'!$A$7:$G$26,7,FALSE),"") ->  | AP13: 210 | AQ13: 210 | AS13: =_xlfn.IFNA(VLOOKUP($A13,'1 - poverty ($1.90)'!$A$7:$H$9,8,FALSE),"") ->  | AT13: =_xlfn.IFNA(VLOOKUP($A13,'2 - poverty (nat pov line)'!$A$7:$H$9,8,FALSE),"") ->  | AU13: =_xlfn.IFNA(VLOOKUP($A13,'3 - basic services'!$A$7:$H$9,8,FALSE),"") ->  | AV13: =_xlfn.IFNA(VLOOKUP($A13,'4 - Shelter'!$A$5:$J$23,6,FALSE),"") ->  | AW13: =_xlfn.IFNA(VLOOKUP($A13,'4 - Safe Water'!$A$5:$J$24,6,FALSE),"") ->  | AX13: =_xlfn.IFNA(VLOOKUP($A13,'4 - Adequate Sanitation'!$A$5:$J$20,6,FALSE),"") ->  | AY13: =_xlfn.IFNA(VLOOKUP($A13,'4 - Hygiene Practices'!$A$5:$J$26,6,FALSE),"") ->  | AZ13: =_xlfn.IFNA(VLOOKUP($A13,'4 - Adequate food'!$A$5:$J$28,6,FALSE),"") ->  | BA13: =_xlfn.IFNA(VLOOKUP($A13,'4 - Nutritional practices'!$A$5:$J$15,6,FALSE),"") ->  | BB13: =_xlfn.IFNA(VLOOKUP($A13,'4 - Access SRH'!$A$5:$I$9,9,FALSE),"") ->  | BC13: =_xlfn.IFNA(VLOOKUP($A13,'4 - Livelihood recovery'!$A$5:$J$22,6,FALSE),"") ->  | BD13: =_xlfn.IFNA(VLOOKUP($A13,'5 - Satisfaction'!$A$5:$J$33,6,FALSE),"") ->  | BE13: =_xlfn.IFNA(VLOOKUP($A13,'6 - Met demand'!$A$7:$H$16,8,FALSE),"") ->  | BF13: =_xlfn.IFNA(VLOOKUP($A13,'7 - SBA'!$A$7:$H$16,8,FALSE),"") ->  | BG13: =_xlfn.IFNA(VLOOKUP($A13,'8 - ABR'!$A$7:$H$9,8,FALSE),"") ->  | BH13: =_xlfn.IFNA(VLOOKUP($A13,'9 - SRH decisions'!$A$7:$H$11,8,FALSE),"") ->  | BI13: =_xlfn.IFNA(VLOOKUP($A13,'10 - Rejecting IPV'!$A$7:$H$14,8,FALSE),"") ->  | BJ13: =_xlfn.IFNA(VLOOKUP($A13,'11 - violence by partner'!$A$7:$H$10,8,FALSE),"") ->  | BK13: =_xlfn.IFNA(VLOOKUP($A13,'12 - sexual violence'!$A$7:$H$9,8,FALSE),"") ->  | BL13: =_xlfn.IFNA(VLOOKUP($A13,'13 - Food insecurity'!$A$5:$L$25,9,FALSE),"") ->  | BM13: =_xlfn.IFNA(VLOOKUP($A13,'14 - Stunting'!$A$5:$L$13,9,FALSE),"") ->  | BN13: =_xlfn.IFNA(VLOOKUP($A13,'15 - Resilience capacity'!$A$5:$L$33,9,FALSE),"") ->  | BO13: =_xlfn.IFNA(VLOOKUP($A13,'WEE summary'!$A$4:$G$102,7,FALSE),"") ->  | BP13: =_xlfn.IFNA(VLOOKUP($A13,'17 - HH $ decisions'!$A$5:$L$46,7,FALSE),"") -> Empowering Marginalized Women Garment Workers and Women Financial Services Agents in Bangladesh(VISA) contributed to increasing the proportion of women able to participate equally in HH financial decisions by 35% (from 25% to 60%), enabling an additional 210 women to have control over economic resources | BQ13: =_xlfn.IFNA(VLOOKUP($A13,'18 - Labor rights'!$A$5:$L$23,7,FALSE),"") ->  | BR13: =_xlfn.IFNA(VLOOKUP($A13,'19 - Participation'!$A$5:$L$33,8,FALSE),"") ->  | BS13: =_xlfn.IFNA(A13&": "&VLOOKUP($A13,'20 - Policies'!$A$5:$J$62,5,FALSE),"") ->  | BT13: =_xlfn.IFNA(VLOOKUP($A13,'21 - Resilience actions'!$A$5:$L$28,9,FALSE),"") -> 
A14: JATRA (Journey for Advancement in Transperency, Representation and Accountability) | B14: Bangladesh | C14: =_xlfn.IFNA(VLOOKUP(A14,'PIIRS FY16 Indicators data'!F:G,2,FALSE),"") -> CARE UK | D14: =_xlfn.IFNA(VLOOKUP($A14,'PIIRS FY16 Indicators data'!$F$2:$S$1045,5,FALSE),"") -> The World Bank | E14: =_xlfn.IFNA(IF(VLOOKUP($A14,'PIIRS FY16 Indicators data'!$F$2:$S$1045,14,FALSE)="",TEXT(VLOOKUP($A14,'PIIRS FY16 Indicators data'!$F$2:$S$1045,12,FALSE),"mmm-yy")&" to "&TEXT(VLOOKUP($A14,'PIIRS FY16 Indicators data'!$F$2:$S$1045,13,FALSE),"mmm-yy"),TEXT(VLOOKUP($A14,'PIIRS FY16 Indicators data'!$F$2:$S$1045,12,FALSE),"mmm-yy")&" to "&TEXT(VLOOKUP($A14,'PIIRS FY16 Indicators data'!$F$2:$S$1045,14,FALSE),"mmm-yy")),"") -> Mar-14 to Aug-17 | F14: =_xlfn.IFNA(VLOOKUP(A14,'1 - poverty ($1.90)'!$A$7:$G$9,7,FALSE),"") ->  | G14: =_xlfn.IFNA(VLOOKUP(A14,'2 - poverty (nat pov line)'!$A$7:$G$10,7,FALSE),"") ->  | H14: =_xlfn.IFNA(VLOOKUP(B14,'3 - basic services'!$A$7:$G$10,7,FALSE),"") ->  | I14: 0 | J14: =_xlfn.IFNA(VLOOKUP($A14,'4 - Shelter'!$A$5:$S$21,3,FALSE),"") ->  | K14: =_xlfn.IFNA(VLOOKUP($A14,'4 - Safe Water'!$A$5:$S$22,3,FALSE),"") ->  | L14: =_xlfn.IFNA(VLOOKUP($A14,'4 - Adequate Sanitation'!$A$5:$S$18,3,FALSE),"") ->  | M14: =_xlfn.IFNA(VLOOKUP($A14,'4 - Hygiene Practices'!$A$5:$S$24,3,FALSE),"") ->  | N14: =_xlfn.IFNA(VLOOKUP($A14,'4 - Adequate food'!$A$5:$S$26,3,FALSE),"") ->  | O14: =_xlfn.IFNA(VLOOKUP($A14,'4 - Nutritional practices'!$A$5:$S$13,3,FALSE),"") ->  | P14: =_xlfn.IFNA(VLOOKUP($A14,'4 - Access SRH'!$A$5:$V$7,3,FALSE),"") ->  | Q14: =_xlfn.IFNA(VLOOKUP($A14,'4 - Livelihood recovery'!$A$5:$S$20,3,FALSE),"") ->  | R14: =_xlfn.IFNA(VLOOKUP($A14,'5 - Satisfaction'!$A$6:$Y$31,5,FALSE),"") ->  | S14: 0 | T14: =_xlfn.IFNA(VLOOKUP($A14,'6 - Met demand'!$A$7:$AD$15,7,FALSE),"") ->  | U14: =_xlfn.IFNA(VLOOKUP($A14,'7 - SBA'!$A$7:$AC$14,7,FALSE),"") ->  | W14: =_xlfn.IFNA(VLOOKUP($A14,'9 - SRH decisions'!$A$7:$AC$9,7,FALSE),"") ->  | X14: 0 | Y14: =_xlfn.IFNA(VLOOKUP($A14,'10 - Rejecting IPV'!$A$7:$AG$12,7,FALSE),"") ->  | Z14: =_xlfn.IFNA(VLOOKUP($A14,'11 - violence by partner'!$A$7:$AC$8,7,FALSE),"") ->  | AB14: 0 | AC14: 0 | AD14: =_xlfn.IFNA(VLOOKUP($A14,'13 - Food insecurity'!$A$6:$AF$23,7,FALSE),"") ->  | AE14: =_xlfn.IFNA(VLOOKUP($A14,'14 - Stunting'!$A$5:$AI$11,7,FALSE),"") ->  | AF14: =_xlfn.IFNA(VLOOKUP($A14,'15 - Resilience capacity'!$A$6:$AE$30,7,FALSE),"") ->  | AG14: 0 | AH14: 0 | AI14: =_xlfn.IFNA(VLOOKUP($A14,'WEE summary'!$A$4:$E$102,3,FALSE),"") ->  | AJ14: =_xlfn.IFNA(VLOOKUP($A14,'WEE summary'!$A$4:$E$102,4,FALSE),"") ->  | AK14: =_xlfn.IFNA(VLOOKUP($A14,'WEE summary'!$A$4:$E$102,5,FALSE),"") ->  | AL14: 0 | AM14: =_xlfn.IFNA(VLOOKUP($A14,'19 - Participation'!$A$5:$G$31,7,FALSE),"") -> 6962.88 | AN14: =_xlfn.IFNA(VLOOKUP(A14,'20 - Policies'!A:C,3,FALSE),"") -> Yes | AO14: =_xlfn.IFNA(VLOOKUP(A14,'21 - Resilience actions'!$A$7:$G$26,7,FALSE),"") ->  | AP14: 6962.88 | AQ14: 0 | AS14: =_xlfn.IFNA(VLOOKUP($A14,'1 - poverty ($1.90)'!$A$7:$H$9,8,FALSE),"") ->  | AT14: =_xlfn.IFNA(VLOOKUP($A14,'2 - poverty (nat pov line)'!$A$7:$H$9,8,FALSE),"") ->  | AU14: =_xlfn.IFNA(VLOOKUP($A14,'3 - basic services'!$A$7:$H$9,8,FALSE),"") ->  | AV14: =_xlfn.IFNA(VLOOKUP($A14,'4 - Shelter'!$A$5:$J$23,6,FALSE),"") ->  | AW14: =_xlfn.IFNA(VLOOKUP($A14,'4 - Safe Water'!$A$5:$J$24,6,FALSE),"") ->  | AX14: =_xlfn.IFNA(VLOOKUP($A14,'4 - Adequate Sanitation'!$A$5:$J$20,6,FALSE),"") ->  | AY14: =_xlfn.IFNA(VLOOKUP($A14,'4 - Hygiene Practices'!$A$5:$J$26,6,FALSE),"") ->  | AZ14: =_xlfn.IFNA(VLOOKUP($A14,'4 - Adequate food'!$A$5:$J$28,6,FALSE),"") ->  | BA14: =_xlfn.IFNA(VLOOKUP($A14,'4 - Nutritional practices'!$A$5:$J$15,6,FALSE),"") ->  | BB14: =_xlfn.IFNA(VLOOKUP($A14,'4 - Access SRH'!$A$5:$I$9,9,FALSE),"") ->  | BC14: =_xlfn.IFNA(VLOOKUP($A14,'4 - Livelihood recovery'!$A$5:$J$22,6,FALSE),"") ->  | BD14: =_xlfn.IFNA(VLOOKUP($A14,'5 - Satisfaction'!$A$5:$J$33,6,FALSE),"") ->  | BE14: =_xlfn.IFNA(VLOOKUP($A14,'6 - Met demand'!$A$7:$H$16,8,FALSE),"") ->  | BF14: =_xlfn.IFNA(VLOOKUP($A14,'7 - SBA'!$A$7:$H$16,8,FALSE),"") ->  | BG14: =_xlfn.IFNA(VLOOKUP($A14,'8 - ABR'!$A$7:$H$9,8,FALSE),"") ->  | BH14: =_xlfn.IFNA(VLOOKUP($A14,'9 - SRH decisions'!$A$7:$H$11,8,FALSE),"") ->  | BI14: =_xlfn.IFNA(VLOOKUP($A14,'10 - Rejecting IPV'!$A$7:$H$14,8,FALSE),"") ->  | BJ14: =_xlfn.IFNA(VLOOKUP($A14,'11 - violence by partner'!$A$7:$H$10,8,FALSE),"") ->  | BK14: =_xlfn.IFNA(VLOOKUP($A14,'12 - sexual violence'!$A$7:$H$9,8,FALSE),"") ->  | BL14: =_xlfn.IFNA(VLOOKUP($A14,'13 - Food insecurity'!$A$5:$L$25,9,FALSE),"") ->  | BM14: =_xlfn.IFNA(VLOOKUP($A14,'14 - Stunting'!$A$5:$L$13,9,FALSE),"") ->  | BN14: =_xlfn.IFNA(VLOOKUP($A14,'15 - Resilience capacity'!$A$5:$L$33,9,FALSE),"") ->  | BO14: =_xlfn.IFNA(VLOOKUP($A14,'WEE summary'!$A$4:$G$102,7,FALSE),"") ->  | BP14: =_xlfn.IFNA(VLOOKUP($A14,'17 - HH $ decisions'!$A$5:$L$46,7,FALSE),"") ->  | BQ14: =_xlfn.IFNA(VLOOKUP($A14,'18 - Labor rights'!$A$5:$L$23,7,FALSE),"") ->  | BR14: =_xlfn.IFNA(VLOOKUP($A14,'19 - Participation'!$A$5:$L$33,8,FALSE),"") -> JATRA (Journey for Advancement in Transperency, Representation and Accountability) contributed to increasing meaningful participation by 12%, enabling 6,963 people to participate in formal or informal decision-making spaces | BS14: =_xlfn.IFNA(A14&": "&VLOOKUP($A14,'20 - Policies'!$A$5:$J$62,5,FALSE),"") -> JATRA (Journey for Advancement in Transperency, Representation and Accountability): Budget Oversight | BT14: =_xlfn.IFNA(VLOOKUP($A14,'21 - Resilience actions'!$A$5:$L$28,9,FALSE),"") ->  | BU14: 1
A15: OIKKO("Unity")- united for translating rights into action NOW! | B15: Bangladesh | C15: =_xlfn.IFNA(VLOOKUP(A15,'PIIRS FY16 Indicators data'!F:G,2,FALSE),"") -> CARE Österreich | D15: =_xlfn.IFNA(VLOOKUP($A15,'PIIRS FY16 Indicators data'!$F$2:$S$1045,5,FALSE),"") -> European Union (EU) | E15: =_xlfn.IFNA(IF(VLOOKUP($A15,'PIIRS FY16 Indicators data'!$F$2:$S$1045,14,FALSE)="",TEXT(VLOOKUP($A15,'PIIRS FY16 Indicators data'!$F$2:$S$1045,12,FALSE),"mmm-yy")&" to "&TEXT(VLOOKUP($A15,'PIIRS FY16 Indicators data'!$F$2:$S$1045,13,FALSE),"mmm-yy"),TEXT(VLOOKUP($A15,'PIIRS FY16 Indicators data'!$F$2:$S$1045,12,FALSE),"mmm-yy")&" to "&TEXT(VLOOKUP($A15,'PIIRS FY16 Indicators data'!$F$2:$S$1045,14,FALSE),"mmm-yy")),"") -> Mar-15 to Feb-18 | F15: =_xlfn.IFNA(VLOOKUP(A15,'1 - poverty ($1.90)'!$A$7:$G$9,7,FALSE),"") ->  | G15: =_xlfn.IFNA(VLOOKUP(A15,'2 - poverty (nat pov line)'!$A$7:$G$10,7,FALSE),"") ->  | H15: =_xlfn.IFNA(VLOOKUP(B15,'3 - basic services'!$A$7:$G$10,7,FALSE),"") ->  | I15: 0 | J15: =_xlfn.IFNA(VLOOKUP($A15,'4 - Shelter'!$A$5:$S$21,3,FALSE),"") ->  | K15: =_xlfn.IFNA(VLOOKUP($A15,'4 - Safe Water'!$A$5:$S$22,3,FALSE),"") ->  | L15: =_xlfn.IFNA(VLOOKUP($A15,'4 - Adequate Sanitation'!$A$5:$S$18,3,FALSE),"") ->  | M15: =_xlfn.IFNA(VLOOKUP($A15,'4 - Hygiene Practices'!$A$5:$S$24,3,FALSE),"") ->  | N15: =_xlfn.IFNA(VLOOKUP($A15,'4 - Adequate food'!$A$5:$S$26,3,FALSE),"") ->  | O15: =_xlfn.IFNA(VLOOKUP($A15,'4 - Nutritional practices'!$A$5:$S$13,3,FALSE),"") ->  | P15: =_xlfn.IFNA(VLOOKUP($A15,'4 - Access SRH'!$A$5:$V$7,3,FALSE),"") ->  | Q15: =_xlfn.IFNA(VLOOKUP($A15,'4 - Livelihood recovery'!$A$5:$S$20,3,FALSE),"") ->  | R15: =_xlfn.IFNA(VLOOKUP($A15,'5 - Satisfaction'!$A$6:$Y$31,5,FALSE),"") ->  | S15: 0 | T15: =_xlfn.IFNA(VLOOKUP($A15,'6 - Met demand'!$A$7:$AD$15,7,FALSE),"") ->  | U15: =_xlfn.IFNA(VLOOKUP($A15,'7 - SBA'!$A$7:$AC$14,7,FALSE),"") ->  | W15: =_xlfn.IFNA(VLOOKUP($A15,'9 - SRH decisions'!$A$7:$AC$9,7,FALSE),"") ->  | X15: 0 | Y15: =_xlfn.IFNA(VLOOKUP($A15,'10 - Rejecting IPV'!$A$7:$AG$12,7,FALSE),"") ->  | Z15: =_xlfn.IFNA(VLOOKUP($A15,'11 - violence by partner'!$A$7:$AC$8,7,FALSE),"") ->  | AB15: 0 | AC15: 0 | AD15: =_xlfn.IFNA(VLOOKUP($A15,'13 - Food insecurity'!$A$6:$AF$23,7,FALSE),"") ->  | AE15: =_xlfn.IFNA(VLOOKUP($A15,'14 - Stunting'!$A$5:$AI$11,7,FALSE),"") ->  | AF15: =_xlfn.IFNA(VLOOKUP($A15,'15 - Resilience capacity'!$A$6:$AE$30,7,FALSE),"") ->  | AG15: 0 | AH15: 0 | AI15: =_xlfn.IFNA(VLOOKUP($A15,'WEE summary'!$A$4:$E$102,3,FALSE),"") -> 780 | AJ15: =_xlfn.IFNA(VLOOKUP($A15,'WEE summary'!$A$4:$E$102,4,FALSE),"") -> 266.55 | AK15: =_xlfn.IFNA(VLOOKUP($A15,'WEE summary'!$A$4:$E$102,5,FALSE),"") -> 2907 | AL15: 2907 | AM15: =_xlfn.IFNA(VLOOKUP($A15,'19 - Participation'!$A$5:$G$31,7,FALSE),"") ->  | AN15: =_xlfn.IFNA(VLOOKUP(A15,'20 - Policies'!A:C,3,FALSE),"") ->  | AO15: =_xlfn.IFNA(VLOOKUP(A15,'21 - Resilience actions'!$A$7:$G$26,7,FALSE),"") ->  | AP15: 2907 | AQ15: 2907 | AS15: =_xlfn.IFNA(VLOOKUP($A15,'1 - poverty ($1.90)'!$A$7:$H$9,8,FALSE),"") ->  | AT15: =_xlfn.IFNA(VLOOKUP($A15,'2 - poverty (nat pov line)'!$A$7:$H$9,8,FALSE),"") ->  | AU15: =_xlfn.IFNA(VLOOKUP($A15,'3 - basic services'!$A$7:$H$9,8,FALSE),"") ->  | AV15: =_xlfn.IFNA(VLOOKUP($A15,'4 - Shelter'!$A$5:$J$23,6,FALSE),"") ->  | AW15: =_xlfn.IFNA(VLOOKUP($A15,'4 - Safe Water'!$A$5:$J$24,6,FALSE),"") ->  | AX15: =_xlfn.IFNA(VLOOKUP($A15,'4 - Adequate Sanitation'!$A$5:$J$20,6,FALSE),"") ->  | AY15: =_xlfn.IFNA(VLOOKUP($A15,'4 - Hygiene Practices'!$A$5:$J$26,6,FALSE),"") ->  | AZ15: =_xlfn.IFNA(VLOOKUP($A15,'4 - Adequate food'!$A$5:$J$28,6,FALSE),"") ->  | BA15: =_xlfn.IFNA(VLOOKUP($A15,'4 - Nutritional practices'!$A$5:$J$15,6,FALSE),"") ->  | BB15: =_xlfn.IFNA(VLOOKUP($A15,'4 - Access SRH'!$A$5:$I$9,9,FALSE),"") ->  | BC15: =_xlfn.IFNA(VLOOKUP($A15,'4 - Livelihood recovery'!$A$5:$J$22,6,FALSE),"") ->  | BD15: =_xlfn.IFNA(VLOOKUP($A15,'5 - Satisfaction'!$A$5:$J$33,6,FALSE),"") ->  | BE15: =_xlfn.IFNA(VLOOKUP($A15,'6 - Met demand'!$A$7:$H$16,8,FALSE),"") ->  | BF15: =_xlfn.IFNA(VLOOKUP($A15,'7 - SBA'!$A$7:$H$16,8,FALSE),"") ->  | BG15: =_xlfn.IFNA(VLOOKUP($A15,'8 - ABR'!$A$7:$H$9,8,FALSE),"") ->  | BH15: =_xlfn.IFNA(VLOOKUP($A15,'9 - SRH decisions'!$A$7:$H$11,8,FALSE),"") ->  | BI15: =_xlfn.IFNA(VLOOKUP($A15,'10 - Rejecting IPV'!$A$7:$H$14,8,FALSE),"") ->  | BJ15: =_xlfn.IFNA(VLOOKUP($A15,'11 - violence by partner'!$A$7:$H$10,8,FALSE),"") ->  | BK15: =_xlfn.IFNA(VLOOKUP($A15,'12 - sexual violence'!$A$7:$H$9,8,FALSE),"") ->  | BL15: =_xlfn.IFNA(VLOOKUP($A15,'13 - Food insecurity'!$A$5:$L$25,9,FALSE),"") ->  | BM15: =_xlfn.IFNA(VLOOKUP($A15,'14 - Stunting'!$A$5:$L$13,9,FALSE),"") ->  | BN15: =_xlfn.IFNA(VLOOKUP($A15,'15 - Resilience capacity'!$A$5:$L$33,9,FALSE),"") ->  | BO15: =_xlfn.IFNA(VLOOKUP($A15,'WEE summary'!$A$4:$G$102,7,FALSE),"") -> OIKKO("Unity")- united for translating rights into action NOW! enabled 780 women to access formal or informal financial services | BP15: =_xlfn.IFNA(VLOOKUP($A15,'17 - HH $ decisions'!$A$5:$L$46,7,FALSE),"") -> OIKKO("Unity")- united for translating rights into action NOW! contributed to increasing the proportion of women able to participate equally in HH financial decisions by 17.8% (from 26.6% to 44.3%), enabling an additional 267 women to have control over economic resources | BQ15: =_xlfn.IFNA(VLOOKUP($A15,'18 - Labor rights'!$A$5:$L$23,7,FALSE),"") -> OIKKO("Unity")- united for translating rights into action NOW! contributed to increasing the proportion of women who are members of groups by 96.9% (from 3.1% to 100%), enabling an additional 2,907 women to claim their rights | BR15: =_xlfn.IFNA(VLOOKUP($A15,'19 - Participation'!$A$5:$L$33,8,FALSE),"") ->  | BS15: =_xlfn.IFNA(A15&": "&VLOOKUP($A15,'20 - Policies'!$A$5:$J$62,5,FALSE),"") ->  | BT15: =_xlfn.IFNA(VLOOKUP($A15,'21 - Resilience actions'!$A$5:$L$28,9,FALSE),"") -> 
A16: Pathways to Secure and Resilient livelihoods Project | B16: Bangladesh | C16: =_xlfn.IFNA(VLOOKUP(A16,'PIIRS FY16 Indicators data'!F:G,2,FALSE),"") -> CARE USA | D16: =_xlfn.IFNA(VLOOKUP($A16,'PIIRS FY16 Indicators data'!$F$2:$S$1045,5,FALSE),"") -> The Margaret A. Cargill Philanphropies Project | E16: =_xlfn.IFNA(IF(VLOOKUP($A16,'PIIRS FY16 Indicators data'!$F$2:$S$1045,14,FALSE)="",TEXT(VLOOKUP($A16,'PIIRS FY16 Indicators data'!$F$2:$S$1045,12,FALSE),"mmm-yy")&" to "&TEXT(VLOOKUP($A16,'PIIRS FY16 Indicators data'!$F$2:$S$1045,13,FALSE),"mmm-yy"),TEXT(VLOOKUP($A16,'PIIRS FY16 Indicators data'!$F$2:$S$1045,12,FALSE),"mmm-yy")&" to "&TEXT(VLOOKUP($A16,'PIIRS FY16 Indicators data'!$F$2:$S$1045,14,FALSE),"mmm-yy")),"") -> Dec-14 to May-17 | F16: =_xlfn.IFNA(VLOOKUP(A16,'1 - poverty ($1.90)'!$A$7:$G$9,7,FALSE),"") ->  | G16: =_xlfn.IFNA(VLOOKUP(A16,'2 - poverty (nat pov line)'!$A$7:$G$10,7,FALSE),"") ->  | H16: =_xlfn.IFNA(VLOOKUP(B16,'3 - basic services'!$A$7:$G$10,7,FALSE),"") ->  | I16: 0 | J16: =_xlfn.IFNA(VLOOKUP($A16,'4 - Shelter'!$A$5:$S$21,3,FALSE),"") ->  | K16: =_xlfn.IFNA(VLOOKUP($A16,'4 - Safe Water'!$A$5:$S$22,3,FALSE),"") ->  | L16: =_xlfn.IFNA(VLOOKUP($A16,'4 - Adequate Sanitation'!$A$5:$S$18,3,FALSE),"") ->  | M16: =_xlfn.IFNA(VLOOKUP($A16,'4 - Hygiene Practices'!$A$5:$S$24,3,FALSE),"") ->  | N16: =_xlfn.IFNA(VLOOKUP($A16,'4 - Adequate food'!$A$5:$S$26,3,FALSE),"") ->  | O16: =_xlfn.IFNA(VLOOKUP($A16,'4 - Nutritional practices'!$A$5:$S$13,3,FALSE),"") ->  | P16: =_xlfn.IFNA(VLOOKUP($A16,'4 - Access SRH'!$A$5:$V$7,3,FALSE),"") ->  | Q16: =_xlfn.IFNA(VLOOKUP($A16,'4 - Livelihood recovery'!$A$5:$S$20,3,FALSE),"") ->  | R16: =_xlfn.IFNA(VLOOKUP($A16,'5 - Satisfaction'!$A$6:$Y$31,5,FALSE),"") ->  | S16: 0 | T16: =_xlfn.IFNA(VLOOKUP($A16,'6 - Met demand'!$A$7:$AD$15,7,FALSE),"") ->  | U16: =_xlfn.IFNA(VLOOKUP($A16,'7 - SBA'!$A$7:$AC$14,7,FALSE),"") ->  | W16: =_xlfn.IFNA(VLOOKUP($A16,'9 - SRH decisions'!$A$7:$AC$9,7,FALSE),"") ->  | X16: 0 | Y16: =_xlfn.IFNA(VLOOKUP($A16,'10 - Rejecting IPV'!$A$7:$AG$12,7,FALSE),"") ->  | Z16: =_xlfn.IFNA(VLOOKUP($A16,'11 - violence by partner'!$A$7:$AC$8,7,FALSE),"") ->  | AB16: 0 | AC16: 0 | AD16: =_xlfn.IFNA(VLOOKUP($A16,'13 - Food insecurity'!$A$6:$AF$23,7,FALSE),"") ->  | AE16: =_xlfn.IFNA(VLOOKUP($A16,'14 - Stunting'!$A$5:$AI$11,7,FALSE),"") ->  | AF16: =_xlfn.IFNA(VLOOKUP($A16,'15 - Resilience capacity'!$A$6:$AE$30,7,FALSE),"") -> 25078.5 | AG16: 25078.5 | AH16: 25078.5 | AI16: =_xlfn.IFNA(VLOOKUP($A16,'WEE summary'!$A$4:$E$102,3,FALSE),"") ->  | AJ16: =_xlfn.IFNA(VLOOKUP($A16,'WEE summary'!$A$4:$E$102,4,FALSE),"") -> 674.333 | AK16: =_xlfn.IFNA(VLOOKUP($A16,'WEE summary'!$A$4:$E$102,5,FALSE),"") ->  | AL16: 674.333 | AM16: =_xlfn.IFNA(VLOOKUP($A16,'19 - Participation'!$A$5:$G$31,7,FALSE),"") ->  | AN16: =_xlfn.IFNA(VLOOKUP(A16,'20 - Policies'!A:C,3,FALSE),"") ->  | AO16: =_xlfn.IFNA(VLOOKUP(A16,'21 - Resilience actions'!$A$7:$G$26,7,FALSE),"") ->  | AP16: 25078.5 | AQ16: 25078.5 | AS16: =_xlfn.IFNA(VLOOKUP($A16,'1 - poverty ($1.90)'!$A$7:$H$9,8,FALSE),"") ->  | AT16: =_xlfn.IFNA(VLOOKUP($A16,'2 - poverty (nat pov line)'!$A$7:$H$9,8,FALSE),"") ->  | AU16: =_xlfn.IFNA(VLOOKUP($A16,'3 - basic services'!$A$7:$H$9,8,FALSE),"") ->  | AV16: =_xlfn.IFNA(VLOOKUP($A16,'4 - Shelter'!$A$5:$J$23,6,FALSE),"") ->  | AW16: =_xlfn.IFNA(VLOOKUP($A16,'4 - Safe Water'!$A$5:$J$24,6,FALSE),"") ->  | AX16: =_xlfn.IFNA(VLOOKUP($A16,'4 - Adequate Sanitation'!$A$5:$J$20,6,FALSE),"") ->  | AY16: =_xlfn.IFNA(VLOOKUP($A16,'4 - Hygiene Practices'!$A$5:$J$26,6,FALSE),"") ->  | AZ16: =_xlfn.IFNA(VLOOKUP($A16,'4 - Adequate food'!$A$5:$J$28,6,FALSE),"") ->  | BA16: =_xlfn.IFNA(VLOOKUP($A16,'4 - Nutritional practices'!$A$5:$J$15,6,FALSE),"") ->  | BB16: =_xlfn.IFNA(VLOOKUP($A16,'4 - Access SRH'!$A$5:$I$9,9,FALSE),"") ->  | BC16: =_xlfn.IFNA(VLOOKUP($A16,'4 - Livelihood recovery'!$A$5:$J$22,6,FALSE),"") ->  | BD16: =_xlfn.IFNA(VLOOKUP($A16,'5 - Satisfaction'!$A$5:$J$33,6,FALSE),"") ->  | BE16: =_xlfn.IFNA(VLOOKUP($A16,'6 - Met demand'!$A$7:$H$16,8,FALSE),"") ->  | BF16: =_xlfn.IFNA(VLOOKUP($A16,'7 - SBA'!$A$7:$H$16,8,FALSE),"") ->  | BG16: =_xlfn.IFNA(VLOOKUP($A16,'8 - ABR'!$A$7:$H$9,8,FALSE),"") ->  | BH16: =_xlfn.IFNA(VLOOKUP($A16,'9 - SRH decisions'!$A$7:$H$11,8,FALSE),"") ->  | BI16: =_xlfn.IFNA(VLOOKUP($A16,'10 - Rejecting IPV'!$A$7:$H$14,8,FALSE),"") ->  | BJ16: =_xlfn.IFNA(VLOOKUP($A16,'11 - violence by partner'!$A$7:$H$10,8,FALSE),"") ->  | BK16: =_xlfn.IFNA(VLOOKUP($A16,'12 - sexual violence'!$A$7:$H$9,8,FALSE),"") ->  | BL16: =_xlfn.IFNA(VLOOKUP($A16,'13 - Food insecurity'!$A$5:$L$25,9,FALSE),"") ->  | BM16: =_xlfn.IFNA(VLOOKUP($A16,'14 - Stunting'!$A$5:$L$13,9,FALSE),"") ->  | BN16: =_xlfn.IFNA(VLOOKUP($A16,'15 - Resilience capacity'!$A$5:$L$33,9,FALSE),"") -> Pathways to Secure and Resilient livelihoods Project contributed to increasing ability to build resilience for 100 % of participants, increasing resilience for 25,079 people | BO16: =_xlfn.IFNA(VLOOKUP($A16,'WEE summary'!$A$4:$G$102,7,FALSE),"") ->  | BP16: =_xlfn.IFNA(VLOOKUP($A16,'17 - HH $ decisions'!$A$5:$L$46,7,FALSE),"") -> Pathways to Secure and Resilient livelihoods Project contributed to increasing the proportion of women able to participate equally in HH financial decisions by 12.1% (from 17% to 29.1%), enabling an additional 674 women to have control over economic resources | BQ16: =_xlfn.IFNA(VLOOKUP($A16,'18 - Labor rights'!$A$3:$L$23,7,FALSE),"") ->  | BR16: =_xlfn.IFNA(VLOOKUP($A16,'19 - Participation'!$A$5:$L$33,8,FALSE),"") ->  | BS16: =_xlfn.IFNA(A16&": "&VLOOKUP($A16,'20 - Policies'!$A$5:$J$62,5,FALSE),"") ->  | BT16: =_xlfn.IFNA(VLOOKUP($A16,'21 - Resilience actions'!$A$5:$L$28,9,FALSE),"") -> 
A17: Promoting Enabling Environemnt for Women in Fcatories Project (PEEWF) | B17: Bangladesh | C17: =_xlfn.IFNA(VLOOKUP(A17,'PIIRS FY16 Indicators data'!F:G,2,FALSE),"") -> CARE France | D17: =_xlfn.IFNA(VLOOKUP($A17,'PIIRS FY16 Indicators data'!$F$2:$S$1045,5,FALSE),"") -> Galaries Lafayette | E17: =_xlfn.IFNA(IF(VLOOKUP($A17,'PIIRS FY16 Indicators data'!$F$2:$S$1045,14,FALSE)="",TEXT(VLOOKUP($A17,'PIIRS FY16 Indicators data'!$F$2:$S$1045,12,FALSE),"mmm-yy")&" to "&TEXT(VLOOKUP($A17,'PIIRS FY16 Indicators data'!$F$2:$S$1045,13,FALSE),"mmm-yy"),TEXT(VLOOKUP($A17,'PIIRS FY16 Indicators data'!$F$2:$S$1045,12,FALSE),"mmm-yy")&" to "&TEXT(VLOOKUP($A17,'PIIRS FY16 Indicators data'!$F$2:$S$1045,14,FALSE),"mmm-yy")),"") -> Jan-15 to Dec-17 | F17: =_xlfn.IFNA(VLOOKUP(A17,'1 - poverty ($1.90)'!$A$7:$G$9,7,FALSE),"") ->  | G17: =_xlfn.IFNA(VLOOKUP(A17,'2 - poverty (nat pov line)'!$A$7:$G$10,7,FALSE),"") ->  | H17: =_xlfn.IFNA(VLOOKUP(B17,'3 - basic services'!$A$7:$G$10,7,FALSE),"") ->  | I17: 0 | J17: =_xlfn.IFNA(VLOOKUP($A17,'4 - Shelter'!$A$5:$S$21,3,FALSE),"") ->  | K17: =_xlfn.IFNA(VLOOKUP($A17,'4 - Safe Water'!$A$5:$S$22,3,FALSE),"") ->  | L17: =_xlfn.IFNA(VLOOKUP($A17,'4 - Adequate Sanitation'!$A$5:$S$18,3,FALSE),"") ->  | M17: =_xlfn.IFNA(VLOOKUP($A17,'4 - Hygiene Practices'!$A$5:$S$24,3,FALSE),"") ->  | N17: =_xlfn.IFNA(VLOOKUP($A17,'4 - Adequate food'!$A$5:$S$26,3,FALSE),"") ->  | O17: =_xlfn.IFNA(VLOOKUP($A17,'4 - Nutritional practices'!$A$5:$S$13,3,FALSE),"") ->  | P17: =_xlfn.IFNA(VLOOKUP($A17,'4 - Access SRH'!$A$5:$V$7,3,FALSE),"") ->  | Q17: =_xlfn.IFNA(VLOOKUP($A17,'4 - Livelihood recovery'!$A$5:$S$20,3,FALSE),"") ->  | R17: =_xlfn.IFNA(VLOOKUP($A17,'5 - Satisfaction'!$A$6:$Y$31,5,FALSE),"") ->  | S17: 0 | T17: =_xlfn.IFNA(VLOOKUP($A17,'6 - Met demand'!$A$7:$AD$15,7,FALSE),"") ->  | U17: =_xlfn.IFNA(VLOOKUP($A17,'7 - SBA'!$A$7:$AC$14,7,FALSE),"") ->  | W17: =_xlfn.IFNA(VLOOKUP($A17,'9 - SRH decisions'!$A$7:$AC$9,7,FALSE),"") ->  | X17: 0 | Y17: =_xlfn.IFNA(VLOOKUP($A17,'10 - Rejecting IPV'!$A$7:$AG$12,7,FALSE),"") ->  | Z17: =_xlfn.IFNA(VLOOKUP($A17,'11 - violence by partner'!$A$7:$AC$8,7,FALSE),"") ->  | AB17: 0 | AC17: 0 | AD17: =_xlfn.IFNA(VLOOKUP($A17,'13 - Food insecurity'!$A$6:$AF$23,7,FALSE),"") ->  | AE17: =_xlfn.IFNA(VLOOKUP($A17,'14 - Stunting'!$A$5:$AI$11,7,FALSE),"") ->  | AF17: =_xlfn.IFNA(VLOOKUP($A17,'15 - Resilience capacity'!$A$6:$AE$30,7,FALSE),"") ->  | AG17: 0 | AH17: 0 | AI17: =_xlfn.IFNA(VLOOKUP($A17,'WEE summary'!$A$4:$E$102,3,FALSE),"") ->  | AJ17: =_xlfn.IFNA(VLOOKUP($A17,'WEE summary'!$A$4:$E$102,4,FALSE),"") ->  | AK17: =_xlfn.IFNA(VLOOKUP($A17,'WEE summary'!$A$4:$E$102,5,FALSE),"") -> 25.48 | AL17: 25.48 | AM17: =_xlfn.IFNA(VLOOKUP($A17,'19 - Participation'!$A$5:$G$31,7,FALSE),"") ->  | AN17: =_xlfn.IFNA(VLOOKUP(A17,'20 - Policies'!A:C,3,FALSE),"") ->  | AO17: =_xlfn.IFNA(VLOOKUP(A17,'21 - Resilience actions'!$A$7:$G$26,7,FALSE),"") ->  | AP17: 25.48 | AQ17: 25.48 | AS17: =_xlfn.IFNA(VLOOKUP($A17,'1 - poverty ($1.90)'!$A$7:$H$9,8,FALSE),"") ->  | AT17: =_xlfn.IFNA(VLOOKUP($A17,'2 - poverty (nat pov line)'!$A$7:$H$9,8,FALSE),"") ->  | AU17: =_xlfn.IFNA(VLOOKUP($A17,'3 - basic services'!$A$7:$H$9,8,FALSE),"") ->  | AV17: =_xlfn.IFNA(VLOOKUP($A17,'4 - Shelter'!$A$5:$J$23,6,FALSE),"") ->  | AW17: =_xlfn.IFNA(VLOOKUP($A17,'4 - Safe Water'!$A$5:$J$24,6,FALSE),"") ->  | AX17: =_xlfn.IFNA(VLOOKUP($A17,'4 - Adequate Sanitation'!$A$5:$J$20,6,FALSE),"") ->  | AY17: =_xlfn.IFNA(VLOOKUP($A17,'4 - Hygiene Practices'!$A$5:$J$26,6,FALSE),"") ->  | AZ17: =_xlfn.IFNA(VLOOKUP($A17,'4 - Adequate food'!$A$5:$J$28,6,FALSE),"") ->  | BA17: =_xlfn.IFNA(VLOOKUP($A17,'4 - Nutritional practices'!$A$5:$J$15,6,FALSE),"") ->  | BB17: =_xlfn.IFNA(VLOOKUP($A17,'4 - Access SRH'!$A$5:$I$9,9,FALSE),"") ->  | BC17: =_xlfn.IFNA(VLOOKUP($A17,'4 - Livelihood recovery'!$A$5:$J$22,6,FALSE),"") ->  | BD17: =_xlfn.IFNA(VLOOKUP($A17,'5 - Satisfaction'!$A$5:$J$33,6,FALSE),"") ->  | BE17: =_xlfn.IFNA(VLOOKUP($A17,'6 - Met demand'!$A$7:$H$16,8,FALSE),"") ->  | BF17: =_xlfn.IFNA(VLOOKUP($A17,'7 - SBA'!$A$7:$H$16,8,FALSE),"") ->  | BG17: =_xlfn.IFNA(VLOOKUP($A17,'8 - ABR'!$A$7:$H$9,8,FALSE),"") ->  | BH17: =_xlfn.IFNA(VLOOKUP($A17,'9 - SRH decisions'!$A$7:$H$11,8,FALSE),"") ->  | BI17: =_xlfn.IFNA(VLOOKUP($A17,'10 - Rejecting IPV'!$A$7:$H$14,8,FALSE),"") ->  | BJ17: =_xlfn.IFNA(VLOOKUP($A17,'11 - violence by partner'!$A$7:$H$10,8,FALSE),"") ->  | BK17: =_xlfn.IFNA(VLOOKUP($A17,'12 - sexual violence'!$A$7:$H$9,8,FALSE),"") ->  | BL17: =_xlfn.IFNA(VLOOKUP($A17,'13 - Food insecurity'!$A$5:$L$25,9,FALSE),"") ->  | BM17: =_xlfn.IFNA(VLOOKUP($A17,'14 - Stunting'!$A$5:$L$13,9,FALSE),"") ->  | BN17: =_xlfn.IFNA(VLOOKUP($A17,'15 - Resilience capacity'!$A$5:$L$33,9,FALSE),"") ->  | BO17: =_xlfn.IFNA(VLOOKUP($A17,'WEE summary'!$A$4:$G$102,7,FALSE),"") ->  | BP17: =_xlfn.IFNA(VLOOKUP($A17,'17 - HH $ decisions'!$A$5:$L$46,7,FALSE),"") ->  | BQ17: =_xlfn.IFNA(VLOOKUP($A17,'18 - Labor rights'!$A$5:$L$23,7,FALSE),"") -> Promoting Enabling Environemnt for Women in Fcatories Project (PEEWF) contributed to increasing the proportion of women who are members of groups by 1.1% (from 0.9% to 2%), enabling an additional 25 women to claim their rights | BR17: =_xlfn.IFNA(VLOOKUP($A17,'19 - Participation'!$A$5:$L$33,8,FALSE),"") ->  | BS17: =_xlfn.IFNA(A17&": "&VLOOKUP($A17,'20 - Policies'!$A$5:$J$62,5,FALSE),"") ->  | BT17: =_xlfn.IFNA(VLOOKUP($A17,'21 - Resilience actions'!$A$5:$L$28,9,FALSE),"") -> 
A18: Promoting Sustainable Consumption and Production of Jute Diversified Product | B18: Bangladesh | C18: =_xlfn.IFNA(VLOOKUP(A18,'PIIRS FY16 Indicators data'!F:G,2,FALSE),"") -> CARE France | D18: =_xlfn.IFNA(VLOOKUP($A18,'PIIRS FY16 Indicators data'!$F$2:$S$1045,5,FALSE),"") -> European Union | E18: =_xlfn.IFNA(IF(VLOOKUP($A18,'PIIRS FY16 Indicators data'!$F$2:$S$1045,14,FALSE)="",TEXT(VLOOKUP($A18,'PIIRS FY16 Indicators data'!$F$2:$S$1045,12,FALSE),"mmm-yy")&" to "&TEXT(VLOOKUP($A18,'PIIRS FY16 Indicators data'!$F$2:$S$1045,13,FALSE),"mmm-yy"),TEXT(VLOOKUP($A18,'PIIRS FY16 Indicators data'!$F$2:$S$1045,12,FALSE),"mmm-yy")&" to "&TEXT(VLOOKUP($A18,'PIIRS FY16 Indicators data'!$F$2:$S$1045,14,FALSE),"mmm-yy")),"") -> Jan-13 to Dec-16 | F18: =_xlfn.IFNA(VLOOKUP(A18,'1 - poverty ($1.90)'!$A$7:$G$9,7,FALSE),"") -> 1627.2 | G18: =_xlfn.IFNA(VLOOKUP(A18,'2 - poverty (nat pov line)'!$A$7:$G$10,7,FALSE),"") ->  | H18: =_xlfn.IFNA(VLOOKUP(B18,'3 - basic services'!$A$7:$G$10,7,FALSE),"") ->  | I18: 1627.2 | J18: =_xlfn.IFNA(VLOOKUP($A18,'4 - Shelter'!$A$5:$S$21,3,FALSE),"") ->  | K18: =_xlfn.IFNA(VLOOKUP($A18,'4 - Safe Water'!$A$5:$S$22,3,FALSE),"") ->  | L18: =_xlfn.IFNA(VLOOKUP($A18,'4 - Adequate Sanitation'!$A$5:$S$18,3,FALSE),"") ->  | M18: =_xlfn.IFNA(VLOOKUP($A18,'4 - Hygiene Practices'!$A$5:$S$24,3,FALSE),"") ->  | N18: =_xlfn.IFNA(VLOOKUP($A18,'4 - Adequate food'!$A$5:$S$26,3,FALSE),"") ->  | O18: =_xlfn.IFNA(VLOOKUP($A18,'4 - Nutritional practices'!$A$5:$S$13,3,FALSE),"") ->  | P18: =_xlfn.IFNA(VLOOKUP($A18,'4 - Access SRH'!$A$5:$V$7,3,FALSE),"") ->  | Q18: =_xlfn.IFNA(VLOOKUP($A18,'4 - Livelihood recovery'!$A$5:$S$20,3,FALSE),"") ->  | R18: =_xlfn.IFNA(VLOOKUP($A18,'5 - Satisfaction'!$A$6:$Y$31,5,FALSE),"") ->  | S18: 0 | T18: =_xlfn.IFNA(VLOOKUP($A18,'6 - Met demand'!$A$7:$AD$15,7,FALSE),"") ->  | U18: =_xlfn.IFNA(VLOOKUP($A18,'7 - SBA'!$A$7:$AC$14,7,FALSE),"") ->  | W18: =_xlfn.IFNA(VLOOKUP($A18,'9 - SRH decisions'!$A$7:$AC$9,7,FALSE),"") ->  | X18: 0 | Y18: =_xlfn.IFNA(VLOOKUP($A18,'10 - Rejecting IPV'!$A$7:$AG$12,7,FALSE),"") ->  | Z18: =_xlfn.IFNA(VLOOKUP($A18,'11 - violence by partner'!$A$7:$AC$8,7,FALSE),"") ->  | AB18: 0 | AC18: 0 | AD18: =_xlfn.IFNA(VLOOKUP($A18,'13 - Food insecurity'!$A$6:$AF$23,7,FALSE),"") ->  | AE18: =_xlfn.IFNA(VLOOKUP($A18,'14 - Stunting'!$A$5:$AI$11,7,FALSE),"") ->  | AF18: =_xlfn.IFNA(VLOOKUP($A18,'15 - Resilience capacity'!$A$6:$AE$30,7,FALSE),"") ->  | AG18: 0 | AH18: 0 | AI18: =_xlfn.IFNA(VLOOKUP($A18,'WEE summary'!$A$4:$E$102,3,FALSE),"") -> 10240 | AJ18: =_xlfn.IFNA(VLOOKUP($A18,'WEE summary'!$A$4:$E$102,4,FALSE),"") ->  | AK18: =_xlfn.IFNA(VLOOKUP($A18,'WEE summary'!$A$4:$E$102,5,FALSE),"") ->  | AL18: 10240 | AM18: =_xlfn.IFNA(VLOOKUP($A18,'19 - Participation'!$A$5:$G$31,7,FALSE),"") ->  | AN18: =_xlfn.IFNA(VLOOKUP(A18,'20 - Policies'!A:C,3,FALSE),"") ->  | AO18: =_xlfn.IFNA(VLOOKUP(A18,'21 - Resilience actions'!$A$7:$G$26,7,FALSE),"") ->  | AP18: 10240 | AQ18: 10240 | AS18: =_xlfn.IFNA(VLOOKUP($A18,'1 - poverty ($1.90)'!$A$7:$H$9,8,FALSE),"") -> Promoting Sustainable Consumption and Production of Jute Diversified Product contributed to reducing poverty by 9% (from 44% to 35%), enabling 1,627 people to escape poverty | AT18: =_xlfn.IFNA(VLOOKUP($A18,'2 - poverty (nat pov line)'!$A$7:$H$9,8,FALSE),"") ->  | AU18: =_xlfn.IFNA(VLOOKUP($A18,'3 - basic services'!$A$7:$H$9,8,FALSE),"") ->  | AV18: =_xlfn.IFNA(VLOOKUP($A18,'4 - Shelter'!$A$5:$J$23,6,FALSE),"") ->  | AW18: =_xlfn.IFNA(VLOOKUP($A18,'4 - Safe Water'!$A$5:$J$24,6,FALSE),"") ->  | AX18: =_xlfn.IFNA(VLOOKUP($A18,'4 - Adequate Sanitation'!$A$5:$J$20,6,FALSE),"") ->  | AY18: =_xlfn.IFNA(VLOOKUP($A18,'4 - Hygiene Practices'!$A$5:$J$26,6,FALSE),"") ->  | AZ18: =_xlfn.IFNA(VLOOKUP($A18,'4 - Adequate food'!$A$5:$J$28,6,FALSE),"") ->  | BA18: =_xlfn.IFNA(VLOOKUP($A18,'4 - Nutritional practices'!$A$5:$J$15,6,FALSE),"") ->  | BB18: =_xlfn.IFNA(VLOOKUP($A18,'4 - Access SRH'!$A$5:$I$9,9,FALSE),"") ->  | BC18: =_xlfn.IFNA(VLOOKUP($A18,'4 - Livelihood recovery'!$A$5:$J$22,6,FALSE),"") ->  | BD18: =_xlfn.IFNA(VLOOKUP($A18,'5 - Satisfaction'!$A$5:$J$33,6,FALSE),"") ->  | BE18: =_xlfn.IFNA(VLOOKUP($A18,'6 - Met demand'!$A$7:$H$16,8,FALSE),"") ->  | BF18: =_xlfn.IFNA(VLOOKUP($A18,'7 - SBA'!$A$7:$H$16,8,FALSE),"") ->  | BG18: =_xlfn.IFNA(VLOOKUP($A18,'8 - ABR'!$A$7:$H$9,8,FALSE),"") ->  | BH18: =_xlfn.IFNA(VLOOKUP($A18,'9 - SRH decisions'!$A$7:$H$11,8,FALSE),"") ->  | BI18: =_xlfn.IFNA(VLOOKUP($A18,'10 - Rejecting IPV'!$A$7:$H$14,8,FALSE),"") ->  | BJ18: =_xlfn.IFNA(VLOOKUP($A18,'11 - violence by partner'!$A$7:$H$10,8,FALSE),"") ->  | BK18: =_xlfn.IFNA(VLOOKUP($A18,'12 - sexual violence'!$A$7:$H$9,8,FALSE),"") ->  | BL18: =_xlfn.IFNA(VLOOKUP($A18,'13 - Food insecurity'!$A$5:$L$25,9,FALSE),"") ->  | BM18: =_xlfn.IFNA(VLOOKUP($A18,'14 - Stunting'!$A$5:$L$13,9,FALSE),"") ->  | BN18: =_xlfn.IFNA(VLOOKUP($A18,'15 - Resilience capacity'!$A$5:$L$33,9,FALSE),"") ->  | BO18: =_xlfn.IFNA(VLOOKUP($A18,'WEE summary'!$A$4:$G$102,7,FALSE),"") -> Promoting Sustainable Consumption and Production of Jute Diversified Product enabled 10,240 women to access formal or informal financial services | BP18: =_xlfn.IFNA(VLOOKUP($A18,'17 - HH $ decisions'!$A$5:$L$46,7,FALSE),"") ->  | BQ18: =_xlfn.IFNA(VLOOKUP($A18,'18 - Labor rights'!$A$5:$L$23,7,FALSE),"") ->  | BR18: =_xlfn.IFNA(VLOOKUP($A18,'19 - Participation'!$A$5:$L$33,8,FALSE),"") ->  | BS18: =_xlfn.IFNA(A18&": "&VLOOKUP($A18,'20 - Policies'!$A$5:$J$62,5,FALSE),"") ->  | BT18: =_xlfn.IFNA(VLOOKUP($A18,'21 - Resilience actions'!$A$5:$L$28,9,FALSE),"") -> 
A19: Relief Support for flood and cyclone - affected populations in need in South-East Bangladesh (RESPONSE) | B19: Bangladesh | C19: =_xlfn.IFNA(VLOOKUP(A19,'PIIRS FY16 Indicators data'!F:G,2,FALSE),"") -> CARE UK | D19: =_xlfn.IFNA(VLOOKUP($A19,'PIIRS FY16 Indicators data'!$F$2:$S$1045,5,FALSE),"") -> Department for International Development (DFID) | E19: =_xlfn.IFNA(IF(VLOOKUP($A19,'PIIRS FY16 Indicators data'!$F$2:$S$1045,14,FALSE)="",TEXT(VLOOKUP($A19,'PIIRS FY16 Indicators data'!$F$2:$S$1045,12,FALSE),"mmm-yy")&" to "&TEXT(VLOOKUP($A19,'PIIRS FY16 Indicators data'!$F$2:$S$1045,13,FALSE),"mmm-yy"),TEXT(VLOOKUP($A19,'PIIRS FY16 Indicators data'!$F$2:$S$1045,12,FALSE),"mmm-yy")&" to "&TEXT(VLOOKUP($A19,'PIIRS FY16 Indicators data'!$F$2:$S$1045,14,FALSE),"mmm-yy")),"") -> Sep-15 to Jan-16 | F19: =_xlfn.IFNA(VLOOKUP(A19,'1 - poverty ($1.90)'!$A$7:$G$9,7,FALSE),"") ->  | G19: =_xlfn.IFNA(VLOOKUP(A19,'2 - poverty (nat pov line)'!$A$7:$G$10,7,FALSE),"") ->  | H19: =_xlfn.IFNA(VLOOKUP(B19,'3 - basic services'!$A$7:$G$10,7,FALSE),"") ->  | I19: 0 | J19: =_xlfn.IFNA(VLOOKUP($A19,'4 - Shelter'!$A$5:$S$21,3,FALSE),"") -> 108127 | K19: =_xlfn.IFNA(VLOOKUP($A19,'4 - Safe Water'!$A$5:$S$22,3,FALSE),"") ->  | L19: =_xlfn.IFNA(VLOOKUP($A19,'4 - Adequate Sanitation'!$A$5:$S$18,3,FALSE),"") ->  | M19: =_xlfn.IFNA(VLOOKUP($A19,'4 - Hygiene Practices'!$A$5:$S$24,3,FALSE),"") ->  | N19: =_xlfn.IFNA(VLOOKUP($A19,'4 - Adequate food'!$A$5:$S$26,3,FALSE),"") -> 108127 | O19: =_xlfn.IFNA(VLOOKUP($A19,'4 - Nutritional practices'!$A$5:$S$13,3,FALSE),"") ->  | P19: =_xlfn.IFNA(VLOOKUP($A19,'4 - Access SRH'!$A$5:$V$7,3,FALSE),"") ->  | Q19: =_xlfn.IFNA(VLOOKUP($A19,'4 - Livelihood recovery'!$A$5:$S$20,3,FALSE),"") -> 108127 | R19: =_xlfn.IFNA(VLOOKUP($A19,'5 - Satisfaction'!$A$6:$Y$31,5,FALSE),"") -> 108127 | S19: 108127 | T19: =_xlfn.IFNA(VLOOKUP($A19,'6 - Met demand'!$A$7:$AD$15,7,FALSE),"") ->  | U19: =_xlfn.IFNA(VLOOKUP($A19,'7 - SBA'!$A$7:$AC$14,7,FALSE),"") ->  | W19: =_xlfn.IFNA(VLOOKUP($A19,'9 - SRH decisions'!$A$7:$AC$9,7,FALSE),"") ->  | X19: 0 | Y19: =_xlfn.IFNA(VLOOKUP($A19,'10 - Rejecting IPV'!$A$7:$AG$12,7,FALSE),"") ->  | Z19: =_xlfn.IFNA(VLOOKUP($A19,'11 - violence by partner'!$A$7:$AC$8,7,FALSE),"") ->  | AB19: 0 | AC19: 0 | AD19: =_xlfn.IFNA(VLOOKUP($A19,'13 - Food insecurity'!$A$6:$AF$23,7,FALSE),"") ->  | AE19: =_xlfn.IFNA(VLOOKUP($A19,'14 - Stunting'!$A$5:$AI$11,7,FALSE),"") ->  | AF19: =_xlfn.IFNA(VLOOKUP($A19,'15 - Resilience capacity'!$A$6:$AE$30,7,FALSE),"") ->  | AG19: 0 | AH19: 108127 | AI19: =_xlfn.IFNA(VLOOKUP($A19,'WEE summary'!$A$4:$E$102,3,FALSE),"") ->  | AJ19: =_xlfn.IFNA(VLOOKUP($A19,'WEE summary'!$A$4:$E$102,4,FALSE),"") ->  | AK19: =_xlfn.IFNA(VLOOKUP($A19,'WEE summary'!$A$4:$E$102,5,FALSE),"") ->  | AL19: 0 | AM19: =_xlfn.IFNA(VLOOKUP($A19,'19 - Participation'!$A$5:$G$31,7,FALSE),"") ->  | AN19: =_xlfn.IFNA(VLOOKUP(A19,'20 - Policies'!A:C,3,FALSE),"") ->  | AO19: =_xlfn.IFNA(VLOOKUP(A19,'21 - Resilience actions'!$A$7:$G$26,7,FALSE),"") ->  | AP19: 108127 | AQ19: 108127 | AS19: =_xlfn.IFNA(VLOOKUP($A19,'1 - poverty ($1.90)'!$A$7:$H$9,8,FALSE),"") ->  | AT19: =_xlfn.IFNA(VLOOKUP($A19,'2 - poverty (nat pov line)'!$A$7:$H$9,8,FALSE),"") ->  | AU19: =_xlfn.IFNA(VLOOKUP($A19,'3 - basic services'!$A$7:$H$9,8,FALSE),"") ->  | AV19: =_xlfn.IFNA(VLOOKUP($A19,'4 - Shelter'!$A$5:$J$23,6,FALSE),"") -> Relief Support for flood and cyclone - affected populations in need in South-East Bangladesh (RESPONSE) provided adequate shelter/housing for 108,127 people, 57.5% of those requiring assistance | AW19: =_xlfn.IFNA(VLOOKUP($A19,'4 - Safe Water'!$A$5:$J$24,6,FALSE),"") ->  | AX19: =_xlfn.IFNA(VLOOKUP($A19,'4 - Adequate Sanitation'!$A$5:$J$20,6,FALSE),"") ->  | AY19: =_xlfn.IFNA(VLOOKUP($A19,'4 - Hygiene Practices'!$A$5:$J$26,6,FALSE),"") ->  | AZ19: =_xlfn.IFNA(VLOOKUP($A19,'4 - Adequate food'!$A$5:$J$28,6,FALSE),"") -> Relief Support for flood and cyclone - affected populations in need in South-East Bangladesh (RESPONSE) enabled the provision of adequate food for 108,127 people, 57.5% of those requiring assistance | BA19: =_xlfn.IFNA(VLOOKUP($A19,'4 - Nutritional practices'!$A$5:$J$15,6,FALSE),"") ->  | BB19: =_xlfn.IFNA(VLOOKUP($A19,'4 - Access SRH'!$A$5:$I$9,9,FALSE),"") ->  | BC19: =_xlfn.IFNA(VLOOKUP($A19,'4 - Livelihood recovery'!$A$5:$J$22,6,FALSE),"") -> Relief Support for flood and cyclone - affected populations in need in South-East Bangladesh (RESPONSE) supported recovery of goods, assets or income opportunities for 108,127 people, 57.5% of those requiring assistance | BD19: =_xlfn.IFNA(VLOOKUP($A19,'5 - Satisfaction'!$A$5:$J$33,6,FALSE),"") -> Relief Support for flood and cyclone - affected populations in need in South-East Bangladesh (RESPONSE): 108,127 people were satisified with the humanitarian assistance (100% of those receiving support) | BE19: =_xlfn.IFNA(VLOOKUP($A19,'6 - Met demand'!$A$7:$H$16,8,FALSE),"") ->  | BF19: =_xlfn.IFNA(VLOOKUP($A19,'7 - SBA'!$A$7:$H$16,8,FALSE),"") ->  | BG19: =_xlfn.IFNA(VLOOKUP($A19,'8 - ABR'!$A$7:$H$9,8,FALSE),"") ->  | BH19: =_xlfn.IFNA(VLOOKUP($A19,'9 - SRH decisions'!$A$7:$H$11,8,FALSE),"") ->  | BI19: =_xlfn.IFNA(VLOOKUP($A19,'10 - Rejecting IPV'!$A$7:$H$14,8,FALSE),"") ->  | BJ19: =_xlfn.IFNA(VLOOKUP($A19,'11 - violence by partner'!$A$7:$H$10,8,FALSE),"") ->  | BK19: =_xlfn.IFNA(VLOOKUP($A19,'12 - sexual violence'!$A$7:$H$9,8,FALSE),"") ->  | BL19: =_xlfn.IFNA(VLOOKUP($A19,'13 - Food insecurity'!$A$5:$L$25,9,FALSE),"") ->  | BM19: =_xlfn.IFNA(VLOOKUP($A19,'14 - Stunting'!$A$5:$L$13,9,FALSE),"") ->  | BN19: =_xlfn.IFNA(VLOOKUP($A19,'15 - Resilience capacity'!$A$5:$L$33,9,FALSE),"") ->  | BO19: =_xlfn.IFNA(VLOOKUP($A19,'WEE summary'!$A$4:$G$102,7,FALSE),"") ->  | BP19: =_xlfn.IFNA(VLOOKUP($A19,'17 - HH $ decisions'!$A$5:$L$46,7,FALSE),"") ->  | BQ19: =_xlfn.IFNA(VLOOKUP($A19,'18 - Labor rights'!$A$5:$L$23,7,FALSE),"") ->  | BR19: =_xlfn.IFNA(VLOOKUP($A19,'19 - Participation'!$A$5:$L$33,8,FALSE),"") ->  | BS19: =_xlfn.IFNA(A19&": "&VLOOKUP($A19,'20 - Policies'!$A$5:$J$62,5,FALSE),"") ->  | BT19: =_xlfn.IFNA(VLOOKUP($A19,'21 - Resilience actions'!$A$5:$L$28,9,FALSE),"") -> 
A20: SHOUHARDO II | B20: Bangladesh | C20: =_xlfn.IFNA(VLOOKUP(A20,'PIIRS FY16 Indicators data'!F:G,2,FALSE),"") -> CARE USA | D20: =_xlfn.IFNA(VLOOKUP($A20,'PIIRS FY16 Indicators data'!$F$2:$S$1045,5,FALSE),"") -> United States Agency for International Development (USAID) | E20: =_xlfn.IFNA(IF(VLOOKUP($A20,'PIIRS FY16 Indicators data'!$F$2:$S$1045,14,FALSE)="",TEXT(VLOOKUP($A20,'PIIRS FY16 Indicators data'!$F$2:$S$1045,12,FALSE),"mmm-yy")&" to "&TEXT(VLOOKUP($A20,'PIIRS FY16 Indicators data'!$F$2:$S$1045,13,FALSE),"mmm-yy"),TEXT(VLOOKUP($A20,'PIIRS FY16 Indicators data'!$F$2:$S$1045,12,FALSE),"mmm-yy")&" to "&TEXT(VLOOKUP($A20,'PIIRS FY16 Indicators data'!$F$2:$S$1045,14,FALSE),"mmm-yy")),"") -> Jun-10 to Sep-15 | F20: =_xlfn.IFNA(VLOOKUP(A20,'1 - poverty ($1.90)'!$A$7:$G$9,7,FALSE),"") ->  | G20: =_xlfn.IFNA(VLOOKUP(A20,'2 - poverty (nat pov line)'!$A$7:$G$10,7,FALSE),"") ->  | H20: =_xlfn.IFNA(VLOOKUP(B20,'3 - basic services'!$A$7:$G$10,7,FALSE),"") ->  | I20: 0 | J20: =_xlfn.IFNA(VLOOKUP($A20,'4 - Shelter'!$A$5:$S$21,3,FALSE),"") ->  | K20: =_xlfn.IFNA(VLOOKUP($A20,'4 - Safe Water'!$A$5:$S$22,3,FALSE),"") ->  | L20: =_xlfn.IFNA(VLOOKUP($A20,'4 - Adequate Sanitation'!$A$5:$S$18,3,FALSE),"") ->  | M20: =_xlfn.IFNA(VLOOKUP($A20,'4 - Hygiene Practices'!$A$5:$S$24,3,FALSE),"") ->  | N20: =_xlfn.IFNA(VLOOKUP($A20,'4 - Adequate food'!$A$5:$S$26,3,FALSE),"") ->  | O20: =_xlfn.IFNA(VLOOKUP($A20,'4 - Nutritional practices'!$A$5:$S$13,3,FALSE),"") ->  | P20: =_xlfn.IFNA(VLOOKUP($A20,'4 - Access SRH'!$A$5:$V$7,3,FALSE),"") ->  | Q20: =_xlfn.IFNA(VLOOKUP($A20,'4 - Livelihood recovery'!$A$5:$S$20,3,FALSE),"") ->  | R20: =_xlfn.IFNA(VLOOKUP($A20,'5 - Satisfaction'!$A$6:$Y$31,5,FALSE),"") ->  | S20: 0 | T20: =_xlfn.IFNA(VLOOKUP($A20,'6 - Met demand'!$A$7:$AD$15,7,FALSE),"") ->  | U20: =_xlfn.IFNA(VLOOKUP($A20,'7 - SBA'!$A$7:$AC$14,7,FALSE),"") ->  | W20: =_xlfn.IFNA(VLOOKUP($A20,'9 - SRH decisions'!$A$7:$AC$9,7,FALSE),"") ->  | X20: 0 | Y20: =_xlfn.IFNA(VLOOKUP($A20,'10 - Rejecting IPV'!$A$7:$AG$12,7,FALSE),"") ->  | Z20: =_xlfn.IFNA(VLOOKUP($A20,'11 - violence by partner'!$A$7:$AC$8,7,FALSE),"") ->  | AB20: 0 | AC20: 0 | AD20: =_xlfn.IFNA(VLOOKUP($A20,'13 - Food insecurity'!$A$6:$AF$23,7,FALSE),"") -> 1499424.5 | AE20: =_xlfn.IFNA(VLOOKUP($A20,'14 - Stunting'!$A$5:$AI$11,7,FALSE),"") -> 113621.265 | AF20: =_xlfn.IFNA(VLOOKUP($A20,'15 - Resilience capacity'!$A$6:$AE$30,7,FALSE),"") ->  | AG20: 1499424.5 | AH20: 1499424.5 | AI20: =_xlfn.IFNA(VLOOKUP($A20,'WEE summary'!$A$4:$E$102,3,FALSE),"") -> 23278 | AJ20: =_xlfn.IFNA(VLOOKUP($A20,'WEE summary'!$A$4:$E$102,4,FALSE),"") -> 86293.41 | AK20: =_xlfn.IFNA(VLOOKUP($A20,'WEE summary'!$A$4:$E$102,5,FALSE),"") ->  | AL20: 86293.41 | AM20: =_xlfn.IFNA(VLOOKUP($A20,'19 - Participation'!$A$5:$G$31,7,FALSE),"") ->  | AN20: =_xlfn.IFNA(VLOOKUP(A20,'20 - Policies'!A:C,3,FALSE),"") ->  | AO20: =_xlfn.IFNA(VLOOKUP(A20,'21 - Resilience actions'!$A$7:$G$26,7,FALSE),"") ->  | AP20: 1499424.5 | AQ20: 1499424.5 | AS20: =_xlfn.IFNA(VLOOKUP($A20,'1 - poverty ($1.90)'!$A$7:$H$9,8,FALSE),"") ->  | AT20: =_xlfn.IFNA(VLOOKUP($A20,'2 - poverty (nat pov line)'!$A$7:$H$9,8,FALSE),"") ->  | AU20: =_xlfn.IFNA(VLOOKUP($A20,'3 - basic services'!$A$7:$H$9,8,FALSE),"") ->  | AV20: =_xlfn.IFNA(VLOOKUP($A20,'4 - Shelter'!$A$5:$J$23,6,FALSE),"") ->  | AW20: =_xlfn.IFNA(VLOOKUP($A20,'4 - Safe Water'!$A$5:$J$24,6,FALSE),"") ->  | AX20: =_xlfn.IFNA(VLOOKUP($A20,'4 - Adequate Sanitation'!$A$5:$J$20,6,FALSE),"") ->  | AY20: =_xlfn.IFNA(VLOOKUP($A20,'4 - Hygiene Practices'!$A$5:$J$26,6,FALSE),"") ->  | AZ20: =_xlfn.IFNA(VLOOKUP($A20,'4 - Adequate food'!$A$5:$J$28,6,FALSE),"") ->  | BA20: =_xlfn.IFNA(VLOOKUP($A20,'4 - Nutritional practices'!$A$5:$J$15,6,FALSE),"") ->  | BB20: =_xlfn.IFNA(VLOOKUP($A20,'4 - Access SRH'!$A$5:$I$9,9,FALSE),"") ->  | BC20: =_xlfn.IFNA(VLOOKUP($A20,'4 - Livelihood recovery'!$A$5:$J$22,6,FALSE),"") ->  | BD20: =_xlfn.IFNA(VLOOKUP($A20,'5 - Satisfaction'!$A$5:$J$33,6,FALSE),"") ->  | BE20: =_xlfn.IFNA(VLOOKUP($A20,'6 - Met demand'!$A$7:$H$16,8,FALSE),"") ->  | BF20: =_xlfn.IFNA(VLOOKUP($A20,'7 - SBA'!$A$7:$H$16,8,FALSE),"") ->  | BG20: =_xlfn.IFNA(VLOOKUP($A20,'8 - ABR'!$A$7:$H$9,8,FALSE),"") ->  | BH20: =_xlfn.IFNA(VLOOKUP($A20,'9 - SRH decisions'!$A$7:$H$11,8,FALSE),"") ->  | BI20: =_xlfn.IFNA(VLOOKUP($A20,'10 - Rejecting IPV'!$A$7:$H$14,8,FALSE),"") ->  | BJ20: =_xlfn.IFNA(VLOOKUP($A20,'11 - violence by partner'!$A$7:$H$10,8,FALSE),"") ->  | BK20: =_xlfn.IFNA(VLOOKUP($A20,'12 - sexual violence'!$A$7:$H$9,8,FALSE),"") ->  | BL20: =_xlfn.IFNA(VLOOKUP($A20,'13 - Food insecurity'!$A$5:$L$25,9,FALSE),"") -> SHOUHARDO II contributed to reducing food insecurity by 49% (from 91.4% to 42.4%), increasing food security for 1,499,425 people | BM20: =_xlfn.IFNA(VLOOKUP($A20,'14 - Stunting'!$A$5:$L$13,9,FALSE),"") -> SHOUHARDO II contributed to reducing stunting by 12.9% (from 61.7% to 48.8% - a reduction of 2.6 percentage points a year), enabling 25,249 children under 5 to escape stunting, and increasing food & nutrition security for 113,621 people | BN20: =_xlfn.IFNA(VLOOKUP($A20,'15 - Resilience capacity'!$A$5:$L$33,9,FALSE),"") ->  | BO20: =_xlfn.IFNA(VLOOKUP($A20,'WEE summary'!$A$4:$G$102,7,FALSE),"") -> SHOUHARDO II enabled 23,278 women to access formal or informal financial services | BP20: =_xlfn.IFNA(VLOOKUP($A20,'17 - HH $ decisions'!$A$5:$L$46,7,FALSE),"") -> SHOUHARDO II contributed to increasing the proportion of women able to participate equally in HH financial decisions by 14.1% (from 5.7% to 19.8%), enabling an additional 86,293 women to have control over economic resources | BQ20: =_xlfn.IFNA(VLOOKUP($A20,'18 - Labor rights'!$A$5:$L$23,7,FALSE),"") ->  | BR20: =_xlfn.IFNA(VLOOKUP($A20,'19 - Participation'!$A$5:$L$33,8,FALSE),"") ->  | BS20: =_xlfn.IFNA(A20&": "&VLOOKUP($A20,'20 - Policies'!$A$5:$J$62,5,FALSE),"") ->  | BT20: =_xlfn.IFNA(VLOOKUP($A20,'21 - Resilience actions'!$A$5:$L$28,9,FALSE),"") -> 
A21: SHOUHARDO III | B21: Bangladesh | C21: =_xlfn.IFNA(VLOOKUP(A21,'PIIRS FY16 Indicators data'!F:G,2,FALSE),"") -> CARE USA | D21: =_xlfn.IFNA(VLOOKUP($A21,'PIIRS FY16 Indicators data'!$F$2:$S$1045,5,FALSE),"") -> United States Agency for International Development (USAID) | E21: =_xlfn.IFNA(IF(VLOOKUP($A21,'PIIRS FY16 Indicators data'!$F$2:$S$1045,14,FALSE)="",TEXT(VLOOKUP($A21,'PIIRS FY16 Indicators data'!$F$2:$S$1045,12,FALSE),"mmm-yy")&" to "&TEXT(VLOOKUP($A21,'PIIRS FY16 Indicators data'!$F$2:$S$1045,13,FALSE),"mmm-yy"),TEXT(VLOOKUP($A21,'PIIRS FY16 Indicators data'!$F$2:$S$1045,12,FALSE),"mmm-yy")&" to "&TEXT(VLOOKUP($A21,'PIIRS FY16 Indicators data'!$F$2:$S$1045,14,FALSE),"mmm-yy")),"") -> Sep-15 to Sep-20 | F21: =_xlfn.IFNA(VLOOKUP(A21,'1 - poverty ($1.90)'!$A$7:$G$9,7,FALSE),"") ->  | G21: =_xlfn.IFNA(VLOOKUP(A21,'2 - poverty (nat pov line)'!$A$7:$G$10,7,FALSE),"") ->  | H21: =_xlfn.IFNA(VLOOKUP(B21,'3 - basic services'!$A$7:$G$10,7,FALSE),"") ->  | I21: 0 | J21: =_xlfn.IFNA(VLOOKUP($A21,'4 - Shelter'!$A$5:$S$21,3,FALSE),"") ->  | K21: =_xlfn.IFNA(VLOOKUP($A21,'4 - Safe Water'!$A$5:$S$22,3,FALSE),"") -> 16478 | L21: =_xlfn.IFNA(VLOOKUP($A21,'4 - Adequate Sanitation'!$A$5:$S$18,3,FALSE),"") ->  | M21: =_xlfn.IFNA(VLOOKUP($A21,'4 - Hygiene Practices'!$A$5:$S$24,3,FALSE),"") ->  | N21: =_xlfn.IFNA(VLOOKUP($A21,'4 - Adequate food'!$A$5:$S$26,3,FALSE),"") ->  | O21: =_xlfn.IFNA(VLOOKUP($A21,'4 - Nutritional practices'!$A$5:$S$13,3,FALSE),"") ->  | P21: =_xlfn.IFNA(VLOOKUP($A21,'4 - Access SRH'!$A$5:$V$7,3,FALSE),"") ->  | Q21: =_xlfn.IFNA(VLOOKUP($A21,'4 - Livelihood recovery'!$A$5:$S$20,3,FALSE),"") ->  | R21: =_xlfn.IFNA(VLOOKUP($A21,'5 - Satisfaction'!$A$6:$Y$31,5,FALSE),"") ->  | S21: 16478 | T21: =_xlfn.IFNA(VLOOKUP($A21,'6 - Met demand'!$A$7:$AD$15,7,FALSE),"") ->  | U21: =_xlfn.IFNA(VLOOKUP($A21,'7 - SBA'!$A$7:$AC$14,7,FALSE),"") ->  | W21: =_xlfn.IFNA(VLOOKUP($A21,'9 - SRH decisions'!$A$7:$AC$9,7,FALSE),"") ->  | X21: 0 | Y21: =_xlfn.IFNA(VLOOKUP($A21,'10 - Rejecting IPV'!$A$7:$AG$12,7,FALSE),"") ->  | Z21: =_xlfn.IFNA(VLOOKUP($A21,'11 - violence by partner'!$A$7:$AC$8,7,FALSE),"") ->  | AB21: 0 | AC21: 0 | AD21: =_xlfn.IFNA(VLOOKUP($A21,'13 - Food insecurity'!$A$6:$AF$23,7,FALSE),"") ->  | AE21: =_xlfn.IFNA(VLOOKUP($A21,'14 - Stunting'!$A$5:$AI$11,7,FALSE),"") ->  | AF21: =_xlfn.IFNA(VLOOKUP($A21,'15 - Resilience capacity'!$A$6:$AE$30,7,FALSE),"") ->  | AG21: 0 | AH21: 0 | AI21: =_xlfn.IFNA(VLOOKUP($A21,'WEE summary'!$A$4:$E$102,3,FALSE),"") ->  | AJ21: =_xlfn.IFNA(VLOOKUP($A21,'WEE summary'!$A$4:$E$102,4,FALSE),"") ->  | AK21: =_xlfn.IFNA(VLOOKUP($A21,'WEE summary'!$A$4:$E$102,5,FALSE),"") ->  | AL21: 0 | AM21: =_xlfn.IFNA(VLOOKUP($A21,'19 - Participation'!$A$5:$G$31,7,FALSE),"") ->  | AN21: =_xlfn.IFNA(VLOOKUP(A21,'20 - Policies'!A:C,3,FALSE),"") ->  | AO21: =_xlfn.IFNA(VLOOKUP(A21,'21 - Resilience actions'!$A$7:$G$26,7,FALSE),"") ->  | AP21: 16478 | AQ21: 16478 | AS21: =_xlfn.IFNA(VLOOKUP($A21,'1 - poverty ($1.90)'!$A$7:$H$9,8,FALSE),"") ->  | AT21: =_xlfn.IFNA(VLOOKUP($A21,'2 - poverty (nat pov line)'!$A$7:$H$9,8,FALSE),"") ->  | AU21: =_xlfn.IFNA(VLOOKUP($A21,'3 - basic services'!$A$7:$H$9,8,FALSE),"") ->  | AV21: =_xlfn.IFNA(VLOOKUP($A21,'4 - Shelter'!$A$5:$J$23,6,FALSE),"") ->  | AW21: =_xlfn.IFNA(VLOOKUP($A21,'4 - Safe Water'!$A$5:$J$24,6,FALSE),"") -> SHOUHARDO III enabled access to safe drinking water for 16,478 people | AX21: =_xlfn.IFNA(VLOOKUP($A21,'4 - Adequate Sanitation'!$A$5:$J$20,6,FALSE),"") ->  | AY21: =_xlfn.IFNA(VLOOKUP($A21,'4 - Hygiene Practices'!$A$5:$J$26,6,FALSE),"") ->  | AZ21: =_xlfn.IFNA(VLOOKUP($A21,'4 - Adequate food'!$A$5:$J$28,6,FALSE),"") ->  | BA21: =_xlfn.IFNA(VLOOKUP($A21,'4 - Nutritional practices'!$A$5:$J$15,6,FALSE),"") ->  | BB21: =_xlfn.IFNA(VLOOKUP($A21,'4 - Access SRH'!$A$5:$I$9,9,FALSE),"") ->  | BC21: =_xlfn.IFNA(VLOOKUP($A21,'4 - Livelihood recovery'!$A$5:$J$22,6,FALSE),"") ->  | BD21: =_xlfn.IFNA(VLOOKUP($A21,'5 - Satisfaction'!$A$5:$J$33,6,FALSE),"") ->  | BE21: =_xlfn.IFNA(VLOOKUP($A21,'6 - Met demand'!$A$7:$H$16,8,FALSE),"") ->  | BF21: =_xlfn.IFNA(VLOOKUP($A21,'7 - SBA'!$A$7:$H$16,8,FALSE),"") ->  | BG21: =_xlfn.IFNA(VLOOKUP($A21,'8 - ABR'!$A$7:$H$9,8,FALSE),"") ->  | BH21: =_xlfn.IFNA(VLOOKUP($A21,'9 - SRH decisions'!$A$7:$H$11,8,FALSE),"") ->  | BI21: =_xlfn.IFNA(VLOOKUP($A21,'10 - Rejecting IPV'!$A$7:$H$14,8,FALSE),"") ->  | BJ21: =_xlfn.IFNA(VLOOKUP($A21,'11 - violence by partner'!$A$7:$H$10,8,FALSE),"") ->  | BK21: =_xlfn.IFNA(VLOOKUP($A21,'12 - sexual violence'!$A$7:$H$9,8,FALSE),"") ->  | BL21: =_xlfn.IFNA(VLOOKUP($A21,'13 - Food insecurity'!$A$5:$L$25,9,FALSE),"") ->  | BM21: =_xlfn.IFNA(VLOOKUP($A21,'14 - Stunting'!$A$5:$L$13,9,FALSE),"") ->  | BN21: =_xlfn.IFNA(VLOOKUP($A21,'15 - Resilience capacity'!$A$5:$L$33,9,FALSE),"") ->  | BO21: =_xlfn.IFNA(VLOOKUP($A21,'WEE summary'!$A$4:$G$102,7,FALSE),"") ->  | BP21: =_xlfn.IFNA(VLOOKUP($A21,'17 - HH $ decisions'!$A$5:$L$46,7,FALSE),"") ->  | BQ21: =_xlfn.IFNA(VLOOKUP($A21,'18 - Labor rights'!$A$5:$L$23,7,FALSE),"") ->  | BR21: =_xlfn.IFNA(VLOOKUP($A21,'19 - Participation'!$A$5:$L$33,8,FALSE),"") ->  | BS21: =_xlfn.IFNA(A21&": "&VLOOKUP($A21,'20 - Policies'!$A$5:$J$62,5,FALSE),"") ->  | BT21: =_xlfn.IFNA(VLOOKUP($A21,'21 - Resilience actions'!$A$5:$L$28,9,FALSE),"") -> 
A22: Social and Economic Transformation of the Ultra-poor (SETU) Phase II | B22: Bangladesh | C22: =_xlfn.IFNA(VLOOKUP(A22,'PIIRS FY16 Indicators data'!F:G,2,FALSE),"") -> CARE USA | D22: =_xlfn.IFNA(VLOOKUP($A22,'PIIRS FY16 Indicators data'!$F$2:$S$1045,5,FALSE),"") -> Department for International Development (DfID) | E22: =_xlfn.IFNA(IF(VLOOKUP($A22,'PIIRS FY16 Indicators data'!$F$2:$S$1045,14,FALSE)="",TEXT(VLOOKUP($A22,'PIIRS FY16 Indicators data'!$F$2:$S$1045,12,FALSE),"mmm-yy")&" to "&TEXT(VLOOKUP($A22,'PIIRS FY16 Indicators data'!$F$2:$S$1045,13,FALSE),"mmm-yy"),TEXT(VLOOKUP($A22,'PIIRS FY16 Indicators data'!$F$2:$S$1045,12,FALSE),"mmm-yy")&" to "&TEXT(VLOOKUP($A22,'PIIRS FY16 Indicators data'!$F$2:$S$1045,14,FALSE),"mmm-yy")),"") -> Mar-12 to Aug-16 | F22: =_xlfn.IFNA(VLOOKUP(A22,'1 - poverty ($1.90)'!$A$7:$G$9,7,FALSE),"") -> 142096.25 | G22: =_xlfn.IFNA(VLOOKUP(A22,'2 - poverty (nat pov line)'!$A$7:$G$10,7,FALSE),"") ->  | H22: =_xlfn.IFNA(VLOOKUP(B22,'3 - basic services'!$A$7:$G$10,7,FALSE),"") ->  | I22: 142096.25 | J22: =_xlfn.IFNA(VLOOKUP($A22,'4 - Shelter'!$A$5:$S$21,3,FALSE),"") ->  | K22: =_xlfn.IFNA(VLOOKUP($A22,'4 - Safe Water'!$A$5:$S$22,3,FALSE),"") ->  | L22: =_xlfn.IFNA(VLOOKUP($A22,'4 - Adequate Sanitation'!$A$5:$S$18,3,FALSE),"") ->  | M22: =_xlfn.IFNA(VLOOKUP($A22,'4 - Hygiene Practices'!$A$5:$S$24,3,FALSE),"") ->  | N22: =_xlfn.IFNA(VLOOKUP($A22,'4 - Adequate food'!$A$5:$S$26,3,FALSE),"") ->  | O22: =_xlfn.IFNA(VLOOKUP($A22,'4 - Nutritional practices'!$A$5:$S$13,3,FALSE),"") ->  | P22: =_xlfn.IFNA(VLOOKUP($A22,'4 - Access SRH'!$A$5:$V$7,3,FALSE),"") ->  | Q22: =_xlfn.IFNA(VLOOKUP($A22,'4 - Livelihood recovery'!$A$5:$S$20,3,FALSE),"") ->  | R22: =_xlfn.IFNA(VLOOKUP($A22,'5 - Satisfaction'!$A$6:$Y$31,5,FALSE),"") ->  | S22: 0 | T22: =_xlfn.IFNA(VLOOKUP($A22,'6 - Met demand'!$A$7:$AD$15,7,FALSE),"") ->  | U22: =_xlfn.IFNA(VLOOKUP($A22,'7 - SBA'!$A$7:$AC$14,7,FALSE),"") ->  | W22: =_xlfn.IFNA(VLOOKUP($A22,'9 - SRH decisions'!$A$7:$AC$9,7,FALSE),"") ->  | X22: 0 | Y22: =_xlfn.IFNA(VLOOKUP($A22,'10 - Rejecting IPV'!$A$7:$AG$12,7,FALSE),"") ->  | Z22: =_xlfn.IFNA(VLOOKUP($A22,'11 - violence by partner'!$A$7:$AC$8,7,FALSE),"") ->  | AB22: 0 | AC22: 0 | AD22: =_xlfn.IFNA(VLOOKUP($A22,'13 - Food insecurity'!$A$6:$AF$23,7,FALSE),"") -> 142096.25 | AE22: =_xlfn.IFNA(VLOOKUP($A22,'14 - Stunting'!$A$5:$AI$11,7,FALSE),"") ->  | AF22: =_xlfn.IFNA(VLOOKUP($A22,'15 - Resilience capacity'!$A$6:$AE$30,7,FALSE),"") ->  | AG22: 142096.25 | AH22: 142096.25 | AI22: =_xlfn.IFNA(VLOOKUP($A22,'WEE summary'!$A$4:$E$102,3,FALSE),"") -> 20266 | AJ22: =_xlfn.IFNA(VLOOKUP($A22,'WEE summary'!$A$4:$E$102,4,FALSE),"") -> 3319.1828 | AK22: =_xlfn.IFNA(VLOOKUP($A22,'WEE summary'!$A$4:$E$102,5,FALSE),"") ->  | AL22: 20266 | AM22: =_xlfn.IFNA(VLOOKUP($A22,'19 - Participation'!$A$5:$G$31,7,FALSE),"") ->  | AN22: =_xlfn.IFNA(VLOOKUP(A22,'20 - Policies'!A:C,3,FALSE),"") ->  | AO22: =_xlfn.IFNA(VLOOKUP(A22,'21 - Resilience actions'!$A$7:$G$26,7,FALSE),"") ->  | AP22: 142096.25 | AQ22: 142096.25 | AS22: =_xlfn.IFNA(VLOOKUP($A22,'1 - poverty ($1.90)'!$A$7:$H$9,8,FALSE),"") -> Social and Economic Transformation of the Ultra-poor (SETU) Phase II contributed to reducing poverty by 95% (from 100% to 5%), enabling 142,096 people to escape poverty | AT22: =_xlfn.IFNA(VLOOKUP($A22,'2 - poverty (nat pov line)'!$A$7:$H$9,8,FALSE),"") ->  | AU22: =_xlfn.IFNA(VLOOKUP($A22,'3 - basic services'!$A$7:$H$9,8,FALSE),"") ->  | AV22: =_xlfn.IFNA(VLOOKUP($A22,'4 - Shelter'!$A$5:$J$23,6,FALSE),"") ->  | AW22: =_xlfn.IFNA(VLOOKUP($A22,'4 - Safe Water'!$A$5:$J$24,6,FALSE),"") ->  | AX22: =_xlfn.IFNA(VLOOKUP($A22,'4 - Adequate Sanitation'!$A$5:$J$20,6,FALSE),"") ->  | AY22: =_xlfn.IFNA(VLOOKUP($A22,'4 - Hygiene Practices'!$A$5:$J$26,6,FALSE),"") ->  | AZ22: =_xlfn.IFNA(VLOOKUP($A22,'4 - Adequate food'!$A$5:$J$28,6,FALSE),"") ->  | BA22: =_xlfn.IFNA(VLOOKUP($A22,'4 - Nutritional practices'!$A$5:$J$15,6,FALSE),"") ->  | BB22: =_xlfn.IFNA(VLOOKUP($A22,'4 - Access SRH'!$A$5:$I$9,9,FALSE),"") ->  | BC22: =_xlfn.IFNA(VLOOKUP($A22,'4 - Livelihood recovery'!$A$5:$J$22,6,FALSE),"") ->  | BD22: =_xlfn.IFNA(VLOOKUP($A22,'5 - Satisfaction'!$A$5:$J$33,6,FALSE),"") ->  | BE22: =_xlfn.IFNA(VLOOKUP($A22,'6 - Met demand'!$A$7:$H$16,8,FALSE),"") ->  | BF22: =_xlfn.IFNA(VLOOKUP($A22,'7 - SBA'!$A$7:$H$16,8,FALSE),"") ->  | BG22: =_xlfn.IFNA(VLOOKUP($A22,'8 - ABR'!$A$7:$H$9,8,FALSE),"") ->  | BH22: =_xlfn.IFNA(VLOOKUP($A22,'9 - SRH decisions'!$A$7:$H$11,8,FALSE),"") ->  | BI22: =_xlfn.IFNA(VLOOKUP($A22,'10 - Rejecting IPV'!$A$7:$H$14,8,FALSE),"") ->  | BJ22: =_xlfn.IFNA(VLOOKUP($A22,'11 - violence by partner'!$A$7:$H$10,8,FALSE),"") ->  | BK22: =_xlfn.IFNA(VLOOKUP($A22,'12 - sexual violence'!$A$7:$H$9,8,FALSE),"") ->  | BL22: =_xlfn.IFNA(VLOOKUP($A22,'13 - Food insecurity'!$A$5:$L$25,9,FALSE),"") -> Social and Economic Transformation of the Ultra-poor (SETU) Phase II contributed to reducing food insecurity by 95% (from 100% to 5%), increasing food security for 142,096 people | BM22: =_xlfn.IFNA(VLOOKUP($A22,'14 - Stunting'!$A$5:$L$13,9,FALSE),"") ->  | BN22: =_xlfn.IFNA(VLOOKUP($A22,'15 - Resilience capacity'!$A$5:$L$33,9,FALSE),"") ->  | BO22: =_xlfn.IFNA(VLOOKUP($A22,'WEE summary'!$A$4:$G$102,7,FALSE),"") -> Social and Economic Transformation of the Ultra-poor (SETU) Phase II enabled 20,266 women to access formal or informal financial services | BP22: =_xlfn.IFNA(VLOOKUP($A22,'17 - HH $ decisions'!$A$5:$L$46,7,FALSE),"") -> Social and Economic Transformation of the Ultra-poor (SETU) Phase II contributed to increasing the proportion of women able to participate equally in HH financial decisions by 4.3% (from 0.7% to 5%), enabling an additional 3,319 women to have control over economic resources | BQ22: =_xlfn.IFNA(VLOOKUP($A22,'18 - Labor rights'!$A$5:$L$23,7,FALSE),"") ->  | BR22: =_xlfn.IFNA(VLOOKUP($A22,'19 - Participation'!$A$5:$L$33,8,FALSE),"") ->  | BS22: =_xlfn.IFNA(A22&": "&VLOOKUP($A22,'20 - Policies'!$A$5:$J$62,5,FALSE),"") ->  | BT22: =_xlfn.IFNA(VLOOKUP($A22,'21 - Resilience actions'!$A$5:$L$28,9,FALSE),"") -> 
A23: Strengthening the Dairy Value Chain project II (SDVC II) | B23: Bangladesh | C23: =_xlfn.IFNA(VLOOKUP(A23,'PIIRS FY16 Indicators data'!F:G,2,FALSE),"") -> CARE USA | D23: =_xlfn.IFNA(VLOOKUP($A23,'PIIRS FY16 Indicators data'!$F$2:$S$1045,5,FALSE),"") -> Bill & Melinda Gates Foundation | E23: =_xlfn.IFNA(IF(VLOOKUP($A23,'PIIRS FY16 Indicators data'!$F$2:$S$1045,14,FALSE)="",TEXT(VLOOKUP($A23,'PIIRS FY16 Indicators data'!$F$2:$S$1045,12,FALSE),"mmm-yy")&" to "&TEXT(VLOOKUP($A23,'PIIRS FY16 Indicators data'!$F$2:$S$1045,13,FALSE),"mmm-yy"),TEXT(VLOOKUP($A23,'PIIRS FY16 Indicators data'!$F$2:$S$1045,12,FALSE),"mmm-yy")&" to "&TEXT(VLOOKUP($A23,'PIIRS FY16 Indicators data'!$F$2:$S$1045,14,FALSE),"mmm-yy")),"") -> Jan-13 to Dec-16 | F23: =_xlfn.IFNA(VLOOKUP(A23,'1 - poverty ($1.90)'!$A$7:$G$9,7,FALSE),"") ->  | G23: =_xlfn.IFNA(VLOOKUP(A23,'2 - poverty (nat pov line)'!$A$7:$G$10,7,FALSE),"") ->  | H23: =_xlfn.IFNA(VLOOKUP(B23,'3 - basic services'!$A$7:$G$10,7,FALSE),"") ->  | I23: 0 | J23: =_xlfn.IFNA(VLOOKUP($A23,'4 - Shelter'!$A$5:$S$21,3,FALSE),"") ->  | K23: =_xlfn.IFNA(VLOOKUP($A23,'4 - Safe Water'!$A$5:$S$22,3,FALSE),"") ->  | L23: =_xlfn.IFNA(VLOOKUP($A23,'4 - Adequate Sanitation'!$A$5:$S$18,3,FALSE),"") ->  | M23: =_xlfn.IFNA(VLOOKUP($A23,'4 - Hygiene Practices'!$A$5:$S$24,3,FALSE),"") ->  | N23: =_xlfn.IFNA(VLOOKUP($A23,'4 - Adequate food'!$A$5:$S$26,3,FALSE),"") ->  | O23: =_xlfn.IFNA(VLOOKUP($A23,'4 - Nutritional practices'!$A$5:$S$13,3,FALSE),"") ->  | P23: =_xlfn.IFNA(VLOOKUP($A23,'4 - Access SRH'!$A$5:$V$7,3,FALSE),"") ->  | Q23: =_xlfn.IFNA(VLOOKUP($A23,'4 - Livelihood recovery'!$A$5:$S$20,3,FALSE),"") ->  | R23: =_xlfn.IFNA(VLOOKUP($A23,'5 - Satisfaction'!$A$6:$Y$31,5,FALSE),"") ->  | S23: 0 | T23: =_xlfn.IFNA(VLOOKUP($A23,'6 - Met demand'!$A$7:$AD$15,7,FALSE),"") ->  | U23: =_xlfn.IFNA(VLOOKUP($A23,'7 - SBA'!$A$7:$AC$14,7,FALSE),"") ->  | W23: =_xlfn.IFNA(VLOOKUP($A23,'9 - SRH decisions'!$A$7:$AC$9,7,FALSE),"") ->  | X23: 0 | Y23: =_xlfn.IFNA(VLOOKUP($A23,'10 - Rejecting IPV'!$A$7:$AG$12,7,FALSE),"") ->  | Z23: =_xlfn.IFNA(VLOOKUP($A23,'11 - violence by partner'!$A$7:$AC$8,7,FALSE),"") ->  | AB23: 0 | AC23: 0 | AD23: =_xlfn.IFNA(VLOOKUP($A23,'13 - Food insecurity'!$A$6:$AF$23,7,FALSE),"") ->  | AE23: =_xlfn.IFNA(VLOOKUP($A23,'14 - Stunting'!$A$5:$AI$11,7,FALSE),"") ->  | AF23: =_xlfn.IFNA(VLOOKUP($A23,'15 - Resilience capacity'!$A$6:$AE$30,7,FALSE),"") ->  | AG23: 0 | AH23: 0 | AI23: =_xlfn.IFNA(VLOOKUP($A23,'WEE summary'!$A$4:$E$102,3,FALSE),"") -> 7029.6 | AJ23: =_xlfn.IFNA(VLOOKUP($A23,'WEE summary'!$A$4:$E$102,4,FALSE),"") -> 10310.08 | AK23: =_xlfn.IFNA(VLOOKUP($A23,'WEE summary'!$A$4:$E$102,5,FALSE),"") -> 0 | AL23: 10310.08 | AM23: =_xlfn.IFNA(VLOOKUP($A23,'19 - Participation'!$A$5:$G$31,7,FALSE),"") ->  | AN23: =_xlfn.IFNA(VLOOKUP(A23,'20 - Policies'!A:C,3,FALSE),"") ->  | AO23: =_xlfn.IFNA(VLOOKUP(A23,'21 - Resilience actions'!$A$7:$G$26,7,FALSE),"") ->  | AP23: 10310.08 | AQ23: 10310.08 | AS23: =_xlfn.IFNA(VLOOKUP($A23,'1 - poverty ($1.90)'!$A$7:$H$9,8,FALSE),"") ->  | AT23: =_xlfn.IFNA(VLOOKUP($A23,'2 - poverty (nat pov line)'!$A$7:$H$9,8,FALSE),"") ->  | AU23: =_xlfn.IFNA(VLOOKUP($A23,'3 - basic services'!$A$7:$H$9,8,FALSE),"") ->  | AV23: =_xlfn.IFNA(VLOOKUP($A23,'4 - Shelter'!$A$5:$J$23,6,FALSE),"") ->  | AW23: =_xlfn.IFNA(VLOOKUP($A23,'4 - Safe Water'!$A$5:$J$24,6,FALSE),"") ->  | AX23: =_xlfn.IFNA(VLOOKUP($A23,'4 - Adequate Sanitation'!$A$5:$J$20,6,FALSE),"") ->  | AY23: =_xlfn.IFNA(VLOOKUP($A23,'4 - Hygiene Practices'!$A$5:$J$26,6,FALSE),"") ->  | AZ23: =_xlfn.IFNA(VLOOKUP($A23,'4 - Adequate food'!$A$5:$J$28,6,FALSE),"") ->  | BA23: =_xlfn.IFNA(VLOOKUP($A23,'4 - Nutritional practices'!$A$5:$J$15,6,FALSE),"") ->  | BB23: =_xlfn.IFNA(VLOOKUP($A23,'4 - Access SRH'!$A$5:$I$9,9,FALSE),"") ->  | BC23: =_xlfn.IFNA(VLOOKUP($A23,'4 - Livelihood recovery'!$A$5:$J$22,6,FALSE),"") ->  | BD23: =_xlfn.IFNA(VLOOKUP($A23,'5 - Satisfaction'!$A$5:$J$33,6,FALSE),"") ->  | BE23: =_xlfn.IFNA(VLOOKUP($A23,'6 - Met demand'!$A$7:$H$16,8,FALSE),"") ->  | BF23: =_xlfn.IFNA(VLOOKUP($A23,'7 - SBA'!$A$7:$H$16,8,FALSE),"") ->  | BG23: =_xlfn.IFNA(VLOOKUP($A23,'8 - ABR'!$A$7:$H$9,8,FALSE),"") ->  | BH23: =_xlfn.IFNA(VLOOKUP($A23,'9 - SRH decisions'!$A$7:$H$11,8,FALSE),"") ->  | BI23: =_xlfn.IFNA(VLOOKUP($A23,'10 - Rejecting IPV'!$A$7:$H$14,8,FALSE),"") ->  | BJ23: =_xlfn.IFNA(VLOOKUP($A23,'11 - violence by partner'!$A$7:$H$10,8,FALSE),"") ->  | BK23: =_xlfn.IFNA(VLOOKUP($A23,'12 - sexual violence'!$A$7:$H$9,8,FALSE),"") ->  | BL23: =_xlfn.IFNA(VLOOKUP($A23,'13 - Food insecurity'!$A$5:$L$25,9,FALSE),"") ->  | BM23: =_xlfn.IFNA(VLOOKUP($A23,'14 - Stunting'!$A$5:$L$13,9,FALSE),"") ->  | BN23: =_xlfn.IFNA(VLOOKUP($A23,'15 - Resilience capacity'!$A$5:$L$33,9,FALSE),"") ->  | BO23: =_xlfn.IFNA(VLOOKUP($A23,'WEE summary'!$A$4:$G$102,7,FALSE),"") -> Strengthening the Dairy Value Chain project II (SDVC II) enabled 7,030 women to access formal or informal financial services | BP23: =_xlfn.IFNA(VLOOKUP($A23,'17 - HH $ decisions'!$A$5:$L$46,7,FALSE),"") -> Strengthening the Dairy Value Chain project II (SDVC II) contributed to increasing the proportion of women able to participate equally in HH financial decisions by 44% (from 43% to 87%), enabling an additional 10,310 women to have control over economic resources | BQ23: =_xlfn.IFNA(VLOOKUP($A23,'18 - Labor rights'!$A$5:$L$23,7,FALSE),"") -> Strengthening the Dairy Value Chain project II (SDVC II) contributed to increasing the proportion of women who are members of groups by 0% (from 100% to 100%), enabling an additional 0 women to claim their rights | BR23: =_xlfn.IFNA(VLOOKUP($A23,'19 - Participation'!$A$5:$L$33,8,FALSE),"") ->  | BS23: =_xlfn.IFNA(A23&": "&VLOOKUP($A23,'20 - Policies'!$A$5:$J$62,5,FALSE),"") ->  | BT23: =_xlfn.IFNA(VLOOKUP($A23,'21 - Resilience actions'!$A$5:$L$28,9,FALSE),"") -> 
A24: Tipping Point Project: Innovation and Advocacy in Addressing Underlying Causes of Child Marriage | B24: Bangladesh | C24: =_xlfn.IFNA(VLOOKUP(A24,'PIIRS FY16 Indicators data'!F:G,2,FALSE),"") -> CARE USA | D24: =_xlfn.IFNA(VLOOKUP($A24,'PIIRS FY16 Indicators data'!$F$2:$S$1045,5,FALSE),"") -> The KENDIDA FUND | E24: =_xlfn.IFNA(IF(VLOOKUP($A24,'PIIRS FY16 Indicators data'!$F$2:$S$1045,14,FALSE)="",TEXT(VLOOKUP($A24,'PIIRS FY16 Indicators data'!$F$2:$S$1045,12,FALSE),"mmm-yy")&" to "&TEXT(VLOOKUP($A24,'PIIRS FY16 Indicators data'!$F$2:$S$1045,13,FALSE),"mmm-yy"),TEXT(VLOOKUP($A24,'PIIRS FY16 Indicators data'!$F$2:$S$1045,12,FALSE),"mmm-yy")&" to "&TEXT(VLOOKUP($A24,'PIIRS FY16 Indicators data'!$F$2:$S$1045,14,FALSE),"mmm-yy")),"") -> Jul-13 to Apr-17 | F24: =_xlfn.IFNA(VLOOKUP(A24,'1 - poverty ($1.90)'!$A$7:$G$9,7,FALSE),"") ->  | G24: =_xlfn.IFNA(VLOOKUP(A24,'2 - poverty (nat pov line)'!$A$7:$G$10,7,FALSE),"") ->  | H24: =_xlfn.IFNA(VLOOKUP(B24,'3 - basic services'!$A$7:$G$10,7,FALSE),"") ->  | I24: 0 | J24: =_xlfn.IFNA(VLOOKUP($A24,'4 - Shelter'!$A$5:$S$21,3,FALSE),"") ->  | K24: =_xlfn.IFNA(VLOOKUP($A24,'4 - Safe Water'!$A$5:$S$22,3,FALSE),"") ->  | L24: =_xlfn.IFNA(VLOOKUP($A24,'4 - Adequate Sanitation'!$A$5:$S$18,3,FALSE),"") ->  | M24: =_xlfn.IFNA(VLOOKUP($A24,'4 - Hygiene Practices'!$A$5:$S$24,3,FALSE),"") ->  | N24: =_xlfn.IFNA(VLOOKUP($A24,'4 - Adequate food'!$A$5:$S$26,3,FALSE),"") ->  | O24: =_xlfn.IFNA(VLOOKUP($A24,'4 - Nutritional practices'!$A$5:$S$13,3,FALSE),"") ->  | P24: =_xlfn.IFNA(VLOOKUP($A24,'4 - Access SRH'!$A$5:$V$7,3,FALSE),"") ->  | Q24: =_xlfn.IFNA(VLOOKUP($A24,'4 - Livelihood recovery'!$A$5:$S$20,3,FALSE),"") ->  | R24: =_xlfn.IFNA(VLOOKUP($A24,'5 - Satisfaction'!$A$6:$Y$31,5,FALSE),"") ->  | S24: 0 | T24: =_xlfn.IFNA(VLOOKUP($A24,'6 - Met demand'!$A$7:$AD$15,7,FALSE),"") ->  | U24: =_xlfn.IFNA(VLOOKUP($A24,'7 - SBA'!$A$7:$AC$14,7,FALSE),"") ->  | W24: =_xlfn.IFNA(VLOOKUP($A24,'9 - SRH decisions'!$A$7:$AC$9,7,FALSE),"") ->  | X24: 0 | Y24: =_xlfn.IFNA(VLOOKUP($A24,'10 - Rejecting IPV'!$A$7:$AG$12,7,FALSE),"") ->  | Z24: =_xlfn.IFNA(VLOOKUP($A24,'11 - violence by partner'!$A$7:$AC$8,7,FALSE),"") ->  | AB24: 0 | AC24: 0 | AD24: =_xlfn.IFNA(VLOOKUP($A24,'13 - Food insecurity'!$A$6:$AF$23,7,FALSE),"") ->  | AE24: =_xlfn.IFNA(VLOOKUP($A24,'14 - Stunting'!$A$5:$AI$11,7,FALSE),"") ->  | AF24: =_xlfn.IFNA(VLOOKUP($A24,'15 - Resilience capacity'!$A$6:$AE$30,7,FALSE),"") ->  | AG24: 0 | AH24: 0 | AI24: =_xlfn.IFNA(VLOOKUP($A24,'WEE summary'!$A$4:$E$102,3,FALSE),"") ->  | AJ24: =_xlfn.IFNA(VLOOKUP($A24,'WEE summary'!$A$4:$E$102,4,FALSE),"") ->  | AK24: =_xlfn.IFNA(VLOOKUP($A24,'WEE summary'!$A$4:$E$102,5,FALSE),"") ->  | AL24: 0 | AM24: =_xlfn.IFNA(VLOOKUP($A24,'19 - Participation'!$A$5:$G$31,7,FALSE),"") ->  | AN24: =_xlfn.IFNA(VLOOKUP(A24,'20 - Policies'!A:C,3,FALSE),"") -> Yes | AO24: =_xlfn.IFNA(VLOOKUP(A24,'21 - Resilience actions'!$A$7:$G$26,7,FALSE),"") ->  | AP24: 0 | AQ24: 0 | AS24: =_xlfn.IFNA(VLOOKUP($A24,'1 - poverty ($1.90)'!$A$7:$H$9,8,FALSE),"") ->  | AT24: =_xlfn.IFNA(VLOOKUP($A24,'2 - poverty (nat pov line)'!$A$7:$H$9,8,FALSE),"") ->  | AU24: =_xlfn.IFNA(VLOOKUP($A24,'3 - basic services'!$A$7:$H$9,8,FALSE),"") ->  | AV24: =_xlfn.IFNA(VLOOKUP($A24,'4 - Shelter'!$A$5:$J$23,6,FALSE),"") ->  | AW24: =_xlfn.IFNA(VLOOKUP($A24,'4 - Safe Water'!$A$5:$J$24,6,FALSE),"") ->  | AX24: =_xlfn.IFNA(VLOOKUP($A24,'4 - Adequate Sanitation'!$A$5:$J$20,6,FALSE),"") ->  | AY24: =_xlfn.IFNA(VLOOKUP($A24,'4 - Hygiene Practices'!$A$5:$J$26,6,FALSE),"") ->  | AZ24: =_xlfn.IFNA(VLOOKUP($A24,'4 - Adequate food'!$A$5:$J$28,6,FALSE),"") ->  | BA24: =_xlfn.IFNA(VLOOKUP($A24,'4 - Nutritional practices'!$A$5:$J$15,6,FALSE),"") ->  | BB24: =_xlfn.IFNA(VLOOKUP($A24,'4 - Access SRH'!$A$5:$I$9,9,FALSE),"") ->  | BC24: =_xlfn.IFNA(VLOOKUP($A24,'4 - Livelihood recovery'!$A$5:$J$22,6,FALSE),"") ->  | BD24: =_xlfn.IFNA(VLOOKUP($A24,'5 - Satisfaction'!$A$5:$J$33,6,FALSE),"") ->  | BE24: =_xlfn.IFNA(VLOOKUP($A24,'6 - Met demand'!$A$7:$H$16,8,FALSE),"") ->  | BF24: =_xlfn.IFNA(VLOOKUP($A24,'7 - SBA'!$A$7:$H$16,8,FALSE),"") ->  | BG24: =_xlfn.IFNA(VLOOKUP($A24,'8 - ABR'!$A$7:$H$9,8,FALSE),"") ->  | BH24: =_xlfn.IFNA(VLOOKUP($A24,'9 - SRH decisions'!$A$7:$H$11,8,FALSE),"") ->  | BI24: =_xlfn.IFNA(VLOOKUP($A24,'10 - Rejecting IPV'!$A$7:$H$14,8,FALSE),"") ->  | BJ24: =_xlfn.IFNA(VLOOKUP($A24,'11 - violence by partner'!$A$7:$H$10,8,FALSE),"") ->  | BK24: =_xlfn.IFNA(VLOOKUP($A24,'12 - sexual violence'!$A$7:$H$9,8,FALSE),"") ->  | BL24: =_xlfn.IFNA(VLOOKUP($A24,'13 - Food insecurity'!$A$5:$L$25,9,FALSE),"") ->  | BM24: =_xlfn.IFNA(VLOOKUP($A24,'14 - Stunting'!$A$5:$L$13,9,FALSE),"") ->  | BN24: =_xlfn.IFNA(VLOOKUP($A24,'15 - Resilience capacity'!$A$5:$L$33,9,FALSE),"") ->  | BO24: =_xlfn.IFNA(VLOOKUP($A24,'WEE summary'!$A$4:$G$102,7,FALSE),"") ->  | BP24: =_xlfn.IFNA(VLOOKUP($A24,'17 - HH $ decisions'!$A$5:$L$46,7,FALSE),"") ->  | BQ24: =_xlfn.IFNA(VLOOKUP($A24,'18 - Labor rights'!$A$5:$L$23,7,FALSE),"") ->  | BR24: =_xlfn.IFNA(VLOOKUP($A24,'19 - Participation'!$A$5:$L$33,8,FALSE),"") ->  | BS24: =_xlfn.IFNA(A24&": "&VLOOKUP($A24,'20 - Policies'!$A$5:$J$62,5,FALSE),"") -> Tipping Point Project: Innovation and Advocacy in Addressing Underlying Causes of Child Marriage: Policy Oversight | BT24: =_xlfn.IFNA(VLOOKUP($A24,'21 - Resilience actions'!$A$5:$L$28,9,FALSE),"") ->  | BU24: 1
B25: Bangladesh Total | F25: =SUBTOTAL(9,F10:F24) -> 143723.45 | G25: 0 | H25: 0 | I25: 143723.45 | J25: 108127 | K25: 212738 | L25: 0 | M25: 0 | N25: 108127 | O25: 0 | P25: 0 | Q25: 108258 | R25: 304387 | S25: 320996 | T25: 0 | U25: 2880.566 | V25: 0 | W25: 0 | X25: 2880.566 | Y25: 0 | Z25: 0 | AA25: 0 | AB25: 0 | AC25: 2880.566 | AD25: 1641520.75 | AE25: 113621.265 | AF25: 25078.5 | AG25: 1666599.25 | AH25: 1774857.25 | AI25: 61593.6 | AJ25: 101073.5558 | AK25: 2932.48 | AL25: 130926.303 | AM25: 6962.88 | AN25: =SUBTOTAL(9,AN10:AN24) -> 0 | AO25: 0 | AP25: 2021131.256 | AQ25: 2014168.376 | AS25: =_xlfn.TEXTJOIN(CHAR(10)&CHAR(10),TRUE,AS10:AS24) -> Promoting Sustainable Consumption and Production of Jute Diversified Product contributed to reducing poverty by 9% (from 44% to 35%), enabling 1,627 people to escape poverty Social and Economic Transformation of the Ultra-poor (SETU) Phase II contributed to reducing poverty by 95% (from 100% to 5%), enabling 142,096 people to escape poverty | AV25: Relief Support for flood and cyclone - affected populations in need in South-East Bangladesh (RESPONSE) provided adequate shelter/housing for 108,127 people, 57.5% of those requiring assistance | AW25: Distribution of P&G Water Purifiers During National Emergencies and Natural Disasters Project enabled access to safe drinking water for 196,260 people, 29.91% of those requiring assistance SHOUHARDO III enabled access to safe drinking water for 16,478 people | AZ25: =_xlfn.TEXTJOIN(CHAR(10)&CHAR(10),TRUE,AZ10:AZ24) -> Relief Support for flood and cyclone - affected populations in need in South-East Bangladesh (RESPONSE) enabled the provision of adequate food for 108,127 people, 57.5% of those requiring assistance | BC25: Building Resilience of the Urban Poor (BRUP) project supported recovery of goods, assets or income opportunities for 131 people, 100% of those requiring assistance Relief Support for flood and cyclone - affected populations in need in South-East Bangladesh (RESPONSE) supported recovery of goods, assets or income opportunities for 108,127 people, 57.5% of those requiring assistance | BD25: Distribution of P&G Water Purifiers During National Emergencies and Natural Disasters Project: 196,260 people were satisified with the humanitarian assistance (100% of those receiving support) Relief Support for flood and cyclone - affected populations in need in South-East Bangladesh (RESPONSE): 108,127 people were satisified with the humanitarian assistance (100% of those receiving support) | BE25: =_xlfn.TEXTJOIN(CHAR(10)&CHAR(10),TRUE,BE10:BE24) ->  | BF25: CARE - GlaxoSmithKline Community Health Worker Initiaitve contributed to increasing the proportion of births attended by skilled health personnel by 18.7% (from 11.2% to 29.9%), enabling an additional 1,802 women to have their births attended by skilled personnel, and a total of 2,881 women to exercise their SRMH rights | BI25: =_xlfn.TEXTJOIN(CHAR(10)&CHAR(10),TRUE,BI10:BI24) ->  | BJ25: =_xlfn.TEXTJOIN(CHAR(10)&CHAR(10),TRUE,BJ10:BJ24) ->  | BK25: =_xlfn.TEXTJOIN(CHAR(10)&CHAR(10),TRUE,BK10:BK24) ->  | BL25: =_xlfn.TEXTJOIN(CHAR(10)&CHAR(10),TRUE,BL10:BL24) -> SHOUHARDO II contributed to reducing food insecurity by 49% (from 91.4% to 42.4%), increasing food security for 1,499,425 people Social and Economic Transformation of the Ultra-poor (SETU) Phase II contributed to reducing food insecurity by 95% (from 100% to 5%), increasing food security for 142,096 people | BM25: SHOUHARDO II contributed to reducing stunting by 12.9% (from 61.7% to 48.8% - a reduction of 2.6 percentage points a year), enabling 25,249 children under 5 to escape stunting, and increasing food & nutrition security for 113,621 people | BN25: =_xlfn.TEXTJOIN(CHAR(10)&CHAR(10),TRUE,BN10:BN24) -> Pathways to Secure and Resilient livelihoods Project contributed to increasing ability to build resilience for 100 % of participants, increasing resilience for 25,079 people | BO25: OIKKO("Unity")- united for translating rights into action NOW! enabled 780 women to access formal or informal financial services Promoting Sustainable Consumption and Production of Jute Diversified Product enabled 10,240 women to access formal or informal financial services SHOUHARDO II enabled 23,278 women to access formal or informal financial services Social and Economic Transformation of the Ultra-poor (SETU) Phase II enabled 20,266 women to access formal or informal financial services Strengthening the Dairy Value Chain project II (SDVC II) enabled 7,030 women to access formal or informal financial services | BP25: Empowering Marginalized Women Garment Workers and Women Financial Services Agents in Bangladesh(VISA) contributed to increasing the proportion of women able to participate equally in HH financial decisions by 35% (from 25% to 60%), enabling an additional 210 women to have control over economic resources OIKKO("Unity")- united for translating rights into action NOW! contributed to increasing the proportion of women able to participate equally in HH financial decisions by 17.8% (from 26.6% to 44.3%), enabling an additional 267 women to have control over economic resources Pathways to Secure and Resilient livelihoods Project contributed to increasing the proportion of women able to participate equally in HH financial decisions by 12.1% (from 17% to 29.1%), enabling an additional 674 women to have control over economic resources SHOUHARDO II contributed to increasing the proportion of women able to participate equally in HH financial decisions by 14.1% (from 5.7% to 19.8%), enabling an additional 86,293 women to have control over economic resources Social and Economic Transformation of the Ultra-poor (SETU) Phase II contributed to increasing the proportion of women able to participate equally in HH financial decisions by 4.3% (from 0.7% to 5%), enabling an additional 3,319 women to have control over economic resources Strengthening the Dairy Value Chain project II (SDVC II) contributed to increasing the proportion of women able to participate equally in HH financial decisions by 44% (from 43% to 87%), enabling an additional 10,310 women to have control over economic resources | BQ25: OIKKO("Unity")- united for translating rights into action NOW! contributed to increasing the proportion of women who are members of groups by 96.9% (from 3.1% to 100%), enabling an additional 2,907 women to claim their rights Promoting Enabling Environemnt for Women in Fcatories Project (PEEWF) contributed to increasing the proportion of women who are members of groups by 1.1% (from 0.9% to 2%), enabling an additional 25 women to claim their rights Strengthening the Dairy Value Chain project II (SDVC II) contributed to increasing the proportion of women who are members of groups by 0% (from 100% to 100%), enabling an additional 0 women to claim their rights | BR25: JATRA (Journey for Advancement in Transperency, Representation and Accountability) contributed to increasing meaningful participation by 12%, enabling 6,963 people to participate in formal or informal decision-making spaces | BS25: JATRA (Journey for Advancement in Transperency, Representation and Accountability): Budget Oversight Tipping Point Project: Innovation and Advocacy in Addressing Underlying Causes of Child Marriage: Policy Oversight | BT25: =_xlfn.TEXTJOIN(CHAR(10)&CHAR(10),TRUE,BT10:BT24) ->  | BU25: =SUBTOTAL(9,BU10:BU24) -> 2
A26: Reponse de CARE suite aux inondations de 2015 au Nord du Benin | B26: Benin | C26: =_xlfn.IFNA(VLOOKUP(A26,'PIIRS FY16 Indicators data'!F:G,2,FALSE),"") -> CARE Canada | D26: =_xlfn.IFNA(VLOOKUP($A26,'PIIRS FY16 Indicators data'!$F$2:$S$1045,5,FALSE),"") -> Canada Department of Foreign Affairs, Trade and Development | E26: =_xlfn.IFNA(IF(VLOOKUP($A26,'PIIRS FY16 Indicators data'!$F$2:$S$1045,14,FALSE)="",TEXT(VLOOKUP($A26,'PIIRS FY16 Indicators data'!$F$2:$S$1045,12,FALSE),"mmm-yy")&" to "&TEXT(VLOOKUP($A26,'PIIRS FY16 Indicators data'!$F$2:$S$1045,13,FALSE),"mmm-yy"),TEXT(VLOOKUP($A26,'PIIRS FY16 Indicators data'!$F$2:$S$1045,12,FALSE),"mmm-yy")&" to "&TEXT(VLOOKUP($A26,'PIIRS FY16 Indicators data'!$F$2:$S$1045,14,FALSE),"mmm-yy")),"") -> Oct-15 to Mar-16 | F26: =_xlfn.IFNA(VLOOKUP(A26,'1 - poverty ($1.90)'!$A$7:$G$9,7,FALSE),"") ->  | G26: =_xlfn.IFNA(VLOOKUP(A26,'2 - poverty (nat pov line)'!$A$7:$G$10,7,FALSE),"") ->  | H26: =_xlfn.IFNA(VLOOKUP(B26,'3 - basic services'!$A$7:$G$10,7,FALSE),"") ->  | I26: 0 | J26: =_xlfn.IFNA(VLOOKUP($A26,'4 - Shelter'!$A$5:$S$21,3,FALSE),"") -> 1591 | K26: =_xlfn.IFNA(VLOOKUP($A26,'4 - Safe Water'!$A$5:$S$22,3,FALSE),"") ->  | L26: =_xlfn.IFNA(VLOOKUP($A26,'4 - Adequate Sanitation'!$A$5:$S$18,3,FALSE),"") ->  | M26: =_xlfn.IFNA(VLOOKUP($A26,'4 - Hygiene Practices'!$A$5:$S$24,3,FALSE),"") -> 12133 | N26: =_xlfn.IFNA(VLOOKUP($A26,'4 - Adequate food'!$A$5:$S$26,3,FALSE),"") ->  | O26: =_xlfn.IFNA(VLOOKUP($A26,'4 - Nutritional practices'!$A$5:$S$13,3,FALSE),"") ->  | P26: =_xlfn.IFNA(VLOOKUP($A26,'4 - Access SRH'!$A$5:$V$7,3,FALSE),"") ->  | Q26: =_xlfn.IFNA(VLOOKUP($A26,'4 - Livelihood recovery'!$A$5:$S$20,3,FALSE),"") ->  | R26: =_xlfn.IFNA(VLOOKUP($A26,'5 - Satisfaction'!$A$6:$Y$31,5,FALSE),"") ->  | S26: 12133 | T26: =_xlfn.IFNA(VLOOKUP($A26,'6 - Met demand'!$A$7:$AD$15,7,FALSE),"") ->  | U26: =_xlfn.IFNA(VLOOKUP($A26,'7 - SBA'!$A$7:$AC$14,7,FALSE),"") ->  | W26: =_xlfn.IFNA(VLOOKUP($A26,'9 - SRH decisions'!$A$7:$AC$9,7,FALSE),"") ->  | X26: 0 | Y26: =_xlfn.IFNA(VLOOKUP($A26,'10 - Rejecting IPV'!$A$7:$AG$12,7,FALSE),"") ->  | Z26: =_xlfn.IFNA(VLOOKUP($A26,'11 - violence by partner'!$A$7:$AC$8,7,FALSE),"") ->  | AB26: 0 | AC26: 0 | AD26: =_xlfn.IFNA(VLOOKUP($A26,'13 - Food insecurity'!$A$6:$AF$23,7,FALSE),"") ->  | AE26: =_xlfn.IFNA(VLOOKUP($A26,'14 - Stunting'!$A$5:$AI$11,7,FALSE),"") ->  | AF26: =_xlfn.IFNA(VLOOKUP($A26,'15 - Resilience capacity'!$A$6:$AE$30,7,FALSE),"") ->  | AG26: 0 | AH26: 0 | AI26: =_xlfn.IFNA(VLOOKUP($A26,'WEE summary'!$A$4:$E$102,3,FALSE),"") ->  | AJ26: =_xlfn.IFNA(VLOOKUP($A26,'WEE summary'!$A$4:$E$102,4,FALSE),"") ->  | AK26: =_xlfn.IFNA(VLOOKUP($A26,'WEE summary'!$A$4:$E$102,5,FALSE),"") ->  | AL26: 0 | AM26: =_xlfn.IFNA(VLOOKUP($A26,'19 - Participation'!$A$5:$G$31,7,FALSE),"") ->  | AN26: =_xlfn.IFNA(VLOOKUP(A26,'20 - Policies'!A:C,3,FALSE),"") ->  | AO26: =_xlfn.IFNA(VLOOKUP(A26,'21 - Resilience actions'!$A$7:$G$26,7,FALSE),"") ->  | AP26: =MAX(AM26, AL26,AG26,AB26,X26,S26,I26,AO26) -> 12133 | AQ26: =MAX(AL26,AG26,AB26,X26,S26,I26) -> 12133 | AS26: =_xlfn.IFNA(VLOOKUP($A26,'1 - poverty ($1.90)'!$A$7:$H$9,8,FALSE),"") ->  | AT26: =_xlfn.IFNA(VLOOKUP($A26,'2 - poverty (nat pov line)'!$A$7:$H$9,8,FALSE),"") ->  | AU26: =_xlfn.IFNA(VLOOKUP($A26,'3 - basic services'!$A$7:$H$9,8,FALSE),"") ->  | AV26: =_xlfn.IFNA(VLOOKUP($A26,'4 - Shelter'!$A$5:$J$23,6,FALSE),"") -> Reponse de CARE suite aux inondations de 2015 au Nord du Benin provided adequate shelter/housing for 1,591 people, 8.08% of those requiring assistance | AW26: =_xlfn.IFNA(VLOOKUP($A26,'4 - Safe Water'!$A$5:$J$24,6,FALSE),"") ->  | AX26: =_xlfn.IFNA(VLOOKUP($A26,'4 - Adequate Sanitation'!$A$5:$J$20,6,FALSE),"") ->  | AY26: =_xlfn.IFNA(VLOOKUP($A26,'4 - Hygiene Practices'!$A$5:$J$26,6,FALSE),"") -> Reponse de CARE suite aux inondations de 2015 au Nord du Benin enabled the use of adequate hygiene practices by 12,133 people, 61.09% of those requiring assistance | AZ26: =_xlfn.IFNA(VLOOKUP($A26,'4 - Adequate food'!$A$5:$J$28,6,FALSE),"") ->  | BA26: =_xlfn.IFNA(VLOOKUP($A26,'4 - Nutritional practices'!$A$5:$J$15,6,FALSE),"") ->  | BB26: =_xlfn.IFNA(VLOOKUP($A26,'4 - Access SRH'!$A$5:$I$9,9,FALSE),"") ->  | BC26: =_xlfn.IFNA(VLOOKUP($A26,'4 - Livelihood recovery'!$A$5:$J$22,6,FALSE),"") ->  | BD26: =_xlfn.IFNA(VLOOKUP($A26,'5 - Satisfaction'!$A$5:$J$33,6,FALSE),"") ->  | BE26: =_xlfn.IFNA(VLOOKUP($A26,'6 - Met demand'!$A$7:$H$16,8,FALSE),"") ->  | BF26: =_xlfn.IFNA(VLOOKUP($A26,'7 - SBA'!$A$7:$H$16,8,FALSE),"") ->  | BG26: =_xlfn.IFNA(VLOOKUP($A26,'8 - ABR'!$A$7:$H$9,8,FALSE),"") ->  | BH26: =_xlfn.IFNA(VLOOKUP($A26,'9 - SRH decisions'!$A$7:$H$11,8,FALSE),"") ->  | BI26: =_xlfn.IFNA(VLOOKUP($A26,'10 - Rejecting IPV'!$A$7:$H$14,8,FALSE),"") ->  | BJ26: =_xlfn.IFNA(VLOOKUP($A26,'11 - violence by partner'!$A$7:$H$10,8,FALSE),"") ->  | BK26: =_xlfn.IFNA(VLOOKUP($A26,'12 - sexual violence'!$A$7:$H$9,8,FALSE),"") ->  | BL26: =_xlfn.IFNA(VLOOKUP($A26,'13 - Food insecurity'!$A$5:$L$25,9,FALSE),"") ->  | BM26: =_xlfn.IFNA(VLOOKUP($A26,'14 - Stunting'!$A$5:$L$13,9,FALSE),"") ->  | BN26: =_xlfn.IFNA(VLOOKUP($A26,'15 - Resilience capacity'!$A$5:$L$33,9,FALSE),"") ->  | BO26: =_xlfn.IFNA(VLOOKUP($A26,'WEE summary'!$A$4:$G$102,7,FALSE),"") ->  | BP26: =_xlfn.IFNA(VLOOKUP($A26,'17 - HH $ decisions'!$A$5:$L$46,7,FALSE),"") ->  | BQ26: =_xlfn.IFNA(VLOOKUP($A23,'18 - Labor rights'!$A$5:$L$23,7,FALSE),"") -> Strengthening the Dairy Value Chain project II (SDVC II) contributed to increasing the proportion of women who are members of groups by 0% (from 100% to 100%), enabling an additional 0 women to claim their rights | BR26: =_xlfn.IFNA(VLOOKUP($A26,'19 - Participation'!$A$5:$L$33,8,FALSE),"") ->  | BS26: =_xlfn.IFNA(A26&": "&VLOOKUP($A26,'20 - Policies'!$A$5:$J$62,5,FALSE),"") ->  | BT26: =_xlfn.IFNA(VLOOKUP($A26,'21 - Resilience actions'!$A$5:$L$28,9,FALSE),"") ->  | BU26: =IF(COUNTIF(BS26,"")=0,1,"") -> 
A27: VSLAs (various other projects) in Benin | B27: Benin | C27: various | D27: various | E27: various | F27: =_xlfn.IFNA(VLOOKUP(A27,'1 - poverty ($1.90)'!$A$7:$G$9,7,FALSE),"") ->  | G27: =_xlfn.IFNA(VLOOKUP(A27,'2 - poverty (nat pov line)'!$A$7:$G$10,7,FALSE),"") ->  | H27: =_xlfn.IFNA(VLOOKUP(B27,'3 - basic services'!$A$7:$G$10,7,FALSE),"") ->  | I27: 0 | J27: =_xlfn.IFNA(VLOOKUP($A27,'4 - Shelter'!$A$5:$S$21,3,FALSE),"") ->  | K27: =_xlfn.IFNA(VLOOKUP($A27,'4 - Safe Water'!$A$5:$S$22,3,FALSE),"") ->  | L27: =_xlfn.IFNA(VLOOKUP($A27,'4 - Adequate Sanitation'!$A$5:$S$18,3,FALSE),"") ->  | M27: =_xlfn.IFNA(VLOOKUP($A27,'4 - Hygiene Practices'!$A$5:$S$24,3,FALSE),"") ->  | N27: =_xlfn.IFNA(VLOOKUP($A27,'4 - Adequate food'!$A$5:$S$26,3,FALSE),"") ->  | O27: =_xlfn.IFNA(VLOOKUP($A27,'4 - Nutritional practices'!$A$5:$S$13,3,FALSE),"") ->  | P27: =_xlfn.IFNA(VLOOKUP($A27,'4 - Access SRH'!$A$5:$V$7,3,FALSE),"") ->  | Q27: =_xlfn.IFNA(VLOOKUP($A27,'4 - Livelihood recovery'!$A$5:$S$20,3,FALSE),"") ->  | R27: =_xlfn.IFNA(VLOOKUP($A27,'5 - Satisfaction'!$A$6:$Y$31,5,FALSE),"") ->  | S27: 0 | T27: =_xlfn.IFNA(VLOOKUP($A27,'6 - Met demand'!$A$7:$AD$15,7,FALSE),"") ->  | U27: =_xlfn.IFNA(VLOOKUP($A27,'7 - SBA'!$A$7:$AC$14,7,FALSE),"") ->  | W27: =_xlfn.IFNA(VLOOKUP($A27,'9 - SRH decisions'!$A$7:$AC$9,7,FALSE),"") ->  | X27: 0 | Y27: =_xlfn.IFNA(VLOOKUP($A27,'10 - Rejecting IPV'!$A$7:$AG$12,7,FALSE),"") ->  | Z27: =_xlfn.IFNA(VLOOKUP($A27,'11 - violence by partner'!$A$7:$AC$8,7,FALSE),"") ->  | AB27: 0 | AC27: 0 | AD27: =_xlfn.IFNA(VLOOKUP($A27,'13 - Food insecurity'!$A$6:$AF$23,7,FALSE),"") ->  | AE27: =_xlfn.IFNA(VLOOKUP($A27,'14 - Stunting'!$A$5:$AI$11,7,FALSE),"") ->  | AF27: =_xlfn.IFNA(VLOOKUP($A27,'15 - Resilience capacity'!$A$6:$AE$30,7,FALSE),"") ->  | AG27: 0 | AH27: 0 | AI27: =_xlfn.IFNA(VLOOKUP($A27,'WEE summary'!$A$4:$E$102,3,FALSE),"") -> 21336.8976 | AJ27: =_xlfn.IFNA(VLOOKUP($A27,'WEE summary'!$A$4:$E$102,4,FALSE),"") ->  | AK27: =_xlfn.IFNA(VLOOKUP($A27,'WEE summary'!$A$4:$E$102,5,FALSE),"") ->  | AL27: 21336.8976 | AM27: =_xlfn.IFNA(VLOOKUP($A27,'19 - Participation'!$A$5:$G$31,7,FALSE),"") ->  | AN27: =_xlfn.IFNA(VLOOKUP(A27,'20 - Policies'!A:C,3,FALSE),"") ->  | AO27: =_xlfn.IFNA(VLOOKUP(A27,'21 - Resilience actions'!$A$7:$G$26,7,FALSE),"") ->  | AP27: =MAX(AM27, AL27,AG27,AB27,X27,S27,I27,AO27) -> 21336.8976 | AQ27: =MAX(AL27,AG27,AB27,X27,S27,I27) -> 21336.8976 | AS27: =_xlfn.IFNA(VLOOKUP($A27,'1 - poverty ($1.90)'!$A$7:$H$9,8,FALSE),"") ->  | AT27: =_xlfn.IFNA(VLOOKUP($A27,'2 - poverty (nat pov line)'!$A$7:$H$9,8,FALSE),"") ->  | AU27: =_xlfn.IFNA(VLOOKUP($A27,'3 - basic services'!$A$7:$H$9,8,FALSE),"") ->  | AV27: =_xlfn.IFNA(VLOOKUP($A27,'4 - Shelter'!$A$5:$J$23,6,FALSE),"") ->  | AW27: =_xlfn.IFNA(VLOOKUP($A27,'4 - Safe Water'!$A$5:$J$24,6,FALSE),"") ->  | AX27: =_xlfn.IFNA(VLOOKUP($A27,'4 - Adequate Sanitation'!$A$5:$J$20,6,FALSE),"") ->  | AY27: =_xlfn.IFNA(VLOOKUP($A27,'4 - Hygiene Practices'!$A$5:$J$26,6,FALSE),"") ->  | AZ27: =_xlfn.IFNA(VLOOKUP($A27,'4 - Adequate food'!$A$5:$J$28,6,FALSE),"") ->  | BA27: =_xlfn.IFNA(VLOOKUP($A27,'4 - Nutritional practices'!$A$5:$J$15,6,FALSE),"") ->  | BB27: =_xlfn.IFNA(VLOOKUP($A27,'4 - Access SRH'!$A$5:$I$9,9,FALSE),"") ->  | BC27: =_xlfn.IFNA(VLOOKUP($A27,'4 - Livelihood recovery'!$A$5:$J$22,6,FALSE),"") ->  | BD27: =_xlfn.IFNA(VLOOKUP($A27,'5 - Satisfaction'!$A$5:$J$33,6,FALSE),"") ->  | BE27: =_xlfn.IFNA(VLOOKUP($A27,'6 - Met demand'!$A$7:$H$16,8,FALSE),"") ->  | BF27: =_xlfn.IFNA(VLOOKUP($A27,'7 - SBA'!$A$7:$H$16,8,FALSE),"") ->  | BG27: =_xlfn.IFNA(VLOOKUP($A27,'8 - ABR'!$A$7:$H$9,8,FALSE),"") ->  | BH27: =_xlfn.IFNA(VLOOKUP($A27,'9 - SRH decisions'!$A$7:$H$11,8,FALSE),"") ->  | BI27: =_xlfn.IFNA(VLOOKUP($A27,'10 - Rejecting IPV'!$A$7:$H$14,8,FALSE),"") ->  | BJ27: =_xlfn.IFNA(VLOOKUP($A27,'11 - violence by partner'!$A$7:$H$10,8,FALSE),"") ->  | BK27: =_xlfn.IFNA(VLOOKUP($A27,'12 - sexual violence'!$A$7:$H$9,8,FALSE),"") ->  | BL27: =_xlfn.IFNA(VLOOKUP($A27,'13 - Food insecurity'!$A$5:$L$25,9,FALSE),"") ->  | BM27: =_xlfn.IFNA(VLOOKUP($A27,'14 - Stunting'!$A$5:$L$13,9,FALSE),"") ->  | BN27: =_xlfn.IFNA(VLOOKUP($A27,'15 - Resilience capacity'!$A$5:$L$33,9,FALSE),"") ->  | BO27: =_xlfn.IFNA(VLOOKUP($A27,'WEE summary'!$A$4:$G$102,7,FALSE),"") -> VSLAs (various other projects) in Benin enabled 21,337 women to access formal or informal financial services | BP27: =_xlfn.IFNA(VLOOKUP($A27,'17 - HH $ decisions'!$A$5:$L$46,7,FALSE),"") ->  | BQ27: =_xlfn.IFNA(VLOOKUP($A27,'18 - Labor rights'!$A$5:$L$23,7,FALSE),"") ->  | BR27: =_xlfn.IFNA(VLOOKUP($A27,'19 - Participation'!$A$5:$L$33,8,FALSE),"") ->  | BS27: =_xlfn.IFNA(A27&": "&VLOOKUP($A27,'20 - Policies'!$A$5:$J$62,5,FALSE),"") ->  | BT27: =_xlfn.IFNA(VLOOKUP($A27,'21 - Resilience actions'!$A$5:$L$28,9,FALSE),"") -> 
B28: Benin Total | F28: =SUBTOTAL(9,F26:F27) -> 0 | G28: 0 | H28: 0 | I28: 0 | J28: 1591 | K28: 0 | L28: 0 | M28: 12133 | N28: 0 | O28: 0 | P28: 0 | Q28: 0 | R28: 0 | S28: 12133 | T28: 0 | U28: 0 | V28: 0 | W28: 0 | X28: 0 | Y28: 0 | Z28: 0 | AA28: 0 | AB28: 0 | AC28: 0 | AD28: 0 | AE28: 0 | AF28: 0 | AG28: 0 | AH28: 0 | AI28: 21336.8976 | AJ28: 0 | AK28: 0 | AL28: 21336.8976 | AM28: 0 | AN28: 0 | AO28: 0 | AP28: 33469.8976 | AQ28: 33469.8976 | AS28: =_xlfn.TEXTJOIN(CHAR(10)&CHAR(10),TRUE,AS26:AS27) ->  | AV28: Reponse de CARE suite aux inondations de 2015 au Nord du Benin provided adequate shelter/housing for 1,591 people, 8.08% of those requiring assistance | AY28: Reponse de CARE suite aux inondations de 2015 au Nord du Benin enabled the use of adequate hygiene practices by 12,133 people, 61.09% of those requiring assistance | AZ28: =_xlfn.TEXTJOIN(CHAR(10)&CHAR(10),TRUE,AZ26:AZ27) ->  | BE28: =_xlfn.TEXTJOIN(CHAR(10)&CHAR(10),TRUE,BE26:BE27) ->  | BI28: =_xlfn.TEXTJOIN(CHAR(10)&CHAR(10),TRUE,BI26:BI27) ->  | BJ28: =_xlfn.TEXTJOIN(CHAR(10)&CHAR(10),TRUE,BJ26:BJ27) ->  | BK28: =_xlfn.TEXTJOIN(CHAR(10)&CHAR(10),TRUE,BK26:BK27) ->  | BL28: =_xlfn.TEXTJOIN(CHAR(10)&CHAR(10),TRUE,BL26:BL27) ->  | BN28: =_xlfn.TEXTJOIN(CHAR(10)&CHAR(10),TRUE,BN26:BN27) ->  | BO28: VSLAs (various other projects) in Benin enabled 21,337 women to access formal or informal financial services | BQ28: Strengthening the Dairy Value Chain project II (SDVC II) contributed to increasing the proportion of women who are members of groups by 0% (from 100% to 100%), enabling an additional 0 women to claim their rights | BT28: =_xlfn.TEXTJOIN(CHAR(10)&CHAR(10),TRUE,BT26:BT27) ->  | BU28: =SUBTOTAL(9,BU26:BU27) -> 0
A29: Active Participation for Roma Inclusion | B29: Bosnia and Herzegovina | C29: =_xlfn.IFNA(VLOOKUP(A29,'PIIRS FY16 Indicators data'!F:G,2,FALSE),"") -> CARE Deutschland-Luxemburg | D29: =_xlfn.IFNA(VLOOKUP($A29,'PIIRS FY16 Indicators data'!$F$2:$S$1045,5,FALSE),"") -> European Instrument for Democracy and Human Rights Country Based Support Scheme 2013 | E29: =_xlfn.IFNA(IF(VLOOKUP($A29,'PIIRS FY16 Indicators data'!$F$2:$S$1045,14,FALSE)="",TEXT(VLOOKUP($A29,'PIIRS FY16 Indicators data'!$F$2:$S$1045,12,FALSE),"mmm-yy")&" to "&TEXT(VLOOKUP($A29,'PIIRS FY16 Indicators data'!$F$2:$S$1045,13,FALSE),"mmm-yy"),TEXT(VLOOKUP($A29,'PIIRS FY16 Indicators data'!$F$2:$S$1045,12,FALSE),"mmm-yy")&" to "&TEXT(VLOOKUP($A29,'PIIRS FY16 Indicators data'!$F$2:$S$1045,14,FALSE),"mmm-yy")),"") -> Jan-13 to Mar-15 | F29: =_xlfn.IFNA(VLOOKUP(A29,'1 - poverty ($1.90)'!$A$7:$G$9,7,FALSE),"") ->  | G29: =_xlfn.IFNA(VLOOKUP(A29,'2 - poverty (nat pov line)'!$A$7:$G$10,7,FALSE),"") ->  | H29: =_xlfn.IFNA(VLOOKUP(B29,'3 - basic services'!$A$7:$G$10,7,FALSE),"") ->  | I29: 0 | J29: =_xlfn.IFNA(VLOOKUP($A29,'4 - Shelter'!$A$5:$S$21,3,FALSE),"") ->  | K29: =_xlfn.IFNA(VLOOKUP($A29,'4 - Safe Water'!$A$5:$S$22,3,FALSE),"") ->  | L29: =_xlfn.IFNA(VLOOKUP($A29,'4 - Adequate Sanitation'!$A$5:$S$18,3,FALSE),"") ->  | M29: =_xlfn.IFNA(VLOOKUP($A29,'4 - Hygiene Practices'!$A$5:$S$24,3,FALSE),"") ->  | N29: =_xlfn.IFNA(VLOOKUP($A29,'4 - Adequate food'!$A$5:$S$26,3,FALSE),"") ->  | O29: =_xlfn.IFNA(VLOOKUP($A29,'4 - Nutritional practices'!$A$5:$S$13,3,FALSE),"") ->  | P29: =_xlfn.IFNA(VLOOKUP($A29,'4 - Access SRH'!$A$5:$V$7,3,FALSE),"") ->  | Q29: =_xlfn.IFNA(VLOOKUP($A29,'4 - Livelihood recovery'!$A$5:$S$20,3,FALSE),"") ->  | R29: =_xlfn.IFNA(VLOOKUP($A29,'5 - Satisfaction'!$A$6:$Y$31,5,FALSE),"") ->  | S29: 0 | T29: =_xlfn.IFNA(VLOOKUP($A29,'6 - Met demand'!$A$7:$AD$15,7,FALSE),"") ->  | U29: =_xlfn.IFNA(VLOOKUP($A29,'7 - SBA'!$A$7:$AC$14,7,FALSE),"") ->  | W29: =_xlfn.IFNA(VLOOKUP($A29,'9 - SRH decisions'!$A$7:$AC$9,7,FALSE),"") ->  | X29: 0 | Y29: =_xlfn.IFNA(VLOOKUP($A29,'10 - Rejecting IPV'!$A$7:$AG$12,7,FALSE),"") ->  | Z29: =_xlfn.IFNA(VLOOKUP($A29,'11 - violence by partner'!$A$7:$AC$8,7,FALSE),"") ->  | AB29: 0 | AC29: 0 | AD29: =_xlfn.IFNA(VLOOKUP($A29,'13 - Food insecurity'!$A$6:$AF$23,7,FALSE),"") ->  | AE29: =_xlfn.IFNA(VLOOKUP($A29,'14 - Stunting'!$A$5:$AI$11,7,FALSE),"") ->  | AF29: =_xlfn.IFNA(VLOOKUP($A29,'15 - Resilience capacity'!$A$6:$AE$30,7,FALSE),"") ->  | AG29: 0 | AH29: 0 | AI29: =_xlfn.IFNA(VLOOKUP($A29,'WEE summary'!$A$4:$E$102,3,FALSE),"") ->  | AJ29: =_xlfn.IFNA(VLOOKUP($A29,'WEE summary'!$A$4:$E$102,4,FALSE),"") ->  | AK29: =_xlfn.IFNA(VLOOKUP($A29,'WEE summary'!$A$4:$E$102,5,FALSE),"") ->  | AL29: 0 | AM29: =_xlfn.IFNA(VLOOKUP($A29,'19 - Participation'!$A$5:$G$31,7,FALSE),"") ->  | AN29: =_xlfn.IFNA(VLOOKUP(A29,'20 - Policies'!A:C,3,FALSE),"") -> Yes | AO29: =_xlfn.IFNA(VLOOKUP(A29,'21 - Resilience actions'!$A$7:$G$26,7,FALSE),"") ->  | AP29: =MAX(AM29, AL29,AG29,AB29,X29,S29,I29,AO29) -> 0 | AQ29: =MAX(AL29,AG29,AB29,X29,S29,I29) -> 0 | AS29: =_xlfn.IFNA(VLOOKUP($A29,'1 - poverty ($1.90)'!$A$7:$H$9,8,FALSE),"") ->  | AT29: =_xlfn.IFNA(VLOOKUP($A29,'2 - poverty (nat pov line)'!$A$7:$H$9,8,FALSE),"") ->  | AU29: =_xlfn.IFNA(VLOOKUP($A29,'3 - basic services'!$A$7:$H$9,8,FALSE),"") ->  | AV29: =_xlfn.IFNA(VLOOKUP($A29,'4 - Shelter'!$A$5:$J$23,6,FALSE),"") ->  | AW29: =_xlfn.IFNA(VLOOKUP($A29,'4 - Safe Water'!$A$5:$J$24,6,FALSE),"") ->  | AX29: =_xlfn.IFNA(VLOOKUP($A29,'4 - Adequate Sanitation'!$A$5:$J$20,6,FALSE),"") ->  | AY29: =_xlfn.IFNA(VLOOKUP($A29,'4 - Hygiene Practices'!$A$5:$J$26,6,FALSE),"") ->  | AZ29: =_xlfn.IFNA(VLOOKUP($A29,'4 - Adequate food'!$A$5:$J$28,6,FALSE),"") ->  | BA29: =_xlfn.IFNA(VLOOKUP($A29,'4 - Nutritional practices'!$A$5:$J$15,6,FALSE),"") ->  | BB29: =_xlfn.IFNA(VLOOKUP($A29,'4 - Access SRH'!$A$5:$I$9,9,FALSE),"") ->  | BC29: =_xlfn.IFNA(VLOOKUP($A29,'4 - Livelihood recovery'!$A$5:$J$22,6,FALSE),"") ->  | BD29: =_xlfn.IFNA(VLOOKUP($A29,'5 - Satisfaction'!$A$5:$J$33,6,FALSE),"") ->  | BE29: =_xlfn.IFNA(VLOOKUP($A29,'6 - Met demand'!$A$7:$H$16,8,FALSE),"") ->  | BF29: =_xlfn.IFNA(VLOOKUP($A29,'7 - SBA'!$A$7:$H$16,8,FALSE),"") ->  | BG29: =_xlfn.IFNA(VLOOKUP($A29,'8 - ABR'!$A$7:$H$9,8,FALSE),"") ->  | BH29: =_xlfn.IFNA(VLOOKUP($A29,'9 - SRH decisions'!$A$7:$H$11,8,FALSE),"") ->  | BI29: =_xlfn.IFNA(VLOOKUP($A29,'10 - Rejecting IPV'!$A$7:$H$14,8,FALSE),"") ->  | BJ29: =_xlfn.IFNA(VLOOKUP($A29,'11 - violence by partner'!$A$7:$H$10,8,FALSE),"") ->  | BK29: =_xlfn.IFNA(VLOOKUP($A29,'12 - sexual violence'!$A$7:$H$9,8,FALSE),"") ->  | BL29: =_xlfn.IFNA(VLOOKUP($A29,'13 - Food insecurity'!$A$5:$L$25,9,FALSE),"") ->  | BM29: =_xlfn.IFNA(VLOOKUP($A29,'14 - Stunting'!$A$5:$L$13,9,FALSE),"") ->  | BN29: =_xlfn.IFNA(VLOOKUP($A29,'15 - Resilience capacity'!$A$5:$L$33,9,FALSE),"") ->  | BO29: =_xlfn.IFNA(VLOOKUP($A29,'WEE summary'!$A$4:$G$102,7,FALSE),"") ->  | BP29: =_xlfn.IFNA(VLOOKUP($A29,'17 - HH $ decisions'!$A$5:$L$46,7,FALSE),"") ->  | BQ29: =_xlfn.IFNA(VLOOKUP($A29,'18 - Labor rights'!$A$5:$L$23,7,FALSE),"") ->  | BR29: =_xlfn.IFNA(VLOOKUP($A29,'19 - Participation'!$A$5:$L$33,8,FALSE),"") ->  | BS29: =_xlfn.IFNA(A29&": "&VLOOKUP($A29,'20 - Policies'!$A$5:$J$62,5,FALSE),"") -> Active Participation for Roma Inclusion: Plan Formulation | BT29: =_xlfn.IFNA(VLOOKUP($A29,'21 - Resilience actions'!$A$5:$L$28,9,FALSE),"") ->  | BU29: =IF(COUNTIF(BS29,"")=0,1,"") -> 1
B30: Bosnia and Herzegovina Total | F30: =SUBTOTAL(9,F29:F29) -> 0 | G30: 0 | H30: 0 | I30: 0 | J30: 0 | K30: 0 | L30: 0 | M30: 0 | N30: 0 | O30: 0 | P30: 0 | Q30: 0 | R30: 0 | S30: 0 | T30: 0 | U30: 0 | V30: 0 | W30: 0 | X30: 0 | Y30: 0 | Z30: 0 | AA30: 0 | AB30: 0 | AC30: 0 | AD30: 0 | AE30: 0 | AF30: 0 | AG30: 0 | AH30: 0 | AI30: 0 | AJ30: 0 | AK30: 0 | AL30: 0 | AM30: 0 | AN30: 0 | AO30: 0 | AP30: 0 | AQ30: 0 | AS30: =_xlfn.TEXTJOIN(CHAR(10)&CHAR(10),TRUE,AS29:AS29) ->  | AZ30: =_xlfn.TEXTJOIN(CHAR(10)&CHAR(10),TRUE,AZ29:AZ29) ->  | BE30: =_xlfn.TEXTJOIN(CHAR(10)&CHAR(10),TRUE,BE29:BE29) ->  | BI30: =_xlfn.TEXTJOIN(CHAR(10)&CHAR(10),TRUE,BI29:BI29) ->  | BJ30: =_xlfn.TEXTJOIN(CHAR(10)&CHAR(10),TRUE,BJ29:BJ29) ->  | BK30: =_xlfn.TEXTJOIN(CHAR(10)&CHAR(10),TRUE,BK29:BK29) ->  | BL30: =_xlfn.TEXTJOIN(CHAR(10)&CHAR(10),TRUE,BL29:BL29) ->  | BN30: =_xlfn.TEXTJOIN(CHAR(10)&CHAR(10),TRUE,BN29:BN29) ->  | BS30: Active Participation for Roma Inclusion: Plan Formulation | BT30: =_xlfn.TEXTJOIN(CHAR(10)&CHAR(10),TRUE,BT29:BT29) ->  | BU30: 1
A31: VSLAs (various other projects) in Burundi | B31: Burundi | C31: various | D31: various | E31: various | F31: =_xlfn.IFNA(VLOOKUP(A31,'1 - poverty ($1.90)'!$A$7:$G$9,7,FALSE),"") ->  | G31: =_xlfn.IFNA(VLOOKUP(A31,'2 - poverty (nat pov line)'!$A$7:$G$10,7,FALSE),"") ->  | H31: =_xlfn.IFNA(VLOOKUP(B31,'3 - basic services'!$A$7:$G$10,7,FALSE),"") ->  | I31: 0 | J31: =_xlfn.IFNA(VLOOKUP($A31,'4 - Shelter'!$A$5:$S$21,3,FALSE),"") ->  | K31: =_xlfn.IFNA(VLOOKUP($A31,'4 - Safe Water'!$A$5:$S$22,3,FALSE),"") ->  | L31: =_xlfn.IFNA(VLOOKUP($A31,'4 - Adequate Sanitation'!$A$5:$S$18,3,FALSE),"") ->  | M31: =_xlfn.IFNA(VLOOKUP($A31,'4 - Hygiene Practices'!$A$5:$S$24,3,FALSE),"") ->  | N31: =_xlfn.IFNA(VLOOKUP($A31,'4 - Adequate food'!$A$5:$S$26,3,FALSE),"") ->  | O31: =_xlfn.IFNA(VLOOKUP($A31,'4 - Nutritional practices'!$A$5:$S$13,3,FALSE),"") ->  | P31: =_xlfn.IFNA(VLOOKUP($A31,'4 - Access SRH'!$A$5:$V$7,3,FALSE),"") ->  | Q31: =_xlfn.IFNA(VLOOKUP($A31,'4 - Livelihood recovery'!$A$5:$S$20,3,FALSE),"") ->  | R31: =_xlfn.IFNA(VLOOKUP($A31,'5 - Satisfaction'!$A$6:$Y$31,5,FALSE),"") ->  | S31: 0 | T31: =_xlfn.IFNA(VLOOKUP($A31,'6 - Met demand'!$A$7:$AD$15,7,FALSE),"") ->  | U31: =_xlfn.IFNA(VLOOKUP($A31,'7 - SBA'!$A$7:$AC$14,7,FALSE),"") ->  | W31: =_xlfn.IFNA(VLOOKUP($A31,'9 - SRH decisions'!$A$7:$AC$9,7,FALSE),"") ->  | X31: 0 | Y31: =_xlfn.IFNA(VLOOKUP($A31,'10 - Rejecting IPV'!$A$7:$AG$12,7,FALSE),"") ->  | Z31: =_xlfn.IFNA(VLOOKUP($A31,'11 - violence by partner'!$A$7:$AC$8,7,FALSE),"") ->  | AB31: 0 | AC31: 0 | AD31: =_xlfn.IFNA(VLOOKUP($A31,'13 - Food insecurity'!$A$6:$AF$23,7,FALSE),"") ->  | AE31: =_xlfn.IFNA(VLOOKUP($A31,'14 - Stunting'!$A$5:$AI$11,7,FALSE),"") ->  | AF31: =_xlfn.IFNA(VLOOKUP($A31,'15 - Resilience capacity'!$A$6:$AE$30,7,FALSE),"") ->  | AG31: 0 | AH31: 0 | AI31: =_xlfn.IFNA(VLOOKUP($A31,'WEE summary'!$A$4:$E$102,3,FALSE),"") -> 278739.5457 | AJ31: =_xlfn.IFNA(VLOOKUP($A31,'WEE summary'!$A$4:$E$102,4,FALSE),"") ->  | AK31: =_xlfn.IFNA(VLOOKUP($A31,'WEE summary'!$A$4:$E$102,5,FALSE),"") ->  | AL31: 278739.5457 | AM31: =_xlfn.IFNA(VLOOKUP($A31,'19 - Participation'!$A$5:$G$31,7,FALSE),"") ->  | AN31: =_xlfn.IFNA(VLOOKUP(A31,'20 - Policies'!A:C,3,FALSE),"") ->  | AO31: =_xlfn.IFNA(VLOOKUP(A31,'21 - Resilience actions'!$A$7:$G$26,7,FALSE),"") ->  | AP31: =MAX(AM31, AL31,AG31,AB31,X31,S31,I31,AO31) -> 278739.5457 | AQ31: =MAX(AL31,AG31,AB31,X31,S31,I31) -> 278739.5457 | AS31: =_xlfn.IFNA(VLOOKUP($A31,'1 - poverty ($1.90)'!$A$7:$H$9,8,FALSE),"") ->  | AT31: =_xlfn.IFNA(VLOOKUP($A31,'2 - poverty (nat pov line)'!$A$7:$H$9,8,FALSE),"") ->  | AU31: =_xlfn.IFNA(VLOOKUP($A31,'3 - basic services'!$A$7:$H$9,8,FALSE),"") ->  | AV31: =_xlfn.IFNA(VLOOKUP($A31,'4 - Shelter'!$A$5:$J$23,6,FALSE),"") ->  | AW31: =_xlfn.IFNA(VLOOKUP($A31,'4 - Safe Water'!$A$5:$J$24,6,FALSE),"") ->  | AX31: =_xlfn.IFNA(VLOOKUP($A31,'4 - Adequate Sanitation'!$A$5:$J$20,6,FALSE),"") ->  | AY31: =_xlfn.IFNA(VLOOKUP($A31,'4 - Hygiene Practices'!$A$5:$J$26,6,FALSE),"") ->  | AZ31: =_xlfn.IFNA(VLOOKUP($A31,'4 - Adequate food'!$A$5:$J$28,6,FALSE),"") ->  | BA31: =_xlfn.IFNA(VLOOKUP($A31,'4 - Nutritional practices'!$A$5:$J$15,6,FALSE),"") ->  | BB31: =_xlfn.IFNA(VLOOKUP($A31,'4 - Access SRH'!$A$5:$I$9,9,FALSE),"") ->  | BC31: =_xlfn.IFNA(VLOOKUP($A31,'4 - Livelihood recovery'!$A$5:$J$22,6,FALSE),"") ->  | BD31: =_xlfn.IFNA(VLOOKUP($A31,'5 - Satisfaction'!$A$5:$J$33,6,FALSE),"") ->  | BE31: =_xlfn.IFNA(VLOOKUP($A31,'6 - Met demand'!$A$7:$H$16,8,FALSE),"") ->  | BF31: =_xlfn.IFNA(VLOOKUP($A31,'7 - SBA'!$A$7:$H$16,8,FALSE),"") ->  | BG31: =_xlfn.IFNA(VLOOKUP($A31,'8 - ABR'!$A$7:$H$9,8,FALSE),"") ->  | BH31: =_xlfn.IFNA(VLOOKUP($A31,'9 - SRH decisions'!$A$7:$H$11,8,FALSE),"") ->  | BI31: =_xlfn.IFNA(VLOOKUP($A31,'10 - Rejecting IPV'!$A$7:$H$14,8,FALSE),"") ->  | BJ31: =_xlfn.IFNA(VLOOKUP($A31,'11 - violence by partner'!$A$7:$H$10,8,FALSE),"") ->  | BK31: =_xlfn.IFNA(VLOOKUP($A31,'12 - sexual violence'!$A$7:$H$9,8,FALSE),"") ->  | BL31: =_xlfn.IFNA(VLOOKUP($A31,'13 - Food insecurity'!$A$5:$L$25,9,FALSE),"") ->  | BM31: =_xlfn.IFNA(VLOOKUP($A31,'14 - Stunting'!$A$5:$L$13,9,FALSE),"") ->  | BN31: =_xlfn.IFNA(VLOOKUP($A31,'15 - Resilience capacity'!$A$5:$L$33,9,FALSE),"") ->  | BO31: =_xlfn.IFNA(VLOOKUP($A31,'WEE summary'!$A$4:$G$102,7,FALSE),"") -> VSLAs (various other projects) in Burundi enabled 278,740 women to access formal or informal financial services | BP31: =_xlfn.IFNA(VLOOKUP($A31,'17 - HH $ decisions'!$A$5:$L$46,7,FALSE),"") ->  | BQ31: =_xlfn.IFNA(VLOOKUP($A31,'18 - Labor rights'!$A$5:$L$23,7,FALSE),"") ->  | BR31: =_xlfn.IFNA(VLOOKUP($A31,'19 - Participation'!$A$5:$L$33,8,FALSE),"") ->  | BS31: =_xlfn.IFNA(A31&": "&VLOOKUP($A31,'20 - Policies'!$A$5:$J$62,5,FALSE),"") ->  | BT31: =_xlfn.IFNA(VLOOKUP($A31,'21 - Resilience actions'!$A$5:$L$28,9,FALSE),"") -> 
B32: Burundi Total | F32: =SUBTOTAL(9,F31:F31) -> 0 | G32: 0 | H32: 0 | I32: 0 | J32: 0 | K32: 0 | L32: 0 | M32: 0 | N32: 0 | O32: 0 | P32: 0 | Q32: 0 | R32: 0 | S32: 0 | T32: 0 | U32: 0 | V32: 0 | W32: 0 | X32: 0 | Y32: 0 | Z32: 0 | AA32: 0 | AB32: 0 | AC32: 0 | AD32: 0 | AE32: 0 | AF32: 0 | AG32: 0 | AH32: 0 | AI32: 278739.5457 | AJ32: 0 | AK32: 0 | AL32: 278739.5457 | AM32: 0 | AN32: 0 | AO32: 0 | AP32: 278739.5457 | AQ32: 278739.5457 | AS32: =_xlfn.TEXTJOIN(CHAR(10)&CHAR(10),TRUE,AS31:AS31) ->  | AZ32: =_xlfn.TEXTJOIN(CHAR(10)&CHAR(10),TRUE,AZ31:AZ31) ->  | BE32: =_xlfn.TEXTJOIN(CHAR(10)&CHAR(10),TRUE,BE31:BE31) ->  | BI32: =_xlfn.TEXTJOIN(CHAR(10)&CHAR(10),TRUE,BI31:BI31) ->  | BJ32: =_xlfn.TEXTJOIN(CHAR(10)&CHAR(10),TRUE,BJ31:BJ31) ->  | BK32: =_xlfn.TEXTJOIN(CHAR(10)&CHAR(10),TRUE,BK31:BK31) ->  | BL32: =_xlfn.TEXTJOIN(CHAR(10)&CHAR(10),TRUE,BL31:BL31) ->  | BN32: =_xlfn.TEXTJOIN(CHAR(10)&CHAR(10),TRUE,BN31:BN31) ->  | BO32: VSLAs (various other projects) in Burundi enabled 278,740 women to access formal or informal financial services | BT32: =_xlfn.TEXTJOIN(CHAR(10)&CHAR(10),TRUE,BT31:BT31) ->  | BU32: =SUBTOTAL(9,BU31:BU31) -> 0
A33: Emergency Response to the Water Shortage Crisis in Koh Kong Province | B33: Cambodia | C33: =_xlfn.IFNA(VLOOKUP(A33,'PIIRS FY16 Indicators data'!F:G,2,FALSE),"") -> CARE Australia | D33: =_xlfn.IFNA(VLOOKUP($A33,'PIIRS FY16 Indicators data'!$F$2:$S$1045,5,FALSE),"") -> CARE International Emergency Response Fund (CI-ERF) | E33: =_xlfn.IFNA(IF(VLOOKUP($A33,'PIIRS FY16 Indicators data'!$F$2:$S$1045,14,FALSE)="",TEXT(VLOOKUP($A33,'PIIRS FY16 Indicators data'!$F$2:$S$1045,12,FALSE),"mmm-yy")&" to "&TEXT(VLOOKUP($A33,'PIIRS FY16 Indicators data'!$F$2:$S$1045,13,FALSE),"mmm-yy"),TEXT(VLOOKUP($A33,'PIIRS FY16 Indicators data'!$F$2:$S$1045,12,FALSE),"mmm-yy")&" to "&TEXT(VLOOKUP($A33,'PIIRS FY16 Indicators data'!$F$2:$S$1045,14,FALSE),"mmm-yy")),"") -> May-16 to Sep-16 | F33: =_xlfn.IFNA(VLOOKUP(A33,'1 - poverty ($1.90)'!$A$7:$G$9,7,FALSE),"") ->  | G33: =_xlfn.IFNA(VLOOKUP(A33,'2 - poverty (nat pov line)'!$A$7:$G$10,7,FALSE),"") ->  | H33: =_xlfn.IFNA(VLOOKUP(B33,'3 - basic services'!$A$7:$G$10,7,FALSE),"") ->  | I33: 0 | J33: =_xlfn.IFNA(VLOOKUP($A33,'4 - Shelter'!$A$5:$S$21,3,FALSE),"") ->  | K33: =_xlfn.IFNA(VLOOKUP($A33,'4 - Safe Water'!$A$5:$S$22,3,FALSE),"") -> 880 | L33: =_xlfn.IFNA(VLOOKUP($A33,'4 - Adequate Sanitation'!$A$5:$S$18,3,FALSE),"") ->  | M33: =_xlfn.IFNA(VLOOKUP($A33,'4 - Hygiene Practices'!$A$5:$S$24,3,FALSE),"") -> 880 | N33: =_xlfn.IFNA(VLOOKUP($A33,'4 - Adequate food'!$A$5:$S$26,3,FALSE),"") ->  | O33: =_xlfn.IFNA(VLOOKUP($A33,'4 - Nutritional practices'!$A$5:$S$13,3,FALSE),"") ->  | P33: =_xlfn.IFNA(VLOOKUP($A33,'4 - Access SRH'!$A$5:$V$7,3,FALSE),"") ->  | Q33: =_xlfn.IFNA(VLOOKUP($A33,'4 - Livelihood recovery'!$A$5:$S$20,3,FALSE),"") ->  | R33: =_xlfn.IFNA(VLOOKUP($A33,'5 - Satisfaction'!$A$6:$Y$31,5,FALSE),"") -> 3960 | S33: 3960 | T33: =_xlfn.IFNA(VLOOKUP($A33,'6 - Met demand'!$A$7:$AD$15,7,FALSE),"") ->  | U33: =_xlfn.IFNA(VLOOKUP($A33,'7 - SBA'!$A$7:$AC$14,7,FALSE),"") ->  | W33: =_xlfn.IFNA(VLOOKUP($A33,'9 - SRH decisions'!$A$7:$AC$9,7,FALSE),"") ->  | X33: 0 | Y33: =_xlfn.IFNA(VLOOKUP($A33,'10 - Rejecting IPV'!$A$7:$AG$12,7,FALSE),"") ->  | Z33: =_xlfn.IFNA(VLOOKUP($A33,'11 - violence by partner'!$A$7:$AC$8,7,FALSE),"") ->  | AB33: 0 | AC33: 0 | AD33: =_xlfn.IFNA(VLOOKUP($A33,'13 - Food insecurity'!$A$6:$AF$23,7,FALSE),"") ->  | AE33: =_xlfn.IFNA(VLOOKUP($A33,'14 - Stunting'!$A$5:$AI$11,7,FALSE),"") ->  | AF33: =_xlfn.IFNA(VLOOKUP($A33,'15 - Resilience capacity'!$A$6:$AE$30,7,FALSE),"") ->  | AG33: 0 | AH33: 0 | AI33: =_xlfn.IFNA(VLOOKUP($A33,'WEE summary'!$A$4:$E$102,3,FALSE),"") ->  | AJ33: =_xlfn.IFNA(VLOOKUP($A33,'WEE summary'!$A$4:$E$102,4,FALSE),"") ->  | AK33: =_xlfn.IFNA(VLOOKUP($A33,'WEE summary'!$A$4:$E$102,5,FALSE),"") ->  | AL33: 0 | AM33: =_xlfn.IFNA(VLOOKUP($A33,'19 - Participation'!$A$5:$G$31,7,FALSE),"") ->  | AN33: =_xlfn.IFNA(VLOOKUP(A33,'20 - Policies'!A:C,3,FALSE),"") ->  | AO33: =_xlfn.IFNA(VLOOKUP(A33,'21 - Resilience actions'!$A$7:$G$26,7,FALSE),"") ->  | AP33: =MAX(AM33, AL33,AG33,AB33,X33,S33,I33,AO33) -> 3960 | AQ33: =MAX(AL33,AG33,AB33,X33,S33,I33) -> 3960 | AS33: =_xlfn.IFNA(VLOOKUP($A33,'1 - poverty ($1.90)'!$A$7:$H$9,8,FALSE),"") ->  | AT33: =_xlfn.IFNA(VLOOKUP($A33,'2 - poverty (nat pov line)'!$A$7:$H$9,8,FALSE),"") ->  | AU33: =_xlfn.IFNA(VLOOKUP($A33,'3 - basic services'!$A$7:$H$9,8,FALSE),"") ->  | AV33: =_xlfn.IFNA(VLOOKUP($A33,'4 - Shelter'!$A$5:$J$23,6,FALSE),"") ->  | AW33: =_xlfn.IFNA(VLOOKUP($A33,'4 - Safe Water'!$A$5:$J$24,6,FALSE),"") -> Emergency Response to the Water Shortage Crisis in Koh Kong Province enabled access to safe drinking water for 880 people, 22.22% of those requiring assistance | AX33: =_xlfn.IFNA(VLOOKUP($A33,'4 - Adequate Sanitation'!$A$5:$J$20,6,FALSE),"") ->  | AY33: =_xlfn.IFNA(VLOOKUP($A33,'4 - Hygiene Practices'!$A$5:$J$26,6,FALSE),"") -> Emergency Response to the Water Shortage Crisis in Koh Kong Province enabled the use of adequate hygiene practices by 880 people, 22.22% of those requiring assistance | AZ33: =_xlfn.IFNA(VLOOKUP($A33,'4 - Adequate food'!$A$5:$J$28,6,FALSE),"") ->  | BA33: =_xlfn.IFNA(VLOOKUP($A33,'4 - Nutritional practices'!$A$5:$J$15,6,FALSE),"") ->  | BB33: =_xlfn.IFNA(VLOOKUP($A33,'4 - Access SRH'!$A$5:$I$9,9,FALSE),"") ->  | BC33: =_xlfn.IFNA(VLOOKUP($A33,'4 - Livelihood recovery'!$A$5:$J$22,6,FALSE),"") ->  | BD33: =_xlfn.IFNA(VLOOKUP($A33,'5 - Satisfaction'!$A$5:$J$33,6,FALSE),"") -> Emergency Response to the Water Shortage Crisis in Koh Kong Province: 3,960 people were satisified with the humanitarian assistance (100% of those receiving support) | BE33: =_xlfn.IFNA(VLOOKUP($A33,'6 - Met demand'!$A$7:$H$16,8,FALSE),"") ->  | BF33: =_xlfn.IFNA(VLOOKUP($A33,'7 - SBA'!$A$7:$H$16,8,FALSE),"") ->  | BG33: =_xlfn.IFNA(VLOOKUP($A33,'8 - ABR'!$A$7:$H$9,8,FALSE),"") ->  | BH33: =_xlfn.IFNA(VLOOKUP($A33,'9 - SRH decisions'!$A$7:$H$11,8,FALSE),"") ->  | BI33: =_xlfn.IFNA(VLOOKUP($A33,'10 - Rejecting IPV'!$A$7:$H$14,8,FALSE),"") ->  | BJ33: =_xlfn.IFNA(VLOOKUP($A33,'11 - violence by partner'!$A$7:$H$10,8,FALSE),"") ->  | BK33: =_xlfn.IFNA(VLOOKUP($A33,'12 - sexual violence'!$A$7:$H$9,8,FALSE),"") ->  | BL33: =_xlfn.IFNA(VLOOKUP($A33,'13 - Food insecurity'!$A$5:$L$25,9,FALSE),"") ->  | BM33: =_xlfn.IFNA(VLOOKUP($A33,'14 - Stunting'!$A$5:$L$13,9,FALSE),"") ->  | BN33: =_xlfn.IFNA(VLOOKUP($A33,'15 - Resilience capacity'!$A$5:$L$33,9,FALSE),"") ->  | BO33: =_xlfn.IFNA(VLOOKUP($A33,'WEE summary'!$A$4:$G$102,7,FALSE),"") ->  | BP33: =_xlfn.IFNA(VLOOKUP($A33,'17 - HH $ decisions'!$A$5:$L$46,7,FALSE),"") ->  | BQ33: =_xlfn.IFNA(VLOOKUP($A33,'18 - Labor rights'!$A$5:$L$23,7,FALSE),"") ->  | BR33: =_xlfn.IFNA(VLOOKUP($A33,'19 - Participation'!$A$5:$L$33,8,FALSE),"") ->  | BS33: =_xlfn.IFNA(A33&": "&VLOOKUP($A33,'20 - Policies'!$A$5:$J$62,5,FALSE),"") ->  | BT33: =_xlfn.IFNA(VLOOKUP($A33,'21 - Resilience actions'!$A$5:$L$28,9,FALSE),"") ->  | BU33: =IF(COUNTIF(BS33,"")=0,1,"") -> 
A34: Partnering to Saving Lives (PSL) | B34: Cambodia | C34: =_xlfn.IFNA(VLOOKUP(A34,'PIIRS FY16 Indicators data'!F:G,2,FALSE),"") -> CARE Australia | D34: =_xlfn.IFNA(VLOOKUP($A34,'PIIRS FY16 Indicators data'!$F$2:$S$1045,5,FALSE),"") -> Department of Foreign Affaire and Traide (DFAT) | E34: =_xlfn.IFNA(IF(VLOOKUP($A34,'PIIRS FY16 Indicators data'!$F$2:$S$1045,14,FALSE)="",TEXT(VLOOKUP($A34,'PIIRS FY16 Indicators data'!$F$2:$S$1045,12,FALSE),"mmm-yy")&" to "&TEXT(VLOOKUP($A34,'PIIRS FY16 Indicators data'!$F$2:$S$1045,13,FALSE),"mmm-yy"),TEXT(VLOOKUP($A34,'PIIRS FY16 Indicators data'!$F$2:$S$1045,12,FALSE),"mmm-yy")&" to "&TEXT(VLOOKUP($A34,'PIIRS FY16 Indicators data'!$F$2:$S$1045,14,FALSE),"mmm-yy")),"") -> Aug-13 to Jul-18 | F34: =_xlfn.IFNA(VLOOKUP(A34,'1 - poverty ($1.90)'!$A$7:$G$9,7,FALSE),"") ->  | G34: =_xlfn.IFNA(VLOOKUP(A34,'2 - poverty (nat pov line)'!$A$7:$G$10,7,FALSE),"") ->  | H34: =_xlfn.IFNA(VLOOKUP(B34,'3 - basic services'!$A$7:$G$10,7,FALSE),"") ->  | I34: 0 | J34: =_xlfn.IFNA(VLOOKUP($A34,'4 - Shelter'!$A$5:$S$21,3,FALSE),"") ->  | K34: =_xlfn.IFNA(VLOOKUP($A34,'4 - Safe Water'!$A$5:$S$22,3,FALSE),"") ->  | L34: =_xlfn.IFNA(VLOOKUP($A34,'4 - Adequate Sanitation'!$A$5:$S$18,3,FALSE),"") ->  | M34: =_xlfn.IFNA(VLOOKUP($A34,'4 - Hygiene Practices'!$A$5:$S$24,3,FALSE),"") ->  | N34: =_xlfn.IFNA(VLOOKUP($A34,'4 - Adequate food'!$A$5:$S$26,3,FALSE),"") ->  | O34: =_xlfn.IFNA(VLOOKUP($A34,'4 - Nutritional practices'!$A$5:$S$13,3,FALSE),"") ->  | P34: =_xlfn.IFNA(VLOOKUP($A34,'4 - Access SRH'!$A$5:$V$7,3,FALSE),"") ->  | Q34: =_xlfn.IFNA(VLOOKUP($A34,'4 - Livelihood recovery'!$A$5:$S$20,3,FALSE),"") ->  | R34: =_xlfn.IFNA(VLOOKUP($A34,'5 - Satisfaction'!$A$6:$Y$31,5,FALSE),"") ->  | S34: 0 | T34: =_xlfn.IFNA(VLOOKUP($A34,'6 - Met demand'!$A$7:$AD$15,7,FALSE),"") -> 8157.000978 | U34: =_xlfn.IFNA(VLOOKUP($A34,'7 - SBA'!$A$7:$AC$14,7,FALSE),"") -> 6594.368 | W34: =_xlfn.IFNA(VLOOKUP($A34,'9 - SRH decisions'!$A$7:$AC$9,7,FALSE),"") -> 9635.736 | X34: 9635.736 | Y34: =_xlfn.IFNA(VLOOKUP($A34,'10 - Rejecting IPV'!$A$7:$AG$12,7,FALSE),"") ->  | Z34: =_xlfn.IFNA(VLOOKUP($A34,'11 - violence by partner'!$A$7:$AC$8,7,FALSE),"") ->  | AB34: 0 | AC34: 9635.736 | AD34: =_xlfn.IFNA(VLOOKUP($A34,'13 - Food insecurity'!$A$6:$AF$23,7,FALSE),"") ->  | AE34: =_xlfn.IFNA(VLOOKUP($A34,'14 - Stunting'!$A$5:$AI$11,7,FALSE),"") ->  | AF34: =_xlfn.IFNA(VLOOKUP($A34,'15 - Resilience capacity'!$A$6:$AE$30,7,FALSE),"") ->  | AG34: 0 | AH34: 0 | AI34: =_xlfn.IFNA(VLOOKUP($A34,'WEE summary'!$A$4:$E$102,3,FALSE),"") -> 2706 | AJ34: =_xlfn.IFNA(VLOOKUP($A34,'WEE summary'!$A$4:$E$102,4,FALSE),"") ->  | AK34: =_xlfn.IFNA(VLOOKUP($A34,'WEE summary'!$A$4:$E$102,5,FALSE),"") ->  | AL34: 2706 | AM34: =_xlfn.IFNA(VLOOKUP($A34,'19 - Participation'!$A$5:$G$31,7,FALSE),"") ->  | AN34: =_xlfn.IFNA(VLOOKUP(A34,'20 - Policies'!A:C,3,FALSE),"") -> Yes | AO34: =_xlfn.IFNA(VLOOKUP(A34,'21 - Resilience actions'!$A$7:$G$26,7,FALSE),"") ->  | AP34: =MAX(AM34, AL34,AG34,AB34,X34,S34,I34,AO34) -> 9635.736 | AQ34: =MAX(AL34,AG34,AB34,X34,S34,I34) -> 9635.736 | AS34: =_xlfn.IFNA(VLOOKUP($A34,'1 - poverty ($1.90)'!$A$7:$H$9,8,FALSE),"") ->  | AT34: =_xlfn.IFNA(VLOOKUP($A34,'2 - poverty (nat pov line)'!$A$7:$H$9,8,FALSE),"") ->  | AU34: =_xlfn.IFNA(VLOOKUP($A34,'3 - basic services'!$A$7:$H$9,8,FALSE),"") ->  | AV34: =_xlfn.IFNA(VLOOKUP($A34,'4 - Shelter'!$A$5:$J$23,6,FALSE),"") ->  | AW34: =_xlfn.IFNA(VLOOKUP($A34,'4 - Safe Water'!$A$5:$J$24,6,FALSE),"") ->  | AX34: =_xlfn.IFNA(VLOOKUP($A34,'4 - Adequate Sanitation'!$A$5:$J$20,6,FALSE),"") ->  | AY34: =_xlfn.IFNA(VLOOKUP($A34,'4 - Hygiene Practices'!$A$5:$J$26,6,FALSE),"") ->  | AZ34: =_xlfn.IFNA(VLOOKUP($A34,'4 - Adequate food'!$A$5:$J$28,6,FALSE),"") ->  | BA34: =_xlfn.IFNA(VLOOKUP($A34,'4 - Nutritional practices'!$A$5:$J$15,6,FALSE),"") ->  | BB34: =_xlfn.IFNA(VLOOKUP($A34,'4 - Access SRH'!$A$5:$I$9,9,FALSE),"") ->  | BC34: =_xlfn.IFNA(VLOOKUP($A34,'4 - Livelihood recovery'!$A$5:$J$22,6,FALSE),"") ->  | BD34: =_xlfn.IFNA(VLOOKUP($A34,'5 - Satisfaction'!$A$5:$J$33,6,FALSE),"") ->  | BE34: =_xlfn.IFNA(VLOOKUP($A34,'6 - Met demand'!$A$7:$H$16,8,FALSE),"") -> Partnering to Saving Lives (PSL) contributed to increasing met demand for modern contraceptives by 2.9% (from 17.2% to 20.1%), enabling 1,173 women to increase access to contraceptives, and a total of 8,157 women to exercise their SRMH rights | BF34: =_xlfn.IFNA(VLOOKUP($A34,'7 - SBA'!$A$7:$H$16,8,FALSE),"") -> Partnering to Saving Lives (PSL) contributed to increasing the proportion of births attended by skilled health personnel by 15% (from 55.4% to 70.4%), enabling an additional 1,405 women to have their births attended by skilled personnel, and a total of 6,594 women to exercise their SRMH rights | BG34: =_xlfn.IFNA(VLOOKUP($A34,'8 - ABR'!$A$7:$H$9,8,FALSE),"") ->  | BH34: =_xlfn.IFNA(VLOOKUP($A34,'9 - SRH decisions'!$A$7:$H$11,8,FALSE),"") -> Partnering to Saving Lives (PSL) contributed to increasing the proportion of women able to make their own informed SRH decisions by 7% (from 25.3% to 32.3%), enabling an additional 2,088 women to make informed decisions, and a total of 9,636 women to exercise their SRMH rights | BI34: =_xlfn.IFNA(VLOOKUP($A34,'10 - Rejecting IPV'!$A$7:$H$14,8,FALSE),"") ->  | BJ34: =_xlfn.IFNA(VLOOKUP($A34,'11 - violence by partner'!$A$7:$H$10,8,FALSE),"") ->  | BK34: =_xlfn.IFNA(VLOOKUP($A34,'12 - sexual violence'!$A$7:$H$9,8,FALSE),"") ->  | BL34: =_xlfn.IFNA(VLOOKUP($A34,'13 - Food insecurity'!$A$5:$L$25,9,FALSE),"") ->  | BM34: =_xlfn.IFNA(VLOOKUP($A34,'14 - Stunting'!$A$5:$L$13,9,FALSE),"") ->  | BN34: =_xlfn.IFNA(VLOOKUP($A34,'15 - Resilience capacity'!$A$5:$L$33,9,FALSE),"") ->  | BO34: =_xlfn.IFNA(VLOOKUP($A34,'WEE summary'!$A$4:$G$102,7,FALSE),"") -> Partnering to Saving Lives (PSL) enabled 2,706 women to access formal or informal financial services | BP34: =_xlfn.IFNA(VLOOKUP($A34,'17 - HH $ decisions'!$A$5:$L$46,7,FALSE),"") ->  | BQ34: =_xlfn.IFNA(VLOOKUP($A34,'18 - Labor rights'!$A$5:$L$23,7,FALSE),"") ->  | BR34: =_xlfn.IFNA(VLOOKUP($A34,'19 - Participation'!$A$5:$L$33,8,FALSE),"") ->  | BS34: =_xlfn.IFNA(A34&": "&VLOOKUP($A34,'20 - Policies'!$A$5:$J$62,5,FALSE),"") -> Partnering to Saving Lives (PSL): Plan Formulation | BT34: =_xlfn.IFNA(VLOOKUP($A34,'21 - Resilience actions'!$A$5:$L$28,9,FALSE),"") ->  | BU34: 1
A35: Safe Workplaces, Safe Communities (SWSC) | B35: Cambodia | C35: =_xlfn.IFNA(VLOOKUP(A35,'PIIRS FY16 Indicators data'!F:G,2,FALSE),"") -> No CI member | D35: =_xlfn.IFNA(VLOOKUP($A35,'PIIRS FY16 Indicators data'!$F$2:$S$1045,5,FALSE),"") -> The UN Trust Fund to End Violence Against Women | E35: =_xlfn.IFNA(IF(VLOOKUP($A35,'PIIRS FY16 Indicators data'!$F$2:$S$1045,14,FALSE)="",TEXT(VLOOKUP($A35,'PIIRS FY16 Indicators data'!$F$2:$S$1045,12,FALSE),"mmm-yy")&" to "&TEXT(VLOOKUP($A35,'PIIRS FY16 Indicators data'!$F$2:$S$1045,13,FALSE),"mmm-yy"),TEXT(VLOOKUP($A35,'PIIRS FY16 Indicators data'!$F$2:$S$1045,12,FALSE),"mmm-yy")&" to "&TEXT(VLOOKUP($A35,'PIIRS FY16 Indicators data'!$F$2:$S$1045,14,FALSE),"mmm-yy")),"") -> Dec-13 to Nov-16 | F35: =_xlfn.IFNA(VLOOKUP(A35,'1 - poverty ($1.90)'!$A$7:$G$9,7,FALSE),"") ->  | G35: =_xlfn.IFNA(VLOOKUP(A35,'2 - poverty (nat pov line)'!$A$7:$G$10,7,FALSE),"") ->  | H35: =_xlfn.IFNA(VLOOKUP(B35,'3 - basic services'!$A$7:$G$10,7,FALSE),"") ->  | I35: 0 | J35: =_xlfn.IFNA(VLOOKUP($A35,'4 - Shelter'!$A$5:$S$21,3,FALSE),"") ->  | K35: =_xlfn.IFNA(VLOOKUP($A35,'4 - Safe Water'!$A$5:$S$22,3,FALSE),"") ->  | L35: =_xlfn.IFNA(VLOOKUP($A35,'4 - Adequate Sanitation'!$A$5:$S$18,3,FALSE),"") ->  | M35: =_xlfn.IFNA(VLOOKUP($A35,'4 - Hygiene Practices'!$A$5:$S$24,3,FALSE),"") ->  | N35: =_xlfn.IFNA(VLOOKUP($A35,'4 - Adequate food'!$A$5:$S$26,3,FALSE),"") ->  | O35: =_xlfn.IFNA(VLOOKUP($A35,'4 - Nutritional practices'!$A$5:$S$13,3,FALSE),"") ->  | P35: =_xlfn.IFNA(VLOOKUP($A35,'4 - Access SRH'!$A$5:$V$7,3,FALSE),"") ->  | Q35: =_xlfn.IFNA(VLOOKUP($A35,'4 - Livelihood recovery'!$A$5:$S$20,3,FALSE),"") ->  | R35: =_xlfn.IFNA(VLOOKUP($A35,'5 - Satisfaction'!$A$6:$Y$31,5,FALSE),"") ->  | S35: 0 | T35: =_xlfn.IFNA(VLOOKUP($A35,'6 - Met demand'!$A$7:$AD$15,7,FALSE),"") ->  | U35: =_xlfn.IFNA(VLOOKUP($A35,'7 - SBA'!$A$7:$AC$14,7,FALSE),"") ->  | W35: =_xlfn.IFNA(VLOOKUP($A35,'9 - SRH decisions'!$A$7:$AC$9,7,FALSE),"") ->  | X35: 0 | Y35: =_xlfn.IFNA(VLOOKUP($A35,'10 - Rejecting IPV'!$A$7:$AG$12,7,FALSE),"") ->  | Z35: =_xlfn.IFNA(VLOOKUP($A35,'11 - violence by partner'!$A$7:$AC$8,7,FALSE),"") ->  | AB35: 0 | AC35: 0 | AD35: =_xlfn.IFNA(VLOOKUP($A35,'13 - Food insecurity'!$A$6:$AF$23,7,FALSE),"") ->  | AE35: =_xlfn.IFNA(VLOOKUP($A35,'14 - Stunting'!$A$5:$AI$11,7,FALSE),"") ->  | AF35: =_xlfn.IFNA(VLOOKUP($A35,'15 - Resilience capacity'!$A$6:$AE$30,7,FALSE),"") ->  | AG35: 0 | AH35: 0 | AI35: =_xlfn.IFNA(VLOOKUP($A35,'WEE summary'!$A$4:$E$102,3,FALSE),"") ->  | AJ35: =_xlfn.IFNA(VLOOKUP($A35,'WEE summary'!$A$4:$E$102,4,FALSE),"") ->  | AK35: =_xlfn.IFNA(VLOOKUP($A35,'WEE summary'!$A$4:$E$102,5,FALSE),"") ->  | AL35: 0 | AM35: =_xlfn.IFNA(VLOOKUP($A35,'19 - Participation'!$A$5:$G$31,7,FALSE),"") ->  | AN35: =_xlfn.IFNA(VLOOKUP(A35,'20 - Policies'!A:C,3,FALSE),"") -> Yes | AO35: =_xlfn.IFNA(VLOOKUP(A35,'21 - Resilience actions'!$A$7:$G$26,7,FALSE),"") ->  | AP35: =MAX(AM35, AL35,AG35,AB35,X35,S35,I35,AO35) -> 0 | AQ35: =MAX(AL35,AG35,AB35,X35,S35,I35) -> 0 | AS35: =_xlfn.IFNA(VLOOKUP($A35,'1 - poverty ($1.90)'!$A$7:$H$9,8,FALSE),"") ->  | AT35: =_xlfn.IFNA(VLOOKUP($A35,'2 - poverty (nat pov line)'!$A$7:$H$9,8,FALSE),"") ->  | AU35: =_xlfn.IFNA(VLOOKUP($A35,'3 - basic services'!$A$7:$H$9,8,FALSE),"") ->  | AV35: =_xlfn.IFNA(VLOOKUP($A35,'4 - Shelter'!$A$5:$J$23,6,FALSE),"") ->  | AW35: =_xlfn.IFNA(VLOOKUP($A35,'4 - Safe Water'!$A$5:$J$24,6,FALSE),"") ->  | AX35: =_xlfn.IFNA(VLOOKUP($A35,'4 - Adequate Sanitation'!$A$5:$J$20,6,FALSE),"") ->  | AY35: =_xlfn.IFNA(VLOOKUP($A35,'4 - Hygiene Practices'!$A$5:$J$26,6,FALSE),"") ->  | AZ35: =_xlfn.IFNA(VLOOKUP($A35,'4 - Adequate food'!$A$5:$J$28,6,FALSE),"") ->  | BA35: =_xlfn.IFNA(VLOOKUP($A35,'4 - Nutritional practices'!$A$5:$J$15,6,FALSE),"") ->  | BB35: =_xlfn.IFNA(VLOOKUP($A35,'4 - Access SRH'!$A$5:$I$9,9,FALSE),"") ->  | BC35: =_xlfn.IFNA(VLOOKUP($A35,'4 - Livelihood recovery'!$A$5:$J$22,6,FALSE),"") ->  | BD35: =_xlfn.IFNA(VLOOKUP($A35,'5 - Satisfaction'!$A$5:$J$33,6,FALSE),"") ->  | BE35: =_xlfn.IFNA(VLOOKUP($A35,'6 - Met demand'!$A$7:$H$16,8,FALSE),"") ->  | BF35: =_xlfn.IFNA(VLOOKUP($A35,'7 - SBA'!$A$7:$H$16,8,FALSE),"") ->  | BG35: =_xlfn.IFNA(VLOOKUP($A35,'8 - ABR'!$A$7:$H$9,8,FALSE),"") ->  | BH35: =_xlfn.IFNA(VLOOKUP($A35,'9 - SRH decisions'!$A$7:$H$11,8,FALSE),"") ->  | BI35: =_xlfn.IFNA(VLOOKUP($A35,'10 - Rejecting IPV'!$A$7:$H$14,8,FALSE),"") ->  | BJ35: =_xlfn.IFNA(VLOOKUP($A35,'11 - violence by partner'!$A$7:$H$10,8,FALSE),"") ->  | BK35: =_xlfn.IFNA(VLOOKUP($A35,'12 - sexual violence'!$A$7:$H$9,8,FALSE),"") ->  | BL35: =_xlfn.IFNA(VLOOKUP($A35,'13 - Food insecurity'!$A$5:$L$25,9,FALSE),"") ->  | BM35: =_xlfn.IFNA(VLOOKUP($A35,'14 - Stunting'!$A$5:$L$13,9,FALSE),"") ->  | BN35: =_xlfn.IFNA(VLOOKUP($A35,'15 - Resilience capacity'!$A$5:$L$33,9,FALSE),"") ->  | BO35: =_xlfn.IFNA(VLOOKUP($A35,'WEE summary'!$A$4:$G$102,7,FALSE),"") ->  | BP35: =_xlfn.IFNA(VLOOKUP($A35,'17 - HH $ decisions'!$A$5:$L$46,7,FALSE),"") ->  | BQ35: =_xlfn.IFNA(VLOOKUP($A35,'18 - Labor rights'!$A$5:$L$23,7,FALSE),"") ->  | BR35: =_xlfn.IFNA(VLOOKUP($A35,'19 - Participation'!$A$5:$L$33,8,FALSE),"") ->  | BS35: =_xlfn.IFNA(A35&": "&VLOOKUP($A35,'20 - Policies'!$A$5:$J$62,5,FALSE),"") -> Safe Workplaces, Safe Communities (SWSC): Policy Formulation | BT35: =_xlfn.IFNA(VLOOKUP($A35,'21 - Resilience actions'!$A$5:$L$28,9,FALSE),"") ->  | BU35: 1
A36: Technical Assistanceto the Ministry of Education on Multilingual Education | B36: Cambodia | C36: =_xlfn.IFNA(VLOOKUP(A36,'PIIRS FY16 Indicators data'!F:G,2,FALSE),"") -> CARE Australia | D36: =_xlfn.IFNA(VLOOKUP($A36,'PIIRS FY16 Indicators data'!$F$2:$S$1045,5,FALSE),"") -> United Nations Children's Fund (UNICEF) | E36: =_xlfn.IFNA(IF(VLOOKUP($A36,'PIIRS FY16 Indicators data'!$F$2:$S$1045,14,FALSE)="",TEXT(VLOOKUP($A36,'PIIRS FY16 Indicators data'!$F$2:$S$1045,12,FALSE),"mmm-yy")&" to "&TEXT(VLOOKUP($A36,'PIIRS FY16 Indicators data'!$F$2:$S$1045,13,FALSE),"mmm-yy"),TEXT(VLOOKUP($A36,'PIIRS FY16 Indicators data'!$F$2:$S$1045,12,FALSE),"mmm-yy")&" to "&TEXT(VLOOKUP($A36,'PIIRS FY16 Indicators data'!$F$2:$S$1045,14,FALSE),"mmm-yy")),"") -> Aug-15 to Dec-16 | F36: =_xlfn.IFNA(VLOOKUP(A36,'1 - poverty ($1.90)'!$A$7:$G$9,7,FALSE),"") ->  | G36: =_xlfn.IFNA(VLOOKUP(A36,'2 - poverty (nat pov line)'!$A$7:$G$10,7,FALSE),"") ->  | H36: =_xlfn.IFNA(VLOOKUP(B36,'3 - basic services'!$A$7:$G$10,7,FALSE),"") ->  | I36: 0 | J36: =_xlfn.IFNA(VLOOKUP($A36,'4 - Shelter'!$A$5:$S$21,3,FALSE),"") ->  | K36: =_xlfn.IFNA(VLOOKUP($A36,'4 - Safe Water'!$A$5:$S$22,3,FALSE),"") ->  | L36: =_xlfn.IFNA(VLOOKUP($A36,'4 - Adequate Sanitation'!$A$5:$S$18,3,FALSE),"") ->  | M36: =_xlfn.IFNA(VLOOKUP($A36,'4 - Hygiene Practices'!$A$5:$S$24,3,FALSE),"") ->  | N36: =_xlfn.IFNA(VLOOKUP($A36,'4 - Adequate food'!$A$5:$S$26,3,FALSE),"") ->  | O36: =_xlfn.IFNA(VLOOKUP($A36,'4 - Nutritional practices'!$A$5:$S$13,3,FALSE),"") ->  | P36: =_xlfn.IFNA(VLOOKUP($A36,'4 - Access SRH'!$A$5:$V$7,3,FALSE),"") ->  | Q36: =_xlfn.IFNA(VLOOKUP($A36,'4 - Livelihood recovery'!$A$5:$S$20,3,FALSE),"") ->  | R36: =_xlfn.IFNA(VLOOKUP($A36,'5 - Satisfaction'!$A$6:$Y$31,5,FALSE),"") ->  | S36: 0 | T36: =_xlfn.IFNA(VLOOKUP($A36,'6 - Met demand'!$A$7:$AD$15,7,FALSE),"") ->  | U36: =_xlfn.IFNA(VLOOKUP($A36,'7 - SBA'!$A$7:$AC$14,7,FALSE),"") ->  | W36: =_xlfn.IFNA(VLOOKUP($A36,'9 - SRH decisions'!$A$7:$AC$9,7,FALSE),"") ->  | X36: 0 | Y36: =_xlfn.IFNA(VLOOKUP($A36,'10 - Rejecting IPV'!$A$7:$AG$12,7,FALSE),"") ->  | Z36: =_xlfn.IFNA(VLOOKUP($A36,'11 - violence by partner'!$A$7:$AC$8,7,FALSE),"") ->  | AB36: 0 | AC36: 0 | AD36: =_xlfn.IFNA(VLOOKUP($A36,'13 - Food insecurity'!$A$6:$AF$23,7,FALSE),"") ->  | AE36: =_xlfn.IFNA(VLOOKUP($A36,'14 - Stunting'!$A$5:$AI$11,7,FALSE),"") ->  | AF36: =_xlfn.IFNA(VLOOKUP($A36,'15 - Resilience capacity'!$A$6:$AE$30,7,FALSE),"") ->  | AG36: 0 | AH36: 0 | AI36: =_xlfn.IFNA(VLOOKUP($A36,'WEE summary'!$A$4:$E$102,3,FALSE),"") ->  | AJ36: =_xlfn.IFNA(VLOOKUP($A36,'WEE summary'!$A$4:$E$102,4,FALSE),"") ->  | AK36: =_xlfn.IFNA(VLOOKUP($A36,'WEE summary'!$A$4:$E$102,5,FALSE),"") ->  | AL36: 0 | AM36: =_xlfn.IFNA(VLOOKUP($A36,'19 - Participation'!$A$5:$G$31,7,FALSE),"") ->  | AN36: =_xlfn.IFNA(VLOOKUP(A36,'20 - Policies'!A:C,3,FALSE),"") -> Yes | AO36: =_xlfn.IFNA(VLOOKUP(A36,'21 - Resilience actions'!$A$7:$G$26,7,FALSE),"") ->  | AP36: =MAX(AM36, AL36,AG36,AB36,X36,S36,I36,AO36) -> 0 | AQ36: =MAX(AL36,AG36,AB36,X36,S36,I36) -> 0 | AS36: =_xlfn.IFNA(VLOOKUP($A36,'1 - poverty ($1.90)'!$A$7:$H$9,8,FALSE),"") ->  | AT36: =_xlfn.IFNA(VLOOKUP($A36,'2 - poverty (nat pov line)'!$A$7:$H$9,8,FALSE),"") ->  | AU36: =_xlfn.IFNA(VLOOKUP($A36,'3 - basic services'!$A$7:$H$9,8,FALSE),"") ->  | AV36: =_xlfn.IFNA(VLOOKUP($A36,'4 - Shelter'!$A$5:$J$23,6,FALSE),"") ->  | AW36: =_xlfn.IFNA(VLOOKUP($A36,'4 - Safe Water'!$A$5:$J$24,6,FALSE),"") ->  | AX36: =_xlfn.IFNA(VLOOKUP($A36,'4 - Adequate Sanitation'!$A$5:$J$20,6,FALSE),"") ->  | AY36: =_xlfn.IFNA(VLOOKUP($A36,'4 - Hygiene Practices'!$A$5:$J$26,6,FALSE),"") ->  | AZ36: =_xlfn.IFNA(VLOOKUP($A36,'4 - Adequate food'!$A$5:$J$28,6,FALSE),"") ->  | BA36: =_xlfn.IFNA(VLOOKUP($A36,'4 - Nutritional practices'!$A$5:$J$15,6,FALSE),"") ->  | BB36: =_xlfn.IFNA(VLOOKUP($A36,'4 - Access SRH'!$A$5:$I$9,9,FALSE),"") ->  | BC36: =_xlfn.IFNA(VLOOKUP($A36,'4 - Livelihood recovery'!$A$5:$J$22,6,FALSE),"") ->  | BD36: =_xlfn.IFNA(VLOOKUP($A36,'5 - Satisfaction'!$A$5:$J$33,6,FALSE),"") ->  | BE36: =_xlfn.IFNA(VLOOKUP($A36,'6 - Met demand'!$A$7:$H$16,8,FALSE),"") ->  | BF36: =_xlfn.IFNA(VLOOKUP($A36,'7 - SBA'!$A$7:$H$16,8,FALSE),"") ->  | BG36: =_xlfn.IFNA(VLOOKUP($A36,'8 - ABR'!$A$7:$H$9,8,FALSE),"") ->  | BH36: =_xlfn.IFNA(VLOOKUP($A36,'9 - SRH decisions'!$A$7:$H$11,8,FALSE),"") ->  | BI36: =_xlfn.IFNA(VLOOKUP($A36,'10 - Rejecting IPV'!$A$7:$H$14,8,FALSE),"") ->  | BJ36: =_xlfn.IFNA(VLOOKUP($A36,'11 - violence by partner'!$A$7:$H$10,8,FALSE),"") ->  | BK36: =_xlfn.IFNA(VLOOKUP($A36,'12 - sexual violence'!$A$7:$H$9,8,FALSE),"") ->  | BL36: =_xlfn.IFNA(VLOOKUP($A36,'13 - Food insecurity'!$A$5:$L$25,9,FALSE),"") ->  | BM36: =_xlfn.IFNA(VLOOKUP($A36,'14 - Stunting'!$A$5:$L$13,9,FALSE),"") ->  | BN36: =_xlfn.IFNA(VLOOKUP($A36,'15 - Resilience capacity'!$A$5:$L$33,9,FALSE),"") ->  | BO36: =_xlfn.IFNA(VLOOKUP($A36,'WEE summary'!$A$4:$G$102,7,FALSE),"") ->  | BP36: =_xlfn.IFNA(VLOOKUP($A36,'17 - HH $ decisions'!$A$5:$L$46,7,FALSE),"") ->  | BQ36: =_xlfn.IFNA(VLOOKUP($A36,'18 - Labor rights'!$A$5:$L$23,7,FALSE),"") ->  | BR36: =_xlfn.IFNA(VLOOKUP($A36,'19 - Participation'!$A$5:$L$33,8,FALSE),"") ->  | BS36: =_xlfn.IFNA(A36&": "&VLOOKUP($A36,'20 - Policies'!$A$5:$J$62,5,FALSE),"") -> Technical Assistanceto the Ministry of Education on Multilingual Education: Policy Formulation | BT36: =_xlfn.IFNA(VLOOKUP($A36,'21 - Resilience actions'!$A$5:$L$28,9,FALSE),"") ->  | BU36: 1
A37: VSLAs (various other projects) in Cambodia | B37: Cambodia | C37: various | D37: various | E37: various | F37: =_xlfn.IFNA(VLOOKUP(A37,'1 - poverty ($1.90)'!$A$7:$G$9,7,FALSE),"") ->  | G37: =_xlfn.IFNA(VLOOKUP(A37,'2 - poverty (nat pov line)'!$A$7:$G$10,7,FALSE),"") ->  | H37: =_xlfn.IFNA(VLOOKUP(B37,'3 - basic services'!$A$7:$G$10,7,FALSE),"") ->  | I37: 0 | J37: =_xlfn.IFNA(VLOOKUP($A37,'4 - Shelter'!$A$5:$S$21,3,FALSE),"") ->  | K37: =_xlfn.IFNA(VLOOKUP($A37,'4 - Safe Water'!$A$5:$S$22,3,FALSE),"") ->  | L37: =_xlfn.IFNA(VLOOKUP($A37,'4 - Adequate Sanitation'!$A$5:$S$18,3,FALSE),"") ->  | M37: =_xlfn.IFNA(VLOOKUP($A37,'4 - Hygiene Practices'!$A$5:$S$24,3,FALSE),"") ->  | N37: =_xlfn.IFNA(VLOOKUP($A37,'4 - Adequate food'!$A$5:$S$26,3,FALSE),"") ->  | O37: =_xlfn.IFNA(VLOOKUP($A37,'4 - Nutritional practices'!$A$5:$S$13,3,FALSE),"") ->  | P37: =_xlfn.IFNA(VLOOKUP($A37,'4 - Access SRH'!$A$5:$V$7,3,FALSE),"") ->  | Q37: =_xlfn.IFNA(VLOOKUP($A37,'4 - Livelihood recovery'!$A$5:$S$20,3,FALSE),"") ->  | R37: =_xlfn.IFNA(VLOOKUP($A37,'5 - Satisfaction'!$A$6:$Y$31,5,FALSE),"") ->  | S37: 0 | T37: =_xlfn.IFNA(VLOOKUP($A37,'6 - Met demand'!$A$7:$AD$15,7,FALSE),"") ->  | U37: =_xlfn.IFNA(VLOOKUP($A37,'7 - SBA'!$A$7:$AC$14,7,FALSE),"") ->  | W37: =_xlfn.IFNA(VLOOKUP($A37,'9 - SRH decisions'!$A$7:$AC$9,7,FALSE),"") ->  | X37: 0 | Y37: =_xlfn.IFNA(VLOOKUP($A37,'10 - Rejecting IPV'!$A$7:$AG$12,7,FALSE),"") ->  | Z37: =_xlfn.IFNA(VLOOKUP($A37,'11 - violence by partner'!$A$7:$AC$8,7,FALSE),"") ->  | AB37: 0 | AC37: 0 | AD37: =_xlfn.IFNA(VLOOKUP($A37,'13 - Food insecurity'!$A$6:$AF$23,7,FALSE),"") ->  | AE37: =_xlfn.IFNA(VLOOKUP($A37,'14 - Stunting'!$A$5:$AI$11,7,FALSE),"") ->  | AF37: =_xlfn.IFNA(VLOOKUP($A37,'15 - Resilience capacity'!$A$6:$AE$30,7,FALSE),"") ->  | AG37: 0 | AH37: 0 | AI37: =_xlfn.IFNA(VLOOKUP($A37,'WEE summary'!$A$4:$E$102,3,FALSE),"") -> 513 | AJ37: =_xlfn.IFNA(VLOOKUP($A37,'WEE summary'!$A$4:$E$102,4,FALSE),"") ->  | AK37: =_xlfn.IFNA(VLOOKUP($A37,'WEE summary'!$A$4:$E$102,5,FALSE),"") ->  | AL37: 513 | AM37: =_xlfn.IFNA(VLOOKUP($A37,'19 - Participation'!$A$5:$G$31,7,FALSE),"") ->  | AN37: =_xlfn.IFNA(VLOOKUP(A37,'20 - Policies'!A:C,3,FALSE),"") ->  | AO37: =_xlfn.IFNA(VLOOKUP(A37,'21 - Resilience actions'!$A$7:$G$26,7,FALSE),"") ->  | AP37: =MAX(AM37, AL37,AG37,AB37,X37,S37,I37,AO37) -> 513 | AQ37: =MAX(AL37,AG37,AB37,X37,S37,I37) -> 513 | AS37: =_xlfn.IFNA(VLOOKUP($A37,'1 - poverty ($1.90)'!$A$7:$H$9,8,FALSE),"") ->  | AT37: =_xlfn.IFNA(VLOOKUP($A37,'2 - poverty (nat pov line)'!$A$7:$H$9,8,FALSE),"") ->  | AU37: =_xlfn.IFNA(VLOOKUP($A37,'3 - basic services'!$A$7:$H$9,8,FALSE),"") ->  | AV37: =_xlfn.IFNA(VLOOKUP($A37,'4 - Shelter'!$A$5:$J$23,6,FALSE),"") ->  | AW37: =_xlfn.IFNA(VLOOKUP($A37,'4 - Safe Water'!$A$5:$J$24,6,FALSE),"") ->  | AX37: =_xlfn.IFNA(VLOOKUP($A37,'4 - Adequate Sanitation'!$A$5:$J$20,6,FALSE),"") ->  | AY37: =_xlfn.IFNA(VLOOKUP($A37,'4 - Hygiene Practices'!$A$5:$J$26,6,FALSE),"") ->  | AZ37: =_xlfn.IFNA(VLOOKUP($A37,'4 - Adequate food'!$A$5:$J$28,6,FALSE),"") ->  | BA37: =_xlfn.IFNA(VLOOKUP($A37,'4 - Nutritional practices'!$A$5:$J$15,6,FALSE),"") ->  | BB37: =_xlfn.IFNA(VLOOKUP($A37,'4 - Access SRH'!$A$5:$I$9,9,FALSE),"") ->  | BC37: =_xlfn.IFNA(VLOOKUP($A37,'4 - Livelihood recovery'!$A$5:$J$22,6,FALSE),"") ->  | BD37: =_xlfn.IFNA(VLOOKUP($A37,'5 - Satisfaction'!$A$5:$J$33,6,FALSE),"") ->  | BE37: =_xlfn.IFNA(VLOOKUP($A37,'6 - Met demand'!$A$7:$H$16,8,FALSE),"") ->  | BF37: =_xlfn.IFNA(VLOOKUP($A37,'7 - SBA'!$A$7:$H$16,8,FALSE),"") ->  | BG37: =_xlfn.IFNA(VLOOKUP($A37,'8 - ABR'!$A$7:$H$9,8,FALSE),"") ->  | BH37: =_xlfn.IFNA(VLOOKUP($A37,'9 - SRH decisions'!$A$7:$H$11,8,FALSE),"") ->  | BI37: =_xlfn.IFNA(VLOOKUP($A37,'10 - Rejecting IPV'!$A$7:$H$14,8,FALSE),"") ->  | BJ37: =_xlfn.IFNA(VLOOKUP($A37,'11 - violence by partner'!$A$7:$H$10,8,FALSE),"") ->  | BK37: =_xlfn.IFNA(VLOOKUP($A37,'12 - sexual violence'!$A$7:$H$9,8,FALSE),"") ->  | BL37: =_xlfn.IFNA(VLOOKUP($A37,'13 - Food insecurity'!$A$5:$L$25,9,FALSE),"") ->  | BM37: =_xlfn.IFNA(VLOOKUP($A37,'14 - Stunting'!$A$5:$L$13,9,FALSE),"") ->  | BN37: =_xlfn.IFNA(VLOOKUP($A37,'15 - Resilience capacity'!$A$5:$L$33,9,FALSE),"") ->  | BO37: =_xlfn.IFNA(VLOOKUP($A37,'WEE summary'!$A$4:$G$102,7,FALSE),"") -> VSLAs (various other projects) in Cambodia enabled 513 women to access formal or informal financial services | BP37: =_xlfn.IFNA(VLOOKUP($A37,'17 - HH $ decisions'!$A$5:$L$46,7,FALSE),"") ->  | BQ37: =_xlfn.IFNA(VLOOKUP($A37,'18 - Labor rights'!$A$5:$L$23,7,FALSE),"") ->  | BR37: =_xlfn.IFNA(VLOOKUP($A37,'19 - Participation'!$A$5:$L$33,8,FALSE),"") ->  | BS37: =_xlfn.IFNA(A37&": "&VLOOKUP($A37,'20 - Policies'!$A$5:$J$62,5,FALSE),"") ->  | BT37: =_xlfn.IFNA(VLOOKUP($A37,'21 - Resilience actions'!$A$5:$L$28,9,FALSE),"") -> 
B38: Cambodia Total | F38: =SUBTOTAL(9,F33:F37) -> 0 | G38: 0 | H38: 0 | I38: 0 | J38: 0 | K38: 880 | L38: 0 | M38: 880 | N38: 0 | O38: 0 | P38: 0 | Q38: 0 | R38: 3960 | S38: 3960 | T38: 8157.000978 | U38: 6594.368 | V38: 0 | W38: 9635.736 | X38: 9635.736 | Y38: 0 | Z38: 0 | AA38: 0 | AB38: 0 | AC38: 9635.736 | AD38: 0 | AE38: 0 | AF38: 0 | AG38: 0 | AH38: 0 | AI38: 3219 | AJ38: 0 | AK38: 0 | AL38: 3219 | AM38: 0 | AN38: 0 | AO38: 0 | AP38: 14108.736 | AQ38: 14108.736 | AS38: =_xlfn.TEXTJOIN(CHAR(10)&CHAR(10),TRUE,AS33:AS37) ->  | AW38: Emergency Response to the Water Shortage Crisis in Koh Kong Province enabled access to safe drinking water for 880 people, 22.22% of those requiring assistance | AY38: Emergency Response to the Water Shortage Crisis in Koh Kong Province enabled the use of adequate hygiene practices by 880 people, 22.22% of those requiring assistance | AZ38: =_xlfn.TEXTJOIN(CHAR(10)&CHAR(10),TRUE,AZ33:AZ37) ->  | BD38: Emergency Response to the Water Shortage Crisis in Koh Kong Province: 3,960 people were satisified with the humanitarian assistance (100% of those receiving support) | BE38: =_xlfn.TEXTJOIN(CHAR(10)&CHAR(10),TRUE,BE33:BE37) -> Partnering to Saving Lives (PSL) contributed to increasing met demand for modern contraceptives by 2.9% (from 17.2% to 20.1%), enabling 1,173 women to increase access to contraceptives, and a total of 8,157 women to exercise their SRMH rights | BF38: Partnering to Saving Lives (PSL) contributed to increasing the proportion of births attended by skilled health personnel by 15% (from 55.4% to 70.4%), enabling an additional 1,405 women to have their births attended by skilled personnel, and a total of 6,594 women to exercise their SRMH rights | BH38: Partnering to Saving Lives (PSL) contributed to increasing the proportion of women able to make their own informed SRH decisions by 7% (from 25.3% to 32.3%), enabling an additional 2,088 women to make informed decisions, and a total of 9,636 women to exercise their SRMH rights | BI38: =_xlfn.TEXTJOIN(CHAR(10)&CHAR(10),TRUE,BI33:BI37) ->  | BJ38: =_xlfn.TEXTJOIN(CHAR(10)&CHAR(10),TRUE,BJ33:BJ37) ->  | BK38: =_xlfn.TEXTJOIN(CHAR(10)&CHAR(10),TRUE,BK33:BK37) ->  | BL38: =_xlfn.TEXTJOIN(CHAR(10)&CHAR(10),TRUE,BL33:BL37) ->  | BN38: =_xlfn.TEXTJOIN(CHAR(10)&CHAR(10),TRUE,BN33:BN37) ->  | BO38: Partnering to Saving Lives (PSL) enabled 2,706 women to access formal or informal financial services VSLAs (various other projects) in Cambodia enabled 513 women to access formal or informal financial services | BS38: Partnering to Saving Lives (PSL): Plan Formulation Safe Workplaces, Safe Communities (SWSC): Policy Formulation Technical Assistanceto the Ministry of Education on Multilingual Education: Policy Formulation | BT38: =_xlfn.TEXTJOIN(CHAR(10)&CHAR(10),TRUE,BT33:BT37) ->  | BU38: =SUBTOTAL(9,BU33:BU37) -> 3
A39: Renforcement des capacités de résilience et de la cohésion sociale entre les populations touchées par le conflit dans les régions de l`Est et de l`Adamaoua à travers des moyens de subsistance, la sécurité alimentaire, le WASH (eau hygiène et assainissement) ainsi que les abris et infrastructures de base | B39: Cameroon | C39: CARE UK | D39: START-NETWORK DFID | E39: Apr 15 to Mar 16 | I39: 0 | J39: ='HUM summary '!C11 -> 0 | K39: ='HUM summary '!D11 -> 32466 | L39: ='HUM summary '!E11 -> 7700 | M39: ='HUM summary '!F11 -> 2070 | N39: ='HUM summary '!G11 -> 0 | O39: ='HUM summary '!H11 -> 0 | P39: ='HUM summary '!I11 -> 0 | Q39: ='HUM summary '!J11 -> 0 | R39: ='HUM summary '!M11 -> 0 | S39: 32466 | X39: 0 | AB39: 0 | AC39: 0 | AG39: 0 | AH39: 0 | AL39: 0 | AP39: =MAX(AM39, AL39,AG39,AB39,X39,S39,I39,AO39) -> 32466 | AQ39: =MAX(AL39,AG39,AB39,X39,S39,I39) -> 32466 | AW39: ='4 - Safe Water'!F7 -> Renforcement des capacités de résilience et de la cohésion sociale entre les populations touchées par le conflit dans les régions de l`Est et de l`Adamaoua à travers des moyens de subsistance, la sécurité alimentaire, le WASH (eau hygiène et assainissement) ainsi que les abris et infrastructures de base enabled access to safe drinking water for 32,466 people, 2.03% of those requiring assistance | AX39: ='4 - Adequate Sanitation'!F17 -> Renforcement des capacités de résilience et de la cohésion sociale entre les populations touchées par le conflit dans les régions de l`Est et de l`Adamaoua à travers des moyens de subsistance, la sécurité alimentaire, le WASH (eau hygiène et assainissement) ainsi que les abris et infrastructures de base enabled access to adequate sanitation facilities for 7,700 people | AY39: ='4 - Hygiene Practices'!F24 -> Renforcement des capacités de résilience et de la cohésion sociale entre les populations touchées par le conflit dans les régions de l`Est et de l`Adamaoua à travers des moyens de subsistance, la sécurité alimentaire, le WASH (eau hygiène et assainissement) ainsi que les abris et infrastructures de base enabled the use of adequate hygiene practices by 2,070 people | BS39: =IFERROR(_xlfn.IFNA(A39&": "&VLOOKUP($A39,'20 - Policies'!$A$5:$J$62,5,FALSE),""),"") ->  | BU39: =IF(COUNTIF(BS39,"")=0,1,"") -> 
B40: Cameroon Total | F40: =SUBTOTAL(9,F39:F39) -> 0 | G40: 0 | H40: 0 | I40: 0 | J40: 0 | K40: 32466 | L40: 7700 | M40: 2070 | N40: 0 | O40: 0 | P40: 0 | Q40: 0 | R40: 0 | S40: 32466 | T40: 0 | U40: 0 | V40: 0 | W40: 0 | X40: 0 | Y40: 0 | Z40: 0 | AA40: 0 | AB40: 0 | AC40: 0 | AD40: 0 | AE40: 0 | AF40: 0 | AG40: 0 | AH40: 0 | AI40: 0 | AJ40: 0 | AK40: 0 | AL40: 0 | AM40: 0 | AN40: 0 | AO40: 0 | AP40: 32466 | AQ40: 32466 | AS40: =_xlfn.TEXTJOIN(CHAR(10)&CHAR(10),TRUE,AS39:AS39) ->  | AW40: Renforcement des capacités de résilience et de la cohésion sociale entre les populations touchées par le conflit dans les régions de l`Est et de l`Adamaoua à travers des moyens de subsistance, la sécurité alimentaire, le WASH (eau hygiène et assainissement) ainsi que les abris et infrastructures de base enabled access to safe drinking water for 32,466 people, 2.03% of those requiring assistance | AX40: Renforcement des capacités de résilience et de la cohésion sociale entre les populations touchées par le conflit dans les régions de l`Est et de l`Adamaoua à travers des moyens de subsistance, la sécurité alimentaire, le WASH (eau hygiène et assainissement) ainsi que les abris et infrastructures de base enabled access to adequate sanitation facilities for 7,700 people | AY40: Renforcement des capacités de résilience et de la cohésion sociale entre les populations touchées par le conflit dans les régions de l`Est et de l`Adamaoua à travers des moyens de subsistance, la sécurité alimentaire, le WASH (eau hygiène et assainissement) ainsi que les abris et infrastructures de base enabled the use of adequate hygiene practices by 2,070 people | AZ40: =_xlfn.TEXTJOIN(CHAR(10)&CHAR(10),TRUE,AZ39:AZ39) ->  | BE40: =_xlfn.TEXTJOIN(CHAR(10)&CHAR(10),TRUE,BE39:BE39) ->  | BI40: =_xlfn.TEXTJOIN(CHAR(10)&CHAR(10),TRUE,BI39:BI39) ->  | BJ40: =_xlfn.TEXTJOIN(CHAR(10)&CHAR(10),TRUE,BJ39:BJ39) ->  | BK40: =_xlfn.TEXTJOIN(CHAR(10)&CHAR(10),TRUE,BK39:BK39) ->  | BL40: =_xlfn.TEXTJOIN(CHAR(10)&CHAR(10),TRUE,BL39:BL39) ->  | BN40: =_xlfn.TEXTJOIN(CHAR(10)&CHAR(10),TRUE,BN39:BN39) ->  | BT40: =_xlfn.TEXTJOIN(CHAR(10)&CHAR(10),TRUE,BT39:BT39) ->  | BU40: =SUBTOTAL(9,BU39:BU39) -> 0
A41: Assistance d’urgence aux plus vulnérables, hommes et femmes, parmi les retournés et populations hôtesdans le Logone Oriental, Tchad | B41: Chad | C41: =_xlfn.IFNA(VLOOKUP(A41,'PIIRS FY16 Indicators data'!F:G,2,FALSE),"") -> CARE Canada | D41: =_xlfn.IFNA(VLOOKUP($A41,'PIIRS FY16 Indicators data'!$F$2:$S$1045,5,FALSE),"") -> Canada Department of Foreign Affairs, Trade and Development | E41: =_xlfn.IFNA(IF(VLOOKUP($A41,'PIIRS FY16 Indicators data'!$F$2:$S$1045,14,FALSE)="",TEXT(VLOOKUP($A41,'PIIRS FY16 Indicators data'!$F$2:$S$1045,12,FALSE),"mmm-yy")&" to "&TEXT(VLOOKUP($A41,'PIIRS FY16 Indicators data'!$F$2:$S$1045,13,FALSE),"mmm-yy"),TEXT(VLOOKUP($A41,'PIIRS FY16 Indicators data'!$F$2:$S$1045,12,FALSE),"mmm-yy")&" to "&TEXT(VLOOKUP($A41,'PIIRS FY16 Indicators data'!$F$2:$S$1045,14,FALSE),"mmm-yy")),"") -> Apr-15 to Mar-16 | F41: =_xlfn.IFNA(VLOOKUP(A41,'1 - poverty ($1.90)'!$A$7:$G$9,7,FALSE),"") ->  | G41: =_xlfn.IFNA(VLOOKUP(A41,'2 - poverty (nat pov line)'!$A$7:$G$10,7,FALSE),"") ->  | H41: =_xlfn.IFNA(VLOOKUP(B41,'3 - basic services'!$A$7:$G$10,7,FALSE),"") ->  | I41: 0 | J41: =_xlfn.IFNA(VLOOKUP($A41,'4 - Shelter'!$A$5:$S$21,3,FALSE),"") ->  | K41: =_xlfn.IFNA(VLOOKUP($A41,'4 - Safe Water'!$A$5:$S$22,3,FALSE),"") ->  | L41: =_xlfn.IFNA(VLOOKUP($A41,'4 - Adequate Sanitation'!$A$5:$S$18,3,FALSE),"") ->  | M41: =_xlfn.IFNA(VLOOKUP($A41,'4 - Hygiene Practices'!$A$5:$S$24,3,FALSE),"") ->  | N41: =_xlfn.IFNA(VLOOKUP($A41,'4 - Adequate food'!$A$5:$S$26,3,FALSE),"") ->  | O41: =_xlfn.IFNA(VLOOKUP($A41,'4 - Nutritional practices'!$A$5:$S$13,3,FALSE),"") ->  | P41: =_xlfn.IFNA(VLOOKUP($A41,'4 - Access SRH'!$A$5:$V$7,3,FALSE),"") ->  | Q41: =_xlfn.IFNA(VLOOKUP($A41,'4 - Livelihood recovery'!$A$5:$S$20,3,FALSE),"") ->  | R41: =_xlfn.IFNA(VLOOKUP($A41,'5 - Satisfaction'!$A$6:$Y$31,5,FALSE),"") -> 29396.52 | S41: 29396.52 | T41: =_xlfn.IFNA(VLOOKUP($A41,'6 - Met demand'!$A$7:$AD$15,7,FALSE),"") ->  | U41: =_xlfn.IFNA(VLOOKUP($A41,'7 - SBA'!$A$7:$AC$14,7,FALSE),"") ->  | W41: =_xlfn.IFNA(VLOOKUP($A41,'9 - SRH decisions'!$A$7:$AC$9,7,FALSE),"") ->  | X41: 0 | Y41: =_xlfn.IFNA(VLOOKUP($A41,'10 - Rejecting IPV'!$A$7:$AG$12,7,FALSE),"") ->  | Z41: =_xlfn.IFNA(VLOOKUP($A41,'11 - violence by partner'!$A$7:$AC$8,7,FALSE),"") ->  | AB41: 0 | AC41: 0 | AD41: =_xlfn.IFNA(VLOOKUP($A41,'13 - Food insecurity'!$A$6:$AF$23,7,FALSE),"") ->  | AE41: =_xlfn.IFNA(VLOOKUP($A41,'14 - Stunting'!$A$5:$AI$11,7,FALSE),"") ->  | AF41: =_xlfn.IFNA(VLOOKUP($A41,'15 - Resilience capacity'!$A$6:$AE$30,7,FALSE),"") ->  | AG41: 0 | AH41: 0 | AI41: =_xlfn.IFNA(VLOOKUP($A41,'WEE summary'!$A$4:$E$102,3,FALSE),"") ->  | AJ41: =_xlfn.IFNA(VLOOKUP($A41,'WEE summary'!$A$4:$E$102,4,FALSE),"") ->  | AK41: =_xlfn.IFNA(VLOOKUP($A41,'WEE summary'!$A$4:$E$102,5,FALSE),"") ->  | AL41: 0 | AM41: =_xlfn.IFNA(VLOOKUP($A41,'19 - Participation'!$A$5:$G$31,7,FALSE),"") ->  | AN41: =_xlfn.IFNA(VLOOKUP(A41,'20 - Policies'!A:C,3,FALSE),"") -> Yes | AO41: =_xlfn.IFNA(VLOOKUP(A41,'21 - Resilience actions'!$A$7:$G$26,7,FALSE),"") ->  | AP41: =MAX(AM41, AL41,AG41,AB41,X41,S41,I41,AO41) -> 29396.52 | AQ41: =MAX(AL41,AG41,AB41,X41,S41,I41) -> 29396.52 | AS41: =_xlfn.IFNA(VLOOKUP($A41,'1 - poverty ($1.90)'!$A$7:$H$9,8,FALSE),"") ->  | AT41: =_xlfn.IFNA(VLOOKUP($A41,'2 - poverty (nat pov line)'!$A$7:$H$9,8,FALSE),"") ->  | AU41: =_xlfn.IFNA(VLOOKUP($A41,'3 - basic services'!$A$7:$H$9,8,FALSE),"") ->  | AV41: =_xlfn.IFNA(VLOOKUP($A41,'4 - Shelter'!$A$5:$J$23,6,FALSE),"") ->  | AW41: =_xlfn.IFNA(VLOOKUP($A41,'4 - Safe Water'!$A$5:$J$24,6,FALSE),"") ->  | AX41: =_xlfn.IFNA(VLOOKUP($A41,'4 - Adequate Sanitation'!$A$5:$J$20,6,FALSE),"") ->  | AY41: =_xlfn.IFNA(VLOOKUP($A41,'4 - Hygiene Practices'!$A$5:$J$26,6,FALSE),"") ->  | AZ41: =_xlfn.IFNA(VLOOKUP($A41,'4 - Adequate food'!$A$5:$J$28,6,FALSE),"") ->  | BA41: =_xlfn.IFNA(VLOOKUP($A41,'4 - Nutritional practices'!$A$5:$J$15,6,FALSE),"") ->  | BB41: =_xlfn.IFNA(VLOOKUP($A41,'4 - Access SRH'!$A$5:$I$9,9,FALSE),"") ->  | BC41: =_xlfn.IFNA(VLOOKUP($A41,'4 - Livelihood recovery'!$A$5:$J$22,6,FALSE),"") ->  | BD41: =_xlfn.IFNA(VLOOKUP($A41,'5 - Satisfaction'!$A$5:$J$33,6,FALSE),"") -> Assistance d’urgence aux plus vulnérables, hommes et femmes, parmi les retournés et populations hôtesdans le Logone Oriental, Tchad: 29,397 people were satisified with the humanitarian assistance (81% of those receiving support) | BE41: =_xlfn.IFNA(VLOOKUP($A41,'6 - Met demand'!$A$7:$H$16,8,FALSE),"") ->  | BF41: =_xlfn.IFNA(VLOOKUP($A41,'7 - SBA'!$A$7:$H$16,8,FALSE),"") ->  | BG41: =_xlfn.IFNA(VLOOKUP($A41,'8 - ABR'!$A$7:$H$9,8,FALSE),"") ->  | BH41: =_xlfn.IFNA(VLOOKUP($A41,'9 - SRH decisions'!$A$7:$H$11,8,FALSE),"") ->  | BI41: =_xlfn.IFNA(VLOOKUP($A41,'10 - Rejecting IPV'!$A$7:$H$14,8,FALSE),"") ->  | BJ41: =_xlfn.IFNA(VLOOKUP($A41,'11 - violence by partner'!$A$7:$H$10,8,FALSE),"") ->  | BK41: =_xlfn.IFNA(VLOOKUP($A41,'12 - sexual violence'!$A$7:$H$9,8,FALSE),"") ->  | BL41: =_xlfn.IFNA(VLOOKUP($A41,'13 - Food insecurity'!$A$5:$L$25,9,FALSE),"") ->  | BM41: =_xlfn.IFNA(VLOOKUP($A41,'14 - Stunting'!$A$5:$L$13,9,FALSE),"") ->  | BN41: =_xlfn.IFNA(VLOOKUP($A41,'15 - Resilience capacity'!$A$5:$L$33,9,FALSE),"") ->  | BO41: =_xlfn.IFNA(VLOOKUP($A41,'WEE summary'!$A$4:$G$102,7,FALSE),"") ->  | BP41: =_xlfn.IFNA(VLOOKUP($A41,'17 - HH $ decisions'!$A$5:$L$46,7,FALSE),"") ->  | BQ41: =_xlfn.IFNA(VLOOKUP($A41,'18 - Labor rights'!$A$5:$L$23,7,FALSE),"") ->  | BR41: =_xlfn.IFNA(VLOOKUP($A41,'19 - Participation'!$A$5:$L$33,8,FALSE),"") ->  | BS41: =_xlfn.IFNA(A41&": "&VLOOKUP($A41,'20 - Policies'!$A$5:$J$62,5,FALSE),"") -> Assistance d’urgence aux plus vulnérables, hommes et femmes, parmi les retournés et populations hôtesdans le Logone Oriental, Tchad: Policy Oversight | BT41: =_xlfn.IFNA(VLOOKUP($A41,'21 - Resilience actions'!$A$5:$L$28,9,FALSE),"") ->  | BU41: =IF(COUNTIF(BS41,"")=0,1,"") -> 1
A42: Assistance multisectorielle aux populations vulnérables affectées par la crise de la région du lac Tchad | B42: Chad | C42: =_xlfn.IFNA(VLOOKUP(A42,'PIIRS FY16 Indicators data'!F:G,2,FALSE),"") -> CARE France | D42: =_xlfn.IFNA(VLOOKUP($A42,'PIIRS FY16 Indicators data'!$F$2:$S$1045,5,FALSE),"") -> ECHO | E42: =_xlfn.IFNA(IF(VLOOKUP($A42,'PIIRS FY16 Indicators data'!$F$2:$S$1045,14,FALSE)="",TEXT(VLOOKUP($A42,'PIIRS FY16 Indicators data'!$F$2:$S$1045,12,FALSE),"mmm-yy")&" to "&TEXT(VLOOKUP($A42,'PIIRS FY16 Indicators data'!$F$2:$S$1045,13,FALSE),"mmm-yy"),TEXT(VLOOKUP($A42,'PIIRS FY16 Indicators data'!$F$2:$S$1045,12,FALSE),"mmm-yy")&" to "&TEXT(VLOOKUP($A42,'PIIRS FY16 Indicators data'!$F$2:$S$1045,14,FALSE),"mmm-yy")),"") -> Mar-16 to Feb-17 | F42: =_xlfn.IFNA(VLOOKUP(A42,'1 - poverty ($1.90)'!$A$7:$G$9,7,FALSE),"") ->  | G42: =_xlfn.IFNA(VLOOKUP(A42,'2 - poverty (nat pov line)'!$A$7:$G$10,7,FALSE),"") ->  | H42: =_xlfn.IFNA(VLOOKUP(B42,'3 - basic services'!$A$7:$G$10,7,FALSE),"") ->  | I42: 0 | J42: =_xlfn.IFNA(VLOOKUP($A42,'4 - Shelter'!$A$5:$S$21,3,FALSE),"") ->  | K42: =_xlfn.IFNA(VLOOKUP($A42,'4 - Safe Water'!$A$5:$S$22,3,FALSE),"") ->  | L42: =_xlfn.IFNA(VLOOKUP($A42,'4 - Adequate Sanitation'!$A$5:$S$18,3,FALSE),"") ->  | M42: =_xlfn.IFNA(VLOOKUP($A42,'4 - Hygiene Practices'!$A$5:$S$24,3,FALSE),"") ->  | N42: =_xlfn.IFNA(VLOOKUP($A42,'4 - Adequate food'!$A$5:$S$26,3,FALSE),"") ->  | O42: =_xlfn.IFNA(VLOOKUP($A42,'4 - Nutritional practices'!$A$5:$S$13,3,FALSE),"") -> 1173 | P42: =_xlfn.IFNA(VLOOKUP($A42,'4 - Access SRH'!$A$5:$V$7,3,FALSE),"") ->  | Q42: =_xlfn.IFNA(VLOOKUP($A42,'4 - Livelihood recovery'!$A$5:$S$20,3,FALSE),"") ->  | R42: =_xlfn.IFNA(VLOOKUP($A42,'5 - Satisfaction'!$A$6:$Y$31,5,FALSE),"") ->  | S42: 1173 | T42: =_xlfn.IFNA(VLOOKUP($A42,'6 - Met demand'!$A$7:$AD$15,7,FALSE),"") ->  | U42: =_xlfn.IFNA(VLOOKUP($A42,'7 - SBA'!$A$7:$AC$14,7,FALSE),"") ->  | W42: =_xlfn.IFNA(VLOOKUP($A42,'9 - SRH decisions'!$A$7:$AC$9,7,FALSE),"") ->  | X42: 0 | Y42: =_xlfn.IFNA(VLOOKUP($A42,'10 - Rejecting IPV'!$A$7:$AG$12,7,FALSE),"") ->  | Z42: =_xlfn.IFNA(VLOOKUP($A42,'11 - violence by partner'!$A$7:$AC$8,7,FALSE),"") ->  | AB42: 0 | AC42: 0 | AD42: =_xlfn.IFNA(VLOOKUP($A42,'13 - Food insecurity'!$A$6:$AF$23,7,FALSE),"") ->  | AE42: =_xlfn.IFNA(VLOOKUP($A42,'14 - Stunting'!$A$5:$AI$11,7,FALSE),"") ->  | AF42: =_xlfn.IFNA(VLOOKUP($A42,'15 - Resilience capacity'!$A$6:$AE$30,7,FALSE),"") ->  | AG42: 0 | AH42: 1173 | AI42: =_xlfn.IFNA(VLOOKUP($A42,'WEE summary'!$A$4:$E$102,3,FALSE),"") ->  | AJ42: =_xlfn.IFNA(VLOOKUP($A42,'WEE summary'!$A$4:$E$102,4,FALSE),"") ->  | AK42: =_xlfn.IFNA(VLOOKUP($A42,'WEE summary'!$A$4:$E$102,5,FALSE),"") ->  | AL42: 0 | AM42: =_xlfn.IFNA(VLOOKUP($A42,'19 - Participation'!$A$5:$G$31,7,FALSE),"") ->  | AN42: =_xlfn.IFNA(VLOOKUP(A42,'20 - Policies'!A:C,3,FALSE),"") ->  | AO42: =_xlfn.IFNA(VLOOKUP(A42,'21 - Resilience actions'!$A$7:$G$26,7,FALSE),"") ->  | AP42: 1173 | AQ42: 1173 | AS42: =_xlfn.IFNA(VLOOKUP($A42,'1 - poverty ($1.90)'!$A$7:$H$9,8,FALSE),"") ->  | AT42: =_xlfn.IFNA(VLOOKUP($A42,'2 - poverty (nat pov line)'!$A$7:$H$9,8,FALSE),"") ->  | AU42: =_xlfn.IFNA(VLOOKUP($A42,'3 - basic services'!$A$7:$H$9,8,FALSE),"") ->  | AV42: =_xlfn.IFNA(VLOOKUP($A42,'4 - Shelter'!$A$5:$J$23,6,FALSE),"") ->  | AW42: =_xlfn.IFNA(VLOOKUP($A42,'4 - Safe Water'!$A$5:$J$24,6,FALSE),"") ->  | AX42: =_xlfn.IFNA(VLOOKUP($A42,'4 - Adequate Sanitation'!$A$5:$J$20,6,FALSE),"") ->  | AY42: =_xlfn.IFNA(VLOOKUP($A42,'4 - Hygiene Practices'!$A$5:$J$26,6,FALSE),"") ->  | AZ42: =_xlfn.IFNA(VLOOKUP($A42,'4 - Adequate food'!$A$5:$J$28,6,FALSE),"") ->  | BA42: =_xlfn.IFNA(VLOOKUP($A42,'4 - Nutritional practices'!$A$5:$J$15,6,FALSE),"") -> Assistance multisectorielle aux populations vulnérables affectées par la crise de la région du lac Tchad supported the adoption of adequate nutritional practices by 1,173 people, 5.87% of those requiring assistance | BB42: =_xlfn.IFNA(VLOOKUP($A42,'4 - Access SRH'!$A$5:$I$9,9,FALSE),"") ->  | BC42: =_xlfn.IFNA(VLOOKUP($A42,'4 - Livelihood recovery'!$A$5:$J$22,6,FALSE),"") ->  | BD42: =_xlfn.IFNA(VLOOKUP($A42,'5 - Satisfaction'!$A$5:$J$33,6,FALSE),"") ->  | BE42: =_xlfn.IFNA(VLOOKUP($A42,'6 - Met demand'!$A$7:$H$16,8,FALSE),"") ->  | BF42: =_xlfn.IFNA(VLOOKUP($A42,'7 - SBA'!$A$7:$H$16,8,FALSE),"") ->  | BG42: =_xlfn.IFNA(VLOOKUP($A42,'8 - ABR'!$A$7:$H$9,8,FALSE),"") ->  | BH42: =_xlfn.IFNA(VLOOKUP($A42,'9 - SRH decisions'!$A$7:$H$11,8,FALSE),"") ->  | BI42: =_xlfn.IFNA(VLOOKUP($A42,'10 - Rejecting IPV'!$A$7:$H$14,8,FALSE),"") ->  | BJ42: =_xlfn.IFNA(VLOOKUP($A42,'11 - violence by partner'!$A$7:$H$10,8,FALSE),"") ->  | BK42: =_xlfn.IFNA(VLOOKUP($A42,'12 - sexual violence'!$A$7:$H$9,8,FALSE),"") ->  | BL42: =_xlfn.IFNA(VLOOKUP($A42,'13 - Food insecurity'!$A$5:$L$25,9,FALSE),"") ->  | BM42: =_xlfn.IFNA(VLOOKUP($A42,'14 - Stunting'!$A$5:$L$13,9,FALSE),"") ->  | BN42: =_xlfn.IFNA(VLOOKUP($A42,'15 - Resilience capacity'!$A$5:$L$33,9,FALSE),"") ->  | BO42: =_xlfn.IFNA(VLOOKUP($A42,'WEE summary'!$A$4:$G$102,7,FALSE),"") ->  | BP42: =_xlfn.IFNA(VLOOKUP($A42,'17 - HH $ decisions'!$A$5:$L$46,7,FALSE),"") ->  | BQ42: =_xlfn.IFNA(VLOOKUP($A42,'18 - Labor rights'!$A$5:$L$23,7,FALSE),"") ->  | BR42: =_xlfn.IFNA(VLOOKUP($A42,'19 - Participation'!$A$5:$L$33,8,FALSE),"") ->  | BS42: =_xlfn.IFNA(A42&": "&VLOOKUP($A42,'20 - Policies'!$A$5:$J$62,5,FALSE),"") ->  | BT42: =_xlfn.IFNA(VLOOKUP($A42,'21 - Resilience actions'!$A$5:$L$28,9,FALSE),"") -> 
A43: Building Protective Environments for Refugee, Returnee and Host Community Women and Girls at Risk of GBV in Southern Chad | B43: Chad | C43: =_xlfn.IFNA(VLOOKUP(A43,'PIIRS FY16 Indicators data'!F:G,2,FALSE),"") -> CARE USA | D43: =_xlfn.IFNA(VLOOKUP($A43,'PIIRS FY16 Indicators data'!$F$2:$S$1045,5,FALSE),"") -> U.S. Department Of State Federal Assistance | E43: =_xlfn.IFNA(IF(VLOOKUP($A43,'PIIRS FY16 Indicators data'!$F$2:$S$1045,14,FALSE)="",TEXT(VLOOKUP($A43,'PIIRS FY16 Indicators data'!$F$2:$S$1045,12,FALSE),"mmm-yy")&" to "&TEXT(VLOOKUP($A43,'PIIRS FY16 Indicators data'!$F$2:$S$1045,13,FALSE),"mmm-yy"),TEXT(VLOOKUP($A43,'PIIRS FY16 Indicators data'!$F$2:$S$1045,12,FALSE),"mmm-yy")&" to "&TEXT(VLOOKUP($A43,'PIIRS FY16 Indicators data'!$F$2:$S$1045,14,FALSE),"mmm-yy")),"") -> Jul-15 to Nov-16 | F43: =_xlfn.IFNA(VLOOKUP(A43,'1 - poverty ($1.90)'!$A$7:$G$9,7,FALSE),"") ->  | G43: =_xlfn.IFNA(VLOOKUP(A43,'2 - poverty (nat pov line)'!$A$7:$G$10,7,FALSE),"") ->  | H43: =_xlfn.IFNA(VLOOKUP(B43,'3 - basic services'!$A$7:$G$10,7,FALSE),"") ->  | I43: 0 | J43: =_xlfn.IFNA(VLOOKUP($A43,'4 - Shelter'!$A$5:$S$21,3,FALSE),"") ->  | K43: =_xlfn.IFNA(VLOOKUP($A43,'4 - Safe Water'!$A$5:$S$22,3,FALSE),"") ->  | L43: =_xlfn.IFNA(VLOOKUP($A43,'4 - Adequate Sanitation'!$A$5:$S$18,3,FALSE),"") ->  | M43: =_xlfn.IFNA(VLOOKUP($A43,'4 - Hygiene Practices'!$A$5:$S$24,3,FALSE),"") ->  | N43: =_xlfn.IFNA(VLOOKUP($A43,'4 - Adequate food'!$A$5:$S$26,3,FALSE),"") ->  | O43: =_xlfn.IFNA(VLOOKUP($A43,'4 - Nutritional practices'!$A$5:$S$13,3,FALSE),"") ->  | P43: =_xlfn.IFNA(VLOOKUP($A43,'4 - Access SRH'!$A$5:$V$7,3,FALSE),"") ->  | Q43: =_xlfn.IFNA(VLOOKUP($A43,'4 - Livelihood recovery'!$A$5:$S$20,3,FALSE),"") ->  | R43: =_xlfn.IFNA(VLOOKUP($A43,'5 - Satisfaction'!$A$6:$Y$31,5,FALSE),"") ->  | S43: 0 | T43: =_xlfn.IFNA(VLOOKUP($A43,'6 - Met demand'!$A$7:$AD$15,7,FALSE),"") ->  | U43: =_xlfn.IFNA(VLOOKUP($A43,'7 - SBA'!$A$7:$AC$14,7,FALSE),"") ->  | W43: =_xlfn.IFNA(VLOOKUP($A43,'9 - SRH decisions'!$A$7:$AC$9,7,FALSE),"") ->  | X43: 0 | Y43: =_xlfn.IFNA(VLOOKUP($A43,'10 - Rejecting IPV'!$A$7:$AG$12,7,FALSE),"") -> 14.31 | Z43: =_xlfn.IFNA(VLOOKUP($A43,'11 - violence by partner'!$A$7:$AC$8,7,FALSE),"") ->  | AB43: 14.31 | AC43: 14.31 | AD43: =_xlfn.IFNA(VLOOKUP($A43,'13 - Food insecurity'!$A$6:$AF$23,7,FALSE),"") ->  | AE43: =_xlfn.IFNA(VLOOKUP($A43,'14 - Stunting'!$A$5:$AI$11,7,FALSE),"") ->  | AF43: =_xlfn.IFNA(VLOOKUP($A43,'15 - Resilience capacity'!$A$6:$AE$30,7,FALSE),"") ->  | AG43: 0 | AH43: 0 | AI43: =_xlfn.IFNA(VLOOKUP($A43,'WEE summary'!$A$4:$E$102,3,FALSE),"") ->  | AJ43: =_xlfn.IFNA(VLOOKUP($A43,'WEE summary'!$A$4:$E$102,4,FALSE),"") ->  | AK43: =_xlfn.IFNA(VLOOKUP($A43,'WEE summary'!$A$4:$E$102,5,FALSE),"") -> 57.69 | AL43: 57.69 | AM43: =_xlfn.IFNA(VLOOKUP($A43,'19 - Participation'!$A$5:$G$31,7,FALSE),"") -> 5634.811 | AO43: =_xlfn.IFNA(VLOOKUP(A43,'21 - Resilience actions'!$A$7:$G$26,7,FALSE),"") ->  | AP43: 5634.811 | AQ43: 57.69 | AS43: =_xlfn.IFNA(VLOOKUP($A43,'1 - poverty ($1.90)'!$A$7:$H$9,8,FALSE),"") ->  | AT43: =_xlfn.IFNA(VLOOKUP($A43,'2 - poverty (nat pov line)'!$A$7:$H$9,8,FALSE),"") ->  | AU43: =_xlfn.IFNA(VLOOKUP($A43,'3 - basic services'!$A$7:$H$9,8,FALSE),"") ->  | AV43: =_xlfn.IFNA(VLOOKUP($A43,'4 - Shelter'!$A$5:$J$23,6,FALSE),"") ->  | AW43: =_xlfn.IFNA(VLOOKUP($A43,'4 - Safe Water'!$A$5:$J$24,6,FALSE),"") ->  | AX43: =_xlfn.IFNA(VLOOKUP($A43,'4 - Adequate Sanitation'!$A$5:$J$20,6,FALSE),"") ->  | AY43: =_xlfn.IFNA(VLOOKUP($A43,'4 - Hygiene Practices'!$A$5:$J$26,6,FALSE),"") ->  | AZ43: =_xlfn.IFNA(VLOOKUP($A43,'4 - Adequate food'!$A$5:$J$28,6,FALSE),"") ->  | BA43: =_xlfn.IFNA(VLOOKUP($A43,'4 - Nutritional practices'!$A$5:$J$15,6,FALSE),"") ->  | BB43: =_xlfn.IFNA(VLOOKUP($A43,'4 - Access SRH'!$A$5:$I$9,9,FALSE),"") ->  | BC43: =_xlfn.IFNA(VLOOKUP($A43,'4 - Livelihood recovery'!$A$5:$J$22,6,FALSE),"") ->  | BD43: =_xlfn.IFNA(VLOOKUP($A43,'5 - Satisfaction'!$A$5:$J$33,6,FALSE),"") ->  | BE43: =_xlfn.IFNA(VLOOKUP($A43,'6 - Met demand'!$A$7:$H$16,8,FALSE),"") ->  | BF43: =_xlfn.IFNA(VLOOKUP($A43,'7 - SBA'!$A$7:$H$16,8,FALSE),"") ->  | BG43: =_xlfn.IFNA(VLOOKUP($A43,'8 - ABR'!$A$7:$H$9,8,FALSE),"") ->  | BH43: =_xlfn.IFNA(VLOOKUP($A43,'9 - SRH decisions'!$A$7:$H$11,8,FALSE),"") ->  | BI43: =_xlfn.IFNA(VLOOKUP($A43,'10 - Rejecting IPV'!$A$7:$H$14,8,FALSE),"") -> Building Protective Environments for Refugee, Returnee and Host Community Women and Girls at Risk of GBV in Southern Chad contributed to increasing the proportion of people who reject IPV by 0% (from 1.9% to 1.9%), enabling an additional 0 people to reject violence, and 14 people overall to exercise their right to a life free from violence | BJ43: =_xlfn.IFNA(VLOOKUP($A43,'11 - violence by partner'!$A$7:$H$10,8,FALSE),"") ->  | BK43: =_xlfn.IFNA(VLOOKUP($A43,'12 - sexual violence'!$A$7:$H$9,8,FALSE),"") ->  | BL43: =_xlfn.IFNA(VLOOKUP($A43,'13 - Food insecurity'!$A$5:$L$25,9,FALSE),"") ->  | BM43: =_xlfn.IFNA(VLOOKUP($A43,'14 - Stunting'!$A$5:$L$13,9,FALSE),"") ->  | BN43: =_xlfn.IFNA(VLOOKUP($A43,'15 - Resilience capacity'!$A$5:$L$33,9,FALSE),"") ->  | BO43: =_xlfn.IFNA(VLOOKUP($A43,'WEE summary'!$A$4:$G$102,7,FALSE),"") ->  | BP43: =_xlfn.IFNA(VLOOKUP($A43,'17 - HH $ decisions'!$A$5:$L$46,7,FALSE),"") ->  | BQ43: =_xlfn.IFNA(VLOOKUP($A43,'18 - Labor rights'!$A$5:$L$23,7,FALSE),"") -> Building Protective Environments for Refugee, Returnee and Host Community Women and Girls at Risk of GBV in Southern Chad contributed to increasing the proportion of women who are members of groups by 6.4% (from 3.9% to 10.4%), enabling an additional 58 women to claim their rights | BR43: =_xlfn.IFNA(VLOOKUP($A43,'19 - Participation'!$A$5:$L$33,8,FALSE),"") -> Building Protective Environments for Refugee, Returnee and Host Community Women and Girls at Risk of GBV in Southern Chad contributed to increasing meaningful participation by 24.7%, enabling 5,635 people to participate in formal or informal decision-making spaces | BS43: =_xlfn.IFNA(A43&": "&VLOOKUP($A43,'20 - Policies'!$A$5:$J$62,5,FALSE),"") -> Building Protective Environments for Refugee, Returnee and Host Community Women and Girls at Risk of GBV in Southern Chad: Policy Oversight | BT43: =_xlfn.IFNA(VLOOKUP($A43,'21 - Resilience actions'!$A$5:$L$28,9,FALSE),"") ->  | BU43: 1
A44: Humanitarian aid for refugees and returnees from Central African Republic in South Chad | B44: Chad | C44: =_xlfn.IFNA(VLOOKUP(A44,'PIIRS FY16 Indicators data'!F:G,2,FALSE),"") -> CARE Danmark | D44: =_xlfn.IFNA(VLOOKUP($A44,'PIIRS FY16 Indicators data'!$F$2:$S$1045,5,FALSE),"") -> Danish Minisitry of Foreign Affairs | E44: =_xlfn.IFNA(IF(VLOOKUP($A44,'PIIRS FY16 Indicators data'!$F$2:$S$1045,14,FALSE)="",TEXT(VLOOKUP($A44,'PIIRS FY16 Indicators data'!$F$2:$S$1045,12,FALSE),"mmm-yy")&" to "&TEXT(VLOOKUP($A44,'PIIRS FY16 Indicators data'!$F$2:$S$1045,13,FALSE),"mmm-yy"),TEXT(VLOOKUP($A44,'PIIRS FY16 Indicators data'!$F$2:$S$1045,12,FALSE),"mmm-yy")&" to "&TEXT(VLOOKUP($A44,'PIIRS FY16 Indicators data'!$F$2:$S$1045,14,FALSE),"mmm-yy")),"") -> Apr-15 to Oct-15 | F44: =_xlfn.IFNA(VLOOKUP(A44,'1 - poverty ($1.90)'!$A$7:$G$9,7,FALSE),"") ->  | G44: =_xlfn.IFNA(VLOOKUP(A44,'2 - poverty (nat pov line)'!$A$7:$G$10,7,FALSE),"") ->  | H44: =_xlfn.IFNA(VLOOKUP(B44,'3 - basic services'!$A$7:$G$10,7,FALSE),"") ->  | I44: 0 | J44: =_xlfn.IFNA(VLOOKUP($A44,'4 - Shelter'!$A$5:$S$21,3,FALSE),"") ->  | K44: =_xlfn.IFNA(VLOOKUP($A44,'4 - Safe Water'!$A$5:$S$22,3,FALSE),"") -> 4000 | L44: =_xlfn.IFNA(VLOOKUP($A44,'4 - Adequate Sanitation'!$A$5:$S$18,3,FALSE),"") ->  | M44: =_xlfn.IFNA(VLOOKUP($A44,'4 - Hygiene Practices'!$A$5:$S$24,3,FALSE),"") ->  | N44: =_xlfn.IFNA(VLOOKUP($A44,'4 - Adequate food'!$A$5:$S$26,3,FALSE),"") ->  | O44: =_xlfn.IFNA(VLOOKUP($A44,'4 - Nutritional practices'!$A$5:$S$13,3,FALSE),"") ->  | P44: =_xlfn.IFNA(VLOOKUP($A44,'4 - Access SRH'!$A$5:$V$7,3,FALSE),"") ->  | Q44: =_xlfn.IFNA(VLOOKUP($A44,'4 - Livelihood recovery'!$A$5:$S$20,3,FALSE),"") ->  | R44: =_xlfn.IFNA(VLOOKUP($A44,'5 - Satisfaction'!$A$6:$Y$31,5,FALSE),"") ->  | S44: 4000 | T44: =_xlfn.IFNA(VLOOKUP($A44,'6 - Met demand'!$A$7:$AD$15,7,FALSE),"") ->  | U44: =_xlfn.IFNA(VLOOKUP($A44,'7 - SBA'!$A$7:$AC$14,7,FALSE),"") ->  | W44: =_xlfn.IFNA(VLOOKUP($A44,'9 - SRH decisions'!$A$7:$AC$9,7,FALSE),"") ->  | X44: 0 | Y44: =_xlfn.IFNA(VLOOKUP($A44,'10 - Rejecting IPV'!$A$7:$AG$12,7,FALSE),"") ->  | Z44: =_xlfn.IFNA(VLOOKUP($A44,'11 - violence by partner'!$A$7:$AC$8,7,FALSE),"") ->  | AB44: 0 | AC44: 0 | AD44: =_xlfn.IFNA(VLOOKUP($A44,'13 - Food insecurity'!$A$6:$AF$23,7,FALSE),"") ->  | AE44: =_xlfn.IFNA(VLOOKUP($A44,'14 - Stunting'!$A$5:$AI$11,7,FALSE),"") ->  | AF44: =_xlfn.IFNA(VLOOKUP($A44,'15 - Resilience capacity'!$A$6:$AE$30,7,FALSE),"") ->  | AG44: 0 | AH44: 0 | AI44: =_xlfn.IFNA(VLOOKUP($A44,'WEE summary'!$A$4:$E$102,3,FALSE),"") ->  | AJ44: =_xlfn.IFNA(VLOOKUP($A44,'WEE summary'!$A$4:$E$102,4,FALSE),"") ->  | AK44: =_xlfn.IFNA(VLOOKUP($A44,'WEE summary'!$A$4:$E$102,5,FALSE),"") ->  | AL44: 0 | AM44: =_xlfn.IFNA(VLOOKUP($A44,'19 - Participation'!$A$5:$G$31,7,FALSE),"") ->  | AN44: =_xlfn.IFNA(VLOOKUP(A44,'20 - Policies'!A:C,3,FALSE),"") ->  | AO44: =_xlfn.IFNA(VLOOKUP(A44,'21 - Resilience actions'!$A$7:$G$26,7,FALSE),"") ->  | AP44: 4000 | AQ44: 4000 | AS44: =_xlfn.IFNA(VLOOKUP($A44,'1 - poverty ($1.90)'!$A$7:$H$9,8,FALSE),"") ->  | AT44: =_xlfn.IFNA(VLOOKUP($A44,'2 - poverty (nat pov line)'!$A$7:$H$9,8,FALSE),"") ->  | AU44: =_xlfn.IFNA(VLOOKUP($A44,'3 - basic services'!$A$7:$H$9,8,FALSE),"") ->  | AV44: =_xlfn.IFNA(VLOOKUP($A44,'4 - Shelter'!$A$5:$J$23,6,FALSE),"") ->  | AW44: =_xlfn.IFNA(VLOOKUP($A44,'4 - Safe Water'!$A$5:$J$24,6,FALSE),"") -> Humanitarian aid for refugees and returnees from Central African Republic in South Chad enabled access to safe drinking water for 4,000 people, 40% of those requiring assistance | AX44: =_xlfn.IFNA(VLOOKUP($A44,'4 - Adequate Sanitation'!$A$5:$J$20,6,FALSE),"") ->  | AY44: =_xlfn.IFNA(VLOOKUP($A44,'4 - Hygiene Practices'!$A$5:$J$26,6,FALSE),"") ->  | AZ44: =_xlfn.IFNA(VLOOKUP($A44,'4 - Adequate food'!$A$5:$J$28,6,FALSE),"") ->  | BA44: =_xlfn.IFNA(VLOOKUP($A44,'4 - Nutritional practices'!$A$5:$J$15,6,FALSE),"") ->  | BB44: =_xlfn.IFNA(VLOOKUP($A44,'4 - Access SRH'!$A$5:$I$9,9,FALSE),"") ->  | BC44: =_xlfn.IFNA(VLOOKUP($A44,'4 - Livelihood recovery'!$A$5:$J$22,6,FALSE),"") ->  | BD44: =_xlfn.IFNA(VLOOKUP($A44,'5 - Satisfaction'!$A$5:$J$33,6,FALSE),"") ->  | BE44: =_xlfn.IFNA(VLOOKUP($A44,'6 - Met demand'!$A$7:$H$16,8,FALSE),"") ->  | BF44: =_xlfn.IFNA(VLOOKUP($A44,'7 - SBA'!$A$7:$H$16,8,FALSE),"") ->  | BG44: =_xlfn.IFNA(VLOOKUP($A44,'8 - ABR'!$A$7:$H$9,8,FALSE),"") ->  | BH44: =_xlfn.IFNA(VLOOKUP($A44,'9 - SRH decisions'!$A$7:$H$11,8,FALSE),"") ->  | BI44: =_xlfn.IFNA(VLOOKUP($A44,'10 - Rejecting IPV'!$A$7:$H$14,8,FALSE),"") ->  | BJ44: =_xlfn.IFNA(VLOOKUP($A44,'11 - violence by partner'!$A$7:$H$10,8,FALSE),"") ->  | BK44: =_xlfn.IFNA(VLOOKUP($A44,'12 - sexual violence'!$A$7:$H$9,8,FALSE),"") ->  | BL44: =_xlfn.IFNA(VLOOKUP($A44,'13 - Food insecurity'!$A$5:$L$25,9,FALSE),"") ->  | BM44: =_xlfn.IFNA(VLOOKUP($A44,'14 - Stunting'!$A$5:$L$13,9,FALSE),"") ->  | BN44: =_xlfn.IFNA(VLOOKUP($A44,'15 - Resilience capacity'!$A$5:$L$33,9,FALSE),"") ->  | BO44: =_xlfn.IFNA(VLOOKUP($A44,'WEE summary'!$A$4:$G$102,7,FALSE),"") ->  | BP44: =_xlfn.IFNA(VLOOKUP($A44,'17 - HH $ decisions'!$A$5:$L$46,7,FALSE),"") ->  | BQ44: =_xlfn.IFNA(VLOOKUP($A44,'18 - Labor rights'!$A$5:$L$23,7,FALSE),"") ->  | BR44: =_xlfn.IFNA(VLOOKUP($A44,'19 - Participation'!$A$5:$L$33,8,FALSE),"") ->  | BS44: =_xlfn.IFNA(A44&": "&VLOOKUP($A44,'20 - Policies'!$A$5:$J$62,5,FALSE),"") ->  | BT44: =_xlfn.IFNA(VLOOKUP($A44,'21 - Resilience actions'!$A$5:$L$28,9,FALSE),"") -> 
A45: Humanitarian aid for the displaced, refugees and host communities through shelter, SRH and prevention of SGBV in the Lac Region | B45: Chad | C45: =_xlfn.IFNA(VLOOKUP(A45,'PIIRS FY16 Indicators data'!F:G,2,FALSE),"") -> CARE Deutschland-Luxemburg | D45: =_xlfn.IFNA(VLOOKUP($A45,'PIIRS FY16 Indicators data'!$F$2:$S$1045,5,FALSE),"") -> German Ministry of Foreign Affairs | E45: =_xlfn.IFNA(IF(VLOOKUP($A45,'PIIRS FY16 Indicators data'!$F$2:$S$1045,14,FALSE)="",TEXT(VLOOKUP($A45,'PIIRS FY16 Indicators data'!$F$2:$S$1045,12,FALSE),"mmm-yy")&" to "&TEXT(VLOOKUP($A45,'PIIRS FY16 Indicators data'!$F$2:$S$1045,13,FALSE),"mmm-yy"),TEXT(VLOOKUP($A45,'PIIRS FY16 Indicators data'!$F$2:$S$1045,12,FALSE),"mmm-yy")&" to "&TEXT(VLOOKUP($A45,'PIIRS FY16 Indicators data'!$F$2:$S$1045,14,FALSE),"mmm-yy")),"") -> May-16 to Jan-17 | F45: =_xlfn.IFNA(VLOOKUP(A45,'1 - poverty ($1.90)'!$A$7:$G$9,7,FALSE),"") ->  | G45: =_xlfn.IFNA(VLOOKUP(A45,'2 - poverty (nat pov line)'!$A$7:$G$10,7,FALSE),"") ->  | H45: =_xlfn.IFNA(VLOOKUP(B45,'3 - basic services'!$A$7:$G$10,7,FALSE),"") ->  | I45: 0 | J45: =_xlfn.IFNA(VLOOKUP($A45,'4 - Shelter'!$A$5:$S$21,3,FALSE),"") -> 2000 | K45: =_xlfn.IFNA(VLOOKUP($A45,'4 - Safe Water'!$A$5:$S$22,3,FALSE),"") ->  | L45: =_xlfn.IFNA(VLOOKUP($A45,'4 - Adequate Sanitation'!$A$5:$S$18,3,FALSE),"") -> 2000 | M45: =_xlfn.IFNA(VLOOKUP($A45,'4 - Hygiene Practices'!$A$5:$S$24,3,FALSE),"") ->  | N45: =_xlfn.IFNA(VLOOKUP($A45,'4 - Adequate food'!$A$5:$S$26,3,FALSE),"") ->  | O45: =_xlfn.IFNA(VLOOKUP($A45,'4 - Nutritional practices'!$A$5:$S$13,3,FALSE),"") ->  | P45: =_xlfn.IFNA(VLOOKUP($A45,'4 - Access SRH'!$A$5:$V$7,3,FALSE),"") ->  | Q45: =_xlfn.IFNA(VLOOKUP($A45,'4 - Livelihood recovery'!$A$5:$S$20,3,FALSE),"") ->  | R45: =_xlfn.IFNA(VLOOKUP($A45,'5 - Satisfaction'!$A$6:$Y$31,5,FALSE),"") ->  | S45: 2000 | T45: =_xlfn.IFNA(VLOOKUP($A45,'6 - Met demand'!$A$7:$AD$15,7,FALSE),"") ->  | U45: =_xlfn.IFNA(VLOOKUP($A45,'7 - SBA'!$A$7:$AC$14,7,FALSE),"") ->  | W45: =_xlfn.IFNA(VLOOKUP($A45,'9 - SRH decisions'!$A$7:$AC$9,7,FALSE),"") ->  | X45: 0 | Y45: =_xlfn.IFNA(VLOOKUP($A45,'10 - Rejecting IPV'!$A$7:$AG$12,7,FALSE),"") ->  | Z45: =_xlfn.IFNA(VLOOKUP($A45,'11 - violence by partner'!$A$7:$AC$8,7,FALSE),"") ->  | AB45: 0 | AC45: 0 | AD45: =_xlfn.IFNA(VLOOKUP($A45,'13 - Food insecurity'!$A$6:$AF$23,7,FALSE),"") ->  | AE45: =_xlfn.IFNA(VLOOKUP($A45,'14 - Stunting'!$A$5:$AI$11,7,FALSE),"") ->  | AF45: =_xlfn.IFNA(VLOOKUP($A45,'15 - Resilience capacity'!$A$6:$AE$30,7,FALSE),"") ->  | AG45: 0 | AH45: 0 | AI45: =_xlfn.IFNA(VLOOKUP($A45,'WEE summary'!$A$4:$E$102,3,FALSE),"") ->  | AJ45: =_xlfn.IFNA(VLOOKUP($A45,'WEE summary'!$A$4:$E$102,4,FALSE),"") ->  | AK45: =_xlfn.IFNA(VLOOKUP($A45,'WEE summary'!$A$4:$E$102,5,FALSE),"") ->  | AL45: 0 | AM45: =_xlfn.IFNA(VLOOKUP($A45,'19 - Participation'!$A$5:$G$31,7,FALSE),"") ->  | AN45: =_xlfn.IFNA(VLOOKUP(A45,'20 - Policies'!A:C,3,FALSE),"") ->  | AO45: =_xlfn.IFNA(VLOOKUP(A45,'21 - Resilience actions'!$A$7:$G$26,7,FALSE),"") ->  | AP45: 2000 | AQ45: 2000 | AS45: =_xlfn.IFNA(VLOOKUP($A45,'1 - poverty ($1.90)'!$A$7:$H$9,8,FALSE),"") ->  | AT45: =_xlfn.IFNA(VLOOKUP($A45,'2 - poverty (nat pov line)'!$A$7:$H$9,8,FALSE),"") ->  | AU45: =_xlfn.IFNA(VLOOKUP($A45,'3 - basic services'!$A$7:$H$9,8,FALSE),"") ->  | AV45: =_xlfn.IFNA(VLOOKUP($A45,'4 - Shelter'!$A$5:$J$23,6,FALSE),"") -> Humanitarian aid for the displaced, refugees and host communities through shelter, SRH and prevention of SGBV in the Lac Region provided adequate shelter/housing for 2,000 people, 12.12% of those requiring assistance | AW45: =_xlfn.IFNA(VLOOKUP($A45,'4 - Safe Water'!$A$5:$J$24,6,FALSE),"") ->  | AX45: =_xlfn.IFNA(VLOOKUP($A45,'4 - Adequate Sanitation'!$A$5:$J$20,6,FALSE),"") -> Humanitarian aid for the displaced, refugees and host communities through shelter, SRH and prevention of SGBV in the Lac Region enabled access to adequate sanitation facilities for 2,000 people, 12.12% of those requiring assistance | AY45: =_xlfn.IFNA(VLOOKUP($A45,'4 - Hygiene Practices'!$A$5:$J$26,6,FALSE),"") ->  | AZ45: =_xlfn.IFNA(VLOOKUP($A45,'4 - Adequate food'!$A$5:$J$28,6,FALSE),"") ->  | BA45: =_xlfn.IFNA(VLOOKUP($A45,'4 - Nutritional practices'!$A$5:$J$15,6,FALSE),"") ->  | BB45: =_xlfn.IFNA(VLOOKUP($A45,'4 - Access SRH'!$A$5:$I$9,9,FALSE),"") ->  | BC45: =_xlfn.IFNA(VLOOKUP($A45,'4 - Livelihood recovery'!$A$5:$J$22,6,FALSE),"") ->  | BD45: =_xlfn.IFNA(VLOOKUP($A45,'5 - Satisfaction'!$A$5:$J$33,6,FALSE),"") ->  | BE45: =_xlfn.IFNA(VLOOKUP($A45,'6 - Met demand'!$A$7:$H$16,8,FALSE),"") ->  | BF45: =_xlfn.IFNA(VLOOKUP($A45,'7 - SBA'!$A$7:$H$16,8,FALSE),"") ->  | BG45: =_xlfn.IFNA(VLOOKUP($A45,'8 - ABR'!$A$7:$H$9,8,FALSE),"") ->  | BH45: =_xlfn.IFNA(VLOOKUP($A45,'9 - SRH decisions'!$A$7:$H$11,8,FALSE),"") ->  | BI45: =_xlfn.IFNA(VLOOKUP($A45,'10 - Rejecting IPV'!$A$7:$H$14,8,FALSE),"") ->  | BJ45: =_xlfn.IFNA(VLOOKUP($A45,'11 - violence by partner'!$A$7:$H$10,8,FALSE),"") ->  | BK45: =_xlfn.IFNA(VLOOKUP($A45,'12 - sexual violence'!$A$7:$H$9,8,FALSE),"") ->  | BL45: =_xlfn.IFNA(VLOOKUP($A45,'13 - Food insecurity'!$A$5:$L$25,9,FALSE),"") ->  | BM45: =_xlfn.IFNA(VLOOKUP($A45,'14 - Stunting'!$A$5:$L$13,9,FALSE),"") ->  | BN45: =_xlfn.IFNA(VLOOKUP($A45,'15 - Resilience capacity'!$A$5:$L$33,9,FALSE),"") ->  | BO45: =_xlfn.IFNA(VLOOKUP($A45,'WEE summary'!$A$4:$G$102,7,FALSE),"") ->  | BP45: =_xlfn.IFNA(VLOOKUP($A45,'17 - HH $ decisions'!$A$5:$L$46,7,FALSE),"") ->  | BQ45: =_xlfn.IFNA(VLOOKUP($A45,'18 - Labor rights'!$A$5:$L$23,7,FALSE),"") ->  | BR45: =_xlfn.IFNA(VLOOKUP($A45,'19 - Participation'!$A$5:$L$33,8,FALSE),"") ->  | BS45: =_xlfn.IFNA(A45&": "&VLOOKUP($A45,'20 - Policies'!$A$5:$J$62,5,FALSE),"") ->  | BT45: =_xlfn.IFNA(VLOOKUP($A45,'21 - Resilience actions'!$A$5:$L$28,9,FALSE),"") -> 
A46: Protection et solutions mixtes pour les réfugiés Centrafricains vivant au sud du Tchad - 1 | B46: Chad | C46: =_xlfn.IFNA(VLOOKUP(A46,'PIIRS FY16 Indicators data'!F:G,2,FALSE),"") -> CARE Canada | D46: =_xlfn.IFNA(VLOOKUP($A46,'PIIRS FY16 Indicators data'!$F$2:$S$1045,5,FALSE),"") -> United Nations Refugees Agence UNHCR | E46: =_xlfn.IFNA(IF(VLOOKUP($A46,'PIIRS FY16 Indicators data'!$F$2:$S$1045,14,FALSE)="",TEXT(VLOOKUP($A46,'PIIRS FY16 Indicators data'!$F$2:$S$1045,12,FALSE),"mmm-yy")&" to "&TEXT(VLOOKUP($A46,'PIIRS FY16 Indicators data'!$F$2:$S$1045,13,FALSE),"mmm-yy"),TEXT(VLOOKUP($A46,'PIIRS FY16 Indicators data'!$F$2:$S$1045,12,FALSE),"mmm-yy")&" to "&TEXT(VLOOKUP($A46,'PIIRS FY16 Indicators data'!$F$2:$S$1045,14,FALSE),"mmm-yy")),"") -> Jan-15 to Dec-15 | F46: =_xlfn.IFNA(VLOOKUP(A46,'1 - poverty ($1.90)'!$A$7:$G$9,7,FALSE),"") ->  | G46: =_xlfn.IFNA(VLOOKUP(A46,'2 - poverty (nat pov line)'!$A$7:$G$10,7,FALSE),"") ->  | H46: =_xlfn.IFNA(VLOOKUP(B46,'3 - basic services'!$A$7:$G$10,7,FALSE),"") ->  | I46: 0 | J46: =_xlfn.IFNA(VLOOKUP($A46,'4 - Shelter'!$A$5:$S$21,3,FALSE),"") ->  | K46: =_xlfn.IFNA(VLOOKUP($A46,'4 - Safe Water'!$A$5:$S$22,3,FALSE),"") ->  | L46: =_xlfn.IFNA(VLOOKUP($A46,'4 - Adequate Sanitation'!$A$5:$S$18,3,FALSE),"") -> 89114 | M46: =_xlfn.IFNA(VLOOKUP($A46,'4 - Hygiene Practices'!$A$5:$S$24,3,FALSE),"") -> 89114 | N46: =_xlfn.IFNA(VLOOKUP($A46,'4 - Adequate food'!$A$5:$S$26,3,FALSE),"") ->  | O46: =_xlfn.IFNA(VLOOKUP($A46,'4 - Nutritional practices'!$A$5:$S$13,3,FALSE),"") ->  | P46: =_xlfn.IFNA(VLOOKUP($A46,'4 - Access SRH'!$A$5:$V$7,3,FALSE),"") ->  | Q46: =_xlfn.IFNA(VLOOKUP($A46,'4 - Livelihood recovery'!$A$5:$S$20,3,FALSE),"") -> 54624 | R46: =_xlfn.IFNA(VLOOKUP($A46,'5 - Satisfaction'!$A$6:$Y$31,5,FALSE),"") ->  | S46: 89114 | T46: =_xlfn.IFNA(VLOOKUP($A46,'6 - Met demand'!$A$7:$AD$15,7,FALSE),"") ->  | U46: =_xlfn.IFNA(VLOOKUP($A46,'7 - SBA'!$A$7:$AC$14,7,FALSE),"") ->  | W46: =_xlfn.IFNA(VLOOKUP($A46,'9 - SRH decisions'!$A$7:$AC$9,7,FALSE),"") ->  | X46: 0 | Y46: =_xlfn.IFNA(VLOOKUP($A46,'10 - Rejecting IPV'!$A$7:$AG$12,7,FALSE),"") ->  | Z46: =_xlfn.IFNA(VLOOKUP($A46,'11 - violence by partner'!$A$7:$AC$8,7,FALSE),"") ->  | AB46: 0 | AC46: 0 | AD46: =_xlfn.IFNA(VLOOKUP($A46,'13 - Food insecurity'!$A$6:$AF$23,7,FALSE),"") ->  | AE46: =_xlfn.IFNA(VLOOKUP($A46,'14 - Stunting'!$A$5:$AI$11,7,FALSE),"") ->  | AF46: =_xlfn.IFNA(VLOOKUP($A46,'15 - Resilience capacity'!$A$6:$AE$30,7,FALSE),"") ->  | AG46: 0 | AH46: 54624 | AI46: =_xlfn.IFNA(VLOOKUP($A46,'WEE summary'!$A$4:$E$102,3,FALSE),"") -> 959.22 | AJ46: =_xlfn.IFNA(VLOOKUP($A46,'WEE summary'!$A$4:$E$102,4,FALSE),"") ->  | AK46: =_xlfn.IFNA(VLOOKUP($A46,'WEE summary'!$A$4:$E$102,5,FALSE),"") ->  | AL46: 959.22 | AM46: =_xlfn.IFNA(VLOOKUP($A46,'19 - Participation'!$A$5:$G$31,7,FALSE),"") ->  | AN46: =_xlfn.IFNA(VLOOKUP(A46,'20 - Policies'!A:C,3,FALSE),"") ->  | AO46: =_xlfn.IFNA(VLOOKUP(A46,'21 - Resilience actions'!$A$7:$G$26,7,FALSE),"") ->  | AP46: 89114 | AQ46: 89114 | AS46: =_xlfn.IFNA(VLOOKUP($A46,'1 - poverty ($1.90)'!$A$7:$H$9,8,FALSE),"") ->  | AT46: =_xlfn.IFNA(VLOOKUP($A46,'2 - poverty (nat pov line)'!$A$7:$H$9,8,FALSE),"") ->  | AU46: =_xlfn.IFNA(VLOOKUP($A46,'3 - basic services'!$A$7:$H$9,8,FALSE),"") ->  | AV46: =_xlfn.IFNA(VLOOKUP($A46,'4 - Shelter'!$A$5:$J$23,6,FALSE),"") ->  | AW46: =_xlfn.IFNA(VLOOKUP($A46,'4 - Safe Water'!$A$5:$J$24,6,FALSE),"") ->  | AX46: =_xlfn.IFNA(VLOOKUP($A46,'4 - Adequate Sanitation'!$A$5:$J$20,6,FALSE),"") -> Protection et solutions mixtes pour les réfugiés Centrafricains vivant au sud du Tchad - 1 enabled access to adequate sanitation facilities for 89,114 people, 93.8% of those requiring assistance | AY46: =_xlfn.IFNA(VLOOKUP($A46,'4 - Hygiene Practices'!$A$5:$J$26,6,FALSE),"") -> Protection et solutions mixtes pour les réfugiés Centrafricains vivant au sud du Tchad - 1 enabled the use of adequate hygiene practices by 89,114 people, 100% of those requiring assistance | AZ46: =_xlfn.IFNA(VLOOKUP($A46,'4 - Adequate food'!$A$5:$J$28,6,FALSE),"") ->  | BA46: =_xlfn.IFNA(VLOOKUP($A46,'4 - Nutritional practices'!$A$5:$J$15,6,FALSE),"") ->  | BB46: =_xlfn.IFNA(VLOOKUP($A46,'4 - Access SRH'!$A$5:$I$9,9,FALSE),"") ->  | BC46: =_xlfn.IFNA(VLOOKUP($A46,'4 - Livelihood recovery'!$A$5:$J$22,6,FALSE),"") -> Protection et solutions mixtes pour les réfugiés Centrafricains vivant au sud du Tchad - 1 supported recovery of goods, assets or income opportunities for 54,624 people, 61.3% of those requiring assistance | BD46: =_xlfn.IFNA(VLOOKUP($A46,'5 - Satisfaction'!$A$5:$J$33,6,FALSE),"") ->  | BE46: =_xlfn.IFNA(VLOOKUP($A46,'6 - Met demand'!$A$7:$H$16,8,FALSE),"") ->  | BF46: =_xlfn.IFNA(VLOOKUP($A46,'7 - SBA'!$A$7:$H$16,8,FALSE),"") ->  | BG46: =_xlfn.IFNA(VLOOKUP($A46,'8 - ABR'!$A$7:$H$9,8,FALSE),"") ->  | BH46: =_xlfn.IFNA(VLOOKUP($A46,'9 - SRH decisions'!$A$7:$H$11,8,FALSE),"") ->  | BI46: =_xlfn.IFNA(VLOOKUP($A46,'10 - Rejecting IPV'!$A$7:$H$14,8,FALSE),"") ->  | BJ46: =_xlfn.IFNA(VLOOKUP($A46,'11 - violence by partner'!$A$7:$H$10,8,FALSE),"") ->  | BK46: =_xlfn.IFNA(VLOOKUP($A46,'12 - sexual violence'!$A$7:$H$9,8,FALSE),"") ->  | BL46: =_xlfn.IFNA(VLOOKUP($A46,'13 - Food insecurity'!$A$5:$L$25,9,FALSE),"") ->  | BM46: =_xlfn.IFNA(VLOOKUP($A46,'14 - Stunting'!$A$5:$L$13,9,FALSE),"") ->  | BN46: =_xlfn.IFNA(VLOOKUP($A46,'15 - Resilience capacity'!$A$5:$L$33,9,FALSE),"") ->  | BO46: =_xlfn.IFNA(VLOOKUP($A46,'WEE summary'!$A$4:$G$102,7,FALSE),"") -> Protection et solutions mixtes pour les réfugiés Centrafricains vivant au sud du Tchad - 1 enabled 959 women to access formal or informal financial services | BP46: =_xlfn.IFNA(VLOOKUP($A46,'17 - HH $ decisions'!$A$5:$L$46,7,FALSE),"") ->  | BQ46: =_xlfn.IFNA(VLOOKUP($A46,'18 - Labor rights'!$A$5:$L$23,7,FALSE),"") ->  | BR46: =_xlfn.IFNA(VLOOKUP($A46,'19 - Participation'!$A$5:$L$33,8,FALSE),"") ->  | BS46: =_xlfn.IFNA(A46&": "&VLOOKUP($A46,'20 - Policies'!$A$5:$J$62,5,FALSE),"") ->  | BT46: =_xlfn.IFNA(VLOOKUP($A46,'21 - Resilience actions'!$A$5:$L$28,9,FALSE),"") -> 
A47: Protection et solutions mixtes pour les réfugiés Centrafricains vivant au sud du Tchad - 2 | B47: Chad | C47: =_xlfn.IFNA(VLOOKUP(A47,'PIIRS FY16 Indicators data'!F:G,2,FALSE),"") -> No CI member | D47: =_xlfn.IFNA(VLOOKUP($A47,'PIIRS FY16 Indicators data'!$F$2:$S$1045,5,FALSE),"") -> UNHCR | E47: =_xlfn.IFNA(IF(VLOOKUP($A47,'PIIRS FY16 Indicators data'!$F$2:$S$1045,14,FALSE)="",TEXT(VLOOKUP($A47,'PIIRS FY16 Indicators data'!$F$2:$S$1045,12,FALSE),"mmm-yy")&" to "&TEXT(VLOOKUP($A47,'PIIRS FY16 Indicators data'!$F$2:$S$1045,13,FALSE),"mmm-yy"),TEXT(VLOOKUP($A47,'PIIRS FY16 Indicators data'!$F$2:$S$1045,12,FALSE),"mmm-yy")&" to "&TEXT(VLOOKUP($A47,'PIIRS FY16 Indicators data'!$F$2:$S$1045,14,FALSE),"mmm-yy")),"") -> Jan-16 to Dec-16 | F47: =_xlfn.IFNA(VLOOKUP(A47,'1 - poverty ($1.90)'!$A$7:$G$9,7,FALSE),"") ->  | G47: =_xlfn.IFNA(VLOOKUP(A47,'2 - poverty (nat pov line)'!$A$7:$G$10,7,FALSE),"") ->  | H47: =_xlfn.IFNA(VLOOKUP(B47,'3 - basic services'!$A$7:$G$10,7,FALSE),"") ->  | I47: 0 | J47: =_xlfn.IFNA(VLOOKUP($A47,'4 - Shelter'!$A$5:$S$21,3,FALSE),"") -> 7073 | K47: =_xlfn.IFNA(VLOOKUP($A47,'4 - Safe Water'!$A$5:$S$22,3,FALSE),"") ->  | L47: =_xlfn.IFNA(VLOOKUP($A47,'4 - Adequate Sanitation'!$A$5:$S$18,3,FALSE),"") ->  | M47: =_xlfn.IFNA(VLOOKUP($A47,'4 - Hygiene Practices'!$A$5:$S$24,3,FALSE),"") ->  | N47: =_xlfn.IFNA(VLOOKUP($A47,'4 - Adequate food'!$A$5:$S$26,3,FALSE),"") ->  | O47: =_xlfn.IFNA(VLOOKUP($A47,'4 - Nutritional practices'!$A$5:$S$13,3,FALSE),"") ->  | P47: =_xlfn.IFNA(VLOOKUP($A47,'4 - Access SRH'!$A$5:$V$7,3,FALSE),"") ->  | Q47: =_xlfn.IFNA(VLOOKUP($A47,'4 - Livelihood recovery'!$A$5:$S$20,3,FALSE),"") ->  | R47: =_xlfn.IFNA(VLOOKUP($A47,'5 - Satisfaction'!$A$6:$Y$31,5,FALSE),"") ->  | S47: 7073 | T47: =_xlfn.IFNA(VLOOKUP($A47,'6 - Met demand'!$A$7:$AD$15,7,FALSE),"") ->  | U47: =_xlfn.IFNA(VLOOKUP($A47,'7 - SBA'!$A$7:$AC$14,7,FALSE),"") ->  | W47: =_xlfn.IFNA(VLOOKUP($A47,'9 - SRH decisions'!$A$7:$AC$9,7,FALSE),"") ->  | X47: 0 | Y47: =_xlfn.IFNA(VLOOKUP($A47,'10 - Rejecting IPV'!$A$7:$AG$12,7,FALSE),"") ->  | Z47: =_xlfn.IFNA(VLOOKUP($A47,'11 - violence by partner'!$A$7:$AC$8,7,FALSE),"") ->  | AB47: 0 | AC47: 0 | AD47: =_xlfn.IFNA(VLOOKUP($A47,'13 - Food insecurity'!$A$6:$AF$23,7,FALSE),"") ->  | AE47: =_xlfn.IFNA(VLOOKUP($A47,'14 - Stunting'!$A$5:$AI$11,7,FALSE),"") ->  | AF47: =_xlfn.IFNA(VLOOKUP($A47,'15 - Resilience capacity'!$A$6:$AE$30,7,FALSE),"") ->  | AG47: 0 | AH47: 0 | AI47: =_xlfn.IFNA(VLOOKUP($A47,'WEE summary'!$A$4:$E$102,3,FALSE),"") ->  | AJ47: =_xlfn.IFNA(VLOOKUP($A47,'WEE summary'!$A$4:$E$102,4,FALSE),"") ->  | AK47: =_xlfn.IFNA(VLOOKUP($A47,'WEE summary'!$A$4:$E$102,5,FALSE),"") ->  | AL47: 0 | AM47: =_xlfn.IFNA(VLOOKUP($A47,'19 - Participation'!$A$5:$G$31,7,FALSE),"") ->  | AO47: =_xlfn.IFNA(VLOOKUP(A47,'21 - Resilience actions'!$A$7:$G$26,7,FALSE),"") ->  | AP47: 7073 | AQ47: 7073 | AS47: =_xlfn.IFNA(VLOOKUP($A47,'1 - poverty ($1.90)'!$A$7:$H$9,8,FALSE),"") ->  | AT47: =_xlfn.IFNA(VLOOKUP($A47,'2 - poverty (nat pov line)'!$A$7:$H$9,8,FALSE),"") ->  | AU47: =_xlfn.IFNA(VLOOKUP($A47,'3 - basic services'!$A$7:$H$9,8,FALSE),"") ->  | AV47: =_xlfn.IFNA(VLOOKUP($A47,'4 - Shelter'!$A$5:$J$23,6,FALSE),"") -> Protection et solutions mixtes pour les réfugiés Centrafricains vivant au sud du Tchad - 2 provided adequate shelter/housing for 7,073 people, 11.09% of those requiring assistance | AW47: =_xlfn.IFNA(VLOOKUP($A47,'4 - Safe Water'!$A$5:$J$24,6,FALSE),"") ->  | AX47: =_xlfn.IFNA(VLOOKUP($A47,'4 - Adequate Sanitation'!$A$5:$J$20,6,FALSE),"") ->  | AY47: =_xlfn.IFNA(VLOOKUP($A47,'4 - Hygiene Practices'!$A$5:$J$26,6,FALSE),"") ->  | AZ47: =_xlfn.IFNA(VLOOKUP($A47,'4 - Adequate food'!$A$5:$J$28,6,FALSE),"") ->  | BA47: =_xlfn.IFNA(VLOOKUP($A47,'4 - Nutritional practices'!$A$5:$J$15,6,FALSE),"") ->  | BB47: =_xlfn.IFNA(VLOOKUP($A47,'4 - Access SRH'!$A$5:$I$9,9,FALSE),"") ->  | BC47: =_xlfn.IFNA(VLOOKUP($A47,'4 - Livelihood recovery'!$A$5:$J$22,6,FALSE),"") ->  | BD47: =_xlfn.IFNA(VLOOKUP($A47,'5 - Satisfaction'!$A$5:$J$33,6,FALSE),"") ->  | BE47: =_xlfn.IFNA(VLOOKUP($A47,'6 - Met demand'!$A$7:$H$16,8,FALSE),"") ->  | BF47: =_xlfn.IFNA(VLOOKUP($A47,'7 - SBA'!$A$7:$H$16,8,FALSE),"") ->  | BG47: =_xlfn.IFNA(VLOOKUP($A47,'8 - ABR'!$A$7:$H$9,8,FALSE),"") ->  | BH47: =_xlfn.IFNA(VLOOKUP($A47,'9 - SRH decisions'!$A$7:$H$11,8,FALSE),"") ->  | BI47: =_xlfn.IFNA(VLOOKUP($A47,'10 - Rejecting IPV'!$A$7:$H$14,8,FALSE),"") ->  | BJ47: =_xlfn.IFNA(VLOOKUP($A47,'11 - violence by partner'!$A$7:$H$10,8,FALSE),"") ->  | BK47: =_xlfn.IFNA(VLOOKUP($A47,'12 - sexual violence'!$A$7:$H$9,8,FALSE),"") ->  | BL47: =_xlfn.IFNA(VLOOKUP($A47,'13 - Food insecurity'!$A$5:$L$25,9,FALSE),"") ->  | BM47: =_xlfn.IFNA(VLOOKUP($A47,'14 - Stunting'!$A$5:$L$13,9,FALSE),"") ->  | BN47: =_xlfn.IFNA(VLOOKUP($A47,'15 - Resilience capacity'!$A$5:$L$33,9,FALSE),"") ->  | BO47: =_xlfn.IFNA(VLOOKUP($A47,'WEE summary'!$A$4:$G$102,7,FALSE),"") ->  | BP47: =_xlfn.IFNA(VLOOKUP($A47,'17 - HH $ decisions'!$A$5:$L$46,7,FALSE),"") ->  | BQ47: =_xlfn.IFNA(VLOOKUP($A47,'18 - Labor rights'!$A$5:$L$23,7,FALSE),"") ->  | BR47: =_xlfn.IFNA(VLOOKUP($A47,'19 - Participation'!$A$5:$L$33,8,FALSE),"") ->  | BS47: =_xlfn.IFNA(A47&": "&VLOOKUP($A47,'20 - Policies'!$A$5:$J$62,5,FALSE),"") -> Protection et solutions mixtes pour les réfugiés Centrafricains vivant au sud du Tchad - 2: Policy Oversight | BT47: =_xlfn.IFNA(VLOOKUP($A47,'21 - Resilience actions'!$A$5:$L$28,9,FALSE),"") ->  | BU47: 1
